Workbook

Sheet Disclaimer
A1: Disclaimer for Software
A2: Important: This Excel forecasting model ("Software") is the property of the Society of Actuaries (SOA) and is protected under U.S. and international copyright laws.
A3: The Software has been developed for the benefit of actuaries FOR EDUCATIONAL USE ONLY, although others may find it useful. SOA and the authors make the Software available to individual users for their personal use on a non–exclusive basis. No commercial use, reproduction or distribution is permitted whatsoever.
A4: SOA and the authors make no warranty, guarantee, or representation, either expressed or implied, regarding the Software, including its quality, accuracy, reliability, or suitability, and HEREBY DISCLAIM ANY WARRANTY REGARDING THE SOFTWARE'S MERCHANTABILITY OR FITNESS FOR ANY PARTICULAR PURPOSE. SOA and the authors make no warranty that the Software is free from errors, defects, worms, viruses or other elements or codes that manifest contaminating or destructive properties. In no event shall SOA or the authors be liable for any damages (including any lost profits, lost savings, or direct, indirect, incidental, consequential or other damages) in connection with or resulting from the use, misuse, reliance on, or performance of any aspect of the Software including any instructions or documentation accompanying the Software. SOA and the authors make no representation or warranty of non–infringement of proprietary rights of others with respect to the Software. The entire risk as to the uses, outputs, analyses, results and performance of the Software is assumed by the user. This Disclaimer applies regardless of whether the Software is used alone or with other software.
A5: The models, any accompanying documentation, and methodologies contained herein do not represent an official position, statement, or endorsement on behalf of the Society of Actuaries or its members, nor should the material be construed to do so. It is the product of a research effort commissioned by the Society of Actuaries. The model is neither intended to preclude the use of other methodologies for any purpose nor provide a statement or position on the use, application, or preferability of other methodologies as compared to the methodology described herein.

Sheet Contents
C1: Society of actuaries - Cause of deaths forecasting tool | K1: Contents
C6: results
C7: may not be modified
C8: hypothesis
C9: to be chosen

Sheet Read Me
C1: Society of actuaries - Cause of deaths forecasting tool | K1: Read Me

Sheet Main
C1: Society of actuaries - Cause of deaths forecasting tool | K1: Main
B6: last historical year | C6: max projection year | K6: User input
A7: National | B7: 2016 | C7: 2026 | K7: Default parameters
A8: Cluster | B8: 2017 | K8: Calculation
K9: Outputs
E12: type of trend manual vs historical | G12: If manual, enter targetted improvement below | I12: If manual, enter reference horizon for target below | K12: If manual, enter reference age group below | M12: adjustment (yes/no) | O12: basis risk parameters alpha (=1 if baseline) | Q12: basis risk parameters beta (=0 if baseline)
B14: sex | E14: M | F14: F | G14: M | H14: F | I14: M | J14: F | K14: M | L14: F | M14: M | N14: F | O14: M | P14: F | Q14: M | R14: F
B15: cause | C15: =Causes -> Cardiovascular | E15: historical2 | F15: historical2 | M15: no | N15: no | O15: 0.9648332 | P15: 0.9504238 | Q15: -0.5580725 | R15: -0.7349309
C16: Cerebrovascular | E16: historical2 | F16: historical2 | M16: no | N16: no | O16: 0.9266721 | P16: 0.9635152 | Q16: -0.8292241 | R16: -0.6163625
C17: NeoSmok | E17: historical2 | F17: historical2 | M17: no | N17: no | O17: 0.9631134 | P17: 0.9833985 | Q17: -0.558563 | R17: -0.3217727
C18: Neoplasm | E18: historical2 | F18: historical2 | M18: no | N18: no | O18: 0.9841499 | P18: 1.005718 | Q18: -0.2148009 | R18: 0
C19: Dementia | E19: historical2 | F19: historical2 | M19: no | N19: no | O19: 0.9396717 | P19: 0.9277519 | Q19: -0.6249254 | R19: -0.7838081
C20: Diabetes | E20: historical2 | F20: historical2 | M20: no | N20: no | O20: 0.9825448 | P20: 0.9780839 | Q20: -0.3987095 | R20: -0.5443884
C21: Influenza | E21: historical2 | F21: historical2 | M21: no | N21: no | O21: 0.9350768 | P21: 0.9398415 | Q21: -0.7525443 | R21: -0.8020025
C22: Respiratory | E22: historical2 | F22: historical2 | M22: no | N22: no | O22: 0.906379 | P22: 0.9138771 | Q22: -1.0928151 | R22: -1.0754821
C23: Drug | E23: historical2 | F23: historical2 | M23: yes | N23: yes | O23: 0.923768 | P23: 0.9291725 | Q23: -0.6608898 | R23: -0.7651199
C24: External | E24: historical2 | F24: historical2 | M24: no | N24: no | O24: 1.1163533 | P24: 1.1210708 | Q24: 0.4404078 | R24: 0.5905675
C25: Other | E25: historical2 | F25: historical2 | M25: no | N25: no | O25: 0.9813438 | P25: 0.9795215 | Q25: -0.2065922 | R25: -0.3335538

Sheet Mortality rates at t0
C1: Society of actuaries - Cause of deaths forecasting tool | K1: Mortality rates at t0
D5: last historical year | AC5: last historical year
B6: National | D6: =Year_0 -> 2016 | E6: age | AA6: Cluster | AC6: =Year_1 -> 2017 | AD6: age | AV6: extrapolation with relational model
B7: sex | C7: M | E7: =TRANSPOSE(Ages_group) -> 0 | F7: 1 - 4 | G7: 5 - 9 | H7: 10 - 14 | I7: 15 - 19 | J7: 20 - 24 | K7: 25 - 29 | L7: 30 - 34 | M7: 35 - 39 | N7: 40 - 44 | O7: 45 - 49 | P7: 50 - 54 | Q7: 55 - 59 | R7: 60 - 64 | S7: 65 - 69 | T7: 70 - 74 | U7: 75 - 79 | V7: 80 - 84 | W7: 85 - 89 | X7: 90 - 94 | Y7: 95+ | AA7: sex | AB7: M | AD7: =TRANSPOSE(Ages_group) -> 0 | AE7: 1 - 4 | AF7: 5 - 9 | AG7: 10 - 14 | AH7: 15 - 19 | AI7: 20 - 24 | AJ7: 25 - 29 | AK7: 30 - 34 | AL7: 35 - 39 | AM7: 40 - 44 | AN7: 45 - 49 | AO7: 50 - 54 | AP7: 55 - 59 | AQ7: 60 - 64 | AR7: 65 - 69 | AS7: 70 - 74 | AT7: 75 - 79 | AU7: 80 - 84 | AV7: 85 - 89 | AW7: 90 - 94 | AX7: 95+
B8: cause | C8: =Causes -> Cardiovascular | E8: 9.993426053e-05 | F8: 1.339833063e-05 | G8: 4.121208549e-06 | H8: 6.22522199e-06 | I8: 2.199139091e-05 | J8: 4.260464576e-05 | K8: 8.096219831e-05 | L8: 0.0001501178059 | M8: 0.0002597499528 | N8: 0.0004646198482 | O8: 0.0007788423896 | P8: 0.001371943042 | Q8: 0.002185173475 | R8: 0.003288433201 | S8: 0.004545619648 | T8: 0.006795752721 | U8: 0.0108389271 | V8: 0.01882562949 | W8: 0.03411813094 | X8: 0.06621701561 | Y8: 0.1243753454 | AA8: cause | AB8: =Causes -> Cardiovascular | AD8: 8.904902491e-05 | AE8: 1.223318549e-05 | AF8: 0 | AG8: 5.475971437e-06 | AH8: 1.885521886e-05 | AI8: 1.891260109e-05 | AJ8: 4.563578083e-05 | AK8: 7.1771399e-05 | AL8: 0.0001474423259 | AM8: 0.000269799155 | AN8: 0.0004597113435 | AO8: 0.0008880681284 | AP8: 0.001371984368 | AQ8: 0.002211975435 | AR8: 0.003246366958 | AS8: 0.004862546817 | AT8: 0.007879710321 | AU8: 0.01402301702 | AV8: =(OFFSET(INDIRECT("'Forecasts " & $AB8 & "'!D17"),$AC$6-$D$6,MATCH(AV$7,$AD$7:$AX$7)-MATCH($AD$7,$AD$7:$AX$7))^Main!$O15)*EXP(Main!$Q15) -> 0.02175375002 | AW8: =(OFFSET(INDIRECT("'Forecasts " & $AB8 & "'!D17"),$AC$6-$D$6,MATCH(AW$7,$AD$7:$AX$7)-MATCH($AD$7,$AD$7:$AX$7))^Main!$O15)*EXP(Main!$Q15) -> 0.04135440587 | AX8: =(OFFSET(INDIRECT("'Forecasts " & $AB8 & "'!D17"),$AC$6-$D$6,MATCH(AX$7,$AD$7:$AX$7)-MATCH($AD$7,$AD$7:$AX$7))^Main!$O15)*EXP(Main!$Q15) -> 0.07613706029
C9: Cerebrovascular | E9: 2.916596771e-05 | F9: 2.93666201e-06 | G9: 1.899306629e-06 | H9: 2.529020776e-06 | I9: 2.999495963e-06 | J9: 5.555277e-06 | K9: 1.117080655e-05 | L9: 2.028012785e-05 | M9: 3.758155898e-05 | N9: 6.66908929e-05 | O9: 0.0001058451297 | P9: 0.0001752881876 | Q9: 0.0002878384153 | R9: 0.0004614229883 | S9: 0.0006671030102 | T9: 0.001170538271 | U9: 0.002102446934 | V9: 0.003797310687 | W9: 0.006293673966 | X9: 0.01132065619 | Y9: 0.01918069164 | AB9: Cerebrovascular | AD9: 4.109954996e-05 | AE9: 1.223318549e-05 | AF9: 0 | AG9: 0 | AH9: 0 | AI9: 0 | AJ9: 8.928739728e-06 | AK9: 9.097782971e-06 | AL9: 2.476130663e-05 | AM9: 4.973256314e-05 | AN9: 7.740037926e-05 | AO9: 9.880493084e-05 | AP9: 0.0001994303021 | AQ9: 0.0003035229451 | AR9: 0.0004963032209 | AS9: 0.0007744468158 | AT9: 0.001505593378 | AU9: 0.00301072601 | AV9: =(OFFSET(INDIRECT("'Forecasts " & $AB9 & "'!D17"),$AC$6-$D$6,MATCH(AV$7,$AD$7:$AX$7)-MATCH($AD$7,$AD$7:$AX$7))^Main!$O16)*EXP(Main!$Q16) -> 0.003919327352 | AW9: =(OFFSET(INDIRECT("'Forecasts " & $AB9 & "'!D17"),$AC$6-$D$6,MATCH(AW$7,$AD$7:$AX$7)-MATCH($AD$7,$AD$7:$AX$7))^Main!$O16)*EXP(Main!$Q16) -> 0.006764309544 | AX9: =(OFFSET(INDIRECT("'Forecasts " & $AB9 & "'!D17"),$AC$6-$D$6,MATCH(AX$7,$AD$7:$AX$7)-MATCH($AD$7,$AD$7:$AX$7))^Main!$O16)*EXP(Main!$Q16) -> 0.01106048855
C10: NeoSmok | E10: 0 | F10: 0 | G10: 9.889874574e-08 | H10: 2.002300565e-07 | I10: 3.980781349e-07 | J10: 1.865663391e-06 | K10: 3.162848331e-06 | L10: 7.59597886e-06 | M10: 2.150391196e-05 | N10: 5.605103056e-05 | O10: 0.0001673439136 | P10: 0.0004359890878 | Q10: 0.0009000976075 | R10: 0.001431857164 | S10: 0.002189428277 | T10: 0.003169365636 | U10: 0.004033137633 | V10: 0.004764654478 | W10: 0.005099392672 | X10: 0.00487605156 | Y10: 0.004529161493 | AB10: NeoSmok | AD10: 0 | AE10: 0 | AF10: 0 | AG10: 0 | AH10: 0 | AI10: 0 | AJ10: 0 | AK10: 9.097782971e-06 | AL10: 1.913373694e-05 | AM10: 2.237965341e-05 | AN10: 5.746391794e-05 | AO10: 0.0002011386092 | AP10: 0.0004000619916 | AQ10: 0.000758114388 | AR10: 0.001201665675 | AS10: 0.001686869788 | AT10: 0.002426043478 | AU10: 0.003239751126 | AV10: =(OFFSET(INDIRECT("'Forecasts " & $AB10 & "'!D17"),$AC$6-$D$6,MATCH(AV$7,$AD$7:$AX$7)-MATCH($AD$7,$AD$7:$AX$7))^Main!$O17)*EXP(Main!$Q17) -> 0.003502009595 | AW10: =(OFFSET(INDIRECT("'Forecasts " & $AB10 & "'!D17"),$AC$6-$D$6,MATCH(AW$7,$AD$7:$AX$7)-MATCH($AD$7,$AD$7:$AX$7))^Main!$O17)*EXP(Main!$Q17) -> 0.003362513979 | AX10: =(OFFSET(INDIRECT("'Forecasts " & $AB10 & "'!D17"),$AC$6-$D$6,MATCH(AX$7,$AD$7:$AX$7)-MATCH($AD$7,$AD$7:$AX$7))^Main!$O17)*EXP(Main!$Q17) -> 0.00313688753
C11: Neoplasm | E11: 2.957744359e-05 | F11: 2.699648524e-05 | G11: 2.604374221e-05 | H11: 2.383659239e-05 | I11: 3.701250813e-05 | J11: 4.496137876e-05 | K11: 7.444857444e-05 | L11: 0.0001098553801 | M11: 0.0001677589704 | N11: 0.0002775120664 | O11: 0.0005240231689 | P11: 0.001013609218 | Q11: 0.001811081828 | R11: 0.002923094883 | S11: 0.004159727113 | T11: 0.006062940414 | U11: 0.008683871869 | V11: 0.01248421025 | W11: 0.01709974101 | X11: 0.02359826321 | Y11: 0.02969166583 | AB11: Neoplasm | AD11: 2.739969997e-05 | AE11: 2.970916475e-05 | AF11: 1.952626492e-05 | AG11: 3.011784291e-05 | AH11: 3.636363636e-05 | AI11: 3.908604225e-05 | AJ11: 4.464369864e-05 | AK11: 5.96410217e-05 | AL11: 0.0001193044774 | AM11: 0.0001976869385 | AN11: 0.0003764472991 | AO11: 0.0007151594994 | AP11: 0.001253047019 | AQ11: 0.002268799366 | AR11: 0.003431630832 | AS11: 0.004824714645 | AT11: 0.007120338989 | AU11: 0.01068783877 | AV11: =(OFFSET(INDIRECT("'Forecasts " & $AB11 & "'!D17"),$AC$6-$D$6,MATCH(AV$7,$AD$7:$AX$7)-MATCH($AD$7,$AD$7:$AX$7))^Main!$O18)*EXP(Main!$Q18) -> 0.01459109319 | AW11: =(OFFSET(INDIRECT("'Forecasts " & $AB11 & "'!D17"),$AC$6-$D$6,MATCH(AW$7,$AD$7:$AX$7)-MATCH($AD$7,$AD$7:$AX$7))^Main!$O18)*EXP(Main!$Q18) -> 0.02007119495 | AX11: =(OFFSET(INDIRECT("'Forecasts " & $AB11 & "'!D17"),$AC$6-$D$6,MATCH(AX$7,$AD$7:$AX$7)-MATCH($AD$7,$AD$7:$AX$7))^Main!$O18)*EXP(Main!$Q18) -> 0.02518230417
C12: Dementia | E12: 0 | F12: 0 | G12: 0 | H12: 0 | I12: 0 | J12: 5.689473762e-07 | K12: 6.227660672e-07 | L12: 1.07485411e-06 | M12: 1.046620762e-06 | N12: 2.738327477e-06 | O12: 6.654865728e-06 | P12: 1.780828283e-05 | Q12: 5.144127001e-05 | R12: 0.0001587962903 | S12: 0.0004040654881 | T12: 0.001225281984 | U12: 0.003365989029 | V12: 0.008352123737 | W12: 0.01771989925 | X12: 0.03502635349 | Y12: 0.06289523944 | AB12: Dementia | AD12: 0 | AE12: 0 | AF12: 0 | AG12: 0 | AH12: 0 | AI12: 0 | AJ12: 0 | AK12: 0 | AL12: 0 | AM12: 0 | AN12: 1.055459717e-05 | AO12: 1.293874094e-05 | AP12: 4.685410712e-05 | AQ12: 0.000133051154 | AR12: 0.0003637290728 | AS12: 0.00100366527 | AT12: 0.002820522092 | AU12: 0.006999580121 | AV12: =(OFFSET(INDIRECT("'Forecasts " & $AB12 & "'!D17"),$AC$6-$D$6,MATCH(AV$7,$AD$7:$AX$7)-MATCH($AD$7,$AD$7:$AX$7))^Main!$O19)*EXP(Main!$Q19) -> 0.01226266078 | AW12: =(OFFSET(INDIRECT("'Forecasts " & $AB12 & "'!D17"),$AC$6-$D$6,MATCH(AW$7,$AD$7:$AX$7)-MATCH($AD$7,$AD$7:$AX$7))^Main!$O19)*EXP(Main!$Q19) -> 0.02333709198 | AX12: =(OFFSET(INDIRECT("'Forecasts " & $AB12 & "'!D17"),$AC$6-$D$6,MATCH(AX$7,$AD$7:$AX$7)-MATCH($AD$7,$AD$7:$AX$7))^Main!$O19)*EXP(Main!$Q19) -> 0.04061213071
C13: Diabetes | E13: 2.813413952e-05 | F13: 5.521301236e-07 | G13: 3.029314327e-07 | H13: 1.489855674e-06 | I13: 4.787512459e-06 | J13: 1.440305446e-05 | K13: 3.186392272e-05 | L13: 6.264678234e-05 | M13: 0.0001099283141 | N13: 0.0001843679457 | O13: 0.0002900798837 | P13: 0.0004625836045 | Q13: 0.0007131757245 | R13: 0.001054463941 | S13: 0.001404464501 | T13: 0.001964692188 | U13: 0.003015604946 | V13: 0.004760545047 | W13: 0.007631239812 | X13: 0.01371532547 | Y13: 0.02376958384 | AB13: Diabetes | AD13: 2.739969997e-05 | AE13: 0 | AF13: 0 | AG13: 0 | AH13: 0 | AI13: 1.134756065e-05 | AJ13: 1.884956165e-05 | AK13: 3.436940234e-05 | AL13: 4.276952964e-05 | AM13: 0.0001056816967 | AN13: 0.0001946736812 | AO13: 0.0003387597629 | AP13: 0.0005358187635 | AQ13: 0.000859288703 | AR13: 0.001150675618 | AS13: 0.001602303757 | AT13: 0.002416181513 | AU13: 0.003931597832 | AV13: =(OFFSET(INDIRECT("'Forecasts " & $AB13 & "'!D17"),$AC$6-$D$6,MATCH(AV$7,$AD$7:$AX$7)-MATCH($AD$7,$AD$7:$AX$7))^Main!$O20)*EXP(Main!$Q20) -> 0.00555939127 | AW13: =(OFFSET(INDIRECT("'Forecasts " & $AB13 & "'!D17"),$AC$6-$D$6,MATCH(AW$7,$AD$7:$AX$7)-MATCH($AD$7,$AD$7:$AX$7))^Main!$O20)*EXP(Main!$Q20) -> 0.00991259155 | AX13: =(OFFSET(INDIRECT("'Forecasts " & $AB13 & "'!D17"),$AC$6-$D$6,MATCH(AX$7,$AD$7:$AX$7)-MATCH($AD$7,$AD$7:$AX$7))^Main!$O20)*EXP(Main!$Q20) -> 0.01705480649
C14: Influenza | E14: 7.029978853e-05 | F14: 9.419750069e-06 | G14: 3.728297725e-06 | H14: 3.186818211e-06 | I14: 4.07518721e-06 | J14: 6.601952733e-06 | K14: 9.682176288e-06 | L14: 1.591117703e-05 | M14: 2.0143825e-05 | N14: 2.911594504e-05 | O14: 4.451946972e-05 | P14: 7.469964201e-05 | Q14: 0.0001222621225 | R14: 0.0001806456256 | S14: 0.0002767669991 | T14: 0.0004782626437 | U14: 0.0008760015362 | V14: 0.001782393671 | W14: 0.003599420634 | X14: 0.007601069376 | Y14: 0.01686169414 | AB14: Influenza | AD14: 6.164932494e-05 | AE14: 1.223318549e-05 | AF14: 0 | AG14: 0 | AH14: 0 | AI14: 1.134756065e-05 | AJ14: 8.928739728e-06 | AK14: 9.097782971e-06 | AL14: 1.012962544e-05 | AM14: 1.118982671e-05 | AN14: 1.876372831e-05 | AO14: 4.704996707e-05 | AP14: 9.370821425e-05 | AQ14: 9.28586179e-05 | AR14: 0.0001852638735 | AS14: 0.0003338132827 | AT14: 0.0006673263226 | AU14: 0.001240552714 | AV14: =(OFFSET(INDIRECT("'Forecasts " & $AB14 & "'!D17"),$AC$6-$D$6,MATCH(AV$7,$AD$7:$AX$7)-MATCH($AD$7,$AD$7:$AX$7))^Main!$O21)*EXP(Main!$Q21) -> 0.002426382991 | AW14: =(OFFSET(INDIRECT("'Forecasts " & $AB14 & "'!D17"),$AC$6-$D$6,MATCH(AW$7,$AD$7:$AX$7)-MATCH($AD$7,$AD$7:$AX$7))^Main!$O21)*EXP(Main!$Q21) -> 0.004881543833 | AX14: =(OFFSET(INDIRECT("'Forecasts " & $AB14 & "'!D17"),$AC$6-$D$6,MATCH(AX$7,$AD$7:$AX$7)-MATCH($AD$7,$AD$7:$AX$7))^Main!$O21)*EXP(Main!$Q21) -> 0.01029077389
C15: Respiratory | E15: 8.297543581e-05 | F15: 1.245222118e-05 | G15: 6.461002705e-06 | H15: 6.504751629e-06 | I15: 5.653688732e-06 | J15: 1.219449672e-05 | K15: 1.644960563e-05 | L15: 2.00056798e-05 | M15: 3.173668539e-05 | N15: 4.389032073e-05 | O15: 8.700799533e-05 | P15: 0.00020744951 | Q15: 0.0004346205128 | R15: 0.0008348968826 | S15: 0.001472922982 | T15: 0.002782627397 | U15: 0.004491428725 | V15: 0.007037035706 | W15: 0.01072281022 | X15: 0.01626206005 | Y15: 0.02535789121 | AB15: Respiratory | AD15: 6.164932494e-05 | AE15: 1.223318549e-05 | AF15: 9.763132459e-06 | AG15: 5.475971437e-06 | AH15: 9.427609428e-06 | AI15: 1.134756065e-05 | AJ15: 1.488123288e-05 | AK15: 1.21303773e-05 | AL15: 1.8008223e-05 | AM15: 2.735290973e-05 | AN15: 4.456385473e-05 | AO15: 8.704243907e-05 | AP15: 0.0002102427884 | AQ15: 0.0004504335943 | AR15: 0.000749553837 | AS15: 0.001604529179 | AT15: 0.00257726028 | AU15: 0.004594816398 | AV15: =(OFFSET(INDIRECT("'Forecasts " & $AB15 & "'!D17"),$AC$6-$D$6,MATCH(AV$7,$AD$7:$AX$7)-MATCH($AD$7,$AD$7:$AX$7))^Main!$O22)*EXP(Main!$Q22) -> 0.005418299787 | AW15: =(OFFSET(INDIRECT("'Forecasts " & $AB15 & "'!D17"),$AC$6-$D$6,MATCH(AW$7,$AD$7:$AX$7)-MATCH($AD$7,$AD$7:$AX$7))^Main!$O22)*EXP(Main!$Q22) -> 0.007935280423 | AX15: =(OFFSET(INDIRECT("'Forecasts " & $AB15 & "'!D17"),$AC$6-$D$6,MATCH(AX$7,$AD$7:$AX$7)-MATCH($AD$7,$AD$7:$AX$7))^Main!$O22)*EXP(Main!$Q22) -> 0.01194207036
C16: Drug | E16: 0 | F16: 2.103983727e-06 | G16: 2.614947872e-07 | H16: 5.226639044e-07 | I16: 5.971696293e-05 | J16: 0.0002646298882 | K16: 0.0004185440541 | L16: 0.0004998455751 | M16: 0.0004947221325 | N16: 0.0005111261529 | O16: 0.000598988723 | P16: 0.0006998355735 | Q16: 0.0006976215949 | R16: 0.000604559 | S16: 0.0003948434167 | T16: 0.0002915486935 | U16: 0.0002527453135 | V16: 0.0001965496545 | W16: 0.0001837829475 | X16: 0.0001404210511 | Y16: 8.645046069e-05 | AB16: Drug | AD16: 0 | AE16: 0 | AF16: 0 | AG16: 0 | AH16: 3.905723906e-05 | AI16: 0.0002988190972 | AJ16: 0.0004811598631 | AK16: 0.0005135193055 | AL16: 0.0005683845386 | AM16: 0.0005097587722 | AN16: 0.0006356212964 | AO16: 0.0007304507387 | AP16: 0.0008013253705 | AQ16: 0.0006985185586 | AR16: 0.0004929038837 | AS16: 0.0003360387045 | AT16: 0.0002695603865 | AU16: 0.0002194824032 | AV16: =(OFFSET(INDIRECT("'Forecasts " & $AB16 & "'!D17"),$AC$6-$D$6,MATCH(AV$7,$AD$7:$AX$7)-MATCH($AD$7,$AD$7:$AX$7))^Main!$O23)*EXP(Main!$Q23) -> 0.0001828369232 | AW16: =(OFFSET(INDIRECT("'Forecasts " & $AB16 & "'!D17"),$AC$6-$D$6,MATCH(AW$7,$AD$7:$AX$7)-MATCH($AD$7,$AD$7:$AX$7))^Main!$O23)*EXP(Main!$Q23) -> 0.0001425937115 | AX16: =(OFFSET(INDIRECT("'Forecasts " & $AB16 & "'!D17"),$AC$6-$D$6,MATCH(AX$7,$AD$7:$AX$7)-MATCH($AD$7,$AD$7:$AX$7))^Main!$O23)*EXP(Main!$Q23) -> 9.10950698e-05
C17: External | E17: 0.0004499197599 | F17: 0.0001393987822 | G17: 5.345055666e-05 | H17: 8.664984332e-05 | I17: 0.0004950737797 | J17: 0.0009049276053 | K17: 0.0008712663944 | L17: 0.0007921387613 | M17: 0.0007443893561 | N17: 0.0006955122668 | O17: 0.0007035979021 | P17: 0.0007800256522 | Q17: 0.0008134065924 | R17: 0.000782420854 | S17: 0.0008203518206 | T17: 0.0009930471011 | U17: 0.001407682701 | V17: 0.00231079065 | W17: 0.003774331708 | X17: 0.006237342163 | Y17: 0.01039030527 | AB17: External | AD17: 0.0002534472248 | AE17: 6.640872121e-05 | AF17: 2.510519775e-05 | AG17: 5.06527358e-05 | AH17: 0.0003582491582 | AI17: 0.0006039423947 | AJ17: 0.0004513973974 | AK17: 0.0004033350451 | AL17: 0.0004096870734 | AM17: 0.0003966171911 | AN17: 0.000492547868 | AO17: 0.0005175496377 | AP17: 0.0006379366893 | AQ17: 0.0006167475368 | AR17: 0.0006458740546 | AS17: 0.0008434348942 | AT17: 0.001190010487 | AU17: 0.001908542637 | AV17: =(OFFSET(INDIRECT("'Forecasts " & $AB17 & "'!D17"),$AC$6-$D$6,MATCH(AV$7,$AD$7:$AX$7)-MATCH($AD$7,$AD$7:$AX$7))^Main!$O24)*EXP(Main!$Q24) -> 0.003066631144 | AW17: =(OFFSET(INDIRECT("'Forecasts " & $AB17 & "'!D17"),$AC$6-$D$6,MATCH(AW$7,$AD$7:$AX$7)-MATCH($AD$7,$AD$7:$AX$7))^Main!$O24)*EXP(Main!$Q24) -> 0.005366851395 | AX17: =(OFFSET(INDIRECT("'Forecasts " & $AB17 & "'!D17"),$AC$6-$D$6,MATCH(AX$7,$AD$7:$AX$7)-MATCH($AD$7,$AD$7:$AX$7))^Main!$O24)*EXP(Main!$Q24) -> 0.009465886844
C18: Other | E18: 0.005470266556 | F18: 8.160542632e-05 | G18: 3.73351913e-05 | H18: 3.40746153e-05 | I18: 5.768617562e-05 | J18: 8.79002857e-05 | K18: 0.0001201139792 | L18: 0.0001663122469 | M18: 0.0002262475548 | N18: 0.0003465649068 | O18: 0.0005645632455 | P18: 0.0008684425544 | Q18: 0.001255462409 | R18: 0.001643100408 | S18: 0.001946457363 | T18: 0.002665141621 | U18: 0.003887764859 | V18: 0.006036907394 | W18: 0.009415746197 | X18: 0.01569999502 | Y18: 0.02619221338 | AB18: Other | AD18: 0.003596210621 | AE18: 5.068033987e-05 | AF18: 2.510519775e-05 | AG18: 2.464187147e-05 | AH18: 4.848484848e-05 | AI18: 9.834552566e-05 | AJ18: 0.0001140894521 | AK18: 0.0001374776093 | AL18: 0.0001947139112 | AM18: 0.0002250398482 | AN18: 0.0003635472359 | AO18: 0.000565775854 | AP18: 0.0008589919639 | AQ18: 0.00127230166 | AR18: 0.001742160279 | AS18: 0.002120827056 | AT18: 0.003412240014 | AU18: 0.005224635468 | AV18: =(OFFSET(INDIRECT("'Forecasts " & $AB18 & "'!D17"),$AC$6-$D$6,MATCH(AV$7,$AD$7:$AX$7)-MATCH($AD$7,$AD$7:$AX$7))^Main!$O25)*EXP(Main!$Q25) -> 0.008246543526 | AW18: =(OFFSET(INDIRECT("'Forecasts " & $AB18 & "'!D17"),$AC$6-$D$6,MATCH(AW$7,$AD$7:$AX$7)-MATCH($AD$7,$AD$7:$AX$7))^Main!$O25)*EXP(Main!$Q25) -> 0.01362484266 | AX18: =(OFFSET(INDIRECT("'Forecasts " & $AB18 & "'!D17"),$AC$6-$D$6,MATCH(AX$7,$AD$7:$AX$7)-MATCH($AD$7,$AD$7:$AX$7))^Main!$O25)*EXP(Main!$Q25) -> 0.02252958983
B20: sex | C20: F | E20: =TRANSPOSE(Ages_group) -> 0 | F20: 1 - 4 | G20: 5 - 9 | H20: 10 - 14 | I20: 15 - 19 | J20: 20 - 24 | K20: 25 - 29 | L20: 30 - 34 | M20: 35 - 39 | N20: 40 - 44 | O20: 45 - 49 | P20: 50 - 54 | Q20: 55 - 59 | R20: 60 - 64 | S20: 65 - 69 | T20: 70 - 74 | U20: 75 - 79 | V20: 80 - 84 | W20: 85 - 89 | X20: 90 - 94 | Y20: 95+ | AA20: sex | AB20: F | AD20: =TRANSPOSE(Ages_group) -> 0 | AE20: 1 - 4 | AF20: 5 - 9 | AG20: 10 - 14 | AH20: 15 - 19 | AI20: 20 - 24 | AJ20: 25 - 29 | AK20: 30 - 34 | AL20: 35 - 39 | AM20: 40 - 44 | AN20: 45 - 49 | AO20: 50 - 54 | AP20: 55 - 59 | AQ20: 60 - 64 | AR20: 65 - 69 | AS20: 70 - 74 | AT20: 75 - 79 | AU20: 80 - 84 | AV20: 85 - 89 | AW20: 90 - 94 | AX20: 95+
B21: cause | C21: =Causes -> Cardiovascular | E21: 8.073925086e-05 | F21: 1.086170618e-05 | G21: 4.198509366e-06 | H21: 5.007062471e-06 | I21: 1.290819062e-05 | J21: 2.221049494e-05 | K21: 4.270825029e-05 | L21: 7.36258828e-05 | M21: 0.00012112046 | N21: 0.0001992322278 | O21: 0.000320438845 | P21: 0.0005539522805 | Q21: 0.0008774357634 | R21: 0.001344234594 | S21: 0.002085289618 | T21: 0.003564743588 | U21: 0.006386776378 | V21: 0.01249855546 | W21: 0.02463994665 | X21: 0.04988360567 | Y21: 0.09976417107 | AA21: cause | AB21: =Causes -> Cardiovascular | AD21: 6.457028475e-05 | AE21: 7.30108202e-06 | AF21: 0 | AG21: 9.949739601e-06 | AH21: 0 | AI21: 1.011623555e-05 | AJ21: 2.231124182e-05 | AK21: 4.244728255e-05 | AL21: 6.563996704e-05 | AM21: 7.659919348e-05 | AN21: 0.0001714596195 | AO21: 0.0002916315522 | AP21: 0.0005217307178 | AQ21: 0.0008169841505 | AR21: 0.001376279948 | AS21: 0.002332310908 | AT21: 0.004173586169 | AU21: 0.008805939584 | AV21: =(OFFSET(INDIRECT("'Forecasts " & $AB21 & "'!D58"),$AC$6-$D$6,MATCH(AV$20,$AD$20:$AX$20)-MATCH($AD$20,$AD$20:$AX$20))^Main!$P15)*EXP(Main!$R15) -> 0.01398176544 | AW21: =(OFFSET(INDIRECT("'Forecasts " & $AB21 & "'!D58"),$AC$6-$D$6,MATCH(AW$20,$AD$20:$AX$20)-MATCH($AD$20,$AD$20:$AX$20))^Main!$P15)*EXP(Main!$R15) -> 0.02738918112 | AX21: =(OFFSET(INDIRECT("'Forecasts " & $AB21 & "'!D58"),$AC$6-$D$6,MATCH(AX$20,$AD$20:$AX$20)-MATCH($AD$20,$AD$20:$AX$20))^Main!$P15)*EXP(Main!$R15) -> 0.05302354711
C22: Cerebrovascular | E22: 2.425683067e-05 | F22: 2.228003382e-06 | G22: 2.408788224e-06 | H22: 2.444433501e-06 | I22: 2.987257694e-06 | J22: 4.24894537e-06 | K22: 8.860344043e-06 | L22: 1.729157609e-05 | M22: 2.825136922e-05 | N22: 5.023979288e-05 | O22: 7.723411915e-05 | P22: 0.0001352352126 | Q22: 0.0002007447132 | R22: 0.0002998546525 | S22: 0.0004899930937 | T22: 0.0009011250088 | U22: 0.001830648269 | V22: 0.003709782716 | W22: 0.006890978486 | X22: 0.01250433899 | Y22: 0.02097328401 | AB22: Cerebrovascular | AD22: 2.152342825e-05 | AE22: 0 | AF22: 0 | AG22: 0 | AH22: 0 | AI22: 0 | AJ22: 1.014147356e-05 | AK22: 1.242359489e-05 | AL22: 1.697585355e-05 | AM22: 2.96513007e-05 | AN22: 4.286490488e-05 | AO22: 8.151905594e-05 | AP22: 0.0001255378548 | AQ22: 0.0001785965352 | AR22: 0.0003212302233 | AS22: 0.0005964658934 | AT22: 0.001305372108 | AU22: 0.00258242769 | AV22: =(OFFSET(INDIRECT("'Forecasts " & $AB22 & "'!D58"),$AC$6-$D$6,MATCH(AV$20,$AD$20:$AX$20)-MATCH($AD$20,$AD$20:$AX$20))^Main!$P16)*EXP(Main!$R16) -> 0.004390337637 | AW22: =(OFFSET(INDIRECT("'Forecasts " & $AB22 & "'!D58"),$AC$6-$D$6,MATCH(AW$20,$AD$20:$AX$20)-MATCH($AD$20,$AD$20:$AX$20))^Main!$P16)*EXP(Main!$R16) -> 0.007804182942 | AX22: =(OFFSET(INDIRECT("'Forecasts " & $AB22 & "'!D58"),$AC$6-$D$6,MATCH(AX$20,$AD$20:$AX$20)-MATCH($AD$20,$AD$20:$AX$20))^Main!$P16)*EXP(Main!$R16) -> 0.01286460557
C23: NeoSmok | E23: 0 | F23: 0 | G23: 2.063149057e-07 | H23: 2.043691295e-07 | I23: 3.032564684e-07 | J23: 1.005635478e-06 | K23: 2.956458432e-06 | L23: 4.968964384e-06 | M23: 1.47850301e-05 | N23: 4.667911782e-05 | O23: 0.000129109484 | P23: 0.0003164609723 | Q23: 0.0005683407825 | R23: 0.0008328421946 | S23: 0.001359305849 | T23: 0.002057453149 | U23: 0.00257420014 | V23: 0.002888680961 | W23: 0.002841319021 | X23: 0.002501981684 | Y23: 0.002220742434 | AB23: NeoSmok | AD23: 0 | AE23: 0 | AF23: 0 | AG23: 0 | AH23: 0 | AI23: 0 | AJ23: 0 | AK23: 0 | AL23: 1.244895927e-05 | AM23: 2.347394639e-05 | AN23: 6.951065656e-05 | AO23: 0.0001274452846 | AP23: 0.0003478204786 | AQ23: 0.0005471893845 | AR23: 0.000733819501 | AS23: 0.001327736772 | AT23: 0.001848633479 | AU23: 0.002443587492 | AV23: =(OFFSET(INDIRECT("'Forecasts " & $AB23 & "'!D58"),$AC$6-$D$6,MATCH(AV$20,$AD$20:$AX$20)-MATCH($AD$20,$AD$20:$AX$20))^Main!$P17)*EXP(Main!$R17) -> 0.00227744074 | AW23: =(OFFSET(INDIRECT("'Forecasts " & $AB23 & "'!D58"),$AC$6-$D$6,MATCH(AW$20,$AD$20:$AX$20)-MATCH($AD$20,$AD$20:$AX$20))^Main!$P17)*EXP(Main!$R17) -> 0.00201336291 | AX23: =(OFFSET(INDIRECT("'Forecasts " & $AB23 & "'!D58"),$AC$6-$D$6,MATCH(AX$20,$AD$20:$AX$20)-MATCH($AD$20,$AD$20:$AX$20))^Main!$P17)*EXP(Main!$R17) -> 0.001798412989
C24: Neoplasm | E24: 3.076900769e-05 | F24: 2.414861535e-05 | G24: 2.222801436e-05 | H24: 2.357683863e-05 | I24: 2.700030742e-05 | J24: 3.506290385e-05 | K24: 6.093631821e-05 | L24: 0.0001249492424 | M24: 0.0002237807222 | N24: 0.0003844917741 | O24: 0.0006248505269 | P24: 0.001020319893 | Q24: 0.001556567724 | R24: 0.0022884653 | S24: 0.003098786979 | T24: 0.004430488048 | U24: 0.005997920945 | V24: 0.008084948482 | W24: 0.01034539612 | X24: 0.0129373922 | Y24: 0.0148504214 | AB24: Neoplasm | AD24: 3.587238042e-05 | AE24: 1.825270505e-05 | AF24: 2.321953343e-05 | AG24: 1.705669646e-05 | AH24: 1.652835646e-05 | AI24: 2.402605942e-05 | AJ24: 4.766492571e-05 | AK24: 8.075336679e-05 | AL24: 0.0001663633647 | AM24: 0.0002718035898 | AN24: 0.0004761479975 | AO24: 0.000828968428 | AP24: 0.001286475081 | AQ24: 0.001813831478 | AR24: 0.002611100715 | AS24: 0.003595415153 | AT24: 0.005252384814 | AU24: 0.007188451272 | AV24: =(OFFSET(INDIRECT("'Forecasts " & $AB24 & "'!D58"),$AC$6-$D$6,MATCH(AV$20,$AD$20:$AX$20)-MATCH($AD$20,$AD$20:$AX$20))^Main!$P18)*EXP(Main!$R18) -> 0.01001869191 | AW24: =(OFFSET(INDIRECT("'Forecasts " & $AB24 & "'!D58"),$AC$6-$D$6,MATCH(AW$20,$AD$20:$AX$20)-MATCH($AD$20,$AD$20:$AX$20))^Main!$P18)*EXP(Main!$R18) -> 0.01256076044 | AX24: =(OFFSET(INDIRECT("'Forecasts " & $AB24 & "'!D58"),$AC$6-$D$6,MATCH(AX$20,$AD$20:$AX$20)-MATCH($AD$20,$AD$20:$AX$20))^Main!$P18)*EXP(Main!$R18) -> 0.01444095226
C25: Dementia | E25: 0 | F25: 0 | G25: 0 | H25: 0 | I25: 0 | J25: 9.773331068e-08 | K25: 7.304496311e-07 | L25: 7.433814767e-07 | M25: 1.758747025e-06 | N25: 2.204093741e-06 | O25: 6.914802029e-06 | P25: 1.537589289e-05 | Q25: 4.674232459e-05 | R25: 0.0001278024003 | S25: 0.0003105805912 | T25: 0.0009987348908 | U25: 0.003059150336 | V25: 0.008227994479 | W25: 0.01919650796 | X25: 0.04043130905 | Y25: 0.08148131586 | AB25: Dementia | AD25: 0 | AE25: 0 | AF25: 0 | AG25: 0 | AH25: 0 | AI25: 0 | AJ25: 0 | AK25: 0 | AL25: 0 | AM25: 0 | AN25: 0 | AO25: 1.148155717e-05 | AP25: 4.031032036e-05 | AQ25: 0.0001051312938 | AR25: 0.0002755506962 | AS25: 0.000709111155 | AT25: 0.00220909126 | AU25: 0.006192272849 | AV25: =(OFFSET(INDIRECT("'Forecasts " & $AB25 & "'!D58"),$AC$6-$D$6,MATCH(AV$20,$AD$20:$AX$20)-MATCH($AD$20,$AD$20:$AX$20))^Main!$P19)*EXP(Main!$R19) -> 0.01183580673 | AW25: =(OFFSET(INDIRECT("'Forecasts " & $AB25 & "'!D58"),$AC$6-$D$6,MATCH(AW$20,$AD$20:$AX$20)-MATCH($AD$20,$AD$20:$AX$20))^Main!$P19)*EXP(Main!$R19) -> 0.0236564611 | AX25: =(OFFSET(INDIRECT("'Forecasts " & $AB25 & "'!D58"),$AC$6-$D$6,MATCH(AX$20,$AD$20:$AX$20)-MATCH($AD$20,$AD$20:$AX$20))^Main!$P19)*EXP(Main!$R19) -> 0.04544193854
C26: Diabetes | E26: 1.763311504e-05 | F26: 7.05217307e-07 | G26: 6.41983813e-07 | H26: 1.050690744e-06 | I26: 2.593134105e-06 | J26: 8.276506672e-06 | K26: 2.143537788e-05 | L26: 3.715859077e-05 | M26: 6.027969113e-05 | N26: 9.798658008e-05 | O26: 0.0001642227205 | P26: 0.0002615149451 | Q26: 0.0004169337035 | R26: 0.0006189114461 | S26: 0.0008825605647 | T26: 0.001404821267 | U26: 0.00215423178 | V26: 0.003589526505 | W26: 0.005947663135 | X26: 0.0100499618 | Y26: 0.01781686198 | AB26: Diabetes | AD26: 2.152342825e-05 | AE26: 0 | AF26: 0 | AG26: 0 | AH26: 0 | AI26: 5.058117773e-06 | AJ26: 9.1273262e-06 | AK26: 2.484718978e-05 | AL26: 3.73468778e-05 | AM26: 4.447695106e-05 | AN26: 7.762023316e-05 | AO26: 0.0001492602433 | AP26: 0.0002637446675 | AQ26: 0.0003901257649 | AR26: 0.0005481543261 | AS26: 0.000930708391 | AT26: 0.001519072079 | AU26: 0.002599782715 | AV26: =(OFFSET(INDIRECT("'Forecasts " & $AB26 & "'!D58"),$AC$6-$D$6,MATCH(AV$20,$AD$20:$AX$20)-MATCH($AD$20,$AD$20:$AX$20))^Main!$P20)*EXP(Main!$R20) -> 0.003846335034 | AW26: =(OFFSET(INDIRECT("'Forecasts " & $AB26 & "'!D58"),$AC$6-$D$6,MATCH(AW$20,$AD$20:$AX$20)-MATCH($AD$20,$AD$20:$AX$20))^Main!$P20)*EXP(Main!$R20) -> 0.006434218967 | AX26: =(OFFSET(INDIRECT("'Forecasts " & $AB26 & "'!D58"),$AC$6-$D$6,MATCH(AX$20,$AD$20:$AX$20)-MATCH($AD$20,$AD$20:$AX$20))^Main!$P20)*EXP(Main!$R20) -> 0.01129039189
C27: Influenza | E27: 4.317125335e-05 | F27: 8.876031574e-06 | G27: 3.394972131e-06 | H27: 2.940479288e-06 | I27: 3.50561055e-06 | J27: 5.129546712e-06 | K27: 8.484054042e-06 | L27: 1.284797171e-05 | M27: 1.864781481e-05 | N27: 2.511363935e-05 | O27: 3.376519731e-05 | P27: 5.350207513e-05 | Q27: 8.383560473e-05 | R27: 0.0001287939 | S27: 0.0001928623866 | T27: 0.0003329193979 | U27: 0.0006228351563 | V27: 0.001266376225 | W27: 0.002565096526 | X27: 0.005343168159 | Y27: 0.01128337742 | AB27: Influenza | AD27: 5.022133259e-05 | AE27: 7.30108202e-06 | AF27: 0 | AG27: 0 | AH27: 0 | AI27: 0 | AJ27: 9.1273262e-06 | AK27: 9.317696169e-06 | AL27: 1.018551213e-05 | AM27: 1.111923776e-05 | AN27: 2.664575168e-05 | AO27: 2.64075815e-05 | AP27: 4.952410788e-05 | AQ27: 5.826553632e-05 | AR27: 0.0001340915152 | AS27: 0.0001957442251 | AT27: 0.0003939288611 | AU27: 0.0007775051111 | AV27: =(OFFSET(INDIRECT("'Forecasts " & $AB27 & "'!D58"),$AC$6-$D$6,MATCH(AV$20,$AD$20:$AX$20)-MATCH($AD$20,$AD$20:$AX$20))^Main!$P21)*EXP(Main!$R21) -> 0.001646792143 | AW27: =(OFFSET(INDIRECT("'Forecasts " & $AB27 & "'!D58"),$AC$6-$D$6,MATCH(AW$20,$AD$20:$AX$20)-MATCH($AD$20,$AD$20:$AX$20))^Main!$P21)*EXP(Main!$R21) -> 0.003282170296 | AX27: =(OFFSET(INDIRECT("'Forecasts " & $AB27 & "'!D58"),$AC$6-$D$6,MATCH(AX$20,$AD$20:$AX$20)-MATCH($AD$20,$AD$20:$AX$20))^Main!$P21)*EXP(Main!$R21) -> 0.006626313696
C28: Respiratory | E28: 7.325337563e-05 | F28: 9.243525273e-06 | G28: 4.739704551e-06 | H28: 6.027385508e-06 | I28: 5.282304107e-06 | J28: 7.074332701e-06 | K28: 1.098589316e-05 | L28: 1.550772267e-05 | M28: 2.74885109e-05 | N28: 4.207825368e-05 | O28: 9.423525441e-05 | P28: 0.0002057006221 | Q28: 0.0003878819526 | R28: 0.0006350236866 | S28: 0.001172803958 | T28: 0.002187965176 | U28: 0.003440841988 | V28: 0.005275535344 | W28: 0.007533061432 | X28: 0.0103806675 | Y28: 0.01513736375 | AB28: Respiratory | AD28: 5.739580867e-05 | AE28: 7.30108202e-06 | AF28: 0 | AG28: 0 | AH28: 0 | AI28: 5.058117773e-06 | AJ28: 9.1273262e-06 | AK28: 1.138829532e-05 | AL28: 1.471240641e-05 | AM28: 2.100300467e-05 | AN28: 4.402341582e-05 | AO28: 0.0001010377031 | AP28: 0.0001969447081 | AQ28: 0.0003673262072 | AR28: 0.000590886787 | AS28: 0.001196625074 | AT28: 0.002088080434 | AU28: 0.003759098372 | AV28: =(OFFSET(INDIRECT("'Forecasts " & $AB28 & "'!D58"),$AC$6-$D$6,MATCH(AV$20,$AD$20:$AX$20)-MATCH($AD$20,$AD$20:$AX$20))^Main!$P22)*EXP(Main!$R22) -> 0.003922565735 | AW28: =(OFFSET(INDIRECT("'Forecasts " & $AB28 & "'!D58"),$AC$6-$D$6,MATCH(AW$20,$AD$20:$AX$20)-MATCH($AD$20,$AD$20:$AX$20))^Main!$P22)*EXP(Main!$R22) -> 0.005279054748 | AX28: =(OFFSET(INDIRECT("'Forecasts " & $AB28 & "'!D58"),$AC$6-$D$6,MATCH(AX$20,$AD$20:$AX$20)-MATCH($AD$20,$AD$20:$AX$20))^Main!$P22)*EXP(Main!$R22) -> 0.007468130432
C29: Drug | E29: 0 | F29: 1.623922262e-06 | G29: 4.092091709e-07 | H29: 1.115769095e-06 | I29: 2.480401749e-05 | J29: 9.854051025e-05 | K29: 0.0001675983268 | L29: 0.0002223088258 | M29: 0.0002452088199 | N29: 0.0002770327106 | O29: 0.0003423817742 | P29: 0.0003885530774 | Q29: 0.0003197820382 | R29: 0.0002131594083 | S29: 0.000138152046 | T29: 9.512402762e-05 | U29: 7.772203162e-05 | V29: 7.037060837e-05 | W29: 6.539207907e-05 | X29: 5.971231591e-05 | Y29: 5.443803881e-05 | AB29: Drug | AD29: 0 | AE29: 0 | AF29: 0 | AG29: 0 | AH29: 1.515099342e-05 | AI29: 0.0001163367088 | AJ29: 0.0001419806298 | AK29: 0.000153224337 | AL29: 0.0001980516247 | AM29: 0.000189027042 | AN29: 0.0002525553855 | AO29: 0.0003180391337 | AP29: 0.0003351515207 | AQ29: 0.0002558617029 | AR29: 0.0001635621779 | AS29: 0.000110798618 | AT29: 5.921806408e-05 | AU29: 4.859406944e-05 | AV29: =(OFFSET(INDIRECT("'Forecasts " & $AB29 & "'!D58"),$AC$6-$D$6,MATCH(AV$20,$AD$20:$AX$20)-MATCH($AD$20,$AD$20:$AX$20))^Main!$P23)*EXP(Main!$R23) -> 6.020238374e-05 | AW29: =(OFFSET(INDIRECT("'Forecasts " & $AB29 & "'!D58"),$AC$6-$D$6,MATCH(AW$20,$AD$20:$AX$20)-MATCH($AD$20,$AD$20:$AX$20))^Main!$P23)*EXP(Main!$R23) -> 5.53283091e-05 | AX29: =(OFFSET(INDIRECT("'Forecasts " & $AB29 & "'!D58"),$AC$6-$D$6,MATCH(AX$20,$AD$20:$AX$20)-MATCH($AD$20,$AD$20:$AX$20))^Main!$P23)*EXP(Main!$R23) -> 5.077272678e-05
C30: External | E30: 0.00034012761 | F30: 9.247236596e-05 | G30: 3.916132226e-05 | H30: 5.13168128e-05 | I30: 0.0001683260882 | J30: 0.0002324244666 | K30: 0.0002217090584 | L30: 0.0002232320394 | M30: 0.0002207785127 | N30: 0.0002277400287 | O30: 0.00025212532 | P30: 0.0002788414594 | Q30: 0.0002946483394 | R30: 0.0002850840545 | S30: 0.0003053985187 | T30: 0.0004226301983 | U30: 0.0006991935076 | V30: 0.001270767336 | W30: 0.002268230478 | X30: 0.004043090202 | Y30: 0.007221830472 | AB30: External | AD30: 0.0001793619021 | AE30: 4.563176263e-05 | AF30: 2.176831259e-05 | AG30: 2.98492188e-05 | AH30: 9.641541269e-05 | AI30: 0.0001150721793 | AJ30: 0.0001206835353 | AK30: 0.0001283771472 | AL30: 0.0001267530398 | AM30: 0.0001247825571 | AN30: 0.000162191532 | AO30: 0.0002158532749 | AP30: 0.000188882644 | AQ30: 0.0002343287874 | AR30: 0.0002313447021 | AS30: 0.0003877951629 | AT30: 0.0005561348627 | AU30: 0.001044772493 | AV30: =(OFFSET(INDIRECT("'Forecasts " & $AB30 & "'!D58"),$AC$6-$D$6,MATCH(AV$20,$AD$20:$AX$20)-MATCH($AD$20,$AD$20:$AX$20))^Main!$P24)*EXP(Main!$R24) -> 0.001958250039 | AW30: =(OFFSET(INDIRECT("'Forecasts " & $AB30 & "'!D58"),$AC$6-$D$6,MATCH(AW$20,$AD$20:$AX$20)-MATCH($AD$20,$AD$20:$AX$20))^Main!$P24)*EXP(Main!$R24) -> 0.003742610708 | AX30: =(OFFSET(INDIRECT("'Forecasts " & $AB30 & "'!D58"),$AC$6-$D$6,MATCH(AX$20,$AD$20:$AX$20)-MATCH($AD$20,$AD$20:$AX$20))^Main!$P24)*EXP(Main!$R24) -> 0.007168769927
C31: Other | E31: 0.004601687386 | F31: 7.716896736e-05 | G31: 3.177245205e-05 | H31: 3.206520471e-05 | I31: 4.321500168e-05 | J31: 7.589864363e-05 | K31: 0.000103670613 | L31: 0.0001472494757 | M31: 0.0001940216113 | N31: 0.000257883185 | O31: 0.0004040030062 | P31: 0.000588735836 | Q31: 0.0008304593628 | R31: 0.001129685797 | S31: 0.001575710529 | T31: 0.002287086079 | U31: 0.003498101321 | V31: 0.005383624522 | W31: 0.008535380891 | X31: 0.01373108982 | Y31: 0.02304013738 | AB31: Other | AD31: 0.003056326812 | AE31: 5.658338566e-05 | AF31: 3.047563763e-05 | AG31: 2.98492188e-05 | AH31: 4.545298027e-05 | AI31: 6.70200605e-05 | AJ31: 6.693372547e-05 | AK31: 0.0001128476536 | AL31: 0.0001471240641 | AM31: 0.0001952043963 | AN31: 0.0002768841153 | AO31: 0.000353631961 | AP31: 0.00050906176 | AQ31: 0.0007954512349 | AR31: 0.001149355845 | AS31: 0.001704452073 | AT31: 0.002664812884 | AU31: 0.004595610567 | AV31: =(OFFSET(INDIRECT("'Forecasts " & $AB31 & "'!D58"),$AC$6-$D$6,MATCH(AV$20,$AD$20:$AX$20)-MATCH($AD$20,$AD$20:$AX$20))^Main!$P25)*EXP(Main!$R25) -> 0.006636175156 | AW31: =(OFFSET(INDIRECT("'Forecasts " & $AB31 & "'!D58"),$AC$6-$D$6,MATCH(AW$20,$AD$20:$AX$20)-MATCH($AD$20,$AD$20:$AX$20))^Main!$P25)*EXP(Main!$R25) -> 0.01054715434 | AX31: =(OFFSET(INDIRECT("'Forecasts " & $AB31 & "'!D58"),$AC$6-$D$6,MATCH(AX$20,$AD$20:$AX$20)-MATCH($AD$20,$AD$20:$AX$20))^Main!$P25)*EXP(Main!$R25) -> 0.01750335104

Sheet Mortality trends
C1: Society of actuaries - Cause of deaths forecasting tool | K1: Mortality trends
B5: =CONCATENATE("mortality rate deviation over the next ",Year_max-Year_0," years") -> mortality rate deviation over the next 10 years
B6: National Population | E6: age | AA6: Cluster Population
B7: sex | C7: M | E7: =TRANSPOSE(Ages_group) -> 0 | F7: 1 - 4 | G7: 5 - 9 | H7: 10 - 14 | I7: 15 - 19 | J7: 20 - 24 | K7: 25 - 29 | L7: 30 - 34 | M7: 35 - 39 | N7: 40 - 44 | O7: 45 - 49 | P7: 50 - 54 | Q7: 55 - 59 | R7: 60 - 64 | S7: 65 - 69 | T7: 70 - 74 | U7: 75 - 79 | V7: 80 - 84 | W7: 85 - 89 | X7: 90 - 94 | Y7: 95+ | AA7: sex | AB7: M | AD7: =TRANSPOSE(Ages_group) -> 0 | AE7: 1 - 4 | AF7: 5 - 9 | AG7: 10 - 14 | AH7: 15 - 19 | AI7: 20 - 24 | AJ7: 25 - 29 | AK7: 30 - 34 | AL7: 35 - 39 | AM7: 40 - 44 | AN7: 45 - 49 | AO7: 50 - 54 | AP7: 55 - 59 | AQ7: 60 - 64 | AR7: 65 - 69 | AS7: 70 - 74 | AT7: 75 - 79 | AU7: 80 - 84 | AV7: 85 - 89 | AW7: 90 - 94 | AX7: 95+
B8: cause | C8: =Causes -> Cardiovascular | E8: =IF('Mortality rates at t0'!E8=0,0,OFFSET(INDIRECT("'Forecasts " & $C8 & "'!C17"),Year_max-Year_0,MATCH('Mortality trends'!E$7,Ages_group,0))/'Mortality rates at t0'!E8-1) -> -0.06950528253 | F8: =IF('Mortality rates at t0'!F8=0,0,OFFSET(INDIRECT("'Forecasts " & $C8 & "'!C17"),Year_max-Year_0,MATCH('Mortality trends'!F$7,Ages_group,0))/'Mortality rates at t0'!F8-1) -> -0.03286686473 | G8: =IF('Mortality rates at t0'!G8=0,0,OFFSET(INDIRECT("'Forecasts " & $C8 & "'!C17"),Year_max-Year_0,MATCH('Mortality trends'!G$7,Ages_group,0))/'Mortality rates at t0'!G8-1) -> -0.07295917923 | H8: =IF('Mortality rates at t0'!H8=0,0,OFFSET(INDIRECT("'Forecasts " & $C8 & "'!C17"),Year_max-Year_0,MATCH('Mortality trends'!H$7,Ages_group,0))/'Mortality rates at t0'!H8-1) -> -0.09680884117 | I8: =IF('Mortality rates at t0'!I8=0,0,OFFSET(INDIRECT("'Forecasts " & $C8 & "'!C17"),Year_max-Year_0,MATCH('Mortality trends'!I$7,Ages_group,0))/'Mortality rates at t0'!I8-1) -> -0.05461355316 | J8: =IF('Mortality rates at t0'!J8=0,0,OFFSET(INDIRECT("'Forecasts " & $C8 & "'!C17"),Year_max-Year_0,MATCH('Mortality trends'!J$7,Ages_group,0))/'Mortality rates at t0'!J8-1) -> -0.01519404201 | K8: =IF('Mortality rates at t0'!K8=0,0,OFFSET(INDIRECT("'Forecasts " & $C8 & "'!C17"),Year_max-Year_0,MATCH('Mortality trends'!K$7,Ages_group,0))/'Mortality rates at t0'!K8-1) -> 0.008469686599 | L8: =IF('Mortality rates at t0'!L8=0,0,OFFSET(INDIRECT("'Forecasts " & $C8 & "'!C17"),Year_max-Year_0,MATCH('Mortality trends'!L$7,Ages_group,0))/'Mortality rates at t0'!L8-1) -> -0.0008126621327 | M8: =IF('Mortality rates at t0'!M8=0,0,OFFSET(INDIRECT("'Forecasts " & $C8 & "'!C17"),Year_max-Year_0,MATCH('Mortality trends'!M$7,Ages_group,0))/'Mortality rates at t0'!M8-1) -> -0.03238169472 | N8: =IF('Mortality rates at t0'!N8=0,0,OFFSET(INDIRECT("'Forecasts " & $C8 & "'!C17"),Year_max-Year_0,MATCH('Mortality trends'!N$7,Ages_group,0))/'Mortality rates at t0'!N8-1) -> -0.05673374276 | O8: =IF('Mortality rates at t0'!O8=0,0,OFFSET(INDIRECT("'Forecasts " & $C8 & "'!C17"),Year_max-Year_0,MATCH('Mortality trends'!O$7,Ages_group,0))/'Mortality rates at t0'!O8-1) -> -0.06185942295 | P8: =IF('Mortality rates at t0'!P8=0,0,OFFSET(INDIRECT("'Forecasts " & $C8 & "'!C17"),Year_max-Year_0,MATCH('Mortality trends'!P$7,Ages_group,0))/'Mortality rates at t0'!P8-1) -> -0.05591881145 | Q8: =IF('Mortality rates at t0'!Q8=0,0,OFFSET(INDIRECT("'Forecasts " & $C8 & "'!C17"),Year_max-Year_0,MATCH('Mortality trends'!Q$7,Ages_group,0))/'Mortality rates at t0'!Q8-1) -> -0.06482138151 | R8: =IF('Mortality rates at t0'!R8=0,0,OFFSET(INDIRECT("'Forecasts " & $C8 & "'!C17"),Year_max-Year_0,MATCH('Mortality trends'!R$7,Ages_group,0))/'Mortality rates at t0'!R8-1) -> -0.07998637468 | S8: =IF('Mortality rates at t0'!S8=0,0,OFFSET(INDIRECT("'Forecasts " & $C8 & "'!C17"),Year_max-Year_0,MATCH('Mortality trends'!S$7,Ages_group,0))/'Mortality rates at t0'!S8-1) -> -0.09926377257 | T8: =IF('Mortality rates at t0'!T8=0,0,OFFSET(INDIRECT("'Forecasts " & $C8 & "'!C17"),Year_max-Year_0,MATCH('Mortality trends'!T$7,Ages_group,0))/'Mortality rates at t0'!T8-1) -> -0.1117290062 | U8: =IF('Mortality rates at t0'!U8=0,0,OFFSET(INDIRECT("'Forecasts " & $C8 & "'!C17"),Year_max-Year_0,MATCH('Mortality trends'!U$7,Ages_group,0))/'Mortality rates at t0'!U8-1) -> -0.1118483413 | V8: =IF('Mortality rates at t0'!V8=0,0,OFFSET(INDIRECT("'Forecasts " & $C8 & "'!C17"),Year_max-Year_0,MATCH('Mortality trends'!V$7,Ages_group,0))/'Mortality rates at t0'!V8-1) -> -0.1130847965 | W8: =IF('Mortality rates at t0'!W8=0,0,OFFSET(INDIRECT("'Forecasts " & $C8 & "'!C17"),Year_max-Year_0,MATCH('Mortality trends'!W$7,Ages_group,0))/'Mortality rates at t0'!W8-1) -> -0.1055387799 | X8: =IF('Mortality rates at t0'!X8=0,0,OFFSET(INDIRECT("'Forecasts " & $C8 & "'!C17"),Year_max-Year_0,MATCH('Mortality trends'!X$7,Ages_group,0))/'Mortality rates at t0'!X8-1) -> -0.08107226685 | Y8: =IF('Mortality rates at t0'!Y8=0,0,OFFSET(INDIRECT("'Forecasts " & $C8 & "'!C17"),Year_max-Year_0,MATCH('Mortality trends'!Y$7,Ages_group,0))/'Mortality rates at t0'!Y8-1) -> -0.06029096229 | AA8: cause | AB8: =Causes -> Cardiovascular | AD8: =IF('Mortality rates at t0'!AD8=0,0,OFFSET(INDIRECT("'Forecasts " & $AB8 & "'!AA17"),Year_max-Year_1,MATCH('Mortality trends'!AD$7,Ages_group,0))/'Mortality rates at t0'!AD8-1) -> -0.06063855916 | AE8: =IF('Mortality rates at t0'!AE8=0,0,OFFSET(INDIRECT("'Forecasts " & $AB8 & "'!AA17"),Year_max-Year_1,MATCH('Mortality trends'!AE$7,Ages_group,0))/'Mortality rates at t0'!AE8-1) -> -0.02860246236 | AF8: =IF('Mortality rates at t0'!AF8=0,0,OFFSET(INDIRECT("'Forecasts " & $AB8 & "'!AA17"),Year_max-Year_1,MATCH('Mortality trends'!AF$7,Ages_group,0))/'Mortality rates at t0'!AF8-1) -> 0 | AG8: =IF('Mortality rates at t0'!AG8=0,0,OFFSET(INDIRECT("'Forecasts " & $AB8 & "'!AA17"),Year_max-Year_1,MATCH('Mortality trends'!AG$7,Ages_group,0))/'Mortality rates at t0'!AG8-1) -> -0.08462027593 | AH8: =IF('Mortality rates at t0'!AH8=0,0,OFFSET(INDIRECT("'Forecasts " & $AB8 & "'!AA17"),Year_max-Year_1,MATCH('Mortality trends'!AH$7,Ages_group,0))/'Mortality rates at t0'!AH8-1) -> -0.04759777565 | AI8: =IF('Mortality rates at t0'!AI8=0,0,OFFSET(INDIRECT("'Forecasts " & $AB8 & "'!AA17"),Year_max-Year_1,MATCH('Mortality trends'!AI$7,Ages_group,0))/'Mortality rates at t0'!AI8-1) -> -0.01320701651 | AJ8: =IF('Mortality rates at t0'!AJ8=0,0,OFFSET(INDIRECT("'Forecasts " & $AB8 & "'!AA17"),Year_max-Year_1,MATCH('Mortality trends'!AJ$7,Ages_group,0))/'Mortality rates at t0'!AJ8-1) -> 0.007350564035 | AK8: =IF('Mortality rates at t0'!AK8=0,0,OFFSET(INDIRECT("'Forecasts " & $AB8 & "'!AA17"),Year_max-Year_1,MATCH('Mortality trends'!AK$7,Ages_group,0))/'Mortality rates at t0'!AK8-1) -> -0.0007057128261 | AL8: =IF('Mortality rates at t0'!AL8=0,0,OFFSET(INDIRECT("'Forecasts " & $AB8 & "'!AA17"),Year_max-Year_1,MATCH('Mortality trends'!AL$7,Ages_group,0))/'Mortality rates at t0'!AL8-1) -> -0.02817932137 | AM8: =IF('Mortality rates at t0'!AM8=0,0,OFFSET(INDIRECT("'Forecasts " & $AB8 & "'!AA17"),Year_max-Year_1,MATCH('Mortality trends'!AM$7,Ages_group,0))/'Mortality rates at t0'!AM8-1) -> -0.04945277875 | AN8: =IF('Mortality rates at t0'!AN8=0,0,OFFSET(INDIRECT("'Forecasts " & $AB8 & "'!AA17"),Year_max-Year_1,MATCH('Mortality trends'!AN$7,Ages_group,0))/'Mortality rates at t0'!AN8-1) -> -0.05393962602 | AO8: =IF('Mortality rates at t0'!AO8=0,0,OFFSET(INDIRECT("'Forecasts " & $AB8 & "'!AA17"),Year_max-Year_1,MATCH('Mortality trends'!AO$7,Ages_group,0))/'Mortality rates at t0'!AO8-1) -> -0.04873971155 | AP8: =IF('Mortality rates at t0'!AP8=0,0,OFFSET(INDIRECT("'Forecasts " & $AB8 & "'!AA17"),Year_max-Year_1,MATCH('Mortality trends'!AP$7,Ages_group,0))/'Mortality rates at t0'!AP8-1) -> -0.05653389507 | AQ8: =IF('Mortality rates at t0'!AQ8=0,0,OFFSET(INDIRECT("'Forecasts " & $AB8 & "'!AA17"),Year_max-Year_1,MATCH('Mortality trends'!AQ$7,Ages_group,0))/'Mortality rates at t0'!AQ8-1) -> -0.06983338209 | AR8: =IF('Mortality rates at t0'!AR8=0,0,OFFSET(INDIRECT("'Forecasts " & $AB8 & "'!AA17"),Year_max-Year_1,MATCH('Mortality trends'!AR$7,Ages_group,0))/'Mortality rates at t0'!AR8-1) -> -0.08678117009 | AS8: =IF('Mortality rates at t0'!AS8=0,0,OFFSET(INDIRECT("'Forecasts " & $AB8 & "'!AA17"),Year_max-Year_1,MATCH('Mortality trends'!AS$7,Ages_group,0))/'Mortality rates at t0'!AS8-1) -> -0.09776540764 | AT8: =IF('Mortality rates at t0'!AT8=0,0,OFFSET(INDIRECT("'Forecasts " & $AB8 & "'!AA17"),Year_max-Year_1,MATCH('Mortality trends'!AT$7,Ages_group,0))/'Mortality rates at t0'!AT8-1) -> -0.09787066215 | AU8: =IF('Mortality rates at t0'!AU8=0,0,OFFSET(INDIRECT("'Forecasts " & $AB8 & "'!AA17"),Year_max-Year_1,MATCH('Mortality trends'!AU$7,Ages_group,0))/'Mortality rates at t0'!AU8-1) -> -0.09896133536 | AV8: =IF('Mortality rates at t0'!AV8=0,0,OFFSET(INDIRECT("'Forecasts " & $AB8 & "'!AA17"),Year_max-Year_1,MATCH('Mortality trends'!AV$7,Ages_group,0))/'Mortality rates at t0'!AV8-1) -> -0.09230812407 | AW8: =IF('Mortality rates at t0'!AW8=0,0,OFFSET(INDIRECT("'Forecasts " & $AB8 & "'!AA17"),Year_max-Year_1,MATCH('Mortality trends'!AW$7,Ages_group,0))/'Mortality rates at t0'!AW8-1) -> -0.07078679647 | AX8: =IF('Mortality rates at t0'!AX8=0,0,OFFSET(INDIRECT("'Forecasts " & $AB8 & "'!AA17"),Year_max-Year_1,MATCH('Mortality trends'!AX$7,Ages_group,0))/'Mortality rates at t0'!AX8-1) -> -0.05256630666
C9: Cerebrovascular | E9: =IF('Mortality rates at t0'!E9=0,0,OFFSET(INDIRECT("'Forecasts " & $C9 & "'!C17"),Year_max-Year_0,MATCH('Mortality trends'!E$7,Ages_group,0))/'Mortality rates at t0'!E9-1) -> -0.01844677802 | F9: =IF('Mortality rates at t0'!F9=0,0,OFFSET(INDIRECT("'Forecasts " & $C9 & "'!C17"),Year_max-Year_0,MATCH('Mortality trends'!F$7,Ages_group,0))/'Mortality rates at t0'!F9-1) -> 0.002412716275 | G9: =IF('Mortality rates at t0'!G9=0,0,OFFSET(INDIRECT("'Forecasts " & $C9 & "'!C17"),Year_max-Year_0,MATCH('Mortality trends'!G$7,Ages_group,0))/'Mortality rates at t0'!G9-1) -> 0.02556359304 | H9: =IF('Mortality rates at t0'!H9=0,0,OFFSET(INDIRECT("'Forecasts " & $C9 & "'!C17"),Year_max-Year_0,MATCH('Mortality trends'!H$7,Ages_group,0))/'Mortality rates at t0'!H9-1) -> 0.04810369227 | I9: =IF('Mortality rates at t0'!I9=0,0,OFFSET(INDIRECT("'Forecasts " & $C9 & "'!C17"),Year_max-Year_0,MATCH('Mortality trends'!I$7,Ages_group,0))/'Mortality rates at t0'!I9-1) -> -0.03541707852 | J9: =IF('Mortality rates at t0'!J9=0,0,OFFSET(INDIRECT("'Forecasts " & $C9 & "'!C17"),Year_max-Year_0,MATCH('Mortality trends'!J$7,Ages_group,0))/'Mortality rates at t0'!J9-1) -> -0.05272292505 | K9: =IF('Mortality rates at t0'!K9=0,0,OFFSET(INDIRECT("'Forecasts " & $C9 & "'!C17"),Year_max-Year_0,MATCH('Mortality trends'!K$7,Ages_group,0))/'Mortality rates at t0'!K9-1) -> -0.04016177762 | L9: =IF('Mortality rates at t0'!L9=0,0,OFFSET(INDIRECT("'Forecasts " & $C9 & "'!C17"),Year_max-Year_0,MATCH('Mortality trends'!L$7,Ages_group,0))/'Mortality rates at t0'!L9-1) -> -0.014184609 | M9: =IF('Mortality rates at t0'!M9=0,0,OFFSET(INDIRECT("'Forecasts " & $C9 & "'!C17"),Year_max-Year_0,MATCH('Mortality trends'!M$7,Ages_group,0))/'Mortality rates at t0'!M9-1) -> -0.03600470642 | N9: =IF('Mortality rates at t0'!N9=0,0,OFFSET(INDIRECT("'Forecasts " & $C9 & "'!C17"),Year_max-Year_0,MATCH('Mortality trends'!N$7,Ages_group,0))/'Mortality rates at t0'!N9-1) -> -0.05212585356 | O9: =IF('Mortality rates at t0'!O9=0,0,OFFSET(INDIRECT("'Forecasts " & $C9 & "'!C17"),Year_max-Year_0,MATCH('Mortality trends'!O$7,Ages_group,0))/'Mortality rates at t0'!O9-1) -> -0.05639452881 | P9: =IF('Mortality rates at t0'!P9=0,0,OFFSET(INDIRECT("'Forecasts " & $C9 & "'!C17"),Year_max-Year_0,MATCH('Mortality trends'!P$7,Ages_group,0))/'Mortality rates at t0'!P9-1) -> -0.04486212913 | Q9: =IF('Mortality rates at t0'!Q9=0,0,OFFSET(INDIRECT("'Forecasts " & $C9 & "'!C17"),Year_max-Year_0,MATCH('Mortality trends'!Q$7,Ages_group,0))/'Mortality rates at t0'!Q9-1) -> -0.04454683775 | R9: =IF('Mortality rates at t0'!R9=0,0,OFFSET(INDIRECT("'Forecasts " & $C9 & "'!C17"),Year_max-Year_0,MATCH('Mortality trends'!R$7,Ages_group,0))/'Mortality rates at t0'!R9-1) -> -0.07090246844 | S9: =IF('Mortality rates at t0'!S9=0,0,OFFSET(INDIRECT("'Forecasts " & $C9 & "'!C17"),Year_max-Year_0,MATCH('Mortality trends'!S$7,Ages_group,0))/'Mortality rates at t0'!S9-1) -> -0.09926571087 | T9: =IF('Mortality rates at t0'!T9=0,0,OFFSET(INDIRECT("'Forecasts " & $C9 & "'!C17"),Year_max-Year_0,MATCH('Mortality trends'!T$7,Ages_group,0))/'Mortality rates at t0'!T9-1) -> -0.1149918177 | U9: =IF('Mortality rates at t0'!U9=0,0,OFFSET(INDIRECT("'Forecasts " & $C9 & "'!C17"),Year_max-Year_0,MATCH('Mortality trends'!U$7,Ages_group,0))/'Mortality rates at t0'!U9-1) -> -0.1255937127 | V9: =IF('Mortality rates at t0'!V9=0,0,OFFSET(INDIRECT("'Forecasts " & $C9 & "'!C17"),Year_max-Year_0,MATCH('Mortality trends'!V$7,Ages_group,0))/'Mortality rates at t0'!V9-1) -> -0.1436473407 | W9: =IF('Mortality rates at t0'!W9=0,0,OFFSET(INDIRECT("'Forecasts " & $C9 & "'!C17"),Year_max-Year_0,MATCH('Mortality trends'!W$7,Ages_group,0))/'Mortality rates at t0'!W9-1) -> -0.1589589653 | X9: =IF('Mortality rates at t0'!X9=0,0,OFFSET(INDIRECT("'Forecasts " & $C9 & "'!C17"),Year_max-Year_0,MATCH('Mortality trends'!X$7,Ages_group,0))/'Mortality rates at t0'!X9-1) -> -0.1433343746 | Y9: =IF('Mortality rates at t0'!Y9=0,0,OFFSET(INDIRECT("'Forecasts " & $C9 & "'!C17"),Year_max-Year_0,MATCH('Mortality trends'!Y$7,Ages_group,0))/'Mortality rates at t0'!Y9-1) -> -0.1141164328 | AB9: Cerebrovascular | AD9: =IF('Mortality rates at t0'!AD9=0,0,OFFSET(INDIRECT("'Forecasts " & $AB9 & "'!AA17"),Year_max-Year_1,MATCH('Mortality trends'!AD$7,Ages_group,0))/'Mortality rates at t0'!AD9-1) -> -0.01540842822 | AE9: =IF('Mortality rates at t0'!AE9=0,0,OFFSET(INDIRECT("'Forecasts " & $AB9 & "'!AA17"),Year_max-Year_1,MATCH('Mortality trends'!AE$7,Ages_group,0))/'Mortality rates at t0'!AE9-1) -> 0.002011814604 | AF9: =IF('Mortality rates at t0'!AF9=0,0,OFFSET(INDIRECT("'Forecasts " & $AB9 & "'!AA17"),Year_max-Year_1,MATCH('Mortality trends'!AF$7,Ages_group,0))/'Mortality rates at t0'!AF9-1) -> 0 | AG9: =IF('Mortality rates at t0'!AG9=0,0,OFFSET(INDIRECT("'Forecasts " & $AB9 & "'!AA17"),Year_max-Year_1,MATCH('Mortality trends'!AG$7,Ages_group,0))/'Mortality rates at t0'!AG9-1) -> 0 | AH9: =IF('Mortality rates at t0'!AH9=0,0,OFFSET(INDIRECT("'Forecasts " & $AB9 & "'!AA17"),Year_max-Year_1,MATCH('Mortality trends'!AH$7,Ages_group,0))/'Mortality rates at t0'!AH9-1) -> 0 | AI9: =IF('Mortality rates at t0'!AI9=0,0,OFFSET(INDIRECT("'Forecasts " & $AB9 & "'!AA17"),Year_max-Year_1,MATCH('Mortality trends'!AI$7,Ages_group,0))/'Mortality rates at t0'!AI9-1) -> 0 | AJ9: =IF('Mortality rates at t0'!AJ9=0,0,OFFSET(INDIRECT("'Forecasts " & $AB9 & "'!AA17"),Year_max-Year_1,MATCH('Mortality trends'!AJ$7,Ages_group,0))/'Mortality rates at t0'!AJ9-1) -> -0.03360855088 | AK9: =IF('Mortality rates at t0'!AK9=0,0,OFFSET(INDIRECT("'Forecasts " & $AB9 & "'!AA17"),Year_max-Year_1,MATCH('Mortality trends'!AK$7,Ages_group,0))/'Mortality rates at t0'!AK9-1) -> -0.011844038 | AL9: =IF('Mortality rates at t0'!AL9=0,0,OFFSET(INDIRECT("'Forecasts " & $AB9 & "'!AA17"),Year_max-Year_1,MATCH('Mortality trends'!AL$7,Ages_group,0))/'Mortality rates at t0'!AL9-1) -> -0.03011911503 | AM9: =IF('Mortality rates at t0'!AM9=0,0,OFFSET(INDIRECT("'Forecasts " & $AB9 & "'!AA17"),Year_max-Year_1,MATCH('Mortality trends'!AM$7,Ages_group,0))/'Mortality rates at t0'!AM9-1) -> -0.04366521736 | AN9: =IF('Mortality rates at t0'!AN9=0,0,OFFSET(INDIRECT("'Forecasts " & $AB9 & "'!AA17"),Year_max-Year_1,MATCH('Mortality trends'!AN$7,Ages_group,0))/'Mortality rates at t0'!AN9-1) -> -0.04725843538 | AO9: =IF('Mortality rates at t0'!AO9=0,0,OFFSET(INDIRECT("'Forecasts " & $AB9 & "'!AA17"),Year_max-Year_1,MATCH('Mortality trends'!AO$7,Ages_group,0))/'Mortality rates at t0'!AO9-1) -> -0.03755703858 | AP9: =IF('Mortality rates at t0'!AP9=0,0,OFFSET(INDIRECT("'Forecasts " & $AB9 & "'!AA17"),Year_max-Year_1,MATCH('Mortality trends'!AP$7,Ages_group,0))/'Mortality rates at t0'!AP9-1) -> -0.03729208015 | AQ9: =IF('Mortality rates at t0'!AQ9=0,0,OFFSET(INDIRECT("'Forecasts " & $AB9 & "'!AA17"),Year_max-Year_1,MATCH('Mortality trends'!AQ$7,Ages_group,0))/'Mortality rates at t0'!AQ9-1) -> -0.05949096226 | AR9: =IF('Mortality rates at t0'!AR9=0,0,OFFSET(INDIRECT("'Forecasts " & $AB9 & "'!AA17"),Year_max-Year_1,MATCH('Mortality trends'!AR$7,Ages_group,0))/'Mortality rates at t0'!AR9-1) -> -0.08349798897 | AS9: =IF('Mortality rates at t0'!AS9=0,0,OFFSET(INDIRECT("'Forecasts " & $AB9 & "'!AA17"),Year_max-Year_1,MATCH('Mortality trends'!AS$7,Ages_group,0))/'Mortality rates at t0'!AS9-1) -> -0.09686270449 | AT9: =IF('Mortality rates at t0'!AT9=0,0,OFFSET(INDIRECT("'Forecasts " & $AB9 & "'!AA17"),Year_max-Year_1,MATCH('Mortality trends'!AT$7,Ages_group,0))/'Mortality rates at t0'!AT9-1) -> -0.1058948764 | AU9: =IF('Mortality rates at t0'!AU9=0,0,OFFSET(INDIRECT("'Forecasts " & $AB9 & "'!AA17"),Year_max-Year_1,MATCH('Mortality trends'!AU$7,Ages_group,0))/'Mortality rates at t0'!AU9-1) -> -0.1213174911 | AV9: =IF('Mortality rates at t0'!AV9=0,0,OFFSET(INDIRECT("'Forecasts " & $AB9 & "'!AA17"),Year_max-Year_1,MATCH('Mortality trends'!AV$7,Ages_group,0))/'Mortality rates at t0'!AV9-1) -> -0.1344400259 | AW9: =IF('Mortality rates at t0'!AW9=0,0,OFFSET(INDIRECT("'Forecasts " & $AB9 & "'!AA17"),Year_max-Year_1,MATCH('Mortality trends'!AW$7,Ages_group,0))/'Mortality rates at t0'!AW9-1) -> -0.1210496779 | AX9: =IF('Mortality rates at t0'!AX9=0,0,OFFSET(INDIRECT("'Forecasts " & $AB9 & "'!AA17"),Year_max-Year_1,MATCH('Mortality trends'!AX$7,Ages_group,0))/'Mortality rates at t0'!AX9-1) -> -0.09611773498
C10: NeoSmok | E10: =IF('Mortality rates at t0'!E10=0,0,OFFSET(INDIRECT("'Forecasts " & $C10 & "'!C17"),Year_max-Year_0,MATCH('Mortality trends'!E$7,Ages_group,0))/'Mortality rates at t0'!E10-1) -> 0 | F10: =IF('Mortality rates at t0'!F10=0,0,OFFSET(INDIRECT("'Forecasts " & $C10 & "'!C17"),Year_max-Year_0,MATCH('Mortality trends'!F$7,Ages_group,0))/'Mortality rates at t0'!F10-1) -> 0 | G10: =IF('Mortality rates at t0'!G10=0,0,OFFSET(INDIRECT("'Forecasts " & $C10 & "'!C17"),Year_max-Year_0,MATCH('Mortality trends'!G$7,Ages_group,0))/'Mortality rates at t0'!G10-1) -> -0.1120012419 | H10: =IF('Mortality rates at t0'!H10=0,0,OFFSET(INDIRECT("'Forecasts " & $C10 & "'!C17"),Year_max-Year_0,MATCH('Mortality trends'!H$7,Ages_group,0))/'Mortality rates at t0'!H10-1) -> -0.15960848 | I10: =IF('Mortality rates at t0'!I10=0,0,OFFSET(INDIRECT("'Forecasts " & $C10 & "'!C17"),Year_max-Year_0,MATCH('Mortality trends'!I$7,Ages_group,0))/'Mortality rates at t0'!I10-1) -> -0.3131866438 | J10: =IF('Mortality rates at t0'!J10=0,0,OFFSET(INDIRECT("'Forecasts " & $C10 & "'!C17"),Year_max-Year_0,MATCH('Mortality trends'!J$7,Ages_group,0))/'Mortality rates at t0'!J10-1) -> -0.02913600064 | K10: =IF('Mortality rates at t0'!K10=0,0,OFFSET(INDIRECT("'Forecasts " & $C10 & "'!C17"),Year_max-Year_0,MATCH('Mortality trends'!K$7,Ages_group,0))/'Mortality rates at t0'!K10-1) -> -0.08654006075 | L10: =IF('Mortality rates at t0'!L10=0,0,OFFSET(INDIRECT("'Forecasts " & $C10 & "'!C17"),Year_max-Year_0,MATCH('Mortality trends'!L$7,Ages_group,0))/'Mortality rates at t0'!L10-1) -> -0.131879697 | M10: =IF('Mortality rates at t0'!M10=0,0,OFFSET(INDIRECT("'Forecasts " & $C10 & "'!C17"),Year_max-Year_0,MATCH('Mortality trends'!M$7,Ages_group,0))/'Mortality rates at t0'!M10-1) -> -0.3165573283 | N10: =IF('Mortality rates at t0'!N10=0,0,OFFSET(INDIRECT("'Forecasts " & $C10 & "'!C17"),Year_max-Year_0,MATCH('Mortality trends'!N$7,Ages_group,0))/'Mortality rates at t0'!N10-1) -> -0.4152576629 | O10: =IF('Mortality rates at t0'!O10=0,0,OFFSET(INDIRECT("'Forecasts " & $C10 & "'!C17"),Year_max-Year_0,MATCH('Mortality trends'!O$7,Ages_group,0))/'Mortality rates at t0'!O10-1) -> -0.2938955426 | P10: =IF('Mortality rates at t0'!P10=0,0,OFFSET(INDIRECT("'Forecasts " & $C10 & "'!C17"),Year_max-Year_0,MATCH('Mortality trends'!P$7,Ages_group,0))/'Mortality rates at t0'!P10-1) -> -0.1873945309 | Q10: =IF('Mortality rates at t0'!Q10=0,0,OFFSET(INDIRECT("'Forecasts " & $C10 & "'!C17"),Year_max-Year_0,MATCH('Mortality trends'!Q$7,Ages_group,0))/'Mortality rates at t0'!Q10-1) -> -0.1962919919 | R10: =IF('Mortality rates at t0'!R10=0,0,OFFSET(INDIRECT("'Forecasts " & $C10 & "'!C17"),Year_max-Year_0,MATCH('Mortality trends'!R$7,Ages_group,0))/'Mortality rates at t0'!R10-1) -> -0.2481547714 | S10: =IF('Mortality rates at t0'!S10=0,0,OFFSET(INDIRECT("'Forecasts " & $C10 & "'!C17"),Year_max-Year_0,MATCH('Mortality trends'!S$7,Ages_group,0))/'Mortality rates at t0'!S10-1) -> -0.2341994871 | T10: =IF('Mortality rates at t0'!T10=0,0,OFFSET(INDIRECT("'Forecasts " & $C10 & "'!C17"),Year_max-Year_0,MATCH('Mortality trends'!T$7,Ages_group,0))/'Mortality rates at t0'!T10-1) -> -0.207578647 | U10: =IF('Mortality rates at t0'!U10=0,0,OFFSET(INDIRECT("'Forecasts " & $C10 & "'!C17"),Year_max-Year_0,MATCH('Mortality trends'!U$7,Ages_group,0))/'Mortality rates at t0'!U10-1) -> -0.1716347264 | V10: =IF('Mortality rates at t0'!V10=0,0,OFFSET(INDIRECT("'Forecasts " & $C10 & "'!C17"),Year_max-Year_0,MATCH('Mortality trends'!V$7,Ages_group,0))/'Mortality rates at t0'!V10-1) -> -0.1333615269 | W10: =IF('Mortality rates at t0'!W10=0,0,OFFSET(INDIRECT("'Forecasts " & $C10 & "'!C17"),Year_max-Year_0,MATCH('Mortality trends'!W$7,Ages_group,0))/'Mortality rates at t0'!W10-1) -> -0.1165258981 | X10: =IF('Mortality rates at t0'!X10=0,0,OFFSET(INDIRECT("'Forecasts " & $C10 & "'!C17"),Year_max-Year_0,MATCH('Mortality trends'!X$7,Ages_group,0))/'Mortality rates at t0'!X10-1) -> -0.09342845202 | Y10: =IF('Mortality rates at t0'!Y10=0,0,OFFSET(INDIRECT("'Forecasts " & $C10 & "'!C17"),Year_max-Year_0,MATCH('Mortality trends'!Y$7,Ages_group,0))/'Mortality rates at t0'!Y10-1) -> -0.07806063935 | AB10: NeoSmok | AD10: =IF('Mortality rates at t0'!AD10=0,0,OFFSET(INDIRECT("'Forecasts " & $AB10 & "'!AA17"),Year_max-Year_1,MATCH('Mortality trends'!AD$7,Ages_group,0))/'Mortality rates at t0'!AD10-1) -> 0 | AE10: =IF('Mortality rates at t0'!AE10=0,0,OFFSET(INDIRECT("'Forecasts " & $AB10 & "'!AA17"),Year_max-Year_1,MATCH('Mortality trends'!AE$7,Ages_group,0))/'Mortality rates at t0'!AE10-1) -> 0 | AF10: =IF('Mortality rates at t0'!AF10=0,0,OFFSET(INDIRECT("'Forecasts " & $AB10 & "'!AA17"),Year_max-Year_1,MATCH('Mortality trends'!AF$7,Ages_group,0))/'Mortality rates at t0'!AF10-1) -> 0 | AG10: =IF('Mortality rates at t0'!AG10=0,0,OFFSET(INDIRECT("'Forecasts " & $AB10 & "'!AA17"),Year_max-Year_1,MATCH('Mortality trends'!AG$7,Ages_group,0))/'Mortality rates at t0'!AG10-1) -> 0 | AH10: =IF('Mortality rates at t0'!AH10=0,0,OFFSET(INDIRECT("'Forecasts " & $AB10 & "'!AA17"),Year_max-Year_1,MATCH('Mortality trends'!AH$7,Ages_group,0))/'Mortality rates at t0'!AH10-1) -> 0 | AI10: =IF('Mortality rates at t0'!AI10=0,0,OFFSET(INDIRECT("'Forecasts " & $AB10 & "'!AA17"),Year_max-Year_1,MATCH('Mortality trends'!AI$7,Ages_group,0))/'Mortality rates at t0'!AI10-1) -> 0 | AJ10: =IF('Mortality rates at t0'!AJ10=0,0,OFFSET(INDIRECT("'Forecasts " & $AB10 & "'!AA17"),Year_max-Year_1,MATCH('Mortality trends'!AJ$7,Ages_group,0))/'Mortality rates at t0'!AJ10-1) -> 0 | AK10: =IF('Mortality rates at t0'!AK10=0,0,OFFSET(INDIRECT("'Forecasts " & $AB10 & "'!AA17"),Year_max-Year_1,MATCH('Mortality trends'!AK$7,Ages_group,0))/'Mortality rates at t0'!AK10-1) -> -0.1153714685 | AL10: =IF('Mortality rates at t0'!AL10=0,0,OFFSET(INDIRECT("'Forecasts " & $AB10 & "'!AA17"),Year_max-Year_1,MATCH('Mortality trends'!AL$7,Ages_group,0))/'Mortality rates at t0'!AL10-1) -> -0.2810156586 | AM10: =IF('Mortality rates at t0'!AM10=0,0,OFFSET(INDIRECT("'Forecasts " & $AB10 & "'!AA17"),Year_max-Year_1,MATCH('Mortality trends'!AM$7,Ages_group,0))/'Mortality rates at t0'!AM10-1) -> -0.3719353034 | AN10: =IF('Mortality rates at t0'!AN10=0,0,OFFSET(INDIRECT("'Forecasts " & $AB10 & "'!AA17"),Year_max-Year_1,MATCH('Mortality trends'!AN$7,Ages_group,0))/'Mortality rates at t0'!AN10-1) -> -0.2603959218 | AO10: =IF('Mortality rates at t0'!AO10=0,0,OFFSET(INDIRECT("'Forecasts " & $AB10 & "'!AA17"),Year_max-Year_1,MATCH('Mortality trends'!AO$7,Ages_group,0))/'Mortality rates at t0'!AO10-1) -> -0.1646209612 | AP10: =IF('Mortality rates at t0'!AP10=0,0,OFFSET(INDIRECT("'Forecasts " & $AB10 & "'!AA17"),Year_max-Year_1,MATCH('Mortality trends'!AP$7,Ages_group,0))/'Mortality rates at t0'!AP10-1) -> -0.1725552455 | AQ10: =IF('Mortality rates at t0'!AQ10=0,0,OFFSET(INDIRECT("'Forecasts " & $AB10 & "'!AA17"),Year_max-Year_1,MATCH('Mortality trends'!AQ$7,Ages_group,0))/'Mortality rates at t0'!AQ10-1) -> -0.2190416307 | AR10: =IF('Mortality rates at t0'!AR10=0,0,OFFSET(INDIRECT("'Forecasts " & $AB10 & "'!AA17"),Year_max-Year_1,MATCH('Mortality trends'!AR$7,Ages_group,0))/'Mortality rates at t0'!AR10-1) -> -0.2064921834 | AS10: =IF('Mortality rates at t0'!AS10=0,0,OFFSET(INDIRECT("'Forecasts " & $AB10 & "'!AA17"),Year_max-Year_1,MATCH('Mortality trends'!AS$7,Ages_group,0))/'Mortality rates at t0'!AS10-1) -> -0.1826369522 | AT10: =IF('Mortality rates at t0'!AT10=0,0,OFFSET(INDIRECT("'Forecasts " & $AB10 & "'!AA17"),Year_max-Year_1,MATCH('Mortality trends'!AT$7,Ages_group,0))/'Mortality rates at t0'!AT10-1) -> -0.1505954934 | AU10: =IF('Mortality rates at t0'!AU10=0,0,OFFSET(INDIRECT("'Forecasts " & $AB10 & "'!AA17"),Year_max-Year_1,MATCH('Mortality trends'!AU$7,Ages_group,0))/'Mortality rates at t0'!AU10-1) -> -0.1166804959 | AV10: =IF('Mortality rates at t0'!AV10=0,0,OFFSET(INDIRECT("'Forecasts " & $AB10 & "'!AA17"),Year_max-Year_1,MATCH('Mortality trends'!AV$7,Ages_group,0))/'Mortality rates at t0'!AV10-1) -> -0.1018255534 | AW10: =IF('Mortality rates at t0'!AW10=0,0,OFFSET(INDIRECT("'Forecasts " & $AB10 & "'!AA17"),Year_max-Year_1,MATCH('Mortality trends'!AW$7,Ages_group,0))/'Mortality rates at t0'!AW10-1) -> -0.08150660099 | AX10: =IF('Mortality rates at t0'!AX10=0,0,OFFSET(INDIRECT("'Forecasts " & $AB10 & "'!AA17"),Year_max-Year_1,MATCH('Mortality trends'!AX$7,Ages_group,0))/'Mortality rates at t0'!AX10-1) -> -0.06802571346
C11: Neoplasm | E11: =IF('Mortality rates at t0'!E11=0,0,OFFSET(INDIRECT("'Forecasts " & $C11 & "'!C17"),Year_max-Year_0,MATCH('Mortality trends'!E$7,Ages_group,0))/'Mortality rates at t0'!E11-1) -> -0.04563614009 | F11: =IF('Mortality rates at t0'!F11=0,0,OFFSET(INDIRECT("'Forecasts " & $C11 & "'!C17"),Year_max-Year_0,MATCH('Mortality trends'!F$7,Ages_group,0))/'Mortality rates at t0'!F11-1) -> -0.07597946845 | G11: =IF('Mortality rates at t0'!G11=0,0,OFFSET(INDIRECT("'Forecasts " & $C11 & "'!C17"),Year_max-Year_0,MATCH('Mortality trends'!G$7,Ages_group,0))/'Mortality rates at t0'!G11-1) -> -0.05290224527 | H11: =IF('Mortality rates at t0'!H11=0,0,OFFSET(INDIRECT("'Forecasts " & $C11 & "'!C17"),Year_max-Year_0,MATCH('Mortality trends'!H$7,Ages_group,0))/'Mortality rates at t0'!H11-1) -> -0.06936944531 | I11: =IF('Mortality rates at t0'!I11=0,0,OFFSET(INDIRECT("'Forecasts " & $C11 & "'!C17"),Year_max-Year_0,MATCH('Mortality trends'!I$7,Ages_group,0))/'Mortality rates at t0'!I11-1) -> -0.07315206214 | J11: =IF('Mortality rates at t0'!J11=0,0,OFFSET(INDIRECT("'Forecasts " & $C11 & "'!C17"),Year_max-Year_0,MATCH('Mortality trends'!J$7,Ages_group,0))/'Mortality rates at t0'!J11-1) -> -0.08332974111 | K11: =IF('Mortality rates at t0'!K11=0,0,OFFSET(INDIRECT("'Forecasts " & $C11 & "'!C17"),Year_max-Year_0,MATCH('Mortality trends'!K$7,Ages_group,0))/'Mortality rates at t0'!K11-1) -> -0.01866444751 | L11: =IF('Mortality rates at t0'!L11=0,0,OFFSET(INDIRECT("'Forecasts " & $C11 & "'!C17"),Year_max-Year_0,MATCH('Mortality trends'!L$7,Ages_group,0))/'Mortality rates at t0'!L11-1) -> -0.0344371959 | M11: =IF('Mortality rates at t0'!M11=0,0,OFFSET(INDIRECT("'Forecasts " & $C11 & "'!C17"),Year_max-Year_0,MATCH('Mortality trends'!M$7,Ages_group,0))/'Mortality rates at t0'!M11-1) -> -0.05557038589 | N11: =IF('Mortality rates at t0'!N11=0,0,OFFSET(INDIRECT("'Forecasts " & $C11 & "'!C17"),Year_max-Year_0,MATCH('Mortality trends'!N$7,Ages_group,0))/'Mortality rates at t0'!N11-1) -> -0.07717702981 | O11: =IF('Mortality rates at t0'!O11=0,0,OFFSET(INDIRECT("'Forecasts " & $C11 & "'!C17"),Year_max-Year_0,MATCH('Mortality trends'!O$7,Ages_group,0))/'Mortality rates at t0'!O11-1) -> -0.07609321654 | P11: =IF('Mortality rates at t0'!P11=0,0,OFFSET(INDIRECT("'Forecasts " & $C11 & "'!C17"),Year_max-Year_0,MATCH('Mortality trends'!P$7,Ages_group,0))/'Mortality rates at t0'!P11-1) -> -0.04353718569 | Q11: =IF('Mortality rates at t0'!Q11=0,0,OFFSET(INDIRECT("'Forecasts " & $C11 & "'!C17"),Year_max-Year_0,MATCH('Mortality trends'!Q$7,Ages_group,0))/'Mortality rates at t0'!Q11-1) -> -0.02648667715 | R11: =IF('Mortality rates at t0'!R11=0,0,OFFSET(INDIRECT("'Forecasts " & $C11 & "'!C17"),Year_max-Year_0,MATCH('Mortality trends'!R$7,Ages_group,0))/'Mortality rates at t0'!R11-1) -> -0.03849370634 | S11: =IF('Mortality rates at t0'!S11=0,0,OFFSET(INDIRECT("'Forecasts " & $C11 & "'!C17"),Year_max-Year_0,MATCH('Mortality trends'!S$7,Ages_group,0))/'Mortality rates at t0'!S11-1) -> -0.06368965481 | T11: =IF('Mortality rates at t0'!T11=0,0,OFFSET(INDIRECT("'Forecasts " & $C11 & "'!C17"),Year_max-Year_0,MATCH('Mortality trends'!T$7,Ages_group,0))/'Mortality rates at t0'!T11-1) -> -0.06923356052 | U11: =IF('Mortality rates at t0'!U11=0,0,OFFSET(INDIRECT("'Forecasts " & $C11 & "'!C17"),Year_max-Year_0,MATCH('Mortality trends'!U$7,Ages_group,0))/'Mortality rates at t0'!U11-1) -> -0.06758278962 | V11: =IF('Mortality rates at t0'!V11=0,0,OFFSET(INDIRECT("'Forecasts " & $C11 & "'!C17"),Year_max-Year_0,MATCH('Mortality trends'!V$7,Ages_group,0))/'Mortality rates at t0'!V11-1) -> -0.07372815154 | W11: =IF('Mortality rates at t0'!W11=0,0,OFFSET(INDIRECT("'Forecasts " & $C11 & "'!C17"),Year_max-Year_0,MATCH('Mortality trends'!W$7,Ages_group,0))/'Mortality rates at t0'!W11-1) -> -0.08125464599 | X11: =IF('Mortality rates at t0'!X11=0,0,OFFSET(INDIRECT("'Forecasts " & $C11 & "'!C17"),Year_max-Year_0,MATCH('Mortality trends'!X$7,Ages_group,0))/'Mortality rates at t0'!X11-1) -> -0.06362967397 | Y11: =IF('Mortality rates at t0'!Y11=0,0,OFFSET(INDIRECT("'Forecasts " & $C11 & "'!C17"),Year_max-Year_0,MATCH('Mortality trends'!Y$7,Ages_group,0))/'Mortality rates at t0'!Y11-1) -> -0.05595620514 | AB11: Neoplasm | AD11: =IF('Mortality rates at t0'!AD11=0,0,OFFSET(INDIRECT("'Forecasts " & $AB11 & "'!AA17"),Year_max-Year_1,MATCH('Mortality trends'!AD$7,Ages_group,0))/'Mortality rates at t0'!AD11-1) -> -0.04052874459 | AE11: =IF('Mortality rates at t0'!AE11=0,0,OFFSET(INDIRECT("'Forecasts " & $AB11 & "'!AA17"),Year_max-Year_1,MATCH('Mortality trends'!AE$7,Ages_group,0))/'Mortality rates at t0'!AE11-1) -> -0.06759839184 | AF11: =IF('Mortality rates at t0'!AF11=0,0,OFFSET(INDIRECT("'Forecasts " & $AB11 & "'!AA17"),Year_max-Year_1,MATCH('Mortality trends'!AF$7,Ages_group,0))/'Mortality rates at t0'!AF11-1) -> -0.04700185227 | AG11: =IF('Mortality rates at t0'!AG11=0,0,OFFSET(INDIRECT("'Forecasts " & $AB11 & "'!AA17"),Year_max-Year_1,MATCH('Mortality trends'!AG$7,Ages_group,0))/'Mortality rates at t0'!AG11-1) -> -0.06169296802 | AH11: =IF('Mortality rates at t0'!AH11=0,0,OFFSET(INDIRECT("'Forecasts " & $AB11 & "'!AA17"),Year_max-Year_1,MATCH('Mortality trends'!AH$7,Ages_group,0))/'Mortality rates at t0'!AH11-1) -> -0.06507178578 | AI11: =IF('Mortality rates at t0'!AI11=0,0,OFFSET(INDIRECT("'Forecasts " & $AB11 & "'!AA17"),Year_max-Year_1,MATCH('Mortality trends'!AI$7,Ages_group,0))/'Mortality rates at t0'!AI11-1) -> -0.07417083015 | AJ11: =IF('Mortality rates at t0'!AJ11=0,0,OFFSET(INDIRECT("'Forecasts " & $AB11 & "'!AA17"),Year_max-Year_1,MATCH('Mortality trends'!AJ$7,Ages_group,0))/'Mortality rates at t0'!AJ11-1) -> -0.01654950475 | AK11: =IF('Mortality rates at t0'!AK11=0,0,OFFSET(INDIRECT("'Forecasts " & $AB11 & "'!AA17"),Year_max-Year_1,MATCH('Mortality trends'!AK$7,Ages_group,0))/'Mortality rates at t0'!AK11-1) -> -0.03056302116 | AL11: =IF('Mortality rates at t0'!AL11=0,0,OFFSET(INDIRECT("'Forecasts " & $AB11 & "'!AA17"),Year_max-Year_1,MATCH('Mortality trends'!AL$7,Ages_group,0))/'Mortality rates at t0'!AL11-1) -> -0.04938022378 | AM11: =IF('Mortality rates at t0'!AM11=0,0,OFFSET(INDIRECT("'Forecasts " & $AB11 & "'!AA17"),Year_max-Year_1,MATCH('Mortality trends'!AM$7,Ages_group,0))/'Mortality rates at t0'!AM11-1) -> -0.06866881402 | AN11: =IF('Mortality rates at t0'!AN11=0,0,OFFSET(INDIRECT("'Forecasts " & $AB11 & "'!AA17"),Year_max-Year_1,MATCH('Mortality trends'!AN$7,Ages_group,0))/'Mortality rates at t0'!AN11-1) -> -0.06770005704 | AO11: =IF('Mortality rates at t0'!AO11=0,0,OFFSET(INDIRECT("'Forecasts " & $AB11 & "'!AA17"),Year_max-Year_1,MATCH('Mortality trends'!AO$7,Ages_group,0))/'Mortality rates at t0'!AO11-1) -> -0.03865991278 | AP11: =IF('Mortality rates at t0'!AP11=0,0,OFFSET(INDIRECT("'Forecasts " & $AB11 & "'!AA17"),Year_max-Year_1,MATCH('Mortality trends'!AP$7,Ages_group,0))/'Mortality rates at t0'!AP11-1) -> -0.02349602996 | AQ11: =IF('Mortality rates at t0'!AQ11=0,0,OFFSET(INDIRECT("'Forecasts " & $AB11 & "'!AA17"),Year_max-Year_1,MATCH('Mortality trends'!AQ$7,Ages_group,0))/'Mortality rates at t0'!AQ11-1) -> -0.03417129763 | AR11: =IF('Mortality rates at t0'!AR11=0,0,OFFSET(INDIRECT("'Forecasts " & $AB11 & "'!AA17"),Year_max-Year_1,MATCH('Mortality trends'!AR$7,Ages_group,0))/'Mortality rates at t0'!AR11-1) -> -0.05662244656 | AS11: =IF('Mortality rates at t0'!AS11=0,0,OFFSET(INDIRECT("'Forecasts " & $AB11 & "'!AA17"),Year_max-Year_1,MATCH('Mortality trends'!AS$7,Ages_group,0))/'Mortality rates at t0'!AS11-1) -> -0.06157161833 | AT11: =IF('Mortality rates at t0'!AT11=0,0,OFFSET(INDIRECT("'Forecasts " & $AB11 & "'!AA17"),Year_max-Year_1,MATCH('Mortality trends'!AT$7,Ages_group,0))/'Mortality rates at t0'!AT11-1) -> -0.06009758601 | AU11: =IF('Mortality rates at t0'!AU11=0,0,OFFSET(INDIRECT("'Forecasts " & $AB11 & "'!AA17"),Year_max-Year_1,MATCH('Mortality trends'!AU$7,Ages_group,0))/'Mortality rates at t0'!AU11-1) -> -0.06558651503 | AV11: =IF('Mortality rates at t0'!AV11=0,0,OFFSET(INDIRECT("'Forecasts " & $AB11 & "'!AA17"),Year_max-Year_1,MATCH('Mortality trends'!AV$7,Ages_group,0))/'Mortality rates at t0'!AV11-1) -> -0.07231472164 | AW11: =IF('Mortality rates at t0'!AW11=0,0,OFFSET(INDIRECT("'Forecasts " & $AB11 & "'!AA17"),Year_max-Year_1,MATCH('Mortality trends'!AW$7,Ages_group,0))/'Mortality rates at t0'!AW11-1) -> -0.05656891863 | AX11: =IF('Mortality rates at t0'!AX11=0,0,OFFSET(INDIRECT("'Forecasts " & $AB11 & "'!AA17"),Year_max-Year_1,MATCH('Mortality trends'!AX$7,Ages_group,0))/'Mortality rates at t0'!AX11-1) -> -0.04972420524
C12: Dementia | E12: =IF('Mortality rates at t0'!E12=0,0,OFFSET(INDIRECT("'Forecasts " & $C12 & "'!C17"),Year_max-Year_0,MATCH('Mortality trends'!E$7,Ages_group,0))/'Mortality rates at t0'!E12-1) -> 0 | F12: =IF('Mortality rates at t0'!F12=0,0,OFFSET(INDIRECT("'Forecasts " & $C12 & "'!C17"),Year_max-Year_0,MATCH('Mortality trends'!F$7,Ages_group,0))/'Mortality rates at t0'!F12-1) -> 0 | G12: =IF('Mortality rates at t0'!G12=0,0,OFFSET(INDIRECT("'Forecasts " & $C12 & "'!C17"),Year_max-Year_0,MATCH('Mortality trends'!G$7,Ages_group,0))/'Mortality rates at t0'!G12-1) -> 0 | H12: =IF('Mortality rates at t0'!H12=0,0,OFFSET(INDIRECT("'Forecasts " & $C12 & "'!C17"),Year_max-Year_0,MATCH('Mortality trends'!H$7,Ages_group,0))/'Mortality rates at t0'!H12-1) -> 0 | I12: =IF('Mortality rates at t0'!I12=0,0,OFFSET(INDIRECT("'Forecasts " & $C12 & "'!C17"),Year_max-Year_0,MATCH('Mortality trends'!I$7,Ages_group,0))/'Mortality rates at t0'!I12-1) -> 0 | J12: =IF('Mortality rates at t0'!J12=0,0,OFFSET(INDIRECT("'Forecasts " & $C12 & "'!C17"),Year_max-Year_0,MATCH('Mortality trends'!J$7,Ages_group,0))/'Mortality rates at t0'!J12-1) -> -0.07813582941 | K12: =IF('Mortality rates at t0'!K12=0,0,OFFSET(INDIRECT("'Forecasts " & $C12 & "'!C17"),Year_max-Year_0,MATCH('Mortality trends'!K$7,Ages_group,0))/'Mortality rates at t0'!K12-1) -> -0.007510814526 | L12: =IF('Mortality rates at t0'!L12=0,0,OFFSET(INDIRECT("'Forecasts " & $C12 & "'!C17"),Year_max-Year_0,MATCH('Mortality trends'!L$7,Ages_group,0))/'Mortality rates at t0'!L12-1) -> 0.1157196616 | M12: =IF('Mortality rates at t0'!M12=0,0,OFFSET(INDIRECT("'Forecasts " & $C12 & "'!C17"),Year_max-Year_0,MATCH('Mortality trends'!M$7,Ages_group,0))/'Mortality rates at t0'!M12-1) -> -0.03773923831 | N12: =IF('Mortality rates at t0'!N12=0,0,OFFSET(INDIRECT("'Forecasts " & $C12 & "'!C17"),Year_max-Year_0,MATCH('Mortality trends'!N$7,Ages_group,0))/'Mortality rates at t0'!N12-1) -> 0.03772509425 | O12: =IF('Mortality rates at t0'!O12=0,0,OFFSET(INDIRECT("'Forecasts " & $C12 & "'!C17"),Year_max-Year_0,MATCH('Mortality trends'!O$7,Ages_group,0))/'Mortality rates at t0'!O12-1) -> 0.09028770212 | P12: =IF('Mortality rates at t0'!P12=0,0,OFFSET(INDIRECT("'Forecasts " & $C12 & "'!C17"),Year_max-Year_0,MATCH('Mortality trends'!P$7,Ages_group,0))/'Mortality rates at t0'!P12-1) -> 0.1385961962 | Q12: =IF('Mortality rates at t0'!Q12=0,0,OFFSET(INDIRECT("'Forecasts " & $C12 & "'!C17"),Year_max-Year_0,MATCH('Mortality trends'!Q$7,Ages_group,0))/'Mortality rates at t0'!Q12-1) -> 0.1573804156 | R12: =IF('Mortality rates at t0'!R12=0,0,OFFSET(INDIRECT("'Forecasts " & $C12 & "'!C17"),Year_max-Year_0,MATCH('Mortality trends'!R$7,Ages_group,0))/'Mortality rates at t0'!R12-1) -> 0.1743955857 | S12: =IF('Mortality rates at t0'!S12=0,0,OFFSET(INDIRECT("'Forecasts " & $C12 & "'!C17"),Year_max-Year_0,MATCH('Mortality trends'!S$7,Ages_group,0))/'Mortality rates at t0'!S12-1) -> 0.1406539663 | T12: =IF('Mortality rates at t0'!T12=0,0,OFFSET(INDIRECT("'Forecasts " & $C12 & "'!C17"),Year_max-Year_0,MATCH('Mortality trends'!T$7,Ages_group,0))/'Mortality rates at t0'!T12-1) -> 0.1444112622 | U12: =IF('Mortality rates at t0'!U12=0,0,OFFSET(INDIRECT("'Forecasts " & $C12 & "'!C17"),Year_max-Year_0,MATCH('Mortality trends'!U$7,Ages_group,0))/'Mortality rates at t0'!U12-1) -> 0.1510661997 | V12: =IF('Mortality rates at t0'!V12=0,0,OFFSET(INDIRECT("'Forecasts " & $C12 & "'!C17"),Year_max-Year_0,MATCH('Mortality trends'!V$7,Ages_group,0))/'Mortality rates at t0'!V12-1) -> 0.1475548504 | W12: =IF('Mortality rates at t0'!W12=0,0,OFFSET(INDIRECT("'Forecasts " & $C12 & "'!C17"),Year_max-Year_0,MATCH('Mortality trends'!W$7,Ages_group,0))/'Mortality rates at t0'!W12-1) -> 0.154352402 | X12: =IF('Mortality rates at t0'!X12=0,0,OFFSET(INDIRECT("'Forecasts " & $C12 & "'!C17"),Year_max-Year_0,MATCH('Mortality trends'!X$7,Ages_group,0))/'Mortality rates at t0'!X12-1) -> 0.1940996642 | Y12: =IF('Mortality rates at t0'!Y12=0,0,OFFSET(INDIRECT("'Forecasts " & $C12 & "'!C17"),Year_max-Year_0,MATCH('Mortality trends'!Y$7,Ages_group,0))/'Mortality rates at t0'!Y12-1) -> 0.2455953892 | AB12: Dementia | AD12: =IF('Mortality rates at t0'!AD12=0,0,OFFSET(INDIRECT("'Forecasts " & $AB12 & "'!AA17"),Year_max-Year_1,MATCH('Mortality trends'!AD$7,Ages_group,0))/'Mortality rates at t0'!AD12-1) -> 0 | AE12: =IF('Mortality rates at t0'!AE12=0,0,OFFSET(INDIRECT("'Forecasts " & $AB12 & "'!AA17"),Year_max-Year_1,MATCH('Mortality trends'!AE$7,Ages_group,0))/'Mortality rates at t0'!AE12-1) -> 0 | AF12: =IF('Mortality rates at t0'!AF12=0,0,OFFSET(INDIRECT("'Forecasts " & $AB12 & "'!AA17"),Year_max-Year_1,MATCH('Mortality trends'!AF$7,Ages_group,0))/'Mortality rates at t0'!AF12-1) -> 0 | AG12: =IF('Mortality rates at t0'!AG12=0,0,OFFSET(INDIRECT("'Forecasts " & $AB12 & "'!AA17"),Year_max-Year_1,MATCH('Mortality trends'!AG$7,Ages_group,0))/'Mortality rates at t0'!AG12-1) -> 0 | AH12: =IF('Mortality rates at t0'!AH12=0,0,OFFSET(INDIRECT("'Forecasts " & $AB12 & "'!AA17"),Year_max-Year_1,MATCH('Mortality trends'!AH$7,Ages_group,0))/'Mortality rates at t0'!AH12-1) -> 0 | AI12: =IF('Mortality rates at t0'!AI12=0,0,OFFSET(INDIRECT("'Forecasts " & $AB12 & "'!AA17"),Year_max-Year_1,MATCH('Mortality trends'!AI$7,Ages_group,0))/'Mortality rates at t0'!AI12-1) -> 0 | AJ12: =IF('Mortality rates at t0'!AJ12=0,0,OFFSET(INDIRECT("'Forecasts " & $AB12 & "'!AA17"),Year_max-Year_1,MATCH('Mortality trends'!AJ$7,Ages_group,0))/'Mortality rates at t0'!AJ12-1) -> 0 | AK12: =IF('Mortality rates at t0'!AK12=0,0,OFFSET(INDIRECT("'Forecasts " & $AB12 & "'!AA17"),Year_max-Year_1,MATCH('Mortality trends'!AK$7,Ages_group,0))/'Mortality rates at t0'!AK12-1) -> 0 | AL12: =IF('Mortality rates at t0'!AL12=0,0,OFFSET(INDIRECT("'Forecasts " & $AB12 & "'!AA17"),Year_max-Year_1,MATCH('Mortality trends'!AL$7,Ages_group,0))/'Mortality rates at t0'!AL12-1) -> 0 | AM12: =IF('Mortality rates at t0'!AM12=0,0,OFFSET(INDIRECT("'Forecasts " & $AB12 & "'!AA17"),Year_max-Year_1,MATCH('Mortality trends'!AM$7,Ages_group,0))/'Mortality rates at t0'!AM12-1) -> 0 | AN12: =IF('Mortality rates at t0'!AN12=0,0,OFFSET(INDIRECT("'Forecasts " & $AB12 & "'!AA17"),Year_max-Year_1,MATCH('Mortality trends'!AN$7,Ages_group,0))/'Mortality rates at t0'!AN12-1) -> 0.07584248297 | AO12: =IF('Mortality rates at t0'!AO12=0,0,OFFSET(INDIRECT("'Forecasts " & $AB12 & "'!AA17"),Year_max-Year_1,MATCH('Mortality trends'!AO$7,Ages_group,0))/'Mortality rates at t0'!AO12-1) -> 0.1160204041 | AP12: =IF('Mortality rates at t0'!AP12=0,0,OFFSET(INDIRECT("'Forecasts " & $AB12 & "'!AA17"),Year_max-Year_1,MATCH('Mortality trends'!AP$7,Ages_group,0))/'Mortality rates at t0'!AP12-1) -> 0.1315716287 | AQ12: =IF('Mortality rates at t0'!AQ12=0,0,OFFSET(INDIRECT("'Forecasts " & $AB12 & "'!AA17"),Year_max-Year_1,MATCH('Mortality trends'!AQ$7,Ages_group,0))/'Mortality rates at t0'!AQ12-1) -> 0.1456246851 | AR12: =IF('Mortality rates at t0'!AR12=0,0,OFFSET(INDIRECT("'Forecasts " & $AB12 & "'!AA17"),Year_max-Year_1,MATCH('Mortality trends'!AR$7,Ages_group,0))/'Mortality rates at t0'!AR12-1) -> 0.1177259263 | AS12: =IF('Mortality rates at t0'!AS12=0,0,OFFSET(INDIRECT("'Forecasts " & $AB12 & "'!AA17"),Year_max-Year_1,MATCH('Mortality trends'!AS$7,Ages_group,0))/'Mortality rates at t0'!AS12-1) -> 0.1208388268 | AT12: =IF('Mortality rates at t0'!AT12=0,0,OFFSET(INDIRECT("'Forecasts " & $AB12 & "'!AA17"),Year_max-Year_1,MATCH('Mortality trends'!AT$7,Ages_group,0))/'Mortality rates at t0'!AT12-1) -> 0.126348543 | AU12: =IF('Mortality rates at t0'!AU12=0,0,OFFSET(INDIRECT("'Forecasts " & $AB12 & "'!AA17"),Year_max-Year_1,MATCH('Mortality trends'!AU$7,Ages_group,0))/'Mortality rates at t0'!AU12-1) -> 0.123442062 | AV12: =IF('Mortality rates at t0'!AV12=0,0,OFFSET(INDIRECT("'Forecasts " & $AB12 & "'!AA17"),Year_max-Year_1,MATCH('Mortality trends'!AV$7,Ages_group,0))/'Mortality rates at t0'!AV12-1) -> 0.1290674222 | AW12: =IF('Mortality rates at t0'!AW12=0,0,OFFSET(INDIRECT("'Forecasts " & $AB12 & "'!AA17"),Year_max-Year_1,MATCH('Mortality trends'!AW$7,Ages_group,0))/'Mortality rates at t0'!AW12-1) -> 0.1618593687 | AX12: =IF('Mortality rates at t0'!AX12=0,0,OFFSET(INDIRECT("'Forecasts " & $AB12 & "'!AA17"),Year_max-Year_1,MATCH('Mortality trends'!AX$7,Ages_group,0))/'Mortality rates at t0'!AX12-1) -> 0.2040950032
C13: Diabetes | E13: =IF('Mortality rates at t0'!E13=0,0,OFFSET(INDIRECT("'Forecasts " & $C13 & "'!C17"),Year_max-Year_0,MATCH('Mortality trends'!E$7,Ages_group,0))/'Mortality rates at t0'!E13-1) -> -0.1127626262 | F13: =IF('Mortality rates at t0'!F13=0,0,OFFSET(INDIRECT("'Forecasts " & $C13 & "'!C17"),Year_max-Year_0,MATCH('Mortality trends'!F$7,Ages_group,0))/'Mortality rates at t0'!F13-1) -> -0.08631390806 | G13: =IF('Mortality rates at t0'!G13=0,0,OFFSET(INDIRECT("'Forecasts " & $C13 & "'!C17"),Year_max-Year_0,MATCH('Mortality trends'!G$7,Ages_group,0))/'Mortality rates at t0'!G13-1) -> -0.09310046586 | H13: =IF('Mortality rates at t0'!H13=0,0,OFFSET(INDIRECT("'Forecasts " & $C13 & "'!C17"),Year_max-Year_0,MATCH('Mortality trends'!H$7,Ages_group,0))/'Mortality rates at t0'!H13-1) -> -0.06753983096 | I13: =IF('Mortality rates at t0'!I13=0,0,OFFSET(INDIRECT("'Forecasts " & $C13 & "'!C17"),Year_max-Year_0,MATCH('Mortality trends'!I$7,Ages_group,0))/'Mortality rates at t0'!I13-1) -> -0.03211635541 | J13: =IF('Mortality rates at t0'!J13=0,0,OFFSET(INDIRECT("'Forecasts " & $C13 & "'!C17"),Year_max-Year_0,MATCH('Mortality trends'!J$7,Ages_group,0))/'Mortality rates at t0'!J13-1) -> 0.01771128081 | K13: =IF('Mortality rates at t0'!K13=0,0,OFFSET(INDIRECT("'Forecasts " & $C13 & "'!C17"),Year_max-Year_0,MATCH('Mortality trends'!K$7,Ages_group,0))/'Mortality rates at t0'!K13-1) -> 0.0293535991 | L13: =IF('Mortality rates at t0'!L13=0,0,OFFSET(INDIRECT("'Forecasts " & $C13 & "'!C17"),Year_max-Year_0,MATCH('Mortality trends'!L$7,Ages_group,0))/'Mortality rates at t0'!L13-1) -> 0.02938419732 | M13: =IF('Mortality rates at t0'!M13=0,0,OFFSET(INDIRECT("'Forecasts " & $C13 & "'!C17"),Year_max-Year_0,MATCH('Mortality trends'!M$7,Ages_group,0))/'Mortality rates at t0'!M13-1) -> 0.0317601789 | N13: =IF('Mortality rates at t0'!N13=0,0,OFFSET(INDIRECT("'Forecasts " & $C13 & "'!C17"),Year_max-Year_0,MATCH('Mortality trends'!N$7,Ages_group,0))/'Mortality rates at t0'!N13-1) -> 0.02529615648 | O13: =IF('Mortality rates at t0'!O13=0,0,OFFSET(INDIRECT("'Forecasts " & $C13 & "'!C17"),Year_max-Year_0,MATCH('Mortality trends'!O$7,Ages_group,0))/'Mortality rates at t0'!O13-1) -> 0.01905644281 | P13: =IF('Mortality rates at t0'!P13=0,0,OFFSET(INDIRECT("'Forecasts " & $C13 & "'!C17"),Year_max-Year_0,MATCH('Mortality trends'!P$7,Ages_group,0))/'Mortality rates at t0'!P13-1) -> 0.01979107575 | Q13: =IF('Mortality rates at t0'!Q13=0,0,OFFSET(INDIRECT("'Forecasts " & $C13 & "'!C17"),Year_max-Year_0,MATCH('Mortality trends'!Q$7,Ages_group,0))/'Mortality rates at t0'!Q13-1) -> 0.01722825353 | R13: =IF('Mortality rates at t0'!R13=0,0,OFFSET(INDIRECT("'Forecasts " & $C13 & "'!C17"),Year_max-Year_0,MATCH('Mortality trends'!R$7,Ages_group,0))/'Mortality rates at t0'!R13-1) -> 0.007291776186 | S13: =IF('Mortality rates at t0'!S13=0,0,OFFSET(INDIRECT("'Forecasts " & $C13 & "'!C17"),Year_max-Year_0,MATCH('Mortality trends'!S$7,Ages_group,0))/'Mortality rates at t0'!S13-1) -> -0.01272276114 | T13: =IF('Mortality rates at t0'!T13=0,0,OFFSET(INDIRECT("'Forecasts " & $C13 & "'!C17"),Year_max-Year_0,MATCH('Mortality trends'!T$7,Ages_group,0))/'Mortality rates at t0'!T13-1) -> -0.02182536278 | U13: =IF('Mortality rates at t0'!U13=0,0,OFFSET(INDIRECT("'Forecasts " & $C13 & "'!C17"),Year_max-Year_0,MATCH('Mortality trends'!U$7,Ages_group,0))/'Mortality rates at t0'!U13-1) -> -0.02497496053 | V13: =IF('Mortality rates at t0'!V13=0,0,OFFSET(INDIRECT("'Forecasts " & $C13 & "'!C17"),Year_max-Year_0,MATCH('Mortality trends'!V$7,Ages_group,0))/'Mortality rates at t0'!V13-1) -> -0.0291222168 | W13: =IF('Mortality rates at t0'!W13=0,0,OFFSET(INDIRECT("'Forecasts " & $C13 & "'!C17"),Year_max-Year_0,MATCH('Mortality trends'!W$7,Ages_group,0))/'Mortality rates at t0'!W13-1) -> -0.03160160426 | X13: =IF('Mortality rates at t0'!X13=0,0,OFFSET(INDIRECT("'Forecasts " & $C13 & "'!C17"),Year_max-Year_0,MATCH('Mortality trends'!X$7,Ages_group,0))/'Mortality rates at t0'!X13-1) -> -0.008796298482 | Y13: =IF('Mortality rates at t0'!Y13=0,0,OFFSET(INDIRECT("'Forecasts " & $C13 & "'!C17"),Year_max-Year_0,MATCH('Mortality trends'!Y$7,Ages_group,0))/'Mortality rates at t0'!Y13-1) -> 0.01500874998 | AB13: Diabetes | AD13: =IF('Mortality rates at t0'!AD13=0,0,OFFSET(INDIRECT("'Forecasts " & $AB13 & "'!AA17"),Year_max-Year_1,MATCH('Mortality trends'!AD$7,Ages_group,0))/'Mortality rates at t0'!AD13-1) -> -0.1003944573 | AE13: =IF('Mortality rates at t0'!AE13=0,0,OFFSET(INDIRECT("'Forecasts " & $AB13 & "'!AA17"),Year_max-Year_1,MATCH('Mortality trends'!AE$7,Ages_group,0))/'Mortality rates at t0'!AE13-1) -> 0 | AF13: =IF('Mortality rates at t0'!AF13=0,0,OFFSET(INDIRECT("'Forecasts " & $AB13 & "'!AA17"),Year_max-Year_1,MATCH('Mortality trends'!AF$7,Ages_group,0))/'Mortality rates at t0'!AF13-1) -> 0 | AG13: =IF('Mortality rates at t0'!AG13=0,0,OFFSET(INDIRECT("'Forecasts " & $AB13 & "'!AA17"),Year_max-Year_1,MATCH('Mortality trends'!AG$7,Ages_group,0))/'Mortality rates at t0'!AG13-1) -> 0 | AH13: =IF('Mortality rates at t0'!AH13=0,0,OFFSET(INDIRECT("'Forecasts " & $AB13 & "'!AA17"),Year_max-Year_1,MATCH('Mortality trends'!AH$7,Ages_group,0))/'Mortality rates at t0'!AH13-1) -> 0 | AI13: =IF('Mortality rates at t0'!AI13=0,0,OFFSET(INDIRECT("'Forecasts " & $AB13 & "'!AA17"),Year_max-Year_1,MATCH('Mortality trends'!AI$7,Ages_group,0))/'Mortality rates at t0'!AI13-1) -> 0.01564597041 | AJ13: =IF('Mortality rates at t0'!AJ13=0,0,OFFSET(INDIRECT("'Forecasts " & $AB13 & "'!AA17"),Year_max-Year_1,MATCH('Mortality trends'!AJ$7,Ages_group,0))/'Mortality rates at t0'!AJ13-1) -> 0.02591349584 | AK13: =IF('Mortality rates at t0'!AK13=0,0,OFFSET(INDIRECT("'Forecasts " & $AB13 & "'!AA17"),Year_max-Year_1,MATCH('Mortality trends'!AK$7,Ages_group,0))/'Mortality rates at t0'!AK13-1) -> 0.02594046307 | AL13: =IF('Mortality rates at t0'!AL13=0,0,OFFSET(INDIRECT("'Forecasts " & $AB13 & "'!AA17"),Year_max-Year_1,MATCH('Mortality trends'!AL$7,Ages_group,0))/'Mortality rates at t0'!AL13-1) -> 0.02803421225 | AM13: =IF('Mortality rates at t0'!AM13=0,0,OFFSET(INDIRECT("'Forecasts " & $AB13 & "'!AA17"),Year_max-Year_1,MATCH('Mortality trends'!AM$7,Ages_group,0))/'Mortality rates at t0'!AM13-1) -> 0.02233671288 | AN13: =IF('Mortality rates at t0'!AN13=0,0,OFFSET(INDIRECT("'Forecasts " & $AB13 & "'!AA17"),Year_max-Year_1,MATCH('Mortality trends'!AN$7,Ages_group,0))/'Mortality rates at t0'!AN13-1) -> 0.01683297944 | AO13: =IF('Mortality rates at t0'!AO13=0,0,OFFSET(INDIRECT("'Forecasts " & $AB13 & "'!AA17"),Year_max-Year_1,MATCH('Mortality trends'!AO$7,Ages_group,0))/'Mortality rates at t0'!AO13-1) -> 0.0174811638 | AP13: =IF('Mortality rates at t0'!AP13=0,0,OFFSET(INDIRECT("'Forecasts " & $AB13 & "'!AA17"),Year_max-Year_1,MATCH('Mortality trends'!AP$7,Ages_group,0))/'Mortality rates at t0'!AP13-1) -> 0.01521968917 | AQ13: =IF('Mortality rates at t0'!AQ13=0,0,OFFSET(INDIRECT("'Forecasts " & $AB13 & "'!AA17"),Year_max-Year_1,MATCH('Mortality trends'!AQ$7,Ages_group,0))/'Mortality rates at t0'!AQ13-1) -> 0.006445334243 | AR13: =IF('Mortality rates at t0'!AR13=0,0,OFFSET(INDIRECT("'Forecasts " & $AB13 & "'!AA17"),Year_max-Year_1,MATCH('Mortality trends'!AR$7,Ages_group,0))/'Mortality rates at t0'!AR13-1) -> -0.01125893525 | AS13: =IF('Mortality rates at t0'!AS13=0,0,OFFSET(INDIRECT("'Forecasts " & $AB13 & "'!AA17"),Year_max-Year_1,MATCH('Mortality trends'!AS$7,Ages_group,0))/'Mortality rates at t0'!AS13-1) -> -0.01932452727 | AT13: =IF('Mortality rates at t0'!AT13=0,0,OFFSET(INDIRECT("'Forecasts " & $AB13 & "'!AA17"),Year_max-Year_1,MATCH('Mortality trends'!AT$7,Ages_group,0))/'Mortality rates at t0'!AT13-1) -> -0.02211732749 | AU13: =IF('Mortality rates at t0'!AU13=0,0,OFFSET(INDIRECT("'Forecasts " & $AB13 & "'!AA17"),Year_max-Year_1,MATCH('Mortality trends'!AU$7,Ages_group,0))/'Mortality rates at t0'!AU13-1) -> -0.0257963611 | AV13: =IF('Mortality rates at t0'!AV13=0,0,OFFSET(INDIRECT("'Forecasts " & $AB13 & "'!AA17"),Year_max-Year_1,MATCH('Mortality trends'!AV$7,Ages_group,0))/'Mortality rates at t0'!AV13-1) -> -0.02799669545 | AW13: =IF('Mortality rates at t0'!AW13=0,0,OFFSET(INDIRECT("'Forecasts " & $AB13 & "'!AA17"),Year_max-Year_1,MATCH('Mortality trends'!AW$7,Ages_group,0))/'Mortality rates at t0'!AW13-1) -> -0.007782453145 | AX13: =IF('Mortality rates at t0'!AX13=0,0,OFFSET(INDIRECT("'Forecasts " & $AB13 & "'!AA17"),Year_max-Year_1,MATCH('Mortality trends'!AX$7,Ages_group,0))/'Mortality rates at t0'!AX13-1) -> 0.0132606316
C14: Influenza | E14: =IF('Mortality rates at t0'!E14=0,0,OFFSET(INDIRECT("'Forecasts " & $C14 & "'!C17"),Year_max-Year_0,MATCH('Mortality trends'!E$7,Ages_group,0))/'Mortality rates at t0'!E14-1) -> -0.04813833932 | F14: =IF('Mortality rates at t0'!F14=0,0,OFFSET(INDIRECT("'Forecasts " & $C14 & "'!C17"),Year_max-Year_0,MATCH('Mortality trends'!F$7,Ages_group,0))/'Mortality rates at t0'!F14-1) -> -0.0162407059 | G14: =IF('Mortality rates at t0'!G14=0,0,OFFSET(INDIRECT("'Forecasts " & $C14 & "'!C17"),Year_max-Year_0,MATCH('Mortality trends'!G$7,Ages_group,0))/'Mortality rates at t0'!G14-1) -> 0.02427063009 | H14: =IF('Mortality rates at t0'!H14=0,0,OFFSET(INDIRECT("'Forecasts " & $C14 & "'!C17"),Year_max-Year_0,MATCH('Mortality trends'!H$7,Ages_group,0))/'Mortality rates at t0'!H14-1) -> 0.02667541507 | I14: =IF('Mortality rates at t0'!I14=0,0,OFFSET(INDIRECT("'Forecasts " & $C14 & "'!C17"),Year_max-Year_0,MATCH('Mortality trends'!I$7,Ages_group,0))/'Mortality rates at t0'!I14-1) -> -0.001543396758 | J14: =IF('Mortality rates at t0'!J14=0,0,OFFSET(INDIRECT("'Forecasts " & $C14 & "'!C17"),Year_max-Year_0,MATCH('Mortality trends'!J$7,Ages_group,0))/'Mortality rates at t0'!J14-1) -> 0.007645450512 | K14: =IF('Mortality rates at t0'!K14=0,0,OFFSET(INDIRECT("'Forecasts " & $C14 & "'!C17"),Year_max-Year_0,MATCH('Mortality trends'!K$7,Ages_group,0))/'Mortality rates at t0'!K14-1) -> 0.03083720653 | L14: =IF('Mortality rates at t0'!L14=0,0,OFFSET(INDIRECT("'Forecasts " & $C14 & "'!C17"),Year_max-Year_0,MATCH('Mortality trends'!L$7,Ages_group,0))/'Mortality rates at t0'!L14-1) -> 0.02358227043 | M14: =IF('Mortality rates at t0'!M14=0,0,OFFSET(INDIRECT("'Forecasts " & $C14 & "'!C17"),Year_max-Year_0,MATCH('Mortality trends'!M$7,Ages_group,0))/'Mortality rates at t0'!M14-1) -> -0.009241101927 | N14: =IF('Mortality rates at t0'!N14=0,0,OFFSET(INDIRECT("'Forecasts " & $C14 & "'!C17"),Year_max-Year_0,MATCH('Mortality trends'!N$7,Ages_group,0))/'Mortality rates at t0'!N14-1) -> -0.01892483609 | O14: =IF('Mortality rates at t0'!O14=0,0,OFFSET(INDIRECT("'Forecasts " & $C14 & "'!C17"),Year_max-Year_0,MATCH('Mortality trends'!O$7,Ages_group,0))/'Mortality rates at t0'!O14-1) -> -0.01723887865 | P14: =IF('Mortality rates at t0'!P14=0,0,OFFSET(INDIRECT("'Forecasts " & $C14 & "'!C17"),Year_max-Year_0,MATCH('Mortality trends'!P$7,Ages_group,0))/'Mortality rates at t0'!P14-1) -> -0.001245634168 | Q14: =IF('Mortality rates at t0'!Q14=0,0,OFFSET(INDIRECT("'Forecasts " & $C14 & "'!C17"),Year_max-Year_0,MATCH('Mortality trends'!Q$7,Ages_group,0))/'Mortality rates at t0'!Q14-1) -> 0.01598674481 | R14: =IF('Mortality rates at t0'!R14=0,0,OFFSET(INDIRECT("'Forecasts " & $C14 & "'!C17"),Year_max-Year_0,MATCH('Mortality trends'!R$7,Ages_group,0))/'Mortality rates at t0'!R14-1) -> -0.007882340014 | S14: =IF('Mortality rates at t0'!S14=0,0,OFFSET(INDIRECT("'Forecasts " & $C14 & "'!C17"),Year_max-Year_0,MATCH('Mortality trends'!S$7,Ages_group,0))/'Mortality rates at t0'!S14-1) -> -0.02357363307 | T14: =IF('Mortality rates at t0'!T14=0,0,OFFSET(INDIRECT("'Forecasts " & $C14 & "'!C17"),Year_max-Year_0,MATCH('Mortality trends'!T$7,Ages_group,0))/'Mortality rates at t0'!T14-1) -> -0.04008186906 | U14: =IF('Mortality rates at t0'!U14=0,0,OFFSET(INDIRECT("'Forecasts " & $C14 & "'!C17"),Year_max-Year_0,MATCH('Mortality trends'!U$7,Ages_group,0))/'Mortality rates at t0'!U14-1) -> -0.05322842774 | V14: =IF('Mortality rates at t0'!V14=0,0,OFFSET(INDIRECT("'Forecasts " & $C14 & "'!C17"),Year_max-Year_0,MATCH('Mortality trends'!V$7,Ages_group,0))/'Mortality rates at t0'!V14-1) -> -0.06764617524 | W14: =IF('Mortality rates at t0'!W14=0,0,OFFSET(INDIRECT("'Forecasts " & $C14 & "'!C17"),Year_max-Year_0,MATCH('Mortality trends'!W$7,Ages_group,0))/'Mortality rates at t0'!W14-1) -> -0.07360047506 | X14: =IF('Mortality rates at t0'!X14=0,0,OFFSET(INDIRECT("'Forecasts " & $C14 & "'!C17"),Year_max-Year_0,MATCH('Mortality trends'!X$7,Ages_group,0))/'Mortality rates at t0'!X14-1) -> -0.07285765048 | Y14: =IF('Mortality rates at t0'!Y14=0,0,OFFSET(INDIRECT("'Forecasts " & $C14 & "'!C17"),Year_max-Year_0,MATCH('Mortality trends'!Y$7,Ages_group,0))/'Mortality rates at t0'!Y14-1) -> -0.06530486838 | AB14: Influenza | AD14: =IF('Mortality rates at t0'!AD14=0,0,OFFSET(INDIRECT("'Forecasts " & $AB14 & "'!AA17"),Year_max-Year_1,MATCH('Mortality trends'!AD$7,Ages_group,0))/'Mortality rates at t0'!AD14-1) -> -0.04066917179 | AE14: =IF('Mortality rates at t0'!AE14=0,0,OFFSET(INDIRECT("'Forecasts " & $AB14 & "'!AA17"),Year_max-Year_1,MATCH('Mortality trends'!AE$7,Ages_group,0))/'Mortality rates at t0'!AE14-1) -> -0.01368537149 | AF14: =IF('Mortality rates at t0'!AF14=0,0,OFFSET(INDIRECT("'Forecasts " & $AB14 & "'!AA17"),Year_max-Year_1,MATCH('Mortality trends'!AF$7,Ages_group,0))/'Mortality rates at t0'!AF14-1) -> 0 | AG14: =IF('Mortality rates at t0'!AG14=0,0,OFFSET(INDIRECT("'Forecasts " & $AB14 & "'!AA17"),Year_max-Year_1,MATCH('Mortality trends'!AG$7,Ages_group,0))/'Mortality rates at t0'!AG14-1) -> 0 | AH14: =IF('Mortality rates at t0'!AH14=0,0,OFFSET(INDIRECT("'Forecasts " & $AB14 & "'!AA17"),Year_max-Year_1,MATCH('Mortality trends'!AH$7,Ages_group,0))/'Mortality rates at t0'!AH14-1) -> 0 | AI14: =IF('Mortality rates at t0'!AI14=0,0,OFFSET(INDIRECT("'Forecasts " & $AB14 & "'!AA17"),Year_max-Year_1,MATCH('Mortality trends'!AI$7,Ages_group,0))/'Mortality rates at t0'!AI14-1) -> 0.006430289737 | AJ14: =IF('Mortality rates at t0'!AJ14=0,0,OFFSET(INDIRECT("'Forecasts " & $AB14 & "'!AA17"),Year_max-Year_1,MATCH('Mortality trends'!AJ$7,Ages_group,0))/'Mortality rates at t0'!AJ14-1) -> 0.02588898909 | AK14: =IF('Mortality rates at t0'!AK14=0,0,OFFSET(INDIRECT("'Forecasts " & $AB14 & "'!AA17"),Year_max-Year_1,MATCH('Mortality trends'!AK$7,Ages_group,0))/'Mortality rates at t0'!AK14-1) -> 0.01980936982 | AL14: =IF('Mortality rates at t0'!AL14=0,0,OFFSET(INDIRECT("'Forecasts " & $AB14 & "'!AA17"),Year_max-Year_1,MATCH('Mortality trends'!AL$7,Ages_group,0))/'Mortality rates at t0'!AL14-1) -> -0.007782739512 | AM14: =IF('Mortality rates at t0'!AM14=0,0,OFFSET(INDIRECT("'Forecasts " & $AB14 & "'!AA17"),Year_max-Year_1,MATCH('Mortality trends'!AM$7,Ages_group,0))/'Mortality rates at t0'!AM14-1) -> -0.01595061007 | AN14: =IF('Mortality rates at t0'!AN14=0,0,OFFSET(INDIRECT("'Forecasts " & $AB14 & "'!AA17"),Year_max-Year_1,MATCH('Mortality trends'!AN$7,Ages_group,0))/'Mortality rates at t0'!AN14-1) -> -0.01452765257 | AO14: =IF('Mortality rates at t0'!AO14=0,0,OFFSET(INDIRECT("'Forecasts " & $AB14 & "'!AA17"),Year_max-Year_1,MATCH('Mortality trends'!AO$7,Ages_group,0))/'Mortality rates at t0'!AO14-1) -> -0.001048390739 | AP14: =IF('Mortality rates at t0'!AP14=0,0,OFFSET(INDIRECT("'Forecasts " & $AB14 & "'!AA17"),Year_max-Year_1,MATCH('Mortality trends'!AP$7,Ages_group,0))/'Mortality rates at t0'!AP14-1) -> 0.013437017 | AQ14: =IF('Mortality rates at t0'!AQ14=0,0,OFFSET(INDIRECT("'Forecasts " & $AB14 & "'!AA17"),Year_max-Year_1,MATCH('Mortality trends'!AQ$7,Ages_group,0))/'Mortality rates at t0'!AQ14-1) -> -0.006637688609 | AR14: =IF('Mortality rates at t0'!AR14=0,0,OFFSET(INDIRECT("'Forecasts " & $AB14 & "'!AA17"),Year_max-Year_1,MATCH('Mortality trends'!AR$7,Ages_group,0))/'Mortality rates at t0'!AR14-1) -> -0.01987623019 | AS14: =IF('Mortality rates at t0'!AS14=0,0,OFFSET(INDIRECT("'Forecasts " & $AB14 & "'!AA17"),Year_max-Year_1,MATCH('Mortality trends'!AS$7,Ages_group,0))/'Mortality rates at t0'!AS14-1) -> -0.03384045921 | AT14: =IF('Mortality rates at t0'!AT14=0,0,OFFSET(INDIRECT("'Forecasts " & $AB14 & "'!AA17"),Year_max-Year_1,MATCH('Mortality trends'!AT$7,Ages_group,0))/'Mortality rates at t0'!AT14-1) -> -0.04498827911 | AU14: =IF('Mortality rates at t0'!AU14=0,0,OFFSET(INDIRECT("'Forecasts " & $AB14 & "'!AA17"),Year_max-Year_1,MATCH('Mortality trends'!AU$7,Ages_group,0))/'Mortality rates at t0'!AU14-1) -> -0.05724226521 | AV14: =IF('Mortality rates at t0'!AV14=0,0,OFFSET(INDIRECT("'Forecasts " & $AB14 & "'!AA17"),Year_max-Year_1,MATCH('Mortality trends'!AV$7,Ages_group,0))/'Mortality rates at t0'!AV14-1) -> -0.06231170575 | AW14: =IF('Mortality rates at t0'!AW14=0,0,OFFSET(INDIRECT("'Forecasts " & $AB14 & "'!AA17"),Year_max-Year_1,MATCH('Mortality trends'!AW$7,Ages_group,0))/'Mortality rates at t0'!AW14-1) -> -0.06167898999 | AX14: =IF('Mortality rates at t0'!AX14=0,0,OFFSET(INDIRECT("'Forecasts " & $AB14 & "'!AA17"),Year_max-Year_1,MATCH('Mortality trends'!AX$7,Ages_group,0))/'Mortality rates at t0'!AX14-1) -> -0.05525030271
C15: Respiratory | E15: =IF('Mortality rates at t0'!E15=0,0,OFFSET(INDIRECT("'Forecasts " & $C15 & "'!C17"),Year_max-Year_0,MATCH('Mortality trends'!E$7,Ages_group,0))/'Mortality rates at t0'!E15-1) -> -0.05065672421 | F15: =IF('Mortality rates at t0'!F15=0,0,OFFSET(INDIRECT("'Forecasts " & $C15 & "'!C17"),Year_max-Year_0,MATCH('Mortality trends'!F$7,Ages_group,0))/'Mortality rates at t0'!F15-1) -> 0.07805758454 | G15: =IF('Mortality rates at t0'!G15=0,0,OFFSET(INDIRECT("'Forecasts " & $C15 & "'!C17"),Year_max-Year_0,MATCH('Mortality trends'!G$7,Ages_group,0))/'Mortality rates at t0'!G15-1) -> 0.277463766 | H15: =IF('Mortality rates at t0'!H15=0,0,OFFSET(INDIRECT("'Forecasts " & $C15 & "'!C17"),Year_max-Year_0,MATCH('Mortality trends'!H$7,Ages_group,0))/'Mortality rates at t0'!H15-1) -> -0.1247999194 | I15: =IF('Mortality rates at t0'!I15=0,0,OFFSET(INDIRECT("'Forecasts " & $C15 & "'!C17"),Year_max-Year_0,MATCH('Mortality trends'!I$7,Ages_group,0))/'Mortality rates at t0'!I15-1) -> -0.2806696816 | J15: =IF('Mortality rates at t0'!J15=0,0,OFFSET(INDIRECT("'Forecasts " & $C15 & "'!C17"),Year_max-Year_0,MATCH('Mortality trends'!J$7,Ages_group,0))/'Mortality rates at t0'!J15-1) -> -0.00796165124 | K15: =IF('Mortality rates at t0'!K15=0,0,OFFSET(INDIRECT("'Forecasts " & $C15 & "'!C17"),Year_max-Year_0,MATCH('Mortality trends'!K$7,Ages_group,0))/'Mortality rates at t0'!K15-1) -> 0.1051731681 | L15: =IF('Mortality rates at t0'!L15=0,0,OFFSET(INDIRECT("'Forecasts " & $C15 & "'!C17"),Year_max-Year_0,MATCH('Mortality trends'!L$7,Ages_group,0))/'Mortality rates at t0'!L15-1) -> 0.01631089726 | M15: =IF('Mortality rates at t0'!M15=0,0,OFFSET(INDIRECT("'Forecasts " & $C15 & "'!C17"),Year_max-Year_0,MATCH('Mortality trends'!M$7,Ages_group,0))/'Mortality rates at t0'!M15-1) -> -0.03122780758 | N15: =IF('Mortality rates at t0'!N15=0,0,OFFSET(INDIRECT("'Forecasts " & $C15 & "'!C17"),Year_max-Year_0,MATCH('Mortality trends'!N$7,Ages_group,0))/'Mortality rates at t0'!N15-1) -> -0.1196643284 | O15: =IF('Mortality rates at t0'!O15=0,0,OFFSET(INDIRECT("'Forecasts " & $C15 & "'!C17"),Year_max-Year_0,MATCH('Mortality trends'!O$7,Ages_group,0))/'Mortality rates at t0'!O15-1) -> -0.07183441638 | P15: =IF('Mortality rates at t0'!P15=0,0,OFFSET(INDIRECT("'Forecasts " & $C15 & "'!C17"),Year_max-Year_0,MATCH('Mortality trends'!P$7,Ages_group,0))/'Mortality rates at t0'!P15-1) -> 0.09284427003 | Q15: =IF('Mortality rates at t0'!Q15=0,0,OFFSET(INDIRECT("'Forecasts " & $C15 & "'!C17"),Year_max-Year_0,MATCH('Mortality trends'!Q$7,Ages_group,0))/'Mortality rates at t0'!Q15-1) -> 0.004389130107 | R15: =IF('Mortality rates at t0'!R15=0,0,OFFSET(INDIRECT("'Forecasts " & $C15 & "'!C17"),Year_max-Year_0,MATCH('Mortality trends'!R$7,Ages_group,0))/'Mortality rates at t0'!R15-1) -> -0.07882829655 | S15: =IF('Mortality rates at t0'!S15=0,0,OFFSET(INDIRECT("'Forecasts " & $C15 & "'!C17"),Year_max-Year_0,MATCH('Mortality trends'!S$7,Ages_group,0))/'Mortality rates at t0'!S15-1) -> -0.1306565558 | T15: =IF('Mortality rates at t0'!T15=0,0,OFFSET(INDIRECT("'Forecasts " & $C15 & "'!C17"),Year_max-Year_0,MATCH('Mortality trends'!T$7,Ages_group,0))/'Mortality rates at t0'!T15-1) -> -0.1262483035 | U15: =IF('Mortality rates at t0'!U15=0,0,OFFSET(INDIRECT("'Forecasts " & $C15 & "'!C17"),Year_max-Year_0,MATCH('Mortality trends'!U$7,Ages_group,0))/'Mortality rates at t0'!U15-1) -> -0.1233776326 | V15: =IF('Mortality rates at t0'!V15=0,0,OFFSET(INDIRECT("'Forecasts " & $C15 & "'!C17"),Year_max-Year_0,MATCH('Mortality trends'!V$7,Ages_group,0))/'Mortality rates at t0'!V15-1) -> -0.1352120088 | W15: =IF('Mortality rates at t0'!W15=0,0,OFFSET(INDIRECT("'Forecasts " & $C15 & "'!C17"),Year_max-Year_0,MATCH('Mortality trends'!W$7,Ages_group,0))/'Mortality rates at t0'!W15-1) -> -0.1467369642 | X15: =IF('Mortality rates at t0'!X15=0,0,OFFSET(INDIRECT("'Forecasts " & $C15 & "'!C17"),Year_max-Year_0,MATCH('Mortality trends'!X$7,Ages_group,0))/'Mortality rates at t0'!X15-1) -> -0.1076015734 | Y15: =IF('Mortality rates at t0'!Y15=0,0,OFFSET(INDIRECT("'Forecasts " & $C15 & "'!C17"),Year_max-Year_0,MATCH('Mortality trends'!Y$7,Ages_group,0))/'Mortality rates at t0'!Y15-1) -> -0.04563088556 | AB15: Respiratory | AD15: =IF('Mortality rates at t0'!AD15=0,0,OFFSET(INDIRECT("'Forecasts " & $AB15 & "'!AA17"),Year_max-Year_1,MATCH('Mortality trends'!AD$7,Ages_group,0))/'Mortality rates at t0'!AD15-1) -> -0.04151959101 | AE15: =IF('Mortality rates at t0'!AE15=0,0,OFFSET(INDIRECT("'Forecasts " & $AB15 & "'!AA17"),Year_max-Year_1,MATCH('Mortality trends'!AE$7,Ages_group,0))/'Mortality rates at t0'!AE15-1) -> 0.06323040567 | AF15: =IF('Mortality rates at t0'!AF15=0,0,OFFSET(INDIRECT("'Forecasts " & $AB15 & "'!AA17"),Year_max-Year_1,MATCH('Mortality trends'!AF$7,Ages_group,0))/'Mortality rates at t0'!AF15-1) -> 0.2211047379 | AG15: =IF('Mortality rates at t0'!AG15=0,0,OFFSET(INDIRECT("'Forecasts " & $AB15 & "'!AA17"),Year_max-Year_1,MATCH('Mortality trends'!AG$7,Ages_group,0))/'Mortality rates at t0'!AG15-1) -> -0.1030368832 | AH15: =IF('Mortality rates at t0'!AH15=0,0,OFFSET(INDIRECT("'Forecasts " & $AB15 & "'!AA17"),Year_max-Year_1,MATCH('Mortality trends'!AH$7,Ages_group,0))/'Mortality rates at t0'!AH15-1) -> -0.2356529612 | AI15: =IF('Mortality rates at t0'!AI15=0,0,OFFSET(INDIRECT("'Forecasts " & $AB15 & "'!AA17"),Year_max-Year_1,MATCH('Mortality trends'!AI$7,Ages_group,0))/'Mortality rates at t0'!AI15-1) -> -0.006499425017 | AJ15: =IF('Mortality rates at t0'!AJ15=0,0,OFFSET(INDIRECT("'Forecasts " & $AB15 & "'!AA17"),Year_max-Year_1,MATCH('Mortality trends'!AJ$7,Ages_group,0))/'Mortality rates at t0'!AJ15-1) -> 0.08499542544 | AK15: =IF('Mortality rates at t0'!AK15=0,0,OFFSET(INDIRECT("'Forecasts " & $AB15 & "'!AA17"),Year_max-Year_1,MATCH('Mortality trends'!AK$7,Ages_group,0))/'Mortality rates at t0'!AK15-1) -> 0.01328560256 | AL15: =IF('Mortality rates at t0'!AL15=0,0,OFFSET(INDIRECT("'Forecasts " & $AB15 & "'!AA17"),Year_max-Year_1,MATCH('Mortality trends'!AL$7,Ages_group,0))/'Mortality rates at t0'!AL15-1) -> -0.02554801343 | AM15: =IF('Mortality rates at t0'!AM15=0,0,OFFSET(INDIRECT("'Forecasts " & $AB15 & "'!AA17"),Year_max-Year_1,MATCH('Mortality trends'!AM$7,Ages_group,0))/'Mortality rates at t0'!AM15-1) -> -0.09874571335 | AN15: =IF('Mortality rates at t0'!AN15=0,0,OFFSET(INDIRECT("'Forecasts " & $AB15 & "'!AA17"),Year_max-Year_1,MATCH('Mortality trends'!AN$7,Ages_group,0))/'Mortality rates at t0'!AN15-1) -> -0.05899754225 | AO15: =IF('Mortality rates at t0'!AO15=0,0,OFFSET(INDIRECT("'Forecasts " & $AB15 & "'!AA17"),Year_max-Year_1,MATCH('Mortality trends'!AO$7,Ages_group,0))/'Mortality rates at t0'!AO15-1) -> 0.07511166342 | AP15: =IF('Mortality rates at t0'!AP15=0,0,OFFSET(INDIRECT("'Forecasts " & $AB15 & "'!AA17"),Year_max-Year_1,MATCH('Mortality trends'!AP$7,Ages_group,0))/'Mortality rates at t0'!AP15-1) -> 0.003578948526 | AQ15: =IF('Mortality rates at t0'!AQ15=0,0,OFFSET(INDIRECT("'Forecasts " & $AB15 & "'!AA17"),Year_max-Year_1,MATCH('Mortality trends'!AQ$7,Ages_group,0))/'Mortality rates at t0'!AQ15-1) -> -0.0647856701 | AR15: =IF('Mortality rates at t0'!AR15=0,0,OFFSET(INDIRECT("'Forecasts " & $AB15 & "'!AA17"),Year_max-Year_1,MATCH('Mortality trends'!AR$7,Ages_group,0))/'Mortality rates at t0'!AR15-1) -> -0.1079362078 | AS15: =IF('Mortality rates at t0'!AS15=0,0,OFFSET(INDIRECT("'Forecasts " & $AB15 & "'!AA17"),Year_max-Year_1,MATCH('Mortality trends'!AS$7,Ages_group,0))/'Mortality rates at t0'!AS15-1) -> -0.1042479541 | AT15: =IF('Mortality rates at t0'!AT15=0,0,OFFSET(INDIRECT("'Forecasts " & $AB15 & "'!AA17"),Year_max-Year_1,MATCH('Mortality trends'!AT$7,Ages_group,0))/'Mortality rates at t0'!AT15-1) -> -0.1018479929 | AU15: =IF('Mortality rates at t0'!AU15=0,0,OFFSET(INDIRECT("'Forecasts " & $AB15 & "'!AA17"),Year_max-Year_1,MATCH('Mortality trends'!AU$7,Ages_group,0))/'Mortality rates at t0'!AU15-1) -> -0.1117512425 | AV15: =IF('Mortality rates at t0'!AV15=0,0,OFFSET(INDIRECT("'Forecasts " & $AB15 & "'!AA17"),Year_max-Year_1,MATCH('Mortality trends'!AV$7,Ages_group,0))/'Mortality rates at t0'!AV15-1) -> -0.1214195906 | AW15: =IF('Mortality rates at t0'!AW15=0,0,OFFSET(INDIRECT("'Forecasts " & $AB15 & "'!AA17"),Year_max-Year_1,MATCH('Mortality trends'!AW$7,Ages_group,0))/'Mortality rates at t0'!AW15-1) -> -0.08868445633 | AX15: =IF('Mortality rates at t0'!AX15=0,0,OFFSET(INDIRECT("'Forecasts " & $AB15 & "'!AA17"),Year_max-Year_1,MATCH('Mortality trends'!AX$7,Ages_group,0))/'Mortality rates at t0'!AX15-1) -> -0.03738236338
C16: Drug | E16: =IF('Mortality rates at t0'!E16=0,0,OFFSET(INDIRECT("'Forecasts " & $C16 & "'!C17"),Year_max-Year_0,MATCH('Mortality trends'!E$7,Ages_group,0))/'Mortality rates at t0'!E16-1) -> 0 | F16: =IF('Mortality rates at t0'!F16=0,0,OFFSET(INDIRECT("'Forecasts " & $C16 & "'!C17"),Year_max-Year_0,MATCH('Mortality trends'!F$7,Ages_group,0))/'Mortality rates at t0'!F16-1) -> 0 | G16: =IF('Mortality rates at t0'!G16=0,0,OFFSET(INDIRECT("'Forecasts " & $C16 & "'!C17"),Year_max-Year_0,MATCH('Mortality trends'!G$7,Ages_group,0))/'Mortality rates at t0'!G16-1) -> -0.5 | H16: =IF('Mortality rates at t0'!H16=0,0,OFFSET(INDIRECT("'Forecasts " & $C16 & "'!C17"),Year_max-Year_0,MATCH('Mortality trends'!H$7,Ages_group,0))/'Mortality rates at t0'!H16-1) -> 0 | I16: =IF('Mortality rates at t0'!I16=0,0,OFFSET(INDIRECT("'Forecasts " & $C16 & "'!C17"),Year_max-Year_0,MATCH('Mortality trends'!I$7,Ages_group,0))/'Mortality rates at t0'!I16-1) -> -0.5 | J16: =IF('Mortality rates at t0'!J16=0,0,OFFSET(INDIRECT("'Forecasts " & $C16 & "'!C17"),Year_max-Year_0,MATCH('Mortality trends'!J$7,Ages_group,0))/'Mortality rates at t0'!J16-1) -> -0.5 | K16: =IF('Mortality rates at t0'!K16=0,0,OFFSET(INDIRECT("'Forecasts " & $C16 & "'!C17"),Year_max-Year_0,MATCH('Mortality trends'!K$7,Ages_group,0))/'Mortality rates at t0'!K16-1) -> -0.5 | L16: =IF('Mortality rates at t0'!L16=0,0,OFFSET(INDIRECT("'Forecasts " & $C16 & "'!C17"),Year_max-Year_0,MATCH('Mortality trends'!L$7,Ages_group,0))/'Mortality rates at t0'!L16-1) -> -0.5 | M16: =IF('Mortality rates at t0'!M16=0,0,OFFSET(INDIRECT("'Forecasts " & $C16 & "'!C17"),Year_max-Year_0,MATCH('Mortality trends'!M$7,Ages_group,0))/'Mortality rates at t0'!M16-1) -> -0.5 | N16: =IF('Mortality rates at t0'!N16=0,0,OFFSET(INDIRECT("'Forecasts " & $C16 & "'!C17"),Year_max-Year_0,MATCH('Mortality trends'!N$7,Ages_group,0))/'Mortality rates at t0'!N16-1) -> -0.5 | O16: =IF('Mortality rates at t0'!O16=0,0,OFFSET(INDIRECT("'Forecasts " & $C16 & "'!C17"),Year_max-Year_0,MATCH('Mortality trends'!O$7,Ages_group,0))/'Mortality rates at t0'!O16-1) -> -0.5 | P16: =IF('Mortality rates at t0'!P16=0,0,OFFSET(INDIRECT("'Forecasts " & $C16 & "'!C17"),Year_max-Year_0,MATCH('Mortality trends'!P$7,Ages_group,0))/'Mortality rates at t0'!P16-1) -> -0.5 | Q16: =IF('Mortality rates at t0'!Q16=0,0,OFFSET(INDIRECT("'Forecasts " & $C16 & "'!C17"),Year_max-Year_0,MATCH('Mortality trends'!Q$7,Ages_group,0))/'Mortality rates at t0'!Q16-1) -> -0.5 | R16: =IF('Mortality rates at t0'!R16=0,0,OFFSET(INDIRECT("'Forecasts " & $C16 & "'!C17"),Year_max-Year_0,MATCH('Mortality trends'!R$7,Ages_group,0))/'Mortality rates at t0'!R16-1) -> -0.5 | S16: =IF('Mortality rates at t0'!S16=0,0,OFFSET(INDIRECT("'Forecasts " & $C16 & "'!C17"),Year_max-Year_0,MATCH('Mortality trends'!S$7,Ages_group,0))/'Mortality rates at t0'!S16-1) -> -0.5 | T16: =IF('Mortality rates at t0'!T16=0,0,OFFSET(INDIRECT("'Forecasts " & $C16 & "'!C17"),Year_max-Year_0,MATCH('Mortality trends'!T$7,Ages_group,0))/'Mortality rates at t0'!T16-1) -> 0 | U16: =IF('Mortality rates at t0'!U16=0,0,OFFSET(INDIRECT("'Forecasts " & $C16 & "'!C17"),Year_max-Year_0,MATCH('Mortality trends'!U$7,Ages_group,0))/'Mortality rates at t0'!U16-1) -> 0 | V16: =IF('Mortality rates at t0'!V16=0,0,OFFSET(INDIRECT("'Forecasts " & $C16 & "'!C17"),Year_max-Year_0,MATCH('Mortality trends'!V$7,Ages_group,0))/'Mortality rates at t0'!V16-1) -> 0 | W16: =IF('Mortality rates at t0'!W16=0,0,OFFSET(INDIRECT("'Forecasts " & $C16 & "'!C17"),Year_max-Year_0,MATCH('Mortality trends'!W$7,Ages_group,0))/'Mortality rates at t0'!W16-1) -> 0 | X16: =IF('Mortality rates at t0'!X16=0,0,OFFSET(INDIRECT("'Forecasts " & $C16 & "'!C17"),Year_max-Year_0,MATCH('Mortality trends'!X$7,Ages_group,0))/'Mortality rates at t0'!X16-1) -> 0 | Y16: =IF('Mortality rates at t0'!Y16=0,0,OFFSET(INDIRECT("'Forecasts " & $C16 & "'!C17"),Year_max-Year_0,MATCH('Mortality trends'!Y$7,Ages_group,0))/'Mortality rates at t0'!Y16-1) -> 0 | AB16: Drug | AD16: =IF('Mortality rates at t0'!AD16=0,0,OFFSET(INDIRECT("'Forecasts " & $AB16 & "'!AA17"),Year_max-Year_1,MATCH('Mortality trends'!AD$7,Ages_group,0))/'Mortality rates at t0'!AD16-1) -> 0 | AE16: =IF('Mortality rates at t0'!AE16=0,0,OFFSET(INDIRECT("'Forecasts " & $AB16 & "'!AA17"),Year_max-Year_1,MATCH('Mortality trends'!AE$7,Ages_group,0))/'Mortality rates at t0'!AE16-1) -> 0 | AF16: =IF('Mortality rates at t0'!AF16=0,0,OFFSET(INDIRECT("'Forecasts " & $AB16 & "'!AA17"),Year_max-Year_1,MATCH('Mortality trends'!AF$7,Ages_group,0))/'Mortality rates at t0'!AF16-1) -> 0 | AG16: =IF('Mortality rates at t0'!AG16=0,0,OFFSET(INDIRECT("'Forecasts " & $AB16 & "'!AA17"),Year_max-Year_1,MATCH('Mortality trends'!AG$7,Ages_group,0))/'Mortality rates at t0'!AG16-1) -> 0 | AH16: =IF('Mortality rates at t0'!AH16=0,0,OFFSET(INDIRECT("'Forecasts " & $AB16 & "'!AA17"),Year_max-Year_1,MATCH('Mortality trends'!AH$7,Ages_group,0))/'Mortality rates at t0'!AH16-1) -> -0.4189848878 | AI16: =IF('Mortality rates at t0'!AI16=0,0,OFFSET(INDIRECT("'Forecasts " & $AB16 & "'!AA17"),Year_max-Year_1,MATCH('Mortality trends'!AI$7,Ages_group,0))/'Mortality rates at t0'!AI16-1) -> -0.4189848878 | AJ16: =IF('Mortality rates at t0'!AJ16=0,0,OFFSET(INDIRECT("'Forecasts " & $AB16 & "'!AA17"),Year_max-Year_1,MATCH('Mortality trends'!AJ$7,Ages_group,0))/'Mortality rates at t0'!AJ16-1) -> -0.4189848878 | AK16: =IF('Mortality rates at t0'!AK16=0,0,OFFSET(INDIRECT("'Forecasts " & $AB16 & "'!AA17"),Year_max-Year_1,MATCH('Mortality trends'!AK$7,Ages_group,0))/'Mortality rates at t0'!AK16-1) -> -0.4189848878 | AL16: =IF('Mortality rates at t0'!AL16=0,0,OFFSET(INDIRECT("'Forecasts " & $AB16 & "'!AA17"),Year_max-Year_1,MATCH('Mortality trends'!AL$7,Ages_group,0))/'Mortality rates at t0'!AL16-1) -> -0.4189848878 | AM16: =IF('Mortality rates at t0'!AM16=0,0,OFFSET(INDIRECT("'Forecasts " & $AB16 & "'!AA17"),Year_max-Year_1,MATCH('Mortality trends'!AM$7,Ages_group,0))/'Mortality rates at t0'!AM16-1) -> -0.4189848878 | AN16: =IF('Mortality rates at t0'!AN16=0,0,OFFSET(INDIRECT("'Forecasts " & $AB16 & "'!AA17"),Year_max-Year_1,MATCH('Mortality trends'!AN$7,Ages_group,0))/'Mortality rates at t0'!AN16-1) -> -0.4189848878 | AO16: =IF('Mortality rates at t0'!AO16=0,0,OFFSET(INDIRECT("'Forecasts " & $AB16 & "'!AA17"),Year_max-Year_1,MATCH('Mortality trends'!AO$7,Ages_group,0))/'Mortality rates at t0'!AO16-1) -> -0.4189848878 | AP16: =IF('Mortality rates at t0'!AP16=0,0,OFFSET(INDIRECT("'Forecasts " & $AB16 & "'!AA17"),Year_max-Year_1,MATCH('Mortality trends'!AP$7,Ages_group,0))/'Mortality rates at t0'!AP16-1) -> -0.4189848878 | AQ16: =IF('Mortality rates at t0'!AQ16=0,0,OFFSET(INDIRECT("'Forecasts " & $AB16 & "'!AA17"),Year_max-Year_1,MATCH('Mortality trends'!AQ$7,Ages_group,0))/'Mortality rates at t0'!AQ16-1) -> -0.4189848878 | AR16: =IF('Mortality rates at t0'!AR16=0,0,OFFSET(INDIRECT("'Forecasts " & $AB16 & "'!AA17"),Year_max-Year_1,MATCH('Mortality trends'!AR$7,Ages_group,0))/'Mortality rates at t0'!AR16-1) -> -0.4189848878 | AS16: =IF('Mortality rates at t0'!AS16=0,0,OFFSET(INDIRECT("'Forecasts " & $AB16 & "'!AA17"),Year_max-Year_1,MATCH('Mortality trends'!AS$7,Ages_group,0))/'Mortality rates at t0'!AS16-1) -> 0 | AT16: =IF('Mortality rates at t0'!AT16=0,0,OFFSET(INDIRECT("'Forecasts " & $AB16 & "'!AA17"),Year_max-Year_1,MATCH('Mortality trends'!AT$7,Ages_group,0))/'Mortality rates at t0'!AT16-1) -> 0 | AU16: =IF('Mortality rates at t0'!AU16=0,0,OFFSET(INDIRECT("'Forecasts " & $AB16 & "'!AA17"),Year_max-Year_1,MATCH('Mortality trends'!AU$7,Ages_group,0))/'Mortality rates at t0'!AU16-1) -> 0 | AV16: =IF('Mortality rates at t0'!AV16=0,0,OFFSET(INDIRECT("'Forecasts " & $AB16 & "'!AA17"),Year_max-Year_1,MATCH('Mortality trends'!AV$7,Ages_group,0))/'Mortality rates at t0'!AV16-1) -> 0 | AW16: =IF('Mortality rates at t0'!AW16=0,0,OFFSET(INDIRECT("'Forecasts " & $AB16 & "'!AA17"),Year_max-Year_1,MATCH('Mortality trends'!AW$7,Ages_group,0))/'Mortality rates at t0'!AW16-1) -> 0 | AX16: =IF('Mortality rates at t0'!AX16=0,0,OFFSET(INDIRECT("'Forecasts " & $AB16 & "'!AA17"),Year_max-Year_1,MATCH('Mortality trends'!AX$7,Ages_group,0))/'Mortality rates at t0'!AX16-1) -> 0
C17: External | E17: =IF('Mortality rates at t0'!E17=0,0,OFFSET(INDIRECT("'Forecasts " & $C17 & "'!C17"),Year_max-Year_0,MATCH('Mortality trends'!E$7,Ages_group,0))/'Mortality rates at t0'!E17-1) -> -0.02523294091 | F17: =IF('Mortality rates at t0'!F17=0,0,OFFSET(INDIRECT("'Forecasts " & $C17 & "'!C17"),Year_max-Year_0,MATCH('Mortality trends'!F$7,Ages_group,0))/'Mortality rates at t0'!F17-1) -> 0.04423033541 | G17: =IF('Mortality rates at t0'!G17=0,0,OFFSET(INDIRECT("'Forecasts " & $C17 & "'!C17"),Year_max-Year_0,MATCH('Mortality trends'!G$7,Ages_group,0))/'Mortality rates at t0'!G17-1) -> 0.1056888935 | H17: =IF('Mortality rates at t0'!H17=0,0,OFFSET(INDIRECT("'Forecasts " & $C17 & "'!C17"),Year_max-Year_0,MATCH('Mortality trends'!H$7,Ages_group,0))/'Mortality rates at t0'!H17-1) -> 0.09660247636 | I17: =IF('Mortality rates at t0'!I17=0,0,OFFSET(INDIRECT("'Forecasts " & $C17 & "'!C17"),Year_max-Year_0,MATCH('Mortality trends'!I$7,Ages_group,0))/'Mortality rates at t0'!I17-1) -> 0.09435566481 | J17: =IF('Mortality rates at t0'!J17=0,0,OFFSET(INDIRECT("'Forecasts " & $C17 & "'!C17"),Year_max-Year_0,MATCH('Mortality trends'!J$7,Ages_group,0))/'Mortality rates at t0'!J17-1) -> 0.05350679 | K17: =IF('Mortality rates at t0'!K17=0,0,OFFSET(INDIRECT("'Forecasts " & $C17 & "'!C17"),Year_max-Year_0,MATCH('Mortality trends'!K$7,Ages_group,0))/'Mortality rates at t0'!K17-1) -> 0.02761944517 | L17: =IF('Mortality rates at t0'!L17=0,0,OFFSET(INDIRECT("'Forecasts " & $C17 & "'!C17"),Year_max-Year_0,MATCH('Mortality trends'!L$7,Ages_group,0))/'Mortality rates at t0'!L17-1) -> 0.01583484607 | M17: =IF('Mortality rates at t0'!M17=0,0,OFFSET(INDIRECT("'Forecasts " & $C17 & "'!C17"),Year_max-Year_0,MATCH('Mortality trends'!M$7,Ages_group,0))/'Mortality rates at t0'!M17-1) -> 0.02732963279 | N17: =IF('Mortality rates at t0'!N17=0,0,OFFSET(INDIRECT("'Forecasts " & $C17 & "'!C17"),Year_max-Year_0,MATCH('Mortality trends'!N$7,Ages_group,0))/'Mortality rates at t0'!N17-1) -> 0.03535465174 | O17: =IF('Mortality rates at t0'!O17=0,0,OFFSET(INDIRECT("'Forecasts " & $C17 & "'!C17"),Year_max-Year_0,MATCH('Mortality trends'!O$7,Ages_group,0))/'Mortality rates at t0'!O17-1) -> 0.01729975732 | P17: =IF('Mortality rates at t0'!P17=0,0,OFFSET(INDIRECT("'Forecasts " & $C17 & "'!C17"),Year_max-Year_0,MATCH('Mortality trends'!P$7,Ages_group,0))/'Mortality rates at t0'!P17-1) -> -0.01442843321 | Q17: =IF('Mortality rates at t0'!Q17=0,0,OFFSET(INDIRECT("'Forecasts " & $C17 & "'!C17"),Year_max-Year_0,MATCH('Mortality trends'!Q$7,Ages_group,0))/'Mortality rates at t0'!Q17-1) -> -0.02704682089 | R17: =IF('Mortality rates at t0'!R17=0,0,OFFSET(INDIRECT("'Forecasts " & $C17 & "'!C17"),Year_max-Year_0,MATCH('Mortality trends'!R$7,Ages_group,0))/'Mortality rates at t0'!R17-1) -> -0.01473825057 | S17: =IF('Mortality rates at t0'!S17=0,0,OFFSET(INDIRECT("'Forecasts " & $C17 & "'!C17"),Year_max-Year_0,MATCH('Mortality trends'!S$7,Ages_group,0))/'Mortality rates at t0'!S17-1) -> -0.004756381144 | T17: =IF('Mortality rates at t0'!T17=0,0,OFFSET(INDIRECT("'Forecasts " & $C17 & "'!C17"),Year_max-Year_0,MATCH('Mortality trends'!T$7,Ages_group,0))/'Mortality rates at t0'!T17-1) -> 0.004272871142 | U17: =IF('Mortality rates at t0'!U17=0,0,OFFSET(INDIRECT("'Forecasts " & $C17 & "'!C17"),Year_max-Year_0,MATCH('Mortality trends'!U$7,Ages_group,0))/'Mortality rates at t0'!U17-1) -> 0.01093375365 | V17: =IF('Mortality rates at t0'!V17=0,0,OFFSET(INDIRECT("'Forecasts " & $C17 & "'!C17"),Year_max-Year_0,MATCH('Mortality trends'!V$7,Ages_group,0))/'Mortality rates at t0'!V17-1) -> 0.00770694292 | W17: =IF('Mortality rates at t0'!W17=0,0,OFFSET(INDIRECT("'Forecasts " & $C17 & "'!C17"),Year_max-Year_0,MATCH('Mortality trends'!W$7,Ages_group,0))/'Mortality rates at t0'!W17-1) -> 0.01031328082 | X17: =IF('Mortality rates at t0'!X17=0,0,OFFSET(INDIRECT("'Forecasts " & $C17 & "'!C17"),Year_max-Year_0,MATCH('Mortality trends'!X$7,Ages_group,0))/'Mortality rates at t0'!X17-1) -> 0.0002558053214 | Y17: =IF('Mortality rates at t0'!Y17=0,0,OFFSET(INDIRECT("'Forecasts " & $C17 & "'!C17"),Year_max-Year_0,MATCH('Mortality trends'!Y$7,Ages_group,0))/'Mortality rates at t0'!Y17-1) -> -0.01964326542 | AB17: External | AD17: =IF('Mortality rates at t0'!AD17=0,0,OFFSET(INDIRECT("'Forecasts " & $AB17 & "'!AA17"),Year_max-Year_1,MATCH('Mortality trends'!AD$7,Ages_group,0))/'Mortality rates at t0'!AD17-1) -> -0.02535046731 | AE17: =IF('Mortality rates at t0'!AE17=0,0,OFFSET(INDIRECT("'Forecasts " & $AB17 & "'!AA17"),Year_max-Year_1,MATCH('Mortality trends'!AE$7,Ages_group,0))/'Mortality rates at t0'!AE17-1) -> 0.04444358294 | AF17: =IF('Mortality rates at t0'!AF17=0,0,OFFSET(INDIRECT("'Forecasts " & $AB17 & "'!AA17"),Year_max-Year_1,MATCH('Mortality trends'!AF$7,Ages_group,0))/'Mortality rates at t0'!AF17-1) -> 0.1062131228 | AG17: =IF('Mortality rates at t0'!AG17=0,0,OFFSET(INDIRECT("'Forecasts " & $AB17 & "'!AA17"),Year_max-Year_1,MATCH('Mortality trends'!AG$7,Ages_group,0))/'Mortality rates at t0'!AG17-1) -> 0.09707968538 | AH17: =IF('Mortality rates at t0'!AH17=0,0,OFFSET(INDIRECT("'Forecasts " & $AB17 & "'!AA17"),Year_max-Year_1,MATCH('Mortality trends'!AH$7,Ages_group,0))/'Mortality rates at t0'!AH17-1) -> 0.09482130202 | AI17: =IF('Mortality rates at t0'!AI17=0,0,OFFSET(INDIRECT("'Forecasts " & $AB17 & "'!AA17"),Year_max-Year_1,MATCH('Mortality trends'!AI$7,Ages_group,0))/'Mortality rates at t0'!AI17-1) -> 0.05376590167 | AJ17: =IF('Mortality rates at t0'!AJ17=0,0,OFFSET(INDIRECT("'Forecasts " & $AB17 & "'!AA17"),Year_max-Year_1,MATCH('Mortality trends'!AJ$7,Ages_group,0))/'Mortality rates at t0'!AJ17-1) -> 0.02775154454 | AK17: =IF('Mortality rates at t0'!AK17=0,0,OFFSET(INDIRECT("'Forecasts " & $AB17 & "'!AA17"),Year_max-Year_1,MATCH('Mortality trends'!AK$7,Ages_group,0))/'Mortality rates at t0'!AK17-1) -> 0.01591014559 | AL17: =IF('Mortality rates at t0'!AL17=0,0,OFFSET(INDIRECT("'Forecasts " & $AB17 & "'!AA17"),Year_max-Year_1,MATCH('Mortality trends'!AL$7,Ages_group,0))/'Mortality rates at t0'!AL17-1) -> 0.0274603276 | AM17: =IF('Mortality rates at t0'!AM17=0,0,OFFSET(INDIRECT("'Forecasts " & $AB17 & "'!AA17"),Year_max-Year_1,MATCH('Mortality trends'!AM$7,Ages_group,0))/'Mortality rates at t0'!AM17-1) -> 0.0355243823 | AN17: =IF('Mortality rates at t0'!AN17=0,0,OFFSET(INDIRECT("'Forecasts " & $AB17 & "'!AA17"),Year_max-Year_1,MATCH('Mortality trends'!AN$7,Ages_group,0))/'Mortality rates at t0'!AN17-1) -> 0.01738208235 | AO17: =IF('Mortality rates at t0'!AO17=0,0,OFFSET(INDIRECT("'Forecasts " & $AB17 & "'!AA17"),Year_max-Year_1,MATCH('Mortality trends'!AO$7,Ages_group,0))/'Mortality rates at t0'!AO17-1) -> -0.01449601034 | AP17: =IF('Mortality rates at t0'!AP17=0,0,OFFSET(INDIRECT("'Forecasts " & $AB17 & "'!AA17"),Year_max-Year_1,MATCH('Mortality trends'!AP$7,Ages_group,0))/'Mortality rates at t0'!AP17-1) -> -0.0271726774 | AQ17: =IF('Mortality rates at t0'!AQ17=0,0,OFFSET(INDIRECT("'Forecasts " & $AB17 & "'!AA17"),Year_max-Year_1,MATCH('Mortality trends'!AQ$7,Ages_group,0))/'Mortality rates at t0'!AQ17-1) -> -0.01480726783 | AR17: =IF('Mortality rates at t0'!AR17=0,0,OFFSET(INDIRECT("'Forecasts " & $AB17 & "'!AA17"),Year_max-Year_1,MATCH('Mortality trends'!AR$7,Ages_group,0))/'Mortality rates at t0'!AR17-1) -> -0.004778767904 | AS17: =IF('Mortality rates at t0'!AS17=0,0,OFFSET(INDIRECT("'Forecasts " & $AB17 & "'!AA17"),Year_max-Year_1,MATCH('Mortality trends'!AS$7,Ages_group,0))/'Mortality rates at t0'!AS17-1) -> 0.004293073631 | AT17: =IF('Mortality rates at t0'!AT17=0,0,OFFSET(INDIRECT("'Forecasts " & $AB17 & "'!AA17"),Year_max-Year_1,MATCH('Mortality trends'!AT$7,Ages_group,0))/'Mortality rates at t0'!AT17-1) -> 0.01098562109 | AU17: =IF('Mortality rates at t0'!AU17=0,0,OFFSET(INDIRECT("'Forecasts " & $AB17 & "'!AA17"),Year_max-Year_1,MATCH('Mortality trends'!AU$7,Ages_group,0))/'Mortality rates at t0'!AU17-1) -> 0.007743444464 | AV17: =IF('Mortality rates at t0'!AV17=0,0,OFFSET(INDIRECT("'Forecasts " & $AB17 & "'!AA17"),Year_max-Year_1,MATCH('Mortality trends'!AV$7,Ages_group,0))/'Mortality rates at t0'!AV17-1) -> 0.0103621898 | AW17: =IF('Mortality rates at t0'!AW17=0,0,OFFSET(INDIRECT("'Forecasts " & $AB17 & "'!AA17"),Year_max-Year_1,MATCH('Mortality trends'!AW$7,Ages_group,0))/'Mortality rates at t0'!AW17-1) -> 0.0002570123583 | AX17: =IF('Mortality rates at t0'!AX17=0,0,OFFSET(INDIRECT("'Forecasts " & $AB17 & "'!AA17"),Year_max-Year_1,MATCH('Mortality trends'!AX$7,Ages_group,0))/'Mortality rates at t0'!AX17-1) -> -0.01973502121
C18: Other | E18: =IF('Mortality rates at t0'!E18=0,0,OFFSET(INDIRECT("'Forecasts " & $C18 & "'!C17"),Year_max-Year_0,MATCH('Mortality trends'!E$7,Ages_group,0))/'Mortality rates at t0'!E18-1) -> -0.1309705483 | F18: =IF('Mortality rates at t0'!F18=0,0,OFFSET(INDIRECT("'Forecasts " & $C18 & "'!C17"),Year_max-Year_0,MATCH('Mortality trends'!F$7,Ages_group,0))/'Mortality rates at t0'!F18-1) -> -0.1808267581 | G18: =IF('Mortality rates at t0'!G18=0,0,OFFSET(INDIRECT("'Forecasts " & $C18 & "'!C17"),Year_max-Year_0,MATCH('Mortality trends'!G$7,Ages_group,0))/'Mortality rates at t0'!G18-1) -> -0.07589535081 | H18: =IF('Mortality rates at t0'!H18=0,0,OFFSET(INDIRECT("'Forecasts " & $C18 & "'!C17"),Year_max-Year_0,MATCH('Mortality trends'!H$7,Ages_group,0))/'Mortality rates at t0'!H18-1) -> -0.1690304093 | I18: =IF('Mortality rates at t0'!I18=0,0,OFFSET(INDIRECT("'Forecasts " & $C18 & "'!C17"),Year_max-Year_0,MATCH('Mortality trends'!I$7,Ages_group,0))/'Mortality rates at t0'!I18-1) -> -0.1181562787 | J18: =IF('Mortality rates at t0'!J18=0,0,OFFSET(INDIRECT("'Forecasts " & $C18 & "'!C17"),Year_max-Year_0,MATCH('Mortality trends'!J$7,Ages_group,0))/'Mortality rates at t0'!J18-1) -> -0.0363738626 | K18: =IF('Mortality rates at t0'!K18=0,0,OFFSET(INDIRECT("'Forecasts " & $C18 & "'!C17"),Year_max-Year_0,MATCH('Mortality trends'!K$7,Ages_group,0))/'Mortality rates at t0'!K18-1) -> -0.0778412443 | L18: =IF('Mortality rates at t0'!L18=0,0,OFFSET(INDIRECT("'Forecasts " & $C18 & "'!C17"),Year_max-Year_0,MATCH('Mortality trends'!L$7,Ages_group,0))/'Mortality rates at t0'!L18-1) -> -0.2199877869 | M18: =IF('Mortality rates at t0'!M18=0,0,OFFSET(INDIRECT("'Forecasts " & $C18 & "'!C17"),Year_max-Year_0,MATCH('Mortality trends'!M$7,Ages_group,0))/'Mortality rates at t0'!M18-1) -> -0.3232797562 | N18: =IF('Mortality rates at t0'!N18=0,0,OFFSET(INDIRECT("'Forecasts " & $C18 & "'!C17"),Year_max-Year_0,MATCH('Mortality trends'!N$7,Ages_group,0))/'Mortality rates at t0'!N18-1) -> -0.2812291466 | O18: =IF('Mortality rates at t0'!O18=0,0,OFFSET(INDIRECT("'Forecasts " & $C18 & "'!C17"),Year_max-Year_0,MATCH('Mortality trends'!O$7,Ages_group,0))/'Mortality rates at t0'!O18-1) -> -0.1881223094 | P18: =IF('Mortality rates at t0'!P18=0,0,OFFSET(INDIRECT("'Forecasts " & $C18 & "'!C17"),Year_max-Year_0,MATCH('Mortality trends'!P$7,Ages_group,0))/'Mortality rates at t0'!P18-1) -> -0.03752199988 | Q18: =IF('Mortality rates at t0'!Q18=0,0,OFFSET(INDIRECT("'Forecasts " & $C18 & "'!C17"),Year_max-Year_0,MATCH('Mortality trends'!Q$7,Ages_group,0))/'Mortality rates at t0'!Q18-1) -> 0.12267286 | R18: =IF('Mortality rates at t0'!R18=0,0,OFFSET(INDIRECT("'Forecasts " & $C18 & "'!C17"),Year_max-Year_0,MATCH('Mortality trends'!R$7,Ages_group,0))/'Mortality rates at t0'!R18-1) -> 0.1312917635 | S18: =IF('Mortality rates at t0'!S18=0,0,OFFSET(INDIRECT("'Forecasts " & $C18 & "'!C17"),Year_max-Year_0,MATCH('Mortality trends'!S$7,Ages_group,0))/'Mortality rates at t0'!S18-1) -> 0.02516977618 | T18: =IF('Mortality rates at t0'!T18=0,0,OFFSET(INDIRECT("'Forecasts " & $C18 & "'!C17"),Year_max-Year_0,MATCH('Mortality trends'!T$7,Ages_group,0))/'Mortality rates at t0'!T18-1) -> -0.02642502671 | U18: =IF('Mortality rates at t0'!U18=0,0,OFFSET(INDIRECT("'Forecasts " & $C18 & "'!C17"),Year_max-Year_0,MATCH('Mortality trends'!U$7,Ages_group,0))/'Mortality rates at t0'!U18-1) -> -0.04884975279 | V18: =IF('Mortality rates at t0'!V18=0,0,OFFSET(INDIRECT("'Forecasts " & $C18 & "'!C17"),Year_max-Year_0,MATCH('Mortality trends'!V$7,Ages_group,0))/'Mortality rates at t0'!V18-1) -> -0.08956463488 | W18: =IF('Mortality rates at t0'!W18=0,0,OFFSET(INDIRECT("'Forecasts " & $C18 & "'!C17"),Year_max-Year_0,MATCH('Mortality trends'!W$7,Ages_group,0))/'Mortality rates at t0'!W18-1) -> -0.1243859764 | X18: =IF('Mortality rates at t0'!X18=0,0,OFFSET(INDIRECT("'Forecasts " & $C18 & "'!C17"),Year_max-Year_0,MATCH('Mortality trends'!X$7,Ages_group,0))/'Mortality rates at t0'!X18-1) -> -0.1211486686 | Y18: =IF('Mortality rates at t0'!Y18=0,0,OFFSET(INDIRECT("'Forecasts " & $C18 & "'!C17"),Year_max-Year_0,MATCH('Mortality trends'!Y$7,Ages_group,0))/'Mortality rates at t0'!Y18-1) -> -0.115026353 | AB18: Other | AD18: =IF('Mortality rates at t0'!AD18=0,0,OFFSET(INDIRECT("'Forecasts " & $AB18 & "'!AA17"),Year_max-Year_1,MATCH('Mortality trends'!AD$7,Ages_group,0))/'Mortality rates at t0'!AD18-1) -> -0.1166054985 | AE18: =IF('Mortality rates at t0'!AE18=0,0,OFFSET(INDIRECT("'Forecasts " & $AB18 & "'!AA17"),Year_max-Year_1,MATCH('Mortality trends'!AE$7,Ages_group,0))/'Mortality rates at t0'!AE18-1) -> -0.1615201057 | AF18: =IF('Mortality rates at t0'!AF18=0,0,OFFSET(INDIRECT("'Forecasts " & $AB18 & "'!AA17"),Year_max-Year_1,MATCH('Mortality trends'!AF$7,Ages_group,0))/'Mortality rates at t0'!AF18-1) -> -0.06733731504 | AG18: =IF('Mortality rates at t0'!AG18=0,0,OFFSET(INDIRECT("'Forecasts " & $AB18 & "'!AA17"),Year_max-Year_1,MATCH('Mortality trends'!AG$7,Ages_group,0))/'Mortality rates at t0'!AG18-1) -> -0.1508648278 | AH18: =IF('Mortality rates at t0'!AH18=0,0,OFFSET(INDIRECT("'Forecasts " & $AB18 & "'!AA17"),Year_max-Year_1,MATCH('Mortality trends'!AH$7,Ages_group,0))/'Mortality rates at t0'!AH18-1) -> -0.1051105861 | AI18: =IF('Mortality rates at t0'!AI18=0,0,OFFSET(INDIRECT("'Forecasts " & $AB18 & "'!AA17"),Year_max-Year_1,MATCH('Mortality trends'!AI$7,Ages_group,0))/'Mortality rates at t0'!AI18-1) -> -0.03219491733 | AJ18: =IF('Mortality rates at t0'!AJ18=0,0,OFFSET(INDIRECT("'Forecasts " & $AB18 & "'!AA17"),Year_max-Year_1,MATCH('Mortality trends'!AJ$7,Ages_group,0))/'Mortality rates at t0'!AJ18-1) -> -0.06907207601 | AK18: =IF('Mortality rates at t0'!AK18=0,0,OFFSET(INDIRECT("'Forecasts " & $AB18 & "'!AA17"),Year_max-Year_1,MATCH('Mortality trends'!AK$7,Ages_group,0))/'Mortality rates at t0'!AK18-1) -> -0.1970233019 | AL18: =IF('Mortality rates at t0'!AL18=0,0,OFFSET(INDIRECT("'Forecasts " & $AB18 & "'!AA17"),Year_max-Year_1,MATCH('Mortality trends'!AL$7,Ages_group,0))/'Mortality rates at t0'!AL18-1) -> -0.291702384 | AM18: =IF('Mortality rates at t0'!AM18=0,0,OFFSET(INDIRECT("'Forecasts " & $AB18 & "'!AA17"),Year_max-Year_1,MATCH('Mortality trends'!AM$7,Ages_group,0))/'Mortality rates at t0'!AM18-1) -> -0.2529677664 | AN18: =IF('Mortality rates at t0'!AN18=0,0,OFFSET(INDIRECT("'Forecasts " & $AB18 & "'!AA17"),Year_max-Year_1,MATCH('Mortality trends'!AN$7,Ages_group,0))/'Mortality rates at t0'!AN18-1) -> -0.1681189102 | AO18: =IF('Mortality rates at t0'!AO18=0,0,OFFSET(INDIRECT("'Forecasts " & $AB18 & "'!AA17"),Year_max-Year_1,MATCH('Mortality trends'!AO$7,Ages_group,0))/'Mortality rates at t0'!AO18-1) -> -0.03321343148 | AP18: =IF('Mortality rates at t0'!AP18=0,0,OFFSET(INDIRECT("'Forecasts " & $AB18 & "'!AA17"),Year_max-Year_1,MATCH('Mortality trends'!AP$7,Ages_group,0))/'Mortality rates at t0'!AP18-1) -> 0.1076029933 | AQ18: =IF('Mortality rates at t0'!AQ18=0,0,OFFSET(INDIRECT("'Forecasts " & $AB18 & "'!AA17"),Year_max-Year_1,MATCH('Mortality trends'!AQ$7,Ages_group,0))/'Mortality rates at t0'!AQ18-1) -> 0.1151097514 | AR18: =IF('Mortality rates at t0'!AR18=0,0,OFFSET(INDIRECT("'Forecasts " & $AB18 & "'!AA17"),Year_max-Year_1,MATCH('Mortality trends'!AR$7,Ages_group,0))/'Mortality rates at t0'!AR18-1) -> 0.02219781171 | AS18: =IF('Mortality rates at t0'!AS18=0,0,OFFSET(INDIRECT("'Forecasts " & $AB18 & "'!AA17"),Year_max-Year_1,MATCH('Mortality trends'!AS$7,Ages_group,0))/'Mortality rates at t0'!AS18-1) -> -0.02337520591 | AT18: =IF('Mortality rates at t0'!AT18=0,0,OFFSET(INDIRECT("'Forecasts " & $AB18 & "'!AA17"),Year_max-Year_1,MATCH('Mortality trends'!AT$7,Ages_group,0))/'Mortality rates at t0'!AT18-1) -> -0.04326993359 | AU18: =IF('Mortality rates at t0'!AU18=0,0,OFFSET(INDIRECT("'Forecasts " & $AB18 & "'!AA17"),Year_max-Year_1,MATCH('Mortality trends'!AU$7,Ages_group,0))/'Mortality rates at t0'!AU18-1) -> -0.07953254404 | AV18: =IF('Mortality rates at t0'!AV18=0,0,OFFSET(INDIRECT("'Forecasts " & $AB18 & "'!AA17"),Year_max-Year_1,MATCH('Mortality trends'!AV$7,Ages_group,0))/'Mortality rates at t0'!AV18-1) -> -0.1106964198 | AW18: =IF('Mortality rates at t0'!AW18=0,0,OFFSET(INDIRECT("'Forecasts " & $AB18 & "'!AA17"),Year_max-Year_1,MATCH('Mortality trends'!AW$7,Ages_group,0))/'Mortality rates at t0'!AW18-1) -> -0.1077931234 | AX18: =IF('Mortality rates at t0'!AX18=0,0,OFFSET(INDIRECT("'Forecasts " & $AB18 & "'!AA17"),Year_max-Year_1,MATCH('Mortality trends'!AX$7,Ages_group,0))/'Mortality rates at t0'!AX18-1) -> -0.1023058916
B20: sex | C20: F | E20: =TRANSPOSE(Ages_group) -> 0 | F20: 1 - 4 | G20: 5 - 9 | H20: 10 - 14 | I20: 15 - 19 | J20: 20 - 24 | K20: 25 - 29 | L20: 30 - 34 | M20: 35 - 39 | N20: 40 - 44 | O20: 45 - 49 | P20: 50 - 54 | Q20: 55 - 59 | R20: 60 - 64 | S20: 65 - 69 | T20: 70 - 74 | U20: 75 - 79 | V20: 80 - 84 | W20: 85 - 89 | X20: 90 - 94 | Y20: 95+ | AA20: sex | AB20: F | AD20: =TRANSPOSE(Ages_group) -> 0 | AE20: 1 - 4 | AF20: 5 - 9 | AG20: 10 - 14 | AH20: 15 - 19 | AI20: 20 - 24 | AJ20: 25 - 29 | AK20: 30 - 34 | AL20: 35 - 39 | AM20: 40 - 44 | AN20: 45 - 49 | AO20: 50 - 54 | AP20: 55 - 59 | AQ20: 60 - 64 | AR20: 65 - 69 | AS20: 70 - 74 | AT20: 75 - 79 | AU20: 80 - 84 | AV20: 85 - 89 | AW20: 90 - 94 | AX20: 95+
B21: cause | C21: =Causes -> Cardiovascular | E21: =IF('Mortality rates at t0'!E21=0,0,OFFSET(INDIRECT("'Forecasts " & $C21 & "'!C58"),Year_max-Year_0,MATCH('Mortality trends'!E$20,Ages_group,0))/'Mortality rates at t0'!E21-1) -> -0.1367811391 | F21: =IF('Mortality rates at t0'!F21=0,0,OFFSET(INDIRECT("'Forecasts " & $C21 & "'!C58"),Year_max-Year_0,MATCH('Mortality trends'!F$20,Ages_group,0))/'Mortality rates at t0'!F21-1) -> -0.04457062752 | G21: =IF('Mortality rates at t0'!G21=0,0,OFFSET(INDIRECT("'Forecasts " & $C21 & "'!C58"),Year_max-Year_0,MATCH('Mortality trends'!G$20,Ages_group,0))/'Mortality rates at t0'!G21-1) -> -0.07041265147 | H21: =IF('Mortality rates at t0'!H21=0,0,OFFSET(INDIRECT("'Forecasts " & $C21 & "'!C58"),Year_max-Year_0,MATCH('Mortality trends'!H$20,Ages_group,0))/'Mortality rates at t0'!H21-1) -> -0.1180873817 | I21: =IF('Mortality rates at t0'!I21=0,0,OFFSET(INDIRECT("'Forecasts " & $C21 & "'!C58"),Year_max-Year_0,MATCH('Mortality trends'!I$20,Ages_group,0))/'Mortality rates at t0'!I21-1) -> -0.09844439963 | J21: =IF('Mortality rates at t0'!J21=0,0,OFFSET(INDIRECT("'Forecasts " & $C21 & "'!C58"),Year_max-Year_0,MATCH('Mortality trends'!J$20,Ages_group,0))/'Mortality rates at t0'!J21-1) -> -0.07802437011 | K21: =IF('Mortality rates at t0'!K21=0,0,OFFSET(INDIRECT("'Forecasts " & $C21 & "'!C58"),Year_max-Year_0,MATCH('Mortality trends'!K$20,Ages_group,0))/'Mortality rates at t0'!K21-1) -> -0.03441875397 | L21: =IF('Mortality rates at t0'!L21=0,0,OFFSET(INDIRECT("'Forecasts " & $C21 & "'!C58"),Year_max-Year_0,MATCH('Mortality trends'!L$20,Ages_group,0))/'Mortality rates at t0'!L21-1) -> -0.01726613649 | M21: =IF('Mortality rates at t0'!M21=0,0,OFFSET(INDIRECT("'Forecasts " & $C21 & "'!C58"),Year_max-Year_0,MATCH('Mortality trends'!M$20,Ages_group,0))/'Mortality rates at t0'!M21-1) -> -0.0376758068 | N21: =IF('Mortality rates at t0'!N21=0,0,OFFSET(INDIRECT("'Forecasts " & $C21 & "'!C58"),Year_max-Year_0,MATCH('Mortality trends'!N$20,Ages_group,0))/'Mortality rates at t0'!N21-1) -> -0.05080247205 | O21: =IF('Mortality rates at t0'!O21=0,0,OFFSET(INDIRECT("'Forecasts " & $C21 & "'!C58"),Year_max-Year_0,MATCH('Mortality trends'!O$20,Ages_group,0))/'Mortality rates at t0'!O21-1) -> -0.0416798929 | P21: =IF('Mortality rates at t0'!P21=0,0,OFFSET(INDIRECT("'Forecasts " & $C21 & "'!C58"),Year_max-Year_0,MATCH('Mortality trends'!P$20,Ages_group,0))/'Mortality rates at t0'!P21-1) -> -0.05251983381 | Q21: =IF('Mortality rates at t0'!Q21=0,0,OFFSET(INDIRECT("'Forecasts " & $C21 & "'!C58"),Year_max-Year_0,MATCH('Mortality trends'!Q$20,Ages_group,0))/'Mortality rates at t0'!Q21-1) -> -0.09145056178 | R21: =IF('Mortality rates at t0'!R21=0,0,OFFSET(INDIRECT("'Forecasts " & $C21 & "'!C58"),Year_max-Year_0,MATCH('Mortality trends'!R$20,Ages_group,0))/'Mortality rates at t0'!R21-1) -> -0.1304772414 | S21: =IF('Mortality rates at t0'!S21=0,0,OFFSET(INDIRECT("'Forecasts " & $C21 & "'!C58"),Year_max-Year_0,MATCH('Mortality trends'!S$20,Ages_group,0))/'Mortality rates at t0'!S21-1) -> -0.1509459915 | T21: =IF('Mortality rates at t0'!T21=0,0,OFFSET(INDIRECT("'Forecasts " & $C21 & "'!C58"),Year_max-Year_0,MATCH('Mortality trends'!T$20,Ages_group,0))/'Mortality rates at t0'!T21-1) -> -0.1544791141 | U21: =IF('Mortality rates at t0'!U21=0,0,OFFSET(INDIRECT("'Forecasts " & $C21 & "'!C58"),Year_max-Year_0,MATCH('Mortality trends'!U$20,Ages_group,0))/'Mortality rates at t0'!U21-1) -> -0.1521614192 | V21: =IF('Mortality rates at t0'!V21=0,0,OFFSET(INDIRECT("'Forecasts " & $C21 & "'!C58"),Year_max-Year_0,MATCH('Mortality trends'!V$20,Ages_group,0))/'Mortality rates at t0'!V21-1) -> -0.1540855621 | W21: =IF('Mortality rates at t0'!W21=0,0,OFFSET(INDIRECT("'Forecasts " & $C21 & "'!C58"),Year_max-Year_0,MATCH('Mortality trends'!W$20,Ages_group,0))/'Mortality rates at t0'!W21-1) -> -0.1485472126 | X21: =IF('Mortality rates at t0'!X21=0,0,OFFSET(INDIRECT("'Forecasts " & $C21 & "'!C58"),Year_max-Year_0,MATCH('Mortality trends'!X$20,Ages_group,0))/'Mortality rates at t0'!X21-1) -> -0.1300932315 | Y21: =IF('Mortality rates at t0'!Y21=0,0,OFFSET(INDIRECT("'Forecasts " & $C21 & "'!C58"),Year_max-Year_0,MATCH('Mortality trends'!Y$20,Ages_group,0))/'Mortality rates at t0'!Y21-1) -> -0.1131495326 | AA21: cause | AB21: =Causes -> Cardiovascular | AD21: =IF('Mortality rates at t0'!AD21=0,0,OFFSET(INDIRECT("'Forecasts " & $AB21 & "'!AA58"),Year_max-Year_1,MATCH('Mortality trends'!AD$20,Ages_group,0))/'Mortality rates at t0'!AD21-1) -> -0.1182224803 | AE21: =IF('Mortality rates at t0'!AE21=0,0,OFFSET(INDIRECT("'Forecasts " & $AB21 & "'!AA58"),Year_max-Year_1,MATCH('Mortality trends'!AE$20,Ages_group,0))/'Mortality rates at t0'!AE21-1) -> -0.03824989909 | AF21: =IF('Mortality rates at t0'!AF21=0,0,OFFSET(INDIRECT("'Forecasts " & $AB21 & "'!AA58"),Year_max-Year_1,MATCH('Mortality trends'!AF$20,Ages_group,0))/'Mortality rates at t0'!AF21-1) -> 0 | AG21: =IF('Mortality rates at t0'!AG21=0,0,OFFSET(INDIRECT("'Forecasts " & $AB21 & "'!AA58"),Year_max-Year_1,MATCH('Mortality trends'!AG$20,Ages_group,0))/'Mortality rates at t0'!AG21-1) -> -0.1019137753 | AH21: =IF('Mortality rates at t0'!AH21=0,0,OFFSET(INDIRECT("'Forecasts " & $AB21 & "'!AA58"),Year_max-Year_1,MATCH('Mortality trends'!AH$20,Ages_group,0))/'Mortality rates at t0'!AH21-1) -> 0 | AI21: =IF('Mortality rates at t0'!AI21=0,0,OFFSET(INDIRECT("'Forecasts " & $AB21 & "'!AA58"),Year_max-Year_1,MATCH('Mortality trends'!AI$20,Ages_group,0))/'Mortality rates at t0'!AI21-1) -> -0.06712884209 | AJ21: =IF('Mortality rates at t0'!AJ21=0,0,OFFSET(INDIRECT("'Forecasts " & $AB21 & "'!AA58"),Year_max-Year_1,MATCH('Mortality trends'!AJ$20,Ages_group,0))/'Mortality rates at t0'!AJ21-1) -> -0.02951541607 | AK21: =IF('Mortality rates at t0'!AK21=0,0,OFFSET(INDIRECT("'Forecasts " & $AB21 & "'!AA58"),Year_max-Year_1,MATCH('Mortality trends'!AK$20,Ages_group,0))/'Mortality rates at t0'!AK21-1) -> -0.01478769425 | AL21: =IF('Mortality rates at t0'!AL21=0,0,OFFSET(INDIRECT("'Forecasts " & $AB21 & "'!AA58"),Year_max-Year_1,MATCH('Mortality trends'!AL$20,Ages_group,0))/'Mortality rates at t0'!AL21-1) -> -0.03231627017 | AM21: =IF('Mortality rates at t0'!AM21=0,0,OFFSET(INDIRECT("'Forecasts " & $AB21 & "'!AA58"),Year_max-Year_1,MATCH('Mortality trends'!AM$20,Ages_group,0))/'Mortality rates at t0'!AM21-1) -> -0.04361830529 | AN21: =IF('Mortality rates at t0'!AN21=0,0,OFFSET(INDIRECT("'Forecasts " & $AB21 & "'!AA58"),Year_max-Year_1,MATCH('Mortality trends'!AN$20,Ages_group,0))/'Mortality rates at t0'!AN21-1) -> -0.03576140409 | AO21: =IF('Mortality rates at t0'!AO21=0,0,OFFSET(INDIRECT("'Forecasts " & $AB21 & "'!AA58"),Year_max-Year_1,MATCH('Mortality trends'!AO$20,Ages_group,0))/'Mortality rates at t0'!AO21-1) -> -0.04509861678 | AP21: =IF('Mortality rates at t0'!AP21=0,0,OFFSET(INDIRECT("'Forecasts " & $AB21 & "'!AA58"),Year_max-Year_1,MATCH('Mortality trends'!AP$20,Ages_group,0))/'Mortality rates at t0'!AP21-1) -> -0.07876138085 | AQ21: =IF('Mortality rates at t0'!AQ21=0,0,OFFSET(INDIRECT("'Forecasts " & $AB21 & "'!AA58"),Year_max-Year_1,MATCH('Mortality trends'!AQ$20,Ages_group,0))/'Mortality rates at t0'!AQ21-1) -> -0.1127172142 | AR21: =IF('Mortality rates at t0'!AR21=0,0,OFFSET(INDIRECT("'Forecasts " & $AB21 & "'!AA58"),Year_max-Year_1,MATCH('Mortality trends'!AR$20,Ages_group,0))/'Mortality rates at t0'!AR21-1) -> -0.1306141042 | AS21: =IF('Mortality rates at t0'!AS21=0,0,OFFSET(INDIRECT("'Forecasts " & $AB21 & "'!AA58"),Year_max-Year_1,MATCH('Mortality trends'!AS$20,Ages_group,0))/'Mortality rates at t0'!AS21-1) -> -0.1337095747 | AT21: =IF('Mortality rates at t0'!AT21=0,0,OFFSET(INDIRECT("'Forecasts " & $AB21 & "'!AA58"),Year_max-Year_1,MATCH('Mortality trends'!AT$20,Ages_group,0))/'Mortality rates at t0'!AT21-1) -> -0.1316787648 | AU21: =IF('Mortality rates at t0'!AU21=0,0,OFFSET(INDIRECT("'Forecasts " & $AB21 & "'!AA58"),Year_max-Year_1,MATCH('Mortality trends'!AU$20,Ages_group,0))/'Mortality rates at t0'!AU21-1) -> -0.1333646799 | AV21: =IF('Mortality rates at t0'!AV21=0,0,OFFSET(INDIRECT("'Forecasts " & $AB21 & "'!AA58"),Year_max-Year_1,MATCH('Mortality trends'!AV$20,Ages_group,0))/'Mortality rates at t0'!AV21-1) -> -0.1285135269 | AW21: =IF('Mortality rates at t0'!AW21=0,0,OFFSET(INDIRECT("'Forecasts " & $AB21 & "'!AA58"),Year_max-Year_1,MATCH('Mortality trends'!AW$20,Ages_group,0))/'Mortality rates at t0'!AW21-1) -> -0.1123820409 | AX21: =IF('Mortality rates at t0'!AX21=0,0,OFFSET(INDIRECT("'Forecasts " & $AB21 & "'!AA58"),Year_max-Year_1,MATCH('Mortality trends'!AX$20,Ages_group,0))/'Mortality rates at t0'!AX21-1) -> -0.09761430838
C22: Cerebrovascular | E22: =IF('Mortality rates at t0'!E22=0,0,OFFSET(INDIRECT("'Forecasts " & $C22 & "'!C58"),Year_max-Year_0,MATCH('Mortality trends'!E$20,Ages_group,0))/'Mortality rates at t0'!E22-1) -> 0.02931590092 | F22: =IF('Mortality rates at t0'!F22=0,0,OFFSET(INDIRECT("'Forecasts " & $C22 & "'!C58"),Year_max-Year_0,MATCH('Mortality trends'!F$20,Ages_group,0))/'Mortality rates at t0'!F22-1) -> -0.09238340571 | G22: =IF('Mortality rates at t0'!G22=0,0,OFFSET(INDIRECT("'Forecasts " & $C22 & "'!C58"),Year_max-Year_0,MATCH('Mortality trends'!G$20,Ages_group,0))/'Mortality rates at t0'!G22-1) -> 0.1227609812 | H22: =IF('Mortality rates at t0'!H22=0,0,OFFSET(INDIRECT("'Forecasts " & $C22 & "'!C58"),Year_max-Year_0,MATCH('Mortality trends'!H$20,Ages_group,0))/'Mortality rates at t0'!H22-1) -> -0.0163479831 | I22: =IF('Mortality rates at t0'!I22=0,0,OFFSET(INDIRECT("'Forecasts " & $C22 & "'!C58"),Year_max-Year_0,MATCH('Mortality trends'!I$20,Ages_group,0))/'Mortality rates at t0'!I22-1) -> -0.03268800986 | J22: =IF('Mortality rates at t0'!J22=0,0,OFFSET(INDIRECT("'Forecasts " & $C22 & "'!C58"),Year_max-Year_0,MATCH('Mortality trends'!J$20,Ages_group,0))/'Mortality rates at t0'!J22-1) -> -0.1137817044 | K22: =IF('Mortality rates at t0'!K22=0,0,OFFSET(INDIRECT("'Forecasts " & $C22 & "'!C58"),Year_max-Year_0,MATCH('Mortality trends'!K$20,Ages_group,0))/'Mortality rates at t0'!K22-1) -> -0.06597477064 | L22: =IF('Mortality rates at t0'!L22=0,0,OFFSET(INDIRECT("'Forecasts " & $C22 & "'!C58"),Year_max-Year_0,MATCH('Mortality trends'!L$20,Ages_group,0))/'Mortality rates at t0'!L22-1) -> -0.06050226572 | M22: =IF('Mortality rates at t0'!M22=0,0,OFFSET(INDIRECT("'Forecasts " & $C22 & "'!C58"),Year_max-Year_0,MATCH('Mortality trends'!M$20,Ages_group,0))/'Mortality rates at t0'!M22-1) -> -0.1030689171 | N22: =IF('Mortality rates at t0'!N22=0,0,OFFSET(INDIRECT("'Forecasts " & $C22 & "'!C58"),Year_max-Year_0,MATCH('Mortality trends'!N$20,Ages_group,0))/'Mortality rates at t0'!N22-1) -> -0.1079948008 | O22: =IF('Mortality rates at t0'!O22=0,0,OFFSET(INDIRECT("'Forecasts " & $C22 & "'!C58"),Year_max-Year_0,MATCH('Mortality trends'!O$20,Ages_group,0))/'Mortality rates at t0'!O22-1) -> -0.09163663472 | P22: =IF('Mortality rates at t0'!P22=0,0,OFFSET(INDIRECT("'Forecasts " & $C22 & "'!C58"),Year_max-Year_0,MATCH('Mortality trends'!P$20,Ages_group,0))/'Mortality rates at t0'!P22-1) -> -0.06140247586 | Q22: =IF('Mortality rates at t0'!Q22=0,0,OFFSET(INDIRECT("'Forecasts " & $C22 & "'!C58"),Year_max-Year_0,MATCH('Mortality trends'!Q$20,Ages_group,0))/'Mortality rates at t0'!Q22-1) -> -0.08628050636 | R22: =IF('Mortality rates at t0'!R22=0,0,OFFSET(INDIRECT("'Forecasts " & $C22 & "'!C58"),Year_max-Year_0,MATCH('Mortality trends'!R$20,Ages_group,0))/'Mortality rates at t0'!R22-1) -> -0.1068166303 | S22: =IF('Mortality rates at t0'!S22=0,0,OFFSET(INDIRECT("'Forecasts " & $C22 & "'!C58"),Year_max-Year_0,MATCH('Mortality trends'!S$20,Ages_group,0))/'Mortality rates at t0'!S22-1) -> -0.1251181917 | T22: =IF('Mortality rates at t0'!T22=0,0,OFFSET(INDIRECT("'Forecasts " & $C22 & "'!C58"),Year_max-Year_0,MATCH('Mortality trends'!T$20,Ages_group,0))/'Mortality rates at t0'!T22-1) -> -0.1341909764 | U22: =IF('Mortality rates at t0'!U22=0,0,OFFSET(INDIRECT("'Forecasts " & $C22 & "'!C58"),Year_max-Year_0,MATCH('Mortality trends'!U$20,Ages_group,0))/'Mortality rates at t0'!U22-1) -> -0.1337151186 | V22: =IF('Mortality rates at t0'!V22=0,0,OFFSET(INDIRECT("'Forecasts " & $C22 & "'!C58"),Year_max-Year_0,MATCH('Mortality trends'!V$20,Ages_group,0))/'Mortality rates at t0'!V22-1) -> -0.1473635895 | W22: =IF('Mortality rates at t0'!W22=0,0,OFFSET(INDIRECT("'Forecasts " & $C22 & "'!C58"),Year_max-Year_0,MATCH('Mortality trends'!W$20,Ages_group,0))/'Mortality rates at t0'!W22-1) -> -0.1534348139 | X22: =IF('Mortality rates at t0'!X22=0,0,OFFSET(INDIRECT("'Forecasts " & $C22 & "'!C58"),Year_max-Year_0,MATCH('Mortality trends'!X$20,Ages_group,0))/'Mortality rates at t0'!X22-1) -> -0.1434386464 | Y22: =IF('Mortality rates at t0'!Y22=0,0,OFFSET(INDIRECT("'Forecasts " & $C22 & "'!C58"),Year_max-Year_0,MATCH('Mortality trends'!Y$20,Ages_group,0))/'Mortality rates at t0'!Y22-1) -> -0.1298624048 | AB22: Cerebrovascular | AD22: =IF('Mortality rates at t0'!AD22=0,0,OFFSET(INDIRECT("'Forecasts " & $AB22 & "'!AA58"),Year_max-Year_1,MATCH('Mortality trends'!AD$20,Ages_group,0))/'Mortality rates at t0'!AD22-1) -> 0.0253727253 | AE22: =IF('Mortality rates at t0'!AE22=0,0,OFFSET(INDIRECT("'Forecasts " & $AB22 & "'!AA58"),Year_max-Year_1,MATCH('Mortality trends'!AE$20,Ages_group,0))/'Mortality rates at t0'!AE22-1) -> 0 | AF22: =IF('Mortality rates at t0'!AF22=0,0,OFFSET(INDIRECT("'Forecasts " & $AB22 & "'!AA58"),Year_max-Year_1,MATCH('Mortality trends'!AF$20,Ages_group,0))/'Mortality rates at t0'!AF22-1) -> 0 | AG22: =IF('Mortality rates at t0'!AG22=0,0,OFFSET(INDIRECT("'Forecasts " & $AB22 & "'!AA58"),Year_max-Year_1,MATCH('Mortality trends'!AG$20,Ages_group,0))/'Mortality rates at t0'!AG22-1) -> 0 | AH22: =IF('Mortality rates at t0'!AH22=0,0,OFFSET(INDIRECT("'Forecasts " & $AB22 & "'!AA58"),Year_max-Year_1,MATCH('Mortality trends'!AH$20,Ages_group,0))/'Mortality rates at t0'!AH22-1) -> 0 | AI22: =IF('Mortality rates at t0'!AI22=0,0,OFFSET(INDIRECT("'Forecasts " & $AB22 & "'!AA58"),Year_max-Year_1,MATCH('Mortality trends'!AI$20,Ages_group,0))/'Mortality rates at t0'!AI22-1) -> 0 | AJ22: =IF('Mortality rates at t0'!AJ22=0,0,OFFSET(INDIRECT("'Forecasts " & $AB22 & "'!AA58"),Year_max-Year_1,MATCH('Mortality trends'!AJ$20,Ages_group,0))/'Mortality rates at t0'!AJ22-1) -> -0.05746809348 | AK22: =IF('Mortality rates at t0'!AK22=0,0,OFFSET(INDIRECT("'Forecasts " & $AB22 & "'!AA58"),Year_max-Year_1,MATCH('Mortality trends'!AK$20,Ages_group,0))/'Mortality rates at t0'!AK22-1) -> -0.05268117503 | AL22: =IF('Mortality rates at t0'!AL22=0,0,OFFSET(INDIRECT("'Forecasts " & $AB22 & "'!AA58"),Year_max-Year_1,MATCH('Mortality trends'!AL$20,Ages_group,0))/'Mortality rates at t0'!AL22-1) -> -0.090014682 | AM22: =IF('Mortality rates at t0'!AM22=0,0,OFFSET(INDIRECT("'Forecasts " & $AB22 & "'!AA58"),Year_max-Year_1,MATCH('Mortality trends'!AM$20,Ages_group,0))/'Mortality rates at t0'!AM22-1) -> -0.09434998306 | AN22: =IF('Mortality rates at t0'!AN22=0,0,OFFSET(INDIRECT("'Forecasts " & $AB22 & "'!AA58"),Year_max-Year_1,MATCH('Mortality trends'!AN$20,Ages_group,0))/'Mortality rates at t0'!AN22-1) -> -0.07996520926 | AO22: =IF('Mortality rates at t0'!AO22=0,0,OFFSET(INDIRECT("'Forecasts " & $AB22 & "'!AA58"),Year_max-Year_1,MATCH('Mortality trends'!AO$20,Ages_group,0))/'Mortality rates at t0'!AO22-1) -> -0.05346835323 | AP22: =IF('Mortality rates at t0'!AP22=0,0,OFFSET(INDIRECT("'Forecasts " & $AB22 & "'!AA58"),Year_max-Year_1,MATCH('Mortality trends'!AP$20,Ages_group,0))/'Mortality rates at t0'!AP22-1) -> -0.07526272927 | AQ22: =IF('Mortality rates at t0'!AQ22=0,0,OFFSET(INDIRECT("'Forecasts " & $AB22 & "'!AA58"),Year_max-Year_1,MATCH('Mortality trends'!AQ$20,Ages_group,0))/'Mortality rates at t0'!AQ22-1) -> -0.09331277916 | AR22: =IF('Mortality rates at t0'!AR22=0,0,OFFSET(INDIRECT("'Forecasts " & $AB22 & "'!AA58"),Year_max-Year_1,MATCH('Mortality trends'!AR$20,Ages_group,0))/'Mortality rates at t0'!AR22-1) -> -0.1094452671 | AS22: =IF('Mortality rates at t0'!AS22=0,0,OFFSET(INDIRECT("'Forecasts " & $AB22 & "'!AA58"),Year_max-Year_1,MATCH('Mortality trends'!AS$20,Ages_group,0))/'Mortality rates at t0'!AS22-1) -> -0.1174593368 | AT22: =IF('Mortality rates at t0'!AT22=0,0,OFFSET(INDIRECT("'Forecasts " & $AB22 & "'!AA58"),Year_max-Year_1,MATCH('Mortality trends'!AT$20,Ages_group,0))/'Mortality rates at t0'!AT22-1) -> -0.1170387312 | AU22: =IF('Mortality rates at t0'!AU22=0,0,OFFSET(INDIRECT("'Forecasts " & $AB22 & "'!AA58"),Year_max-Year_1,MATCH('Mortality trends'!AU$20,Ages_group,0))/'Mortality rates at t0'!AU22-1) -> -0.1291147267 | AV22: =IF('Mortality rates at t0'!AV22=0,0,OFFSET(INDIRECT("'Forecasts " & $AB22 & "'!AA58"),Year_max-Year_1,MATCH('Mortality trends'!AV$20,Ages_group,0))/'Mortality rates at t0'!AV22-1) -> -0.1344947027 | AW22: =IF('Mortality rates at t0'!AW22=0,0,OFFSET(INDIRECT("'Forecasts " & $AB22 & "'!AA58"),Year_max-Year_1,MATCH('Mortality trends'!AW$20,Ages_group,0))/'Mortality rates at t0'!AW22-1) -> -0.1256393735 | AX22: =IF('Mortality rates at t0'!AX22=0,0,OFFSET(INDIRECT("'Forecasts " & $AB22 & "'!AA58"),Year_max-Year_1,MATCH('Mortality trends'!AX$20,Ages_group,0))/'Mortality rates at t0'!AX22-1) -> -0.1136344874
C23: NeoSmok | E23: =IF('Mortality rates at t0'!E23=0,0,OFFSET(INDIRECT("'Forecasts " & $C23 & "'!C58"),Year_max-Year_0,MATCH('Mortality trends'!E$20,Ages_group,0))/'Mortality rates at t0'!E23-1) -> 0 | F23: =IF('Mortality rates at t0'!F23=0,0,OFFSET(INDIRECT("'Forecasts " & $C23 & "'!C58"),Year_max-Year_0,MATCH('Mortality trends'!F$20,Ages_group,0))/'Mortality rates at t0'!F23-1) -> 0 | G23: =IF('Mortality rates at t0'!G23=0,0,OFFSET(INDIRECT("'Forecasts " & $C23 & "'!C58"),Year_max-Year_0,MATCH('Mortality trends'!G$20,Ages_group,0))/'Mortality rates at t0'!G23-1) -> 0.1832116793 | H23: =IF('Mortality rates at t0'!H23=0,0,OFFSET(INDIRECT("'Forecasts " & $C23 & "'!C58"),Year_max-Year_0,MATCH('Mortality trends'!H$20,Ages_group,0))/'Mortality rates at t0'!H23-1) -> -0.1694936509 | I23: =IF('Mortality rates at t0'!I23=0,0,OFFSET(INDIRECT("'Forecasts " & $C23 & "'!C58"),Year_max-Year_0,MATCH('Mortality trends'!I$20,Ages_group,0))/'Mortality rates at t0'!I23-1) -> -0.2990081282 | J23: =IF('Mortality rates at t0'!J23=0,0,OFFSET(INDIRECT("'Forecasts " & $C23 & "'!C58"),Year_max-Year_0,MATCH('Mortality trends'!J$20,Ages_group,0))/'Mortality rates at t0'!J23-1) -> -0.1328294177 | K23: =IF('Mortality rates at t0'!K23=0,0,OFFSET(INDIRECT("'Forecasts " & $C23 & "'!C58"),Year_max-Year_0,MATCH('Mortality trends'!K$20,Ages_group,0))/'Mortality rates at t0'!K23-1) -> 0.0873919041 | L23: =IF('Mortality rates at t0'!L23=0,0,OFFSET(INDIRECT("'Forecasts " & $C23 & "'!C58"),Year_max-Year_0,MATCH('Mortality trends'!L$20,Ages_group,0))/'Mortality rates at t0'!L23-1) -> -0.1974157449 | M23: =IF('Mortality rates at t0'!M23=0,0,OFFSET(INDIRECT("'Forecasts " & $C23 & "'!C58"),Year_max-Year_0,MATCH('Mortality trends'!M$20,Ages_group,0))/'Mortality rates at t0'!M23-1) -> -0.3633200098 | N23: =IF('Mortality rates at t0'!N23=0,0,OFFSET(INDIRECT("'Forecasts " & $C23 & "'!C58"),Year_max-Year_0,MATCH('Mortality trends'!N$20,Ages_group,0))/'Mortality rates at t0'!N23-1) -> -0.3257992877 | O23: =IF('Mortality rates at t0'!O23=0,0,OFFSET(INDIRECT("'Forecasts " & $C23 & "'!C58"),Year_max-Year_0,MATCH('Mortality trends'!O$20,Ages_group,0))/'Mortality rates at t0'!O23-1) -> -0.1644652222 | P23: =IF('Mortality rates at t0'!P23=0,0,OFFSET(INDIRECT("'Forecasts " & $C23 & "'!C58"),Year_max-Year_0,MATCH('Mortality trends'!P$20,Ages_group,0))/'Mortality rates at t0'!P23-1) -> -0.04674484803 | Q23: =IF('Mortality rates at t0'!Q23=0,0,OFFSET(INDIRECT("'Forecasts " & $C23 & "'!C58"),Year_max-Year_0,MATCH('Mortality trends'!Q$20,Ages_group,0))/'Mortality rates at t0'!Q23-1) -> -0.1262131052 | R23: =IF('Mortality rates at t0'!R23=0,0,OFFSET(INDIRECT("'Forecasts " & $C23 & "'!C58"),Year_max-Year_0,MATCH('Mortality trends'!R$20,Ages_group,0))/'Mortality rates at t0'!R23-1) -> -0.2151442577 | S23: =IF('Mortality rates at t0'!S23=0,0,OFFSET(INDIRECT("'Forecasts " & $C23 & "'!C58"),Year_max-Year_0,MATCH('Mortality trends'!S$20,Ages_group,0))/'Mortality rates at t0'!S23-1) -> -0.1579996404 | T23: =IF('Mortality rates at t0'!T23=0,0,OFFSET(INDIRECT("'Forecasts " & $C23 & "'!C58"),Year_max-Year_0,MATCH('Mortality trends'!T$20,Ages_group,0))/'Mortality rates at t0'!T23-1) -> -0.09840508778 | U23: =IF('Mortality rates at t0'!U23=0,0,OFFSET(INDIRECT("'Forecasts " & $C23 & "'!C58"),Year_max-Year_0,MATCH('Mortality trends'!U$20,Ages_group,0))/'Mortality rates at t0'!U23-1) -> -0.04721290241 | V23: =IF('Mortality rates at t0'!V23=0,0,OFFSET(INDIRECT("'Forecasts " & $C23 & "'!C58"),Year_max-Year_0,MATCH('Mortality trends'!V$20,Ages_group,0))/'Mortality rates at t0'!V23-1) -> 7.397950458e-05 | W23: =IF('Mortality rates at t0'!W23=0,0,OFFSET(INDIRECT("'Forecasts " & $C23 & "'!C58"),Year_max-Year_0,MATCH('Mortality trends'!W$20,Ages_group,0))/'Mortality rates at t0'!W23-1) -> 0.03322214378 | X23: =IF('Mortality rates at t0'!X23=0,0,OFFSET(INDIRECT("'Forecasts " & $C23 & "'!C58"),Year_max-Year_0,MATCH('Mortality trends'!X$20,Ages_group,0))/'Mortality rates at t0'!X23-1) -> 0.0526069896 | Y23: =IF('Mortality rates at t0'!Y23=0,0,OFFSET(INDIRECT("'Forecasts " & $C23 & "'!C58"),Year_max-Year_0,MATCH('Mortality trends'!Y$20,Ages_group,0))/'Mortality rates at t0'!Y23-1) -> 0.1003268069 | AB23: NeoSmok | AD23: =IF('Mortality rates at t0'!AD23=0,0,OFFSET(INDIRECT("'Forecasts " & $AB23 & "'!AA58"),Year_max-Year_1,MATCH('Mortality trends'!AD$20,Ages_group,0))/'Mortality rates at t0'!AD23-1) -> 0 | AE23: =IF('Mortality rates at t0'!AE23=0,0,OFFSET(INDIRECT("'Forecasts " & $AB23 & "'!AA58"),Year_max-Year_1,MATCH('Mortality trends'!AE$20,Ages_group,0))/'Mortality rates at t0'!AE23-1) -> 0 | AF23: =IF('Mortality rates at t0'!AF23=0,0,OFFSET(INDIRECT("'Forecasts " & $AB23 & "'!AA58"),Year_max-Year_1,MATCH('Mortality trends'!AF$20,Ages_group,0))/'Mortality rates at t0'!AF23-1) -> 0 | AG23: =IF('Mortality rates at t0'!AG23=0,0,OFFSET(INDIRECT("'Forecasts " & $AB23 & "'!AA58"),Year_max-Year_1,MATCH('Mortality trends'!AG$20,Ages_group,0))/'Mortality rates at t0'!AG23-1) -> 0 | AH23: =IF('Mortality rates at t0'!AH23=0,0,OFFSET(INDIRECT("'Forecasts " & $AB23 & "'!AA58"),Year_max-Year_1,MATCH('Mortality trends'!AH$20,Ages_group,0))/'Mortality rates at t0'!AH23-1) -> 0 | AI23: =IF('Mortality rates at t0'!AI23=0,0,OFFSET(INDIRECT("'Forecasts " & $AB23 & "'!AA58"),Year_max-Year_1,MATCH('Mortality trends'!AI$20,Ages_group,0))/'Mortality rates at t0'!AI23-1) -> 0 | AJ23: =IF('Mortality rates at t0'!AJ23=0,0,OFFSET(INDIRECT("'Forecasts " & $AB23 & "'!AA58"),Year_max-Year_1,MATCH('Mortality trends'!AJ$20,Ages_group,0))/'Mortality rates at t0'!AJ23-1) -> 0 | AK23: =IF('Mortality rates at t0'!AK23=0,0,OFFSET(INDIRECT("'Forecasts " & $AB23 & "'!AA58"),Year_max-Year_1,MATCH('Mortality trends'!AK$20,Ages_group,0))/'Mortality rates at t0'!AK23-1) -> 0 | AL23: =IF('Mortality rates at t0'!AL23=0,0,OFFSET(INDIRECT("'Forecasts " & $AB23 & "'!AA58"),Year_max-Year_1,MATCH('Mortality trends'!AL$20,Ages_group,0))/'Mortality rates at t0'!AL23-1) -> -0.3294073906 | AM23: =IF('Mortality rates at t0'!AM23=0,0,OFFSET(INDIRECT("'Forecasts " & $AB23 & "'!AA58"),Year_max-Year_1,MATCH('Mortality trends'!AM$20,Ages_group,0))/'Mortality rates at t0'!AM23-1) -> -0.2945464769 | AN23: =IF('Mortality rates at t0'!AN23=0,0,OFFSET(INDIRECT("'Forecasts " & $AB23 & "'!AA58"),Year_max-Year_1,MATCH('Mortality trends'!AN$20,Ages_group,0))/'Mortality rates at t0'!AN23-1) -> -0.1470294565 | AO23: =IF('Mortality rates at t0'!AO23=0,0,OFFSET(INDIRECT("'Forecasts " & $AB23 & "'!AA58"),Year_max-Year_1,MATCH('Mortality trends'!AO$20,Ages_group,0))/'Mortality rates at t0'!AO23-1) -> -0.04148505606 | AP23: =IF('Mortality rates at t0'!AP23=0,0,OFFSET(INDIRECT("'Forecasts " & $AB23 & "'!AA58"),Year_max-Year_1,MATCH('Mortality trends'!AP$20,Ages_group,0))/'Mortality rates at t0'!AP23-1) -> -0.1125570275 | AQ23: =IF('Mortality rates at t0'!AQ23=0,0,OFFSET(INDIRECT("'Forecasts " & $AB23 & "'!AA58"),Year_max-Year_1,MATCH('Mortality trends'!AQ$20,Ages_group,0))/'Mortality rates at t0'!AQ23-1) -> -0.1929827127 | AR23: =IF('Mortality rates at t0'!AR23=0,0,OFFSET(INDIRECT("'Forecasts " & $AB23 & "'!AA58"),Year_max-Year_1,MATCH('Mortality trends'!AR$20,Ages_group,0))/'Mortality rates at t0'!AR23-1) -> -0.1411902136 | AS23: =IF('Mortality rates at t0'!AS23=0,0,OFFSET(INDIRECT("'Forecasts " & $AB23 & "'!AA58"),Year_max-Year_1,MATCH('Mortality trends'!AS$20,Ages_group,0))/'Mortality rates at t0'!AS23-1) -> -0.08760584024 | AT23: =IF('Mortality rates at t0'!AT23=0,0,OFFSET(INDIRECT("'Forecasts " & $AB23 & "'!AA58"),Year_max-Year_1,MATCH('Mortality trends'!AT$20,Ages_group,0))/'Mortality rates at t0'!AT23-1) -> -0.04190160915 | AU23: =IF('Mortality rates at t0'!AU23=0,0,OFFSET(INDIRECT("'Forecasts " & $AB23 & "'!AA58"),Year_max-Year_1,MATCH('Mortality trends'!AU$20,Ages_group,0))/'Mortality rates at t0'!AU23-1) -> 6.547592208e-05 | AV23: =IF('Mortality rates at t0'!AV23=0,0,OFFSET(INDIRECT("'Forecasts " & $AB23 & "'!AA58"),Year_max-Year_1,MATCH('Mortality trends'!AV$20,Ages_group,0))/'Mortality rates at t0'!AV23-1) -> 0.02934808679 | AW23: =IF('Mortality rates at t0'!AW23=0,0,OFFSET(INDIRECT("'Forecasts " & $AB23 & "'!AA58"),Year_max-Year_1,MATCH('Mortality trends'!AW$20,Ages_group,0))/'Mortality rates at t0'!AW23-1) -> 0.04642218084 | AX23: =IF('Mortality rates at t0'!AX23=0,0,OFFSET(INDIRECT("'Forecasts " & $AB23 & "'!AA58"),Year_max-Year_1,MATCH('Mortality trends'!AX$20,Ages_group,0))/'Mortality rates at t0'!AX23-1) -> 0.08830126535
C24: Neoplasm | E24: =IF('Mortality rates at t0'!E24=0,0,OFFSET(INDIRECT("'Forecasts " & $C24 & "'!C58"),Year_max-Year_0,MATCH('Mortality trends'!E$20,Ages_group,0))/'Mortality rates at t0'!E24-1) -> -0.06599334589 | F24: =IF('Mortality rates at t0'!F24=0,0,OFFSET(INDIRECT("'Forecasts " & $C24 & "'!C58"),Year_max-Year_0,MATCH('Mortality trends'!F$20,Ages_group,0))/'Mortality rates at t0'!F24-1) -> -0.05768017861 | G24: =IF('Mortality rates at t0'!G24=0,0,OFFSET(INDIRECT("'Forecasts " & $C24 & "'!C58"),Year_max-Year_0,MATCH('Mortality trends'!G$20,Ages_group,0))/'Mortality rates at t0'!G24-1) -> -0.06500976479 | H24: =IF('Mortality rates at t0'!H24=0,0,OFFSET(INDIRECT("'Forecasts " & $C24 & "'!C58"),Year_max-Year_0,MATCH('Mortality trends'!H$20,Ages_group,0))/'Mortality rates at t0'!H24-1) -> -0.03461708571 | I24: =IF('Mortality rates at t0'!I24=0,0,OFFSET(INDIRECT("'Forecasts " & $C24 & "'!C58"),Year_max-Year_0,MATCH('Mortality trends'!I$20,Ages_group,0))/'Mortality rates at t0'!I24-1) -> -0.06436520281 | J24: =IF('Mortality rates at t0'!J24=0,0,OFFSET(INDIRECT("'Forecasts " & $C24 & "'!C58"),Year_max-Year_0,MATCH('Mortality trends'!J$20,Ages_group,0))/'Mortality rates at t0'!J24-1) -> -0.07376893689 | K24: =IF('Mortality rates at t0'!K24=0,0,OFFSET(INDIRECT("'Forecasts " & $C24 & "'!C58"),Year_max-Year_0,MATCH('Mortality trends'!K$20,Ages_group,0))/'Mortality rates at t0'!K24-1) -> -0.06213730686 | L24: =IF('Mortality rates at t0'!L24=0,0,OFFSET(INDIRECT("'Forecasts " & $C24 & "'!C58"),Year_max-Year_0,MATCH('Mortality trends'!L$20,Ages_group,0))/'Mortality rates at t0'!L24-1) -> -0.04953680682 | M24: =IF('Mortality rates at t0'!M24=0,0,OFFSET(INDIRECT("'Forecasts " & $C24 & "'!C58"),Year_max-Year_0,MATCH('Mortality trends'!M$20,Ages_group,0))/'Mortality rates at t0'!M24-1) -> -0.06356106987 | N24: =IF('Mortality rates at t0'!N24=0,0,OFFSET(INDIRECT("'Forecasts " & $C24 & "'!C58"),Year_max-Year_0,MATCH('Mortality trends'!N$20,Ages_group,0))/'Mortality rates at t0'!N24-1) -> -0.0621659592 | O24: =IF('Mortality rates at t0'!O24=0,0,OFFSET(INDIRECT("'Forecasts " & $C24 & "'!C58"),Year_max-Year_0,MATCH('Mortality trends'!O$20,Ages_group,0))/'Mortality rates at t0'!O24-1) -> -0.06513251683 | P24: =IF('Mortality rates at t0'!P24=0,0,OFFSET(INDIRECT("'Forecasts " & $C24 & "'!C58"),Year_max-Year_0,MATCH('Mortality trends'!P$20,Ages_group,0))/'Mortality rates at t0'!P24-1) -> -0.05959162512 | Q24: =IF('Mortality rates at t0'!Q24=0,0,OFFSET(INDIRECT("'Forecasts " & $C24 & "'!C58"),Year_max-Year_0,MATCH('Mortality trends'!Q$20,Ages_group,0))/'Mortality rates at t0'!Q24-1) -> -0.06343588517 | R24: =IF('Mortality rates at t0'!R24=0,0,OFFSET(INDIRECT("'Forecasts " & $C24 & "'!C58"),Year_max-Year_0,MATCH('Mortality trends'!R$20,Ages_group,0))/'Mortality rates at t0'!R24-1) -> -0.06411109077 | S24: =IF('Mortality rates at t0'!S24=0,0,OFFSET(INDIRECT("'Forecasts " & $C24 & "'!C58"),Year_max-Year_0,MATCH('Mortality trends'!S$20,Ages_group,0))/'Mortality rates at t0'!S24-1) -> -0.066948694 | T24: =IF('Mortality rates at t0'!T24=0,0,OFFSET(INDIRECT("'Forecasts " & $C24 & "'!C58"),Year_max-Year_0,MATCH('Mortality trends'!T$20,Ages_group,0))/'Mortality rates at t0'!T24-1) -> -0.06182179684 | U24: =IF('Mortality rates at t0'!U24=0,0,OFFSET(INDIRECT("'Forecasts " & $C24 & "'!C58"),Year_max-Year_0,MATCH('Mortality trends'!U$20,Ages_group,0))/'Mortality rates at t0'!U24-1) -> -0.05571848099 | V24: =IF('Mortality rates at t0'!V24=0,0,OFFSET(INDIRECT("'Forecasts " & $C24 & "'!C58"),Year_max-Year_0,MATCH('Mortality trends'!V$20,Ages_group,0))/'Mortality rates at t0'!V24-1) -> -0.05764546254 | W24: =IF('Mortality rates at t0'!W24=0,0,OFFSET(INDIRECT("'Forecasts " & $C24 & "'!C58"),Year_max-Year_0,MATCH('Mortality trends'!W$20,Ages_group,0))/'Mortality rates at t0'!W24-1) -> -0.05745374226 | X24: =IF('Mortality rates at t0'!X24=0,0,OFFSET(INDIRECT("'Forecasts " & $C24 & "'!C58"),Year_max-Year_0,MATCH('Mortality trends'!X$20,Ages_group,0))/'Mortality rates at t0'!X24-1) -> -0.04550830724 | Y24: =IF('Mortality rates at t0'!Y24=0,0,OFFSET(INDIRECT("'Forecasts " & $C24 & "'!C58"),Year_max-Year_0,MATCH('Mortality trends'!Y$20,Ages_group,0))/'Mortality rates at t0'!Y24-1) -> -0.03793027183 | AB24: Neoplasm | AD24: =IF('Mortality rates at t0'!AD24=0,0,OFFSET(INDIRECT("'Forecasts " & $AB24 & "'!AA58"),Year_max-Year_1,MATCH('Mortality trends'!AD$20,Ages_group,0))/'Mortality rates at t0'!AD24-1) -> -0.05992524917 | AE24: =IF('Mortality rates at t0'!AE24=0,0,OFFSET(INDIRECT("'Forecasts " & $AB24 & "'!AA58"),Year_max-Year_1,MATCH('Mortality trends'!AE$20,Ages_group,0))/'Mortality rates at t0'!AE24-1) -> -0.05235491767 | AF24: =IF('Mortality rates at t0'!AF24=0,0,OFFSET(INDIRECT("'Forecasts " & $AB24 & "'!AA58"),Year_max-Year_1,MATCH('Mortality trends'!AF$20,Ages_group,0))/'Mortality rates at t0'!AF24-1) -> -0.05902922517 | AG24: =IF('Mortality rates at t0'!AG24=0,0,OFFSET(INDIRECT("'Forecasts " & $AB24 & "'!AA58"),Year_max-Year_1,MATCH('Mortality trends'!AG$20,Ages_group,0))/'Mortality rates at t0'!AG24-1) -> -0.03138562832 | AH24: =IF('Mortality rates at t0'!AH24=0,0,OFFSET(INDIRECT("'Forecasts " & $AB24 & "'!AA58"),Year_max-Year_1,MATCH('Mortality trends'!AH$20,Ages_group,0))/'Mortality rates at t0'!AH24-1) -> -0.05844208975 | AI24: =IF('Mortality rates at t0'!AI24=0,0,OFFSET(INDIRECT("'Forecasts " & $AB24 & "'!AA58"),Year_max-Year_1,MATCH('Mortality trends'!AI$20,Ages_group,0))/'Mortality rates at t0'!AI24-1) -> -0.06701182633 | AJ24: =IF('Mortality rates at t0'!AJ24=0,0,OFFSET(INDIRECT("'Forecasts " & $AB24 & "'!AA58"),Year_max-Year_1,MATCH('Mortality trends'!AJ$20,Ages_group,0))/'Mortality rates at t0'!AJ24-1) -> -0.0564129811 | AK24: =IF('Mortality rates at t0'!AK24=0,0,OFFSET(INDIRECT("'Forecasts " & $AB24 & "'!AA58"),Year_max-Year_1,MATCH('Mortality trends'!AK$20,Ages_group,0))/'Mortality rates at t0'!AK24-1) -> -0.04494534934 | AL24: =IF('Mortality rates at t0'!AL24=0,0,OFFSET(INDIRECT("'Forecasts " & $AB24 & "'!AA58"),Year_max-Year_1,MATCH('Mortality trends'!AL$20,Ages_group,0))/'Mortality rates at t0'!AL24-1) -> -0.05770965396 | AM24: =IF('Mortality rates at t0'!AM24=0,0,OFFSET(INDIRECT("'Forecasts " & $AB24 & "'!AA58"),Year_max-Year_1,MATCH('Mortality trends'!AM$20,Ages_group,0))/'Mortality rates at t0'!AM24-1) -> -0.05643907399 | AN24: =IF('Mortality rates at t0'!AN24=0,0,OFFSET(INDIRECT("'Forecasts " & $AB24 & "'!AA58"),Year_max-Year_1,MATCH('Mortality trends'!AN$20,Ages_group,0))/'Mortality rates at t0'!AN24-1) -> -0.0591410451 | AO24: =IF('Mortality rates at t0'!AO24=0,0,OFFSET(INDIRECT("'Forecasts " & $AB24 & "'!AA58"),Year_max-Year_1,MATCH('Mortality trends'!AO$20,Ages_group,0))/'Mortality rates at t0'!AO24-1) -> -0.05409500113 | AP24: =IF('Mortality rates at t0'!AP24=0,0,OFFSET(INDIRECT("'Forecasts " & $AB24 & "'!AA58"),Year_max-Year_1,MATCH('Mortality trends'!AP$20,Ages_group,0))/'Mortality rates at t0'!AP24-1) -> -0.0575956362 | AQ24: =IF('Mortality rates at t0'!AQ24=0,0,OFFSET(INDIRECT("'Forecasts " & $AB24 & "'!AA58"),Year_max-Year_1,MATCH('Mortality trends'!AQ$20,Ages_group,0))/'Mortality rates at t0'!AQ24-1) -> -0.0582106281 | AR24: =IF('Mortality rates at t0'!AR24=0,0,OFFSET(INDIRECT("'Forecasts " & $AB24 & "'!AA58"),Year_max-Year_1,MATCH('Mortality trends'!AR$20,Ages_group,0))/'Mortality rates at t0'!AR24-1) -> -0.06079563914 | AS24: =IF('Mortality rates at t0'!AS24=0,0,OFFSET(INDIRECT("'Forecasts " & $AB24 & "'!AA58"),Year_max-Year_1,MATCH('Mortality trends'!AS$20,Ages_group,0))/'Mortality rates at t0'!AS24-1) -> -0.05612565992 | AT24: =IF('Mortality rates at t0'!AT24=0,0,OFFSET(INDIRECT("'Forecasts " & $AB24 & "'!AA58"),Year_max-Year_1,MATCH('Mortality trends'!AT$20,Ages_group,0))/'Mortality rates at t0'!AT24-1) -> -0.05056943624 | AU24: =IF('Mortality rates at t0'!AU24=0,0,OFFSET(INDIRECT("'Forecasts " & $AB24 & "'!AA58"),Year_max-Year_1,MATCH('Mortality trends'!AU$20,Ages_group,0))/'Mortality rates at t0'!AU24-1) -> -0.05232331703 | AV24: =IF('Mortality rates at t0'!AV24=0,0,OFFSET(INDIRECT("'Forecasts " & $AB24 & "'!AA58"),Year_max-Year_1,MATCH('Mortality trends'!AV$20,Ages_group,0))/'Mortality rates at t0'!AV24-1) -> -0.05214880375 | AW24: =IF('Mortality rates at t0'!AW24=0,0,OFFSET(INDIRECT("'Forecasts " & $AB24 & "'!AA58"),Year_max-Year_1,MATCH('Mortality trends'!AW$20,Ages_group,0))/'Mortality rates at t0'!AW24-1) -> -0.04128208886 | AX24: =IF('Mortality rates at t0'!AX24=0,0,OFFSET(INDIRECT("'Forecasts " & $AB24 & "'!AA58"),Year_max-Year_1,MATCH('Mortality trends'!AX$20,Ages_group,0))/'Mortality rates at t0'!AX24-1) -> -0.0343950749
C25: Dementia | E25: =IF('Mortality rates at t0'!E25=0,0,OFFSET(INDIRECT("'Forecasts " & $C25 & "'!C58"),Year_max-Year_0,MATCH('Mortality trends'!E$20,Ages_group,0))/'Mortality rates at t0'!E25-1) -> 0 | F25: =IF('Mortality rates at t0'!F25=0,0,OFFSET(INDIRECT("'Forecasts " & $C25 & "'!C58"),Year_max-Year_0,MATCH('Mortality trends'!F$20,Ages_group,0))/'Mortality rates at t0'!F25-1) -> 0 | G25: =IF('Mortality rates at t0'!G25=0,0,OFFSET(INDIRECT("'Forecasts " & $C25 & "'!C58"),Year_max-Year_0,MATCH('Mortality trends'!G$20,Ages_group,0))/'Mortality rates at t0'!G25-1) -> 0 | H25: =IF('Mortality rates at t0'!H25=0,0,OFFSET(INDIRECT("'Forecasts " & $C25 & "'!C58"),Year_max-Year_0,MATCH('Mortality trends'!H$20,Ages_group,0))/'Mortality rates at t0'!H25-1) -> 0 | I25: =IF('Mortality rates at t0'!I25=0,0,OFFSET(INDIRECT("'Forecasts " & $C25 & "'!C58"),Year_max-Year_0,MATCH('Mortality trends'!I$20,Ages_group,0))/'Mortality rates at t0'!I25-1) -> 0 | J25: =IF('Mortality rates at t0'!J25=0,0,OFFSET(INDIRECT("'Forecasts " & $C25 & "'!C58"),Year_max-Year_0,MATCH('Mortality trends'!J$20,Ages_group,0))/'Mortality rates at t0'!J25-1) -> -0.1358656775 | K25: =IF('Mortality rates at t0'!K25=0,0,OFFSET(INDIRECT("'Forecasts " & $C25 & "'!C58"),Year_max-Year_0,MATCH('Mortality trends'!K$20,Ages_group,0))/'Mortality rates at t0'!K25-1) -> 0.09912072025 | L25: =IF('Mortality rates at t0'!L25=0,0,OFFSET(INDIRECT("'Forecasts " & $C25 & "'!C58"),Year_max-Year_0,MATCH('Mortality trends'!L$20,Ages_group,0))/'Mortality rates at t0'!L25-1) -> 0.008608577207 | M25: =IF('Mortality rates at t0'!M25=0,0,OFFSET(INDIRECT("'Forecasts " & $C25 & "'!C58"),Year_max-Year_0,MATCH('Mortality trends'!M$20,Ages_group,0))/'Mortality rates at t0'!M25-1) -> 0.1041360461 | N25: =IF('Mortality rates at t0'!N25=0,0,OFFSET(INDIRECT("'Forecasts " & $C25 & "'!C58"),Year_max-Year_0,MATCH('Mortality trends'!N$20,Ages_group,0))/'Mortality rates at t0'!N25-1) -> 0.05501035546 | O25: =IF('Mortality rates at t0'!O25=0,0,OFFSET(INDIRECT("'Forecasts " & $C25 & "'!C58"),Year_max-Year_0,MATCH('Mortality trends'!O$20,Ages_group,0))/'Mortality rates at t0'!O25-1) -> 0.1140480189 | P25: =IF('Mortality rates at t0'!P25=0,0,OFFSET(INDIRECT("'Forecasts " & $C25 & "'!C58"),Year_max-Year_0,MATCH('Mortality trends'!P$20,Ages_group,0))/'Mortality rates at t0'!P25-1) -> 0.1803253017 | Q25: =IF('Mortality rates at t0'!Q25=0,0,OFFSET(INDIRECT("'Forecasts " & $C25 & "'!C58"),Year_max-Year_0,MATCH('Mortality trends'!Q$20,Ages_group,0))/'Mortality rates at t0'!Q25-1) -> 0.1586473329 | R25: =IF('Mortality rates at t0'!R25=0,0,OFFSET(INDIRECT("'Forecasts " & $C25 & "'!C58"),Year_max-Year_0,MATCH('Mortality trends'!R$20,Ages_group,0))/'Mortality rates at t0'!R25-1) -> 0.169938734 | S25: =IF('Mortality rates at t0'!S25=0,0,OFFSET(INDIRECT("'Forecasts " & $C25 & "'!C58"),Year_max-Year_0,MATCH('Mortality trends'!S$20,Ages_group,0))/'Mortality rates at t0'!S25-1) -> 0.1401009184 | T25: =IF('Mortality rates at t0'!T25=0,0,OFFSET(INDIRECT("'Forecasts " & $C25 & "'!C58"),Year_max-Year_0,MATCH('Mortality trends'!T$20,Ages_group,0))/'Mortality rates at t0'!T25-1) -> 0.1505122829 | U25: =IF('Mortality rates at t0'!U25=0,0,OFFSET(INDIRECT("'Forecasts " & $C25 & "'!C58"),Year_max-Year_0,MATCH('Mortality trends'!U$20,Ages_group,0))/'Mortality rates at t0'!U25-1) -> 0.1650126683 | V25: =IF('Mortality rates at t0'!V25=0,0,OFFSET(INDIRECT("'Forecasts " & $C25 & "'!C58"),Year_max-Year_0,MATCH('Mortality trends'!V$20,Ages_group,0))/'Mortality rates at t0'!V25-1) -> 0.1633524577 | W25: =IF('Mortality rates at t0'!W25=0,0,OFFSET(INDIRECT("'Forecasts " & $C25 & "'!C58"),Year_max-Year_0,MATCH('Mortality trends'!W$20,Ages_group,0))/'Mortality rates at t0'!W25-1) -> 0.1705598843 | X25: =IF('Mortality rates at t0'!X25=0,0,OFFSET(INDIRECT("'Forecasts " & $C25 & "'!C58"),Year_max-Year_0,MATCH('Mortality trends'!X$20,Ages_group,0))/'Mortality rates at t0'!X25-1) -> 0.1889558596 | Y25: =IF('Mortality rates at t0'!Y25=0,0,OFFSET(INDIRECT("'Forecasts " & $C25 & "'!C58"),Year_max-Year_0,MATCH('Mortality trends'!Y$20,Ages_group,0))/'Mortality rates at t0'!Y25-1) -> 0.223526886 | AB25: Dementia | AD25: =IF('Mortality rates at t0'!AD25=0,0,OFFSET(INDIRECT("'Forecasts " & $AB25 & "'!AA58"),Year_max-Year_1,MATCH('Mortality trends'!AD$20,Ages_group,0))/'Mortality rates at t0'!AD25-1) -> 0 | AE25: =IF('Mortality rates at t0'!AE25=0,0,OFFSET(INDIRECT("'Forecasts " & $AB25 & "'!AA58"),Year_max-Year_1,MATCH('Mortality trends'!AE$20,Ages_group,0))/'Mortality rates at t0'!AE25-1) -> 0 | AF25: =IF('Mortality rates at t0'!AF25=0,0,OFFSET(INDIRECT("'Forecasts " & $AB25 & "'!AA58"),Year_max-Year_1,MATCH('Mortality trends'!AF$20,Ages_group,0))/'Mortality rates at t0'!AF25-1) -> 0 | AG25: =IF('Mortality rates at t0'!AG25=0,0,OFFSET(INDIRECT("'Forecasts " & $AB25 & "'!AA58"),Year_max-Year_1,MATCH('Mortality trends'!AG$20,Ages_group,0))/'Mortality rates at t0'!AG25-1) -> 0 | AH25: =IF('Mortality rates at t0'!AH25=0,0,OFFSET(INDIRECT("'Forecasts " & $AB25 & "'!AA58"),Year_max-Year_1,MATCH('Mortality trends'!AH$20,Ages_group,0))/'Mortality rates at t0'!AH25-1) -> 0 | AI25: =IF('Mortality rates at t0'!AI25=0,0,OFFSET(INDIRECT("'Forecasts " & $AB25 & "'!AA58"),Year_max-Year_1,MATCH('Mortality trends'!AI$20,Ages_group,0))/'Mortality rates at t0'!AI25-1) -> 0 | AJ25: =IF('Mortality rates at t0'!AJ25=0,0,OFFSET(INDIRECT("'Forecasts " & $AB25 & "'!AA58"),Year_max-Year_1,MATCH('Mortality trends'!AJ$20,Ages_group,0))/'Mortality rates at t0'!AJ25-1) -> 0 | AK25: =IF('Mortality rates at t0'!AK25=0,0,OFFSET(INDIRECT("'Forecasts " & $AB25 & "'!AA58"),Year_max-Year_1,MATCH('Mortality trends'!AK$20,Ages_group,0))/'Mortality rates at t0'!AK25-1) -> 0 | AL25: =IF('Mortality rates at t0'!AL25=0,0,OFFSET(INDIRECT("'Forecasts " & $AB25 & "'!AA58"),Year_max-Year_1,MATCH('Mortality trends'!AL$20,Ages_group,0))/'Mortality rates at t0'!AL25-1) -> 0 | AM25: =IF('Mortality rates at t0'!AM25=0,0,OFFSET(INDIRECT("'Forecasts " & $AB25 & "'!AA58"),Year_max-Year_1,MATCH('Mortality trends'!AM$20,Ages_group,0))/'Mortality rates at t0'!AM25-1) -> 0 | AN25: =IF('Mortality rates at t0'!AN25=0,0,OFFSET(INDIRECT("'Forecasts " & $AB25 & "'!AA58"),Year_max-Year_1,MATCH('Mortality trends'!AN$20,Ages_group,0))/'Mortality rates at t0'!AN25-1) -> 0 | AO25: =IF('Mortality rates at t0'!AO25=0,0,OFFSET(INDIRECT("'Forecasts " & $AB25 & "'!AA58"),Year_max-Year_1,MATCH('Mortality trends'!AO$20,Ages_group,0))/'Mortality rates at t0'!AO25-1) -> 0.1484702684 | AP25: =IF('Mortality rates at t0'!AP25=0,0,OFFSET(INDIRECT("'Forecasts " & $AB25 & "'!AA58"),Year_max-Year_1,MATCH('Mortality trends'!AP$20,Ages_group,0))/'Mortality rates at t0'!AP25-1) -> 0.1308312927 | AQ25: =IF('Mortality rates at t0'!AQ25=0,0,OFFSET(INDIRECT("'Forecasts " & $AB25 & "'!AA58"),Year_max-Year_1,MATCH('Mortality trends'!AQ$20,Ages_group,0))/'Mortality rates at t0'!AQ25-1) -> 0.1400256358 | AR25: =IF('Mortality rates at t0'!AR25=0,0,OFFSET(INDIRECT("'Forecasts " & $AB25 & "'!AA58"),Year_max-Year_1,MATCH('Mortality trends'!AR$20,Ages_group,0))/'Mortality rates at t0'!AR25-1) -> 0.1156971547 | AS25: =IF('Mortality rates at t0'!AS25=0,0,OFFSET(INDIRECT("'Forecasts " & $AB25 & "'!AA58"),Year_max-Year_1,MATCH('Mortality trends'!AS$20,Ages_group,0))/'Mortality rates at t0'!AS25-1) -> 0.124197936 | AT25: =IF('Mortality rates at t0'!AT25=0,0,OFFSET(INDIRECT("'Forecasts " & $AB25 & "'!AA58"),Year_max-Year_1,MATCH('Mortality trends'!AT$20,Ages_group,0))/'Mortality rates at t0'!AT25-1) -> 0.1360162563 | AU25: =IF('Mortality rates at t0'!AU25=0,0,OFFSET(INDIRECT("'Forecasts " & $AB25 & "'!AA58"),Year_max-Year_1,MATCH('Mortality trends'!AU$20,Ages_group,0))/'Mortality rates at t0'!AU25-1) -> 0.1346643626 | AV25: =IF('Mortality rates at t0'!AV25=0,0,OFFSET(INDIRECT("'Forecasts " & $AB25 & "'!AA58"),Year_max-Year_1,MATCH('Mortality trends'!AV$20,Ages_group,0))/'Mortality rates at t0'!AV25-1) -> 0.1405309989 | AW25: =IF('Mortality rates at t0'!AW25=0,0,OFFSET(INDIRECT("'Forecasts " & $AB25 & "'!AA58"),Year_max-Year_1,MATCH('Mortality trends'!AW$20,Ages_group,0))/'Mortality rates at t0'!AW25-1) -> 0.1554778782 | AX25: =IF('Mortality rates at t0'!AX25=0,0,OFFSET(INDIRECT("'Forecasts " & $AB25 & "'!AA58"),Year_max-Year_1,MATCH('Mortality trends'!AX$20,Ages_group,0))/'Mortality rates at t0'!AX25-1) -> 0.1834645304
C26: Diabetes | E26: =IF('Mortality rates at t0'!E26=0,0,OFFSET(INDIRECT("'Forecasts " & $C26 & "'!C58"),Year_max-Year_0,MATCH('Mortality trends'!E$20,Ages_group,0))/'Mortality rates at t0'!E26-1) -> -0.1355491959 | F26: =IF('Mortality rates at t0'!F26=0,0,OFFSET(INDIRECT("'Forecasts " & $C26 & "'!C58"),Year_max-Year_0,MATCH('Mortality trends'!F$20,Ages_group,0))/'Mortality rates at t0'!F26-1) -> -0.088302638 | G26: =IF('Mortality rates at t0'!G26=0,0,OFFSET(INDIRECT("'Forecasts " & $C26 & "'!C58"),Year_max-Year_0,MATCH('Mortality trends'!G$20,Ages_group,0))/'Mortality rates at t0'!G26-1) -> -0.05891585734 | H26: =IF('Mortality rates at t0'!H26=0,0,OFFSET(INDIRECT("'Forecasts " & $C26 & "'!C58"),Year_max-Year_0,MATCH('Mortality trends'!H$20,Ages_group,0))/'Mortality rates at t0'!H26-1) -> -0.09804118219 | I26: =IF('Mortality rates at t0'!I26=0,0,OFFSET(INDIRECT("'Forecasts " & $C26 & "'!C58"),Year_max-Year_0,MATCH('Mortality trends'!I$20,Ages_group,0))/'Mortality rates at t0'!I26-1) -> -0.06234785396 | J26: =IF('Mortality rates at t0'!J26=0,0,OFFSET(INDIRECT("'Forecasts " & $C26 & "'!C58"),Year_max-Year_0,MATCH('Mortality trends'!J$20,Ages_group,0))/'Mortality rates at t0'!J26-1) -> -0.02951629849 | K26: =IF('Mortality rates at t0'!K26=0,0,OFFSET(INDIRECT("'Forecasts " & $C26 & "'!C58"),Year_max-Year_0,MATCH('Mortality trends'!K$20,Ages_group,0))/'Mortality rates at t0'!K26-1) -> 0.002525575765 | L26: =IF('Mortality rates at t0'!L26=0,0,OFFSET(INDIRECT("'Forecasts " & $C26 & "'!C58"),Year_max-Year_0,MATCH('Mortality trends'!L$20,Ages_group,0))/'Mortality rates at t0'!L26-1) -> 0.01216396632 | M26: =IF('Mortality rates at t0'!M26=0,0,OFFSET(INDIRECT("'Forecasts " & $C26 & "'!C58"),Year_max-Year_0,MATCH('Mortality trends'!M$20,Ages_group,0))/'Mortality rates at t0'!M26-1) -> 0.01656608892 | N26: =IF('Mortality rates at t0'!N26=0,0,OFFSET(INDIRECT("'Forecasts " & $C26 & "'!C58"),Year_max-Year_0,MATCH('Mortality trends'!N$20,Ages_group,0))/'Mortality rates at t0'!N26-1) -> 0.01307057123 | O26: =IF('Mortality rates at t0'!O26=0,0,OFFSET(INDIRECT("'Forecasts " & $C26 & "'!C58"),Year_max-Year_0,MATCH('Mortality trends'!O$20,Ages_group,0))/'Mortality rates at t0'!O26-1) -> 0.0120621073 | P26: =IF('Mortality rates at t0'!P26=0,0,OFFSET(INDIRECT("'Forecasts " & $C26 & "'!C58"),Year_max-Year_0,MATCH('Mortality trends'!P$20,Ages_group,0))/'Mortality rates at t0'!P26-1) -> -0.001464937701 | Q26: =IF('Mortality rates at t0'!Q26=0,0,OFFSET(INDIRECT("'Forecasts " & $C26 & "'!C58"),Year_max-Year_0,MATCH('Mortality trends'!Q$20,Ages_group,0))/'Mortality rates at t0'!Q26-1) -> -0.02105091445 | R26: =IF('Mortality rates at t0'!R26=0,0,OFFSET(INDIRECT("'Forecasts " & $C26 & "'!C58"),Year_max-Year_0,MATCH('Mortality trends'!R$20,Ages_group,0))/'Mortality rates at t0'!R26-1) -> -0.04009789903 | S26: =IF('Mortality rates at t0'!S26=0,0,OFFSET(INDIRECT("'Forecasts " & $C26 & "'!C58"),Year_max-Year_0,MATCH('Mortality trends'!S$20,Ages_group,0))/'Mortality rates at t0'!S26-1) -> -0.06088305057 | T26: =IF('Mortality rates at t0'!T26=0,0,OFFSET(INDIRECT("'Forecasts " & $C26 & "'!C58"),Year_max-Year_0,MATCH('Mortality trends'!T$20,Ages_group,0))/'Mortality rates at t0'!T26-1) -> -0.05273593792 | U26: =IF('Mortality rates at t0'!U26=0,0,OFFSET(INDIRECT("'Forecasts " & $C26 & "'!C58"),Year_max-Year_0,MATCH('Mortality trends'!U$20,Ages_group,0))/'Mortality rates at t0'!U26-1) -> -0.04953178419 | V26: =IF('Mortality rates at t0'!V26=0,0,OFFSET(INDIRECT("'Forecasts " & $C26 & "'!C58"),Year_max-Year_0,MATCH('Mortality trends'!V$20,Ages_group,0))/'Mortality rates at t0'!V26-1) -> -0.04425890391 | W26: =IF('Mortality rates at t0'!W26=0,0,OFFSET(INDIRECT("'Forecasts " & $C26 & "'!C58"),Year_max-Year_0,MATCH('Mortality trends'!W$20,Ages_group,0))/'Mortality rates at t0'!W26-1) -> -0.038144992 | X26: =IF('Mortality rates at t0'!X26=0,0,OFFSET(INDIRECT("'Forecasts " & $C26 & "'!C58"),Year_max-Year_0,MATCH('Mortality trends'!X$20,Ages_group,0))/'Mortality rates at t0'!X26-1) -> -0.02392105936 | Y26: =IF('Mortality rates at t0'!Y26=0,0,OFFSET(INDIRECT("'Forecasts " & $C26 & "'!C58"),Year_max-Year_0,MATCH('Mortality trends'!Y$20,Ages_group,0))/'Mortality rates at t0'!Y26-1) -> -0.0007596187372 | AB26: Diabetes | AD26: =IF('Mortality rates at t0'!AD26=0,0,OFFSET(INDIRECT("'Forecasts " & $AB26 & "'!AA58"),Year_max-Year_1,MATCH('Mortality trends'!AD$20,Ages_group,0))/'Mortality rates at t0'!AD26-1) -> -0.1203416692 | AE26: =IF('Mortality rates at t0'!AE26=0,0,OFFSET(INDIRECT("'Forecasts " & $AB26 & "'!AA58"),Year_max-Year_1,MATCH('Mortality trends'!AE$20,Ages_group,0))/'Mortality rates at t0'!AE26-1) -> 0 | AF26: =IF('Mortality rates at t0'!AF26=0,0,OFFSET(INDIRECT("'Forecasts " & $AB26 & "'!AA58"),Year_max-Year_1,MATCH('Mortality trends'!AF$20,Ages_group,0))/'Mortality rates at t0'!AF26-1) -> 0 | AG26: =IF('Mortality rates at t0'!AG26=0,0,OFFSET(INDIRECT("'Forecasts " & $AB26 & "'!AA58"),Year_max-Year_1,MATCH('Mortality trends'!AG$20,Ages_group,0))/'Mortality rates at t0'!AG26-1) -> 0 | AH26: =IF('Mortality rates at t0'!AH26=0,0,OFFSET(INDIRECT("'Forecasts " & $AB26 & "'!AA58"),Year_max-Year_1,MATCH('Mortality trends'!AH$20,Ages_group,0))/'Mortality rates at t0'!AH26-1) -> 0 | AI26: =IF('Mortality rates at t0'!AI26=0,0,OFFSET(INDIRECT("'Forecasts " & $AB26 & "'!AA58"),Year_max-Year_1,MATCH('Mortality trends'!AI$20,Ages_group,0))/'Mortality rates at t0'!AI26-1) -> -0.02602889727 | AJ26: =IF('Mortality rates at t0'!AJ26=0,0,OFFSET(INDIRECT("'Forecasts " & $AB26 & "'!AA58"),Year_max-Year_1,MATCH('Mortality trends'!AJ$20,Ages_group,0))/'Mortality rates at t0'!AJ26-1) -> 0.002222866692 | AK26: =IF('Mortality rates at t0'!AK26=0,0,OFFSET(INDIRECT("'Forecasts " & $AB26 & "'!AA58"),Year_max-Year_1,MATCH('Mortality trends'!AK$20,Ages_group,0))/'Mortality rates at t0'!AK26-1) -> 0.01069987993 | AL26: =IF('Mortality rates at t0'!AL26=0,0,OFFSET(INDIRECT("'Forecasts " & $AB26 & "'!AA58"),Year_max-Year_1,MATCH('Mortality trends'!AL$20,Ages_group,0))/'Mortality rates at t0'!AL26-1) -> 0.01456834957 | AM26: =IF('Mortality rates at t0'!AM26=0,0,OFFSET(INDIRECT("'Forecasts " & $AB26 & "'!AA58"),Year_max-Year_1,MATCH('Mortality trends'!AM$20,Ages_group,0))/'Mortality rates at t0'!AM26-1) -> 0.01149674492 | AN26: =IF('Mortality rates at t0'!AN26=0,0,OFFSET(INDIRECT("'Forecasts " & $AB26 & "'!AA58"),Year_max-Year_1,MATCH('Mortality trends'!AN$20,Ages_group,0))/'Mortality rates at t0'!AN26-1) -> 0.01061034509 | AO26: =IF('Mortality rates at t0'!AO26=0,0,OFFSET(INDIRECT("'Forecasts " & $AB26 & "'!AA58"),Year_max-Year_1,MATCH('Mortality trends'!AO$20,Ages_group,0))/'Mortality rates at t0'!AO26-1) -> -0.00128966193 | AP26: =IF('Mortality rates at t0'!AP26=0,0,OFFSET(INDIRECT("'Forecasts " & $AB26 & "'!AA58"),Year_max-Year_1,MATCH('Mortality trends'!AP$20,Ages_group,0))/'Mortality rates at t0'!AP26-1) -> -0.01855414144 | AQ26: =IF('Mortality rates at t0'!AQ26=0,0,OFFSET(INDIRECT("'Forecasts " & $AB26 & "'!AA58"),Year_max-Year_1,MATCH('Mortality trends'!AQ$20,Ages_group,0))/'Mortality rates at t0'!AQ26-1) -> -0.03538321982 | AR26: =IF('Mortality rates at t0'!AR26=0,0,OFFSET(INDIRECT("'Forecasts " & $AB26 & "'!AA58"),Year_max-Year_1,MATCH('Mortality trends'!AR$20,Ages_group,0))/'Mortality rates at t0'!AR26-1) -> -0.05379377389 | AS26: =IF('Mortality rates at t0'!AS26=0,0,OFFSET(INDIRECT("'Forecasts " & $AB26 & "'!AA58"),Year_max-Year_1,MATCH('Mortality trends'!AS$20,Ages_group,0))/'Mortality rates at t0'!AS26-1) -> -0.0465716723 | AT26: =IF('Mortality rates at t0'!AT26=0,0,OFFSET(INDIRECT("'Forecasts " & $AB26 & "'!AA58"),Year_max-Year_1,MATCH('Mortality trends'!AT$20,Ages_group,0))/'Mortality rates at t0'!AT26-1) -> -0.04373335386 | AU26: =IF('Mortality rates at t0'!AU26=0,0,OFFSET(INDIRECT("'Forecasts " & $AB26 & "'!AA58"),Year_max-Year_1,MATCH('Mortality trends'!AU$20,Ages_group,0))/'Mortality rates at t0'!AU26-1) -> -0.03906499765 | AV26: =IF('Mortality rates at t0'!AV26=0,0,OFFSET(INDIRECT("'Forecasts " & $AB26 & "'!AA58"),Year_max-Year_1,MATCH('Mortality trends'!AV$20,Ages_group,0))/'Mortality rates at t0'!AV26-1) -> -0.03365589026 | AW26: =IF('Mortality rates at t0'!AW26=0,0,OFFSET(INDIRECT("'Forecasts " & $AB26 & "'!AA58"),Year_max-Year_1,MATCH('Mortality trends'!AW$20,Ages_group,0))/'Mortality rates at t0'!AW26-1) -> -0.02108754854 | AX26: =IF('Mortality rates at t0'!AX26=0,0,OFFSET(INDIRECT("'Forecasts " & $AB26 & "'!AA58"),Year_max-Year_1,MATCH('Mortality trends'!AX$20,Ages_group,0))/'Mortality rates at t0'!AX26-1) -> -0.0006687041861
C27: Influenza | E27: =IF('Mortality rates at t0'!E27=0,0,OFFSET(INDIRECT("'Forecasts " & $C27 & "'!C58"),Year_max-Year_0,MATCH('Mortality trends'!E$20,Ages_group,0))/'Mortality rates at t0'!E27-1) -> -0.0005338679204 | F27: =IF('Mortality rates at t0'!F27=0,0,OFFSET(INDIRECT("'Forecasts " & $C27 & "'!C58"),Year_max-Year_0,MATCH('Mortality trends'!F$20,Ages_group,0))/'Mortality rates at t0'!F27-1) -> -0.0001742845385 | G27: =IF('Mortality rates at t0'!G27=0,0,OFFSET(INDIRECT("'Forecasts " & $C27 & "'!C58"),Year_max-Year_0,MATCH('Mortality trends'!G$20,Ages_group,0))/'Mortality rates at t0'!G27-1) -> 0.0002124846694 | H27: =IF('Mortality rates at t0'!H27=0,0,OFFSET(INDIRECT("'Forecasts " & $C27 & "'!C58"),Year_max-Year_0,MATCH('Mortality trends'!H$20,Ages_group,0))/'Mortality rates at t0'!H27-1) -> 0.000100644081 | I27: =IF('Mortality rates at t0'!I27=0,0,OFFSET(INDIRECT("'Forecasts " & $C27 & "'!C58"),Year_max-Year_0,MATCH('Mortality trends'!I$20,Ages_group,0))/'Mortality rates at t0'!I27-1) -> -1.034540049e-05 | J27: =IF('Mortality rates at t0'!J27=0,0,OFFSET(INDIRECT("'Forecasts " & $C27 & "'!C58"),Year_max-Year_0,MATCH('Mortality trends'!J$20,Ages_group,0))/'Mortality rates at t0'!J27-1) -> 6.095609964e-05 | K27: =IF('Mortality rates at t0'!K27=0,0,OFFSET(INDIRECT("'Forecasts " & $C27 & "'!C58"),Year_max-Year_0,MATCH('Mortality trends'!K$20,Ages_group,0))/'Mortality rates at t0'!K27-1) -> 0.0003810267355 | L27: =IF('Mortality rates at t0'!L27=0,0,OFFSET(INDIRECT("'Forecasts " & $C27 & "'!C58"),Year_max-Year_0,MATCH('Mortality trends'!L$20,Ages_group,0))/'Mortality rates at t0'!L27-1) -> 0.0003081655241 | M27: =IF('Mortality rates at t0'!M27=0,0,OFFSET(INDIRECT("'Forecasts " & $C27 & "'!C58"),Year_max-Year_0,MATCH('Mortality trends'!M$20,Ages_group,0))/'Mortality rates at t0'!M27-1) -> 3.638146341e-06 | N27: =IF('Mortality rates at t0'!N27=0,0,OFFSET(INDIRECT("'Forecasts " & $C27 & "'!C58"),Year_max-Year_0,MATCH('Mortality trends'!N$20,Ages_group,0))/'Mortality rates at t0'!N27-1) -> 6.041991122e-05 | O27: =IF('Mortality rates at t0'!O27=0,0,OFFSET(INDIRECT("'Forecasts " & $C27 & "'!C58"),Year_max-Year_0,MATCH('Mortality trends'!O$20,Ages_group,0))/'Mortality rates at t0'!O27-1) -> 5.330426737e-05 | P27: =IF('Mortality rates at t0'!P27=0,0,OFFSET(INDIRECT("'Forecasts " & $C27 & "'!C58"),Year_max-Year_0,MATCH('Mortality trends'!P$20,Ages_group,0))/'Mortality rates at t0'!P27-1) -> 0.000180528071 | Q27: =IF('Mortality rates at t0'!Q27=0,0,OFFSET(INDIRECT("'Forecasts " & $C27 & "'!C58"),Year_max-Year_0,MATCH('Mortality trends'!Q$20,Ages_group,0))/'Mortality rates at t0'!Q27-1) -> 0.000118444831 | R27: =IF('Mortality rates at t0'!R27=0,0,OFFSET(INDIRECT("'Forecasts " & $C27 & "'!C58"),Year_max-Year_0,MATCH('Mortality trends'!R$20,Ages_group,0))/'Mortality rates at t0'!R27-1) -> -5.145641633e-05 | S27: =IF('Mortality rates at t0'!S27=0,0,OFFSET(INDIRECT("'Forecasts " & $C27 & "'!C58"),Year_max-Year_0,MATCH('Mortality trends'!S$20,Ages_group,0))/'Mortality rates at t0'!S27-1) -> -0.0001047215571 | T27: =IF('Mortality rates at t0'!T27=0,0,OFFSET(INDIRECT("'Forecasts " & $C27 & "'!C58"),Year_max-Year_0,MATCH('Mortality trends'!T$20,Ages_group,0))/'Mortality rates at t0'!T27-1) -> -0.0002554455462 | U27: =IF('Mortality rates at t0'!U27=0,0,OFFSET(INDIRECT("'Forecasts " & $C27 & "'!C58"),Year_max-Year_0,MATCH('Mortality trends'!U$20,Ages_group,0))/'Mortality rates at t0'!U27-1) -> -0.0003652884261 | V27: =IF('Mortality rates at t0'!V27=0,0,OFFSET(INDIRECT("'Forecasts " & $C27 & "'!C58"),Year_max-Year_0,MATCH('Mortality trends'!V$20,Ages_group,0))/'Mortality rates at t0'!V27-1) -> -0.00049614902 | W27: =IF('Mortality rates at t0'!W27=0,0,OFFSET(INDIRECT("'Forecasts " & $C27 & "'!C58"),Year_max-Year_0,MATCH('Mortality trends'!W$20,Ages_group,0))/'Mortality rates at t0'!W27-1) -> -0.0005902770944 | X27: =IF('Mortality rates at t0'!X27=0,0,OFFSET(INDIRECT("'Forecasts " & $C27 & "'!C58"),Year_max-Year_0,MATCH('Mortality trends'!X$20,Ages_group,0))/'Mortality rates at t0'!X27-1) -> -0.0006045878246 | Y27: =IF('Mortality rates at t0'!Y27=0,0,OFFSET(INDIRECT("'Forecasts " & $C27 & "'!C58"),Year_max-Year_0,MATCH('Mortality trends'!Y$20,Ages_group,0))/'Mortality rates at t0'!Y27-1) -> -0.0005928264179 | AB27: Influenza | AD27: =IF('Mortality rates at t0'!AD27=0,0,OFFSET(INDIRECT("'Forecasts " & $AB27 & "'!AA58"),Year_max-Year_1,MATCH('Mortality trends'!AD$20,Ages_group,0))/'Mortality rates at t0'!AD27-1) -> -0.0004515946887 | AE27: =IF('Mortality rates at t0'!AE27=0,0,OFFSET(INDIRECT("'Forecasts " & $AB27 & "'!AA58"),Year_max-Year_1,MATCH('Mortality trends'!AE$20,Ages_group,0))/'Mortality rates at t0'!AE27-1) -> -0.0001474218382 | AF27: =IF('Mortality rates at t0'!AF27=0,0,OFFSET(INDIRECT("'Forecasts " & $AB27 & "'!AA58"),Year_max-Year_1,MATCH('Mortality trends'!AF$20,Ages_group,0))/'Mortality rates at t0'!AF27-1) -> 0 | AG27: =IF('Mortality rates at t0'!AG27=0,0,OFFSET(INDIRECT("'Forecasts " & $AB27 & "'!AA58"),Year_max-Year_1,MATCH('Mortality trends'!AG$20,Ages_group,0))/'Mortality rates at t0'!AG27-1) -> 0 | AH27: =IF('Mortality rates at t0'!AH27=0,0,OFFSET(INDIRECT("'Forecasts " & $AB27 & "'!AA58"),Year_max-Year_1,MATCH('Mortality trends'!AH$20,Ages_group,0))/'Mortality rates at t0'!AH27-1) -> 0 | AI27: =IF('Mortality rates at t0'!AI27=0,0,OFFSET(INDIRECT("'Forecasts " & $AB27 & "'!AA58"),Year_max-Year_1,MATCH('Mortality trends'!AI$20,Ages_group,0))/'Mortality rates at t0'!AI27-1) -> 0 | AJ27: =IF('Mortality rates at t0'!AJ27=0,0,OFFSET(INDIRECT("'Forecasts " & $AB27 & "'!AA58"),Year_max-Year_1,MATCH('Mortality trends'!AJ$20,Ages_group,0))/'Mortality rates at t0'!AJ27-1) -> 0.0003222848016 | AK27: =IF('Mortality rates at t0'!AK27=0,0,OFFSET(INDIRECT("'Forecasts " & $AB27 & "'!AA58"),Year_max-Year_1,MATCH('Mortality trends'!AK$20,Ages_group,0))/'Mortality rates at t0'!AK27-1) -> 0.0002606578833 | AL27: =IF('Mortality rates at t0'!AL27=0,0,OFFSET(INDIRECT("'Forecasts " & $AB27 & "'!AA58"),Year_max-Year_1,MATCH('Mortality trends'!AL$20,Ages_group,0))/'Mortality rates at t0'!AL27-1) -> 3.07735196e-06 | AM27: =IF('Mortality rates at t0'!AM27=0,0,OFFSET(INDIRECT("'Forecasts " & $AB27 & "'!AA58"),Year_max-Year_1,MATCH('Mortality trends'!AM$20,Ages_group,0))/'Mortality rates at t0'!AM27-1) -> 5.110638801e-05 | AN27: =IF('Mortality rates at t0'!AN27=0,0,OFFSET(INDIRECT("'Forecasts " & $AB27 & "'!AA58"),Year_max-Year_1,MATCH('Mortality trends'!AN$20,Ages_group,0))/'Mortality rates at t0'!AN27-1) -> 4.508762111e-05 | AO27: =IF('Mortality rates at t0'!AO27=0,0,OFFSET(INDIRECT("'Forecasts " & $AB27 & "'!AA58"),Year_max-Year_1,MATCH('Mortality trends'!AO$20,Ages_group,0))/'Mortality rates at t0'!AO27-1) -> 0.0001526988713 | AP27: =IF('Mortality rates at t0'!AP27=0,0,OFFSET(INDIRECT("'Forecasts " & $AB27 & "'!AA58"),Year_max-Year_1,MATCH('Mortality trends'!AP$20,Ages_group,0))/'Mortality rates at t0'!AP27-1) -> 0.0001001865163 | AQ27: =IF('Mortality rates at t0'!AQ27=0,0,OFFSET(INDIRECT("'Forecasts " & $AB27 & "'!AA58"),Year_max-Year_1,MATCH('Mortality trends'!AQ$20,Ages_group,0))/'Mortality rates at t0'!AQ27-1) -> -4.352496058e-05 | AR27: =IF('Mortality rates at t0'!AR27=0,0,OFFSET(INDIRECT("'Forecasts " & $AB27 & "'!AA58"),Year_max-Year_1,MATCH('Mortality trends'!AR$20,Ages_group,0))/'Mortality rates at t0'!AR27-1) -> -8.858021375e-05 | AS27: =IF('Mortality rates at t0'!AS27=0,0,OFFSET(INDIRECT("'Forecasts " & $AB27 & "'!AA58"),Year_max-Year_1,MATCH('Mortality trends'!AS$20,Ages_group,0))/'Mortality rates at t0'!AS27-1) -> -0.0002160747471 | AT27: =IF('Mortality rates at t0'!AT27=0,0,OFFSET(INDIRECT("'Forecasts " & $AB27 & "'!AA58"),Year_max-Year_1,MATCH('Mortality trends'!AT$20,Ages_group,0))/'Mortality rates at t0'!AT27-1) -> -0.0003089906002 | AU27: =IF('Mortality rates at t0'!AU27=0,0,OFFSET(INDIRECT("'Forecasts " & $AB27 & "'!AA58"),Year_max-Year_1,MATCH('Mortality trends'!AU$20,Ages_group,0))/'Mortality rates at t0'!AU27-1) -> -0.0004196873461 | AV27: =IF('Mortality rates at t0'!AV27=0,0,OFFSET(INDIRECT("'Forecasts " & $AB27 & "'!AA58"),Year_max-Year_1,MATCH('Mortality trends'!AV$20,Ages_group,0))/'Mortality rates at t0'!AV27-1) -> -0.0004993129384 | AW27: =IF('Mortality rates at t0'!AW27=0,0,OFFSET(INDIRECT("'Forecasts " & $AB27 & "'!AA58"),Year_max-Year_1,MATCH('Mortality trends'!AW$20,Ages_group,0))/'Mortality rates at t0'!AW27-1) -> -0.0005114188899 | AX27: =IF('Mortality rates at t0'!AX27=0,0,OFFSET(INDIRECT("'Forecasts " & $AB27 & "'!AA58"),Year_max-Year_1,MATCH('Mortality trends'!AX$20,Ages_group,0))/'Mortality rates at t0'!AX27-1) -> -0.0005014694992
C28: Respiratory | E28: =IF('Mortality rates at t0'!E28=0,0,OFFSET(INDIRECT("'Forecasts " & $C28 & "'!C58"),Year_max-Year_0,MATCH('Mortality trends'!E$20,Ages_group,0))/'Mortality rates at t0'!E28-1) -> -0.01231407337 | F28: =IF('Mortality rates at t0'!F28=0,0,OFFSET(INDIRECT("'Forecasts " & $C28 & "'!C58"),Year_max-Year_0,MATCH('Mortality trends'!F$20,Ages_group,0))/'Mortality rates at t0'!F28-1) -> 0.06035724547 | G28: =IF('Mortality rates at t0'!G28=0,0,OFFSET(INDIRECT("'Forecasts " & $C28 & "'!C58"),Year_max-Year_0,MATCH('Mortality trends'!G$20,Ages_group,0))/'Mortality rates at t0'!G28-1) -> 0.1281282695 | H28: =IF('Mortality rates at t0'!H28=0,0,OFFSET(INDIRECT("'Forecasts " & $C28 & "'!C58"),Year_max-Year_0,MATCH('Mortality trends'!H$20,Ages_group,0))/'Mortality rates at t0'!H28-1) -> 0.0254685148 | I28: =IF('Mortality rates at t0'!I28=0,0,OFFSET(INDIRECT("'Forecasts " & $C28 & "'!C58"),Year_max-Year_0,MATCH('Mortality trends'!I$20,Ages_group,0))/'Mortality rates at t0'!I28-1) -> -0.1634194414 | J28: =IF('Mortality rates at t0'!J28=0,0,OFFSET(INDIRECT("'Forecasts " & $C28 & "'!C58"),Year_max-Year_0,MATCH('Mortality trends'!J$20,Ages_group,0))/'Mortality rates at t0'!J28-1) -> -0.1395605559 | K28: =IF('Mortality rates at t0'!K28=0,0,OFFSET(INDIRECT("'Forecasts " & $C28 & "'!C58"),Year_max-Year_0,MATCH('Mortality trends'!K$20,Ages_group,0))/'Mortality rates at t0'!K28-1) -> -0.09722344798 | L28: =IF('Mortality rates at t0'!L28=0,0,OFFSET(INDIRECT("'Forecasts " & $C28 & "'!C58"),Year_max-Year_0,MATCH('Mortality trends'!L$20,Ages_group,0))/'Mortality rates at t0'!L28-1) -> -0.08569896951 | M28: =IF('Mortality rates at t0'!M28=0,0,OFFSET(INDIRECT("'Forecasts " & $C28 & "'!C58"),Year_max-Year_0,MATCH('Mortality trends'!M$20,Ages_group,0))/'Mortality rates at t0'!M28-1) -> -0.01781630206 | N28: =IF('Mortality rates at t0'!N28=0,0,OFFSET(INDIRECT("'Forecasts " & $C28 & "'!C58"),Year_max-Year_0,MATCH('Mortality trends'!N$20,Ages_group,0))/'Mortality rates at t0'!N28-1) -> -0.07310188109 | O28: =IF('Mortality rates at t0'!O28=0,0,OFFSET(INDIRECT("'Forecasts " & $C28 & "'!C58"),Year_max-Year_0,MATCH('Mortality trends'!O$20,Ages_group,0))/'Mortality rates at t0'!O28-1) -> 0.09454139928 | P28: =IF('Mortality rates at t0'!P28=0,0,OFFSET(INDIRECT("'Forecasts " & $C28 & "'!C58"),Year_max-Year_0,MATCH('Mortality trends'!P$20,Ages_group,0))/'Mortality rates at t0'!P28-1) -> 0.186073835 | Q28: =IF('Mortality rates at t0'!Q28=0,0,OFFSET(INDIRECT("'Forecasts " & $C28 & "'!C58"),Year_max-Year_0,MATCH('Mortality trends'!Q$20,Ages_group,0))/'Mortality rates at t0'!Q28-1) -> 0.04828225623 | R28: =IF('Mortality rates at t0'!R28=0,0,OFFSET(INDIRECT("'Forecasts " & $C28 & "'!C58"),Year_max-Year_0,MATCH('Mortality trends'!R$20,Ages_group,0))/'Mortality rates at t0'!R28-1) -> -0.08558486963 | S28: =IF('Mortality rates at t0'!S28=0,0,OFFSET(INDIRECT("'Forecasts " & $C28 & "'!C58"),Year_max-Year_0,MATCH('Mortality trends'!S$20,Ages_group,0))/'Mortality rates at t0'!S28-1) -> -0.06531875899 | T28: =IF('Mortality rates at t0'!T28=0,0,OFFSET(INDIRECT("'Forecasts " & $C28 & "'!C58"),Year_max-Year_0,MATCH('Mortality trends'!T$20,Ages_group,0))/'Mortality rates at t0'!T28-1) -> -0.01894330259 | U28: =IF('Mortality rates at t0'!U28=0,0,OFFSET(INDIRECT("'Forecasts " & $C28 & "'!C58"),Year_max-Year_0,MATCH('Mortality trends'!U$20,Ages_group,0))/'Mortality rates at t0'!U28-1) -> 0.002566650007 | V28: =IF('Mortality rates at t0'!V28=0,0,OFFSET(INDIRECT("'Forecasts " & $C28 & "'!C58"),Year_max-Year_0,MATCH('Mortality trends'!V$20,Ages_group,0))/'Mortality rates at t0'!V28-1) -> 0.01402195581 | W28: =IF('Mortality rates at t0'!W28=0,0,OFFSET(INDIRECT("'Forecasts " & $C28 & "'!C58"),Year_max-Year_0,MATCH('Mortality trends'!W$20,Ages_group,0))/'Mortality rates at t0'!W28-1) -> 0.02121740499 | X28: =IF('Mortality rates at t0'!X28=0,0,OFFSET(INDIRECT("'Forecasts " & $C28 & "'!C58"),Year_max-Year_0,MATCH('Mortality trends'!X$20,Ages_group,0))/'Mortality rates at t0'!X28-1) -> 0.06658373997 | Y28: =IF('Mortality rates at t0'!Y28=0,0,OFFSET(INDIRECT("'Forecasts " & $C28 & "'!C58"),Year_max-Year_0,MATCH('Mortality trends'!Y$20,Ages_group,0))/'Mortality rates at t0'!Y28-1) -> 0.0921419467 | AB28: Respiratory | AD28: =IF('Mortality rates at t0'!AD28=0,0,OFFSET(INDIRECT("'Forecasts " & $AB28 & "'!AA58"),Year_max-Year_1,MATCH('Mortality trends'!AD$20,Ages_group,0))/'Mortality rates at t0'!AD28-1) -> -0.01013931806 | AE28: =IF('Mortality rates at t0'!AE28=0,0,OFFSET(INDIRECT("'Forecasts " & $AB28 & "'!AA58"),Year_max-Year_1,MATCH('Mortality trends'!AE$20,Ages_group,0))/'Mortality rates at t0'!AE28-1) -> 0.04938335499 | AF28: =IF('Mortality rates at t0'!AF28=0,0,OFFSET(INDIRECT("'Forecasts " & $AB28 & "'!AA58"),Year_max-Year_1,MATCH('Mortality trends'!AF$20,Ages_group,0))/'Mortality rates at t0'!AF28-1) -> 0 | AG28: =IF('Mortality rates at t0'!AG28=0,0,OFFSET(INDIRECT("'Forecasts " & $AB28 & "'!AA58"),Year_max-Year_1,MATCH('Mortality trends'!AG$20,Ages_group,0))/'Mortality rates at t0'!AG28-1) -> 0 | AH28: =IF('Mortality rates at t0'!AH28=0,0,OFFSET(INDIRECT("'Forecasts " & $AB28 & "'!AA58"),Year_max-Year_1,MATCH('Mortality trends'!AH$20,Ages_group,0))/'Mortality rates at t0'!AH28-1) -> 0 | AI28: =IF('Mortality rates at t0'!AI28=0,0,OFFSET(INDIRECT("'Forecasts " & $AB28 & "'!AA58"),Year_max-Year_1,MATCH('Mortality trends'!AI$20,Ages_group,0))/'Mortality rates at t0'!AI28-1) -> -0.1162932985 | AJ28: =IF('Mortality rates at t0'!AJ28=0,0,OFFSET(INDIRECT("'Forecasts " & $AB28 & "'!AA58"),Year_max-Year_1,MATCH('Mortality trends'!AJ$20,Ages_group,0))/'Mortality rates at t0'!AJ28-1) -> -0.08068310022 | AK28: =IF('Mortality rates at t0'!AK28=0,0,OFFSET(INDIRECT("'Forecasts " & $AB28 & "'!AA58"),Year_max-Year_1,MATCH('Mortality trends'!AK$20,Ages_group,0))/'Mortality rates at t0'!AK28-1) -> -0.07104155441 | AL28: =IF('Mortality rates at t0'!AL28=0,0,OFFSET(INDIRECT("'Forecasts " & $AB28 & "'!AA58"),Year_max-Year_1,MATCH('Mortality trends'!AL$20,Ages_group,0))/'Mortality rates at t0'!AL28-1) -> -0.01467705484 | AM28: =IF('Mortality rates at t0'!AM28=0,0,OFFSET(INDIRECT("'Forecasts " & $AB28 & "'!AA58"),Year_max-Year_1,MATCH('Mortality trends'!AM$20,Ages_group,0))/'Mortality rates at t0'!AM28-1) -> -0.06052728721 | AN28: =IF('Mortality rates at t0'!AN28=0,0,OFFSET(INDIRECT("'Forecasts " & $AB28 & "'!AA58"),Year_max-Year_1,MATCH('Mortality trends'!AN$20,Ages_group,0))/'Mortality rates at t0'!AN28-1) -> 0.07712985196 | AO28: =IF('Mortality rates at t0'!AO28=0,0,OFFSET(INDIRECT("'Forecasts " & $AB28 & "'!AA58"),Year_max-Year_1,MATCH('Mortality trends'!AO$20,Ages_group,0))/'Mortality rates at t0'!AO28-1) -> 0.1506840886 | AP28: =IF('Mortality rates at t0'!AP28=0,0,OFFSET(INDIRECT("'Forecasts " & $AB28 & "'!AA58"),Year_max-Year_1,MATCH('Mortality trends'!AP$20,Ages_group,0))/'Mortality rates at t0'!AP28-1) -> 0.03954460968 | AQ28: =IF('Mortality rates at t0'!AQ28=0,0,OFFSET(INDIRECT("'Forecasts " & $AB28 & "'!AA58"),Year_max-Year_1,MATCH('Mortality trends'!AQ$20,Ages_group,0))/'Mortality rates at t0'!AQ28-1) -> -0.07094620506 | AR28: =IF('Mortality rates at t0'!AR28=0,0,OFFSET(INDIRECT("'Forecasts " & $AB28 & "'!AA58"),Year_max-Year_1,MATCH('Mortality trends'!AR$20,Ages_group,0))/'Mortality rates at t0'!AR28-1) -> -0.05404372636 | AS28: =IF('Mortality rates at t0'!AS28=0,0,OFFSET(INDIRECT("'Forecasts " & $AB28 & "'!AA58"),Year_max-Year_1,MATCH('Mortality trends'!AS$20,Ages_group,0))/'Mortality rates at t0'!AS28-1) -> -0.01560705826 | AT28: =IF('Mortality rates at t0'!AT28=0,0,OFFSET(INDIRECT("'Forecasts " & $AB28 & "'!AA58"),Year_max-Year_1,MATCH('Mortality trends'!AT$20,Ages_group,0))/'Mortality rates at t0'!AT28-1) -> 0.002110561979 | AU28: =IF('Mortality rates at t0'!AU28=0,0,OFFSET(INDIRECT("'Forecasts " & $AB28 & "'!AA58"),Year_max-Year_1,MATCH('Mortality trends'!AU$20,Ages_group,0))/'Mortality rates at t0'!AU28-1) -> 0.0115186353 | AV28: =IF('Mortality rates at t0'!AV28=0,0,OFFSET(INDIRECT("'Forecasts " & $AB28 & "'!AA58"),Year_max-Year_1,MATCH('Mortality trends'!AV$20,Ages_group,0))/'Mortality rates at t0'!AV28-1) -> 0.0174184979 | AW28: =IF('Mortality rates at t0'!AW28=0,0,OFFSET(INDIRECT("'Forecasts " & $AB28 & "'!AA58"),Year_max-Year_1,MATCH('Mortality trends'!AW$20,Ages_group,0))/'Mortality rates at t0'!AW28-1) -> 0.05444894449 | AX28: =IF('Mortality rates at t0'!AX28=0,0,OFFSET(INDIRECT("'Forecasts " & $AB28 & "'!AA58"),Year_max-Year_1,MATCH('Mortality trends'!AX$20,Ages_group,0))/'Mortality rates at t0'!AX28-1) -> 0.07518734354
C29: Drug | E29: =IF('Mortality rates at t0'!E29=0,0,OFFSET(INDIRECT("'Forecasts " & $C29 & "'!C58"),Year_max-Year_0,MATCH('Mortality trends'!E$20,Ages_group,0))/'Mortality rates at t0'!E29-1) -> 0 | F29: =IF('Mortality rates at t0'!F29=0,0,OFFSET(INDIRECT("'Forecasts " & $C29 & "'!C58"),Year_max-Year_0,MATCH('Mortality trends'!F$20,Ages_group,0))/'Mortality rates at t0'!F29-1) -> 0 | G29: =IF('Mortality rates at t0'!G29=0,0,OFFSET(INDIRECT("'Forecasts " & $C29 & "'!C58"),Year_max-Year_0,MATCH('Mortality trends'!G$20,Ages_group,0))/'Mortality rates at t0'!G29-1) -> 0 | H29: =IF('Mortality rates at t0'!H29=0,0,OFFSET(INDIRECT("'Forecasts " & $C29 & "'!C58"),Year_max-Year_0,MATCH('Mortality trends'!H$20,Ages_group,0))/'Mortality rates at t0'!H29-1) -> 0 | I29: =IF('Mortality rates at t0'!I29=0,0,OFFSET(INDIRECT("'Forecasts " & $C29 & "'!C58"),Year_max-Year_0,MATCH('Mortality trends'!I$20,Ages_group,0))/'Mortality rates at t0'!I29-1) -> 0 | J29: =IF('Mortality rates at t0'!J29=0,0,OFFSET(INDIRECT("'Forecasts " & $C29 & "'!C58"),Year_max-Year_0,MATCH('Mortality trends'!J$20,Ages_group,0))/'Mortality rates at t0'!J29-1) -> 0 | K29: =IF('Mortality rates at t0'!K29=0,0,OFFSET(INDIRECT("'Forecasts " & $C29 & "'!C58"),Year_max-Year_0,MATCH('Mortality trends'!K$20,Ages_group,0))/'Mortality rates at t0'!K29-1) -> 0 | L29: =IF('Mortality rates at t0'!L29=0,0,OFFSET(INDIRECT("'Forecasts " & $C29 & "'!C58"),Year_max-Year_0,MATCH('Mortality trends'!L$20,Ages_group,0))/'Mortality rates at t0'!L29-1) -> 0 | M29: =IF('Mortality rates at t0'!M29=0,0,OFFSET(INDIRECT("'Forecasts " & $C29 & "'!C58"),Year_max-Year_0,MATCH('Mortality trends'!M$20,Ages_group,0))/'Mortality rates at t0'!M29-1) -> 0 | N29: =IF('Mortality rates at t0'!N29=0,0,OFFSET(INDIRECT("'Forecasts " & $C29 & "'!C58"),Year_max-Year_0,MATCH('Mortality trends'!N$20,Ages_group,0))/'Mortality rates at t0'!N29-1) -> 0 | O29: =IF('Mortality rates at t0'!O29=0,0,OFFSET(INDIRECT("'Forecasts " & $C29 & "'!C58"),Year_max-Year_0,MATCH('Mortality trends'!O$20,Ages_group,0))/'Mortality rates at t0'!O29-1) -> 0 | P29: =IF('Mortality rates at t0'!P29=0,0,OFFSET(INDIRECT("'Forecasts " & $C29 & "'!C58"),Year_max-Year_0,MATCH('Mortality trends'!P$20,Ages_group,0))/'Mortality rates at t0'!P29-1) -> 0 | Q29: =IF('Mortality rates at t0'!Q29=0,0,OFFSET(INDIRECT("'Forecasts " & $C29 & "'!C58"),Year_max-Year_0,MATCH('Mortality trends'!Q$20,Ages_group,0))/'Mortality rates at t0'!Q29-1) -> 0 | R29: =IF('Mortality rates at t0'!R29=0,0,OFFSET(INDIRECT("'Forecasts " & $C29 & "'!C58"),Year_max-Year_0,MATCH('Mortality trends'!R$20,Ages_group,0))/'Mortality rates at t0'!R29-1) -> 0 | S29: =IF('Mortality rates at t0'!S29=0,0,OFFSET(INDIRECT("'Forecasts " & $C29 & "'!C58"),Year_max-Year_0,MATCH('Mortality trends'!S$20,Ages_group,0))/'Mortality rates at t0'!S29-1) -> 0 | T29: =IF('Mortality rates at t0'!T29=0,0,OFFSET(INDIRECT("'Forecasts " & $C29 & "'!C58"),Year_max-Year_0,MATCH('Mortality trends'!T$20,Ages_group,0))/'Mortality rates at t0'!T29-1) -> 0 | U29: =IF('Mortality rates at t0'!U29=0,0,OFFSET(INDIRECT("'Forecasts " & $C29 & "'!C58"),Year_max-Year_0,MATCH('Mortality trends'!U$20,Ages_group,0))/'Mortality rates at t0'!U29-1) -> 0 | V29: =IF('Mortality rates at t0'!V29=0,0,OFFSET(INDIRECT("'Forecasts " & $C29 & "'!C58"),Year_max-Year_0,MATCH('Mortality trends'!V$20,Ages_group,0))/'Mortality rates at t0'!V29-1) -> 0 | W29: =IF('Mortality rates at t0'!W29=0,0,OFFSET(INDIRECT("'Forecasts " & $C29 & "'!C58"),Year_max-Year_0,MATCH('Mortality trends'!W$20,Ages_group,0))/'Mortality rates at t0'!W29-1) -> 0 | X29: =IF('Mortality rates at t0'!X29=0,0,OFFSET(INDIRECT("'Forecasts " & $C29 & "'!C58"),Year_max-Year_0,MATCH('Mortality trends'!X$20,Ages_group,0))/'Mortality rates at t0'!X29-1) -> 0 | Y29: =IF('Mortality rates at t0'!Y29=0,0,OFFSET(INDIRECT("'Forecasts " & $C29 & "'!C58"),Year_max-Year_0,MATCH('Mortality trends'!Y$20,Ages_group,0))/'Mortality rates at t0'!Y29-1) -> 0 | AB29: Drug | AD29: =IF('Mortality rates at t0'!AD29=0,0,OFFSET(INDIRECT("'Forecasts " & $AB29 & "'!AA58"),Year_max-Year_1,MATCH('Mortality trends'!AD$20,Ages_group,0))/'Mortality rates at t0'!AD29-1) -> 0 | AE29: =IF('Mortality rates at t0'!AE29=0,0,OFFSET(INDIRECT("'Forecasts " & $AB29 & "'!AA58"),Year_max-Year_1,MATCH('Mortality trends'!AE$20,Ages_group,0))/'Mortality rates at t0'!AE29-1) -> 0 | AF29: =IF('Mortality rates at t0'!AF29=0,0,OFFSET(INDIRECT("'Forecasts " & $AB29 & "'!AA58"),Year_max-Year_1,MATCH('Mortality trends'!AF$20,Ages_group,0))/'Mortality rates at t0'!AF29-1) -> 0 | AG29: =IF('Mortality rates at t0'!AG29=0,0,OFFSET(INDIRECT("'Forecasts " & $AB29 & "'!AA58"),Year_max-Year_1,MATCH('Mortality trends'!AG$20,Ages_group,0))/'Mortality rates at t0'!AG29-1) -> 0 | AH29: =IF('Mortality rates at t0'!AH29=0,0,OFFSET(INDIRECT("'Forecasts " & $AB29 & "'!AA58"),Year_max-Year_1,MATCH('Mortality trends'!AH$20,Ages_group,0))/'Mortality rates at t0'!AH29-1) -> 0 | AI29: =IF('Mortality rates at t0'!AI29=0,0,OFFSET(INDIRECT("'Forecasts " & $AB29 & "'!AA58"),Year_max-Year_1,MATCH('Mortality trends'!AI$20,Ages_group,0))/'Mortality rates at t0'!AI29-1) -> 0 | AJ29: =IF('Mortality rates at t0'!AJ29=0,0,OFFSET(INDIRECT("'Forecasts " & $AB29 & "'!AA58"),Year_max-Year_1,MATCH('Mortality trends'!AJ$20,Ages_group,0))/'Mortality rates at t0'!AJ29-1) -> 0 | AK29: =IF('Mortality rates at t0'!AK29=0,0,OFFSET(INDIRECT("'Forecasts " & $AB29 & "'!AA58"),Year_max-Year_1,MATCH('Mortality trends'!AK$20,Ages_group,0))/'Mortality rates at t0'!AK29-1) -> 0 | AL29: =IF('Mortality rates at t0'!AL29=0,0,OFFSET(INDIRECT("'Forecasts " & $AB29 & "'!AA58"),Year_max-Year_1,MATCH('Mortality trends'!AL$20,Ages_group,0))/'Mortality rates at t0'!AL29-1) -> 0 | AM29: =IF('Mortality rates at t0'!AM29=0,0,OFFSET(INDIRECT("'Forecasts " & $AB29 & "'!AA58"),Year_max-Year_1,MATCH('Mortality trends'!AM$20,Ages_group,0))/'Mortality rates at t0'!AM29-1) -> 0 | AN29: =IF('Mortality rates at t0'!AN29=0,0,OFFSET(INDIRECT("'Forecasts " & $AB29 & "'!AA58"),Year_max-Year_1,MATCH('Mortality trends'!AN$20,Ages_group,0))/'Mortality rates at t0'!AN29-1) -> 0 | AO29: =IF('Mortality rates at t0'!AO29=0,0,OFFSET(INDIRECT("'Forecasts " & $AB29 & "'!AA58"),Year_max-Year_1,MATCH('Mortality trends'!AO$20,Ages_group,0))/'Mortality rates at t0'!AO29-1) -> 0 | AP29: =IF('Mortality rates at t0'!AP29=0,0,OFFSET(INDIRECT("'Forecasts " & $AB29 & "'!AA58"),Year_max-Year_1,MATCH('Mortality trends'!AP$20,Ages_group,0))/'Mortality rates at t0'!AP29-1) -> 0 | AQ29: =IF('Mortality rates at t0'!AQ29=0,0,OFFSET(INDIRECT("'Forecasts " & $AB29 & "'!AA58"),Year_max-Year_1,MATCH('Mortality trends'!AQ$20,Ages_group,0))/'Mortality rates at t0'!AQ29-1) -> 0 | AR29: =IF('Mortality rates at t0'!AR29=0,0,OFFSET(INDIRECT("'Forecasts " & $AB29 & "'!AA58"),Year_max-Year_1,MATCH('Mortality trends'!AR$20,Ages_group,0))/'Mortality rates at t0'!AR29-1) -> 0 | AS29: =IF('Mortality rates at t0'!AS29=0,0,OFFSET(INDIRECT("'Forecasts " & $AB29 & "'!AA58"),Year_max-Year_1,MATCH('Mortality trends'!AS$20,Ages_group,0))/'Mortality rates at t0'!AS29-1) -> 0 | AT29: =IF('Mortality rates at t0'!AT29=0,0,OFFSET(INDIRECT("'Forecasts " & $AB29 & "'!AA58"),Year_max-Year_1,MATCH('Mortality trends'!AT$20,Ages_group,0))/'Mortality rates at t0'!AT29-1) -> 0 | AU29: =IF('Mortality rates at t0'!AU29=0,0,OFFSET(INDIRECT("'Forecasts " & $AB29 & "'!AA58"),Year_max-Year_1,MATCH('Mortality trends'!AU$20,Ages_group,0))/'Mortality rates at t0'!AU29-1) -> 0 | AV29: =IF('Mortality rates at t0'!AV29=0,0,OFFSET(INDIRECT("'Forecasts " & $AB29 & "'!AA58"),Year_max-Year_1,MATCH('Mortality trends'!AV$20,Ages_group,0))/'Mortality rates at t0'!AV29-1) -> 0 | AW29: =IF('Mortality rates at t0'!AW29=0,0,OFFSET(INDIRECT("'Forecasts " & $AB29 & "'!AA58"),Year_max-Year_1,MATCH('Mortality trends'!AW$20,Ages_group,0))/'Mortality rates at t0'!AW29-1) -> 0 | AX29: =IF('Mortality rates at t0'!AX29=0,0,OFFSET(INDIRECT("'Forecasts " & $AB29 & "'!AA58"),Year_max-Year_1,MATCH('Mortality trends'!AX$20,Ages_group,0))/'Mortality rates at t0'!AX29-1) -> 0
C30: External | E30: =IF('Mortality rates at t0'!E30=0,0,OFFSET(INDIRECT("'Forecasts " & $C30 & "'!C58"),Year_max-Year_0,MATCH('Mortality trends'!E$20,Ages_group,0))/'Mortality rates at t0'!E30-1) -> -0.003181221315 | F30: =IF('Mortality rates at t0'!F30=0,0,OFFSET(INDIRECT("'Forecasts " & $C30 & "'!C58"),Year_max-Year_0,MATCH('Mortality trends'!F$20,Ages_group,0))/'Mortality rates at t0'!F30-1) -> 0.009762544669 | G30: =IF('Mortality rates at t0'!G30=0,0,OFFSET(INDIRECT("'Forecasts " & $C30 & "'!C58"),Year_max-Year_0,MATCH('Mortality trends'!G$20,Ages_group,0))/'Mortality rates at t0'!G30-1) -> 0.01806119377 | H30: =IF('Mortality rates at t0'!H30=0,0,OFFSET(INDIRECT("'Forecasts " & $C30 & "'!C58"),Year_max-Year_0,MATCH('Mortality trends'!H$20,Ages_group,0))/'Mortality rates at t0'!H30-1) -> 0.01375726497 | I30: =IF('Mortality rates at t0'!I30=0,0,OFFSET(INDIRECT("'Forecasts " & $C30 & "'!C58"),Year_max-Year_0,MATCH('Mortality trends'!I$20,Ages_group,0))/'Mortality rates at t0'!I30-1) -> 0.01709420687 | J30: =IF('Mortality rates at t0'!J30=0,0,OFFSET(INDIRECT("'Forecasts " & $C30 & "'!C58"),Year_max-Year_0,MATCH('Mortality trends'!J$20,Ages_group,0))/'Mortality rates at t0'!J30-1) -> 0.005892748915 | K30: =IF('Mortality rates at t0'!K30=0,0,OFFSET(INDIRECT("'Forecasts " & $C30 & "'!C58"),Year_max-Year_0,MATCH('Mortality trends'!K$20,Ages_group,0))/'Mortality rates at t0'!K30-1) -> 0.002476716925 | L30: =IF('Mortality rates at t0'!L30=0,0,OFFSET(INDIRECT("'Forecasts " & $C30 & "'!C58"),Year_max-Year_0,MATCH('Mortality trends'!L$20,Ages_group,0))/'Mortality rates at t0'!L30-1) -> 0.002931846734 | M30: =IF('Mortality rates at t0'!M30=0,0,OFFSET(INDIRECT("'Forecasts " & $C30 & "'!C58"),Year_max-Year_0,MATCH('Mortality trends'!M$20,Ages_group,0))/'Mortality rates at t0'!M30-1) -> 0.006736956971 | N30: =IF('Mortality rates at t0'!N30=0,0,OFFSET(INDIRECT("'Forecasts " & $C30 & "'!C58"),Year_max-Year_0,MATCH('Mortality trends'!N$20,Ages_group,0))/'Mortality rates at t0'!N30-1) -> 0.005985572387 | O30: =IF('Mortality rates at t0'!O30=0,0,OFFSET(INDIRECT("'Forecasts " & $C30 & "'!C58"),Year_max-Year_0,MATCH('Mortality trends'!O$20,Ages_group,0))/'Mortality rates at t0'!O30-1) -> 0.0009183421678 | P30: =IF('Mortality rates at t0'!P30=0,0,OFFSET(INDIRECT("'Forecasts " & $C30 & "'!C58"),Year_max-Year_0,MATCH('Mortality trends'!P$20,Ages_group,0))/'Mortality rates at t0'!P30-1) -> -0.003273667393 | Q30: =IF('Mortality rates at t0'!Q30=0,0,OFFSET(INDIRECT("'Forecasts " & $C30 & "'!C58"),Year_max-Year_0,MATCH('Mortality trends'!Q$20,Ages_group,0))/'Mortality rates at t0'!Q30-1) -> -0.004441143309 | R30: =IF('Mortality rates at t0'!R30=0,0,OFFSET(INDIRECT("'Forecasts " & $C30 & "'!C58"),Year_max-Year_0,MATCH('Mortality trends'!R$20,Ages_group,0))/'Mortality rates at t0'!R30-1) -> 0.0002323403339 | S30: =IF('Mortality rates at t0'!S30=0,0,OFFSET(INDIRECT("'Forecasts " & $C30 & "'!C58"),Year_max-Year_0,MATCH('Mortality trends'!S$20,Ages_group,0))/'Mortality rates at t0'!S30-1) -> 0.001800686105 | T30: =IF('Mortality rates at t0'!T30=0,0,OFFSET(INDIRECT("'Forecasts " & $C30 & "'!C58"),Year_max-Year_0,MATCH('Mortality trends'!T$20,Ages_group,0))/'Mortality rates at t0'!T30-1) -> 0.002305339972 | U30: =IF('Mortality rates at t0'!U30=0,0,OFFSET(INDIRECT("'Forecasts " & $C30 & "'!C58"),Year_max-Year_0,MATCH('Mortality trends'!U$20,Ages_group,0))/'Mortality rates at t0'!U30-1) -> 0.0004962064111 | V30: =IF('Mortality rates at t0'!V30=0,0,OFFSET(INDIRECT("'Forecasts " & $C30 & "'!C58"),Year_max-Year_0,MATCH('Mortality trends'!V$20,Ages_group,0))/'Mortality rates at t0'!V30-1) -> -0.001232179761 | W30: =IF('Mortality rates at t0'!W30=0,0,OFFSET(INDIRECT("'Forecasts " & $C30 & "'!C58"),Year_max-Year_0,MATCH('Mortality trends'!W$20,Ages_group,0))/'Mortality rates at t0'!W30-1) -> -0.00307973566 | X30: =IF('Mortality rates at t0'!X30=0,0,OFFSET(INDIRECT("'Forecasts " & $C30 & "'!C58"),Year_max-Year_0,MATCH('Mortality trends'!X$20,Ages_group,0))/'Mortality rates at t0'!X30-1) -> -0.005363979487 | Y30: =IF('Mortality rates at t0'!Y30=0,0,OFFSET(INDIRECT("'Forecasts " & $C30 & "'!C58"),Year_max-Year_0,MATCH('Mortality trends'!Y$20,Ages_group,0))/'Mortality rates at t0'!Y30-1) -> -0.00874343148 | AB30: External | AD30: =IF('Mortality rates at t0'!AD30=0,0,OFFSET(INDIRECT("'Forecasts " & $AB30 & "'!AA58"),Year_max-Year_1,MATCH('Mortality trends'!AD$20,Ages_group,0))/'Mortality rates at t0'!AD30-1) -> -0.003209691081 | AE30: =IF('Mortality rates at t0'!AE30=0,0,OFFSET(INDIRECT("'Forecasts " & $AB30 & "'!AA58"),Year_max-Year_1,MATCH('Mortality trends'!AE$20,Ages_group,0))/'Mortality rates at t0'!AE30-1) -> 0.009850482985 | AF30: =IF('Mortality rates at t0'!AF30=0,0,OFFSET(INDIRECT("'Forecasts " & $AB30 & "'!AA58"),Year_max-Year_1,MATCH('Mortality trends'!AF$20,Ages_group,0))/'Mortality rates at t0'!AF30-1) -> 0.01822455565 | AG30: =IF('Mortality rates at t0'!AG30=0,0,OFFSET(INDIRECT("'Forecasts " & $AB30 & "'!AA58"),Year_max-Year_1,MATCH('Mortality trends'!AG$20,Ages_group,0))/'Mortality rates at t0'!AG30-1) -> 0.01388143323 | AH30: =IF('Mortality rates at t0'!AH30=0,0,OFFSET(INDIRECT("'Forecasts " & $AB30 & "'!AA58"),Year_max-Year_1,MATCH('Mortality trends'!AH$20,Ages_group,0))/'Mortality rates at t0'!AH30-1) -> 0.01724874854 | AI30: =IF('Mortality rates at t0'!AI30=0,0,OFFSET(INDIRECT("'Forecasts " & $AB30 & "'!AA58"),Year_max-Year_1,MATCH('Mortality trends'!AI$20,Ages_group,0))/'Mortality rates at t0'!AI30-1) -> 0.005945726587 | AJ30: =IF('Mortality rates at t0'!AJ30=0,0,OFFSET(INDIRECT("'Forecasts " & $AB30 & "'!AA58"),Year_max-Year_1,MATCH('Mortality trends'!AJ$20,Ages_group,0))/'Mortality rates at t0'!AJ30-1) -> 0.002498945238 | AK30: =IF('Mortality rates at t0'!AK30=0,0,OFFSET(INDIRECT("'Forecasts " & $AB30 & "'!AA58"),Year_max-Year_1,MATCH('Mortality trends'!AK$20,Ages_group,0))/'Mortality rates at t0'!AK30-1) -> 0.00295816582 | AL30: =IF('Mortality rates at t0'!AL30=0,0,OFFSET(INDIRECT("'Forecasts " & $AB30 & "'!AA58"),Year_max-Year_1,MATCH('Mortality trends'!AL$20,Ages_group,0))/'Mortality rates at t0'!AL30-1) -> 0.006797549951 | AM30: =IF('Mortality rates at t0'!AM30=0,0,OFFSET(INDIRECT("'Forecasts " & $AB30 & "'!AA58"),Year_max-Year_1,MATCH('Mortality trends'!AM$20,Ages_group,0))/'Mortality rates at t0'!AM30-1) -> 0.006039387074 | AN30: =IF('Mortality rates at t0'!AN30=0,0,OFFSET(INDIRECT("'Forecasts " & $AB30 & "'!AA58"),Year_max-Year_1,MATCH('Mortality trends'!AN$20,Ages_group,0))/'Mortality rates at t0'!AN30-1) -> 0.0009265777424 | AO30: =IF('Mortality rates at t0'!AO30=0,0,OFFSET(INDIRECT("'Forecasts " & $AB30 & "'!AA58"),Year_max-Year_1,MATCH('Mortality trends'!AO$20,Ages_group,0))/'Mortality rates at t0'!AO30-1) -> -0.003302963116 | AP30: =IF('Mortality rates at t0'!AP30=0,0,OFFSET(INDIRECT("'Forecasts " & $AB30 & "'!AA58"),Year_max-Year_1,MATCH('Mortality trends'!AP$20,Ages_group,0))/'Mortality rates at t0'!AP30-1) -> -0.004480863151 | AQ30: =IF('Mortality rates at t0'!AQ30=0,0,OFFSET(INDIRECT("'Forecasts " & $AB30 & "'!AA58"),Year_max-Year_1,MATCH('Mortality trends'!AQ$20,Ages_group,0))/'Mortality rates at t0'!AQ30-1) -> 0.0002344232117 | AR30: =IF('Mortality rates at t0'!AR30=0,0,OFFSET(INDIRECT("'Forecasts " & $AB30 & "'!AA58"),Year_max-Year_1,MATCH('Mortality trends'!AR$20,Ages_group,0))/'Mortality rates at t0'!AR30-1) -> 0.001816841605 | AS30: =IF('Mortality rates at t0'!AS30=0,0,OFFSET(INDIRECT("'Forecasts " & $AB30 & "'!AA58"),Year_max-Year_1,MATCH('Mortality trends'!AS$20,Ages_group,0))/'Mortality rates at t0'!AS30-1) -> 0.002326028408 | AT30: =IF('Mortality rates at t0'!AT30=0,0,OFFSET(INDIRECT("'Forecasts " & $AB30 & "'!AA58"),Year_max-Year_1,MATCH('Mortality trends'!AT$20,Ages_group,0))/'Mortality rates at t0'!AT30-1) -> 0.0005006553797 | AU30: =IF('Mortality rates at t0'!AU30=0,0,OFFSET(INDIRECT("'Forecasts " & $AB30 & "'!AA58"),Year_max-Year_1,MATCH('Mortality trends'!AU$20,Ages_group,0))/'Mortality rates at t0'!AU30-1) -> -0.001243217807 | AV30: =IF('Mortality rates at t0'!AV30=0,0,OFFSET(INDIRECT("'Forecasts " & $AB30 & "'!AA58"),Year_max-Year_1,MATCH('Mortality trends'!AV$20,Ages_group,0))/'Mortality rates at t0'!AV30-1) -> -0.003107298613 | AW30: =IF('Mortality rates at t0'!AW30=0,0,OFFSET(INDIRECT("'Forecasts " & $AB30 & "'!AA58"),Year_max-Year_1,MATCH('Mortality trends'!AW$20,Ages_group,0))/'Mortality rates at t0'!AW30-1) -> -0.005411930357 | AX30: =IF('Mortality rates at t0'!AX30=0,0,OFFSET(INDIRECT("'Forecasts " & $AB30 & "'!AA58"),Year_max-Year_1,MATCH('Mortality trends'!AX$20,Ages_group,0))/'Mortality rates at t0'!AX30-1) -> -0.00882145845
C31: Other | E31: =IF('Mortality rates at t0'!E31=0,0,OFFSET(INDIRECT("'Forecasts " & $C31 & "'!C58"),Year_max-Year_0,MATCH('Mortality trends'!E$20,Ages_group,0))/'Mortality rates at t0'!E31-1) -> -0.1212812667 | F31: =IF('Mortality rates at t0'!F31=0,0,OFFSET(INDIRECT("'Forecasts " & $C31 & "'!C58"),Year_max-Year_0,MATCH('Mortality trends'!F$20,Ages_group,0))/'Mortality rates at t0'!F31-1) -> -0.1376671694 | G31: =IF('Mortality rates at t0'!G31=0,0,OFFSET(INDIRECT("'Forecasts " & $C31 & "'!C58"),Year_max-Year_0,MATCH('Mortality trends'!G$20,Ages_group,0))/'Mortality rates at t0'!G31-1) -> -0.1196801418 | H31: =IF('Mortality rates at t0'!H31=0,0,OFFSET(INDIRECT("'Forecasts " & $C31 & "'!C58"),Year_max-Year_0,MATCH('Mortality trends'!H$20,Ages_group,0))/'Mortality rates at t0'!H31-1) -> -0.1534316881 | I31: =IF('Mortality rates at t0'!I31=0,0,OFFSET(INDIRECT("'Forecasts " & $C31 & "'!C58"),Year_max-Year_0,MATCH('Mortality trends'!I$20,Ages_group,0))/'Mortality rates at t0'!I31-1) -> -0.1433700215 | J31: =IF('Mortality rates at t0'!J31=0,0,OFFSET(INDIRECT("'Forecasts " & $C31 & "'!C58"),Year_max-Year_0,MATCH('Mortality trends'!J$20,Ages_group,0))/'Mortality rates at t0'!J31-1) -> -0.08885223034 | K31: =IF('Mortality rates at t0'!K31=0,0,OFFSET(INDIRECT("'Forecasts " & $C31 & "'!C58"),Year_max-Year_0,MATCH('Mortality trends'!K$20,Ages_group,0))/'Mortality rates at t0'!K31-1) -> -0.09474632318 | L31: =IF('Mortality rates at t0'!L31=0,0,OFFSET(INDIRECT("'Forecasts " & $C31 & "'!C58"),Year_max-Year_0,MATCH('Mortality trends'!L$20,Ages_group,0))/'Mortality rates at t0'!L31-1) -> -0.09761651109 | M31: =IF('Mortality rates at t0'!M31=0,0,OFFSET(INDIRECT("'Forecasts " & $C31 & "'!C58"),Year_max-Year_0,MATCH('Mortality trends'!M$20,Ages_group,0))/'Mortality rates at t0'!M31-1) -> -0.1292265055 | N31: =IF('Mortality rates at t0'!N31=0,0,OFFSET(INDIRECT("'Forecasts " & $C31 & "'!C58"),Year_max-Year_0,MATCH('Mortality trends'!N$20,Ages_group,0))/'Mortality rates at t0'!N31-1) -> -0.1368715187 | O31: =IF('Mortality rates at t0'!O31=0,0,OFFSET(INDIRECT("'Forecasts " & $C31 & "'!C58"),Year_max-Year_0,MATCH('Mortality trends'!O$20,Ages_group,0))/'Mortality rates at t0'!O31-1) -> -0.04389160189 | P31: =IF('Mortality rates at t0'!P31=0,0,OFFSET(INDIRECT("'Forecasts " & $C31 & "'!C58"),Year_max-Year_0,MATCH('Mortality trends'!P$20,Ages_group,0))/'Mortality rates at t0'!P31-1) -> 0.05303525094 | Q31: =IF('Mortality rates at t0'!Q31=0,0,OFFSET(INDIRECT("'Forecasts " & $C31 & "'!C58"),Year_max-Year_0,MATCH('Mortality trends'!Q$20,Ages_group,0))/'Mortality rates at t0'!Q31-1) -> 0.08649242276 | R31: =IF('Mortality rates at t0'!R31=0,0,OFFSET(INDIRECT("'Forecasts " & $C31 & "'!C58"),Year_max-Year_0,MATCH('Mortality trends'!R$20,Ages_group,0))/'Mortality rates at t0'!R31-1) -> 0.04164228572 | S31: =IF('Mortality rates at t0'!S31=0,0,OFFSET(INDIRECT("'Forecasts " & $C31 & "'!C58"),Year_max-Year_0,MATCH('Mortality trends'!S$20,Ages_group,0))/'Mortality rates at t0'!S31-1) -> 0.01508654127 | T31: =IF('Mortality rates at t0'!T31=0,0,OFFSET(INDIRECT("'Forecasts " & $C31 & "'!C58"),Year_max-Year_0,MATCH('Mortality trends'!T$20,Ages_group,0))/'Mortality rates at t0'!T31-1) -> -0.01850294607 | U31: =IF('Mortality rates at t0'!U31=0,0,OFFSET(INDIRECT("'Forecasts " & $C31 & "'!C58"),Year_max-Year_0,MATCH('Mortality trends'!U$20,Ages_group,0))/'Mortality rates at t0'!U31-1) -> -0.03773936675 | V31: =IF('Mortality rates at t0'!V31=0,0,OFFSET(INDIRECT("'Forecasts " & $C31 & "'!C58"),Year_max-Year_0,MATCH('Mortality trends'!V$20,Ages_group,0))/'Mortality rates at t0'!V31-1) -> -0.09857926256 | W31: =IF('Mortality rates at t0'!W31=0,0,OFFSET(INDIRECT("'Forecasts " & $C31 & "'!C58"),Year_max-Year_0,MATCH('Mortality trends'!W$20,Ages_group,0))/'Mortality rates at t0'!W31-1) -> -0.1479269262 | X31: =IF('Mortality rates at t0'!X31=0,0,OFFSET(INDIRECT("'Forecasts " & $C31 & "'!C58"),Year_max-Year_0,MATCH('Mortality trends'!X$20,Ages_group,0))/'Mortality rates at t0'!X31-1) -> -0.1684311072 | Y31: =IF('Mortality rates at t0'!Y31=0,0,OFFSET(INDIRECT("'Forecasts " & $C31 & "'!C58"),Year_max-Year_0,MATCH('Mortality trends'!Y$20,Ages_group,0))/'Mortality rates at t0'!Y31-1) -> -0.1721563096 | AB31: Other | AD31: =IF('Mortality rates at t0'!AD31=0,0,OFFSET(INDIRECT("'Forecasts " & $AB31 & "'!AA58"),Year_max-Year_1,MATCH('Mortality trends'!AD$20,Ages_group,0))/'Mortality rates at t0'!AD31-1) -> -0.1077228329 | AE31: =IF('Mortality rates at t0'!AE31=0,0,OFFSET(INDIRECT("'Forecasts " & $AB31 & "'!AA58"),Year_max-Year_1,MATCH('Mortality trends'!AE$20,Ages_group,0))/'Mortality rates at t0'!AE31-1) -> -0.122407341 | AF31: =IF('Mortality rates at t0'!AF31=0,0,OFFSET(INDIRECT("'Forecasts " & $AB31 & "'!AA58"),Year_max-Year_1,MATCH('Mortality trends'!AF$20,Ages_group,0))/'Mortality rates at t0'!AF31-1) -> -0.1062897056 | AG31: =IF('Mortality rates at t0'!AG31=0,0,OFFSET(INDIRECT("'Forecasts " & $AB31 & "'!AA58"),Year_max-Year_1,MATCH('Mortality trends'!AG$20,Ages_group,0))/'Mortality rates at t0'!AG31-1) -> -0.1365662038 | AH31: =IF('Mortality rates at t0'!AH31=0,0,OFFSET(INDIRECT("'Forecasts " & $AB31 & "'!AA58"),Year_max-Year_1,MATCH('Mortality trends'!AH$20,Ages_group,0))/'Mortality rates at t0'!AH31-1) -> -0.1275257751 | AI31: =IF('Mortality rates at t0'!AI31=0,0,OFFSET(INDIRECT("'Forecasts " & $AB31 & "'!AA58"),Year_max-Year_1,MATCH('Mortality trends'!AI$20,Ages_group,0))/'Mortality rates at t0'!AI31-1) -> -0.07875585826 | AJ31: =IF('Mortality rates at t0'!AJ31=0,0,OFFSET(INDIRECT("'Forecasts " & $AB31 & "'!AA58"),Year_max-Year_1,MATCH('Mortality trends'!AJ$20,Ages_group,0))/'Mortality rates at t0'!AJ31-1) -> -0.08401150429 | AK31: =IF('Mortality rates at t0'!AK31=0,0,OFFSET(INDIRECT("'Forecasts " & $AB31 & "'!AA58"),Year_max-Year_1,MATCH('Mortality trends'!AK$20,Ages_group,0))/'Mortality rates at t0'!AK31-1) -> -0.08657226006 | AL31: =IF('Mortality rates at t0'!AL31=0,0,OFFSET(INDIRECT("'Forecasts " & $AB31 & "'!AA58"),Year_max-Year_1,MATCH('Mortality trends'!AL$20,Ages_group,0))/'Mortality rates at t0'!AL31-1) -> -0.1148390073 | AM31: =IF('Mortality rates at t0'!AM31=0,0,OFFSET(INDIRECT("'Forecasts " & $AB31 & "'!AA58"),Year_max-Year_1,MATCH('Mortality trends'!AM$20,Ages_group,0))/'Mortality rates at t0'!AM31-1) -> -0.1216935463 | AN31: =IF('Mortality rates at t0'!AN31=0,0,OFFSET(INDIRECT("'Forecasts " & $AB31 & "'!AA58"),Year_max-Year_1,MATCH('Mortality trends'!AN$20,Ages_group,0))/'Mortality rates at t0'!AN31-1) -> -0.0387957424 | AO31: =IF('Mortality rates at t0'!AO31=0,0,OFFSET(INDIRECT("'Forecasts " & $AB31 & "'!AA58"),Year_max-Year_1,MATCH('Mortality trends'!AO$20,Ages_group,0))/'Mortality rates at t0'!AO31-1) -> 0.04661024421 | AP31: =IF('Mortality rates at t0'!AP31=0,0,OFFSET(INDIRECT("'Forecasts " & $AB31 & "'!AA58"),Year_max-Year_1,MATCH('Mortality trends'!AP$20,Ages_group,0))/'Mortality rates at t0'!AP31-1) -> 0.07587059089 | AQ31: =IF('Mortality rates at t0'!AQ31=0,0,OFFSET(INDIRECT("'Forecasts " & $AB31 & "'!AA58"),Year_max-Year_1,MATCH('Mortality trends'!AQ$20,Ages_group,0))/'Mortality rates at t0'!AQ31-1) -> 0.03662141472 | AR31: =IF('Mortality rates at t0'!AR31=0,0,OFFSET(INDIRECT("'Forecasts " & $AB31 & "'!AA58"),Year_max-Year_1,MATCH('Mortality trends'!AR$20,Ages_group,0))/'Mortality rates at t0'!AR31-1) -> 0.01328801721 | AS31: =IF('Mortality rates at t0'!AS31=0,0,OFFSET(INDIRECT("'Forecasts " & $AB31 & "'!AA58"),Year_max-Year_1,MATCH('Mortality trends'!AS$20,Ages_group,0))/'Mortality rates at t0'!AS31-1) -> -0.01632962662 | AT31: =IF('Mortality rates at t0'!AT31=0,0,OFFSET(INDIRECT("'Forecasts " & $AB31 & "'!AA58"),Year_max-Year_1,MATCH('Mortality trends'!AT$20,Ages_group,0))/'Mortality rates at t0'!AT31-1) -> -0.03334528631 | AU31: =IF('Mortality rates at t0'!AU31=0,0,OFFSET(INDIRECT("'Forecasts " & $AB31 & "'!AA58"),Year_max-Year_1,MATCH('Mortality trends'!AU$20,Ages_group,0))/'Mortality rates at t0'!AU31-1) -> -0.08743143416 | AV31: =IF('Mortality rates at t0'!AV31=0,0,OFFSET(INDIRECT("'Forecasts " & $AB31 & "'!AA58"),Year_max-Year_1,MATCH('Mortality trends'!AV$20,Ages_group,0))/'Mortality rates at t0'!AV31-1) -> -0.1316185966 | AW31: =IF('Mortality rates at t0'!AW31=0,0,OFFSET(INDIRECT("'Forecasts " & $AB31 & "'!AA58"),Year_max-Year_1,MATCH('Mortality trends'!AW$20,Ages_group,0))/'Mortality rates at t0'!AW31-1) -> -0.1500669074 | AX31: =IF('Mortality rates at t0'!AX31=0,0,OFFSET(INDIRECT("'Forecasts " & $AB31 & "'!AA58"),Year_max-Year_1,MATCH('Mortality trends'!AX$20,Ages_group,0))/'Mortality rates at t0'!AX31-1) -> -0.1534243473

Sheet Graphs
C1: Society of actuaries - Cause of deaths forecasting tool | K1: Graphs
B7: Gender | C7: M
B8: age group | C8: 30 - 34
B9: cause | C9: Drug
B11: I - Mortality rates by cause of deaths National Population | H11: II - Aggregate mortality rates National Population | N11: III - Mortality rates all causes National Population | V11: IV - Life expectancy National Population | AB11: Select age | AC11: 65 | AP11: I - Mortality rates by cause of deaths Cluster vs National Population | AV11: II - Aggregate mortality rates Cluster vs National Population | BB11: III - Mortality rates all causes Cluster Population | BJ11: IV - Life expectancy Cluster Population
A32: National Population | AO32: Cluster Population
B33: ="Forecast Death rate " & $C$9 & IF(sex_plot="M"," Male"," Female") & " age " & $C$8 -> Forecast Death rate Drug Male age 30 - 34 | F33: ="Forecast aggregate Death rate" & IF(sex_plot="M"," Male"," Female") & " age " & $C$8 -> Forecast aggregate Death rate Male age 30 - 34 | K33: ="Forecast Death rate by cause" & IF(sex_plot="M"," Male"," Female") & " age " & age_plot -> Forecast Death rate by cause Male age 30 - 34 | X33: ="Forecast Life expectancy at birth" & IF(sex_plot="M"," Male"," Female") -> Forecast Life expectancy at birth Male | AB33: ="Forecast Life expectancy at " & age_LE & IF(sex_plot="M"," Male"," Female") -> Forecast Life expectancy at 65 Male | AF33: ="Forecast Partial Life expectancy at birth until 85" & IF(sex_plot="M"," Male"," Female") -> Forecast Partial Life expectancy at birth until 85 Male | AJ33: ="Forecast Partial Life expectancy at 65 until 85" & IF(sex_plot="M"," Male"," Female") -> Forecast Partial Life expectancy at 65 until 85 Male | AP33: ="Forecast Death rate " & $C$9 & IF(sex_plot="M"," Male"," Female") & " age " & $C$8 -> Forecast Death rate Drug Male age 30 - 34 | AU33: ="Forecast aggregate Death rate" & IF(sex_plot="M"," Male"," Female") & " age " & $C$8 -> Forecast aggregate Death rate Male age 30 - 34 | AZ33: ="Forecast Death rate by cause" & IF(sex_plot="M"," Male"," Female") & " age " & age_plot -> Forecast Death rate by cause Male age 30 - 34 | BM33: ="Forecast Partial Life expectancy at birth until 85" & IF(sex_plot="M"," Male"," Female") -> Forecast Partial Life expectancy at birth until 85 Male | BV33: ="Forecast Life expectancy at birth" & IF(sex_plot="M"," Male"," Female") -> Forecast Life expectancy at birth Male | BZ33: ="Forecast Life expectancy at " & age_LE & IF(sex_plot="M"," Male"," Female") -> Forecast Life expectancy at 65 Male | CD33: ="Forecast Partial Life expectancy at 65 until 85" & IF(sex_plot="M"," Male"," Female") -> Forecast Partial Life expectancy at 65 until 85 Male
AR35: =cause_plot & " Death rate" -> Drug Death rate | AV35: All causes Death rate | BW35: Life expectancy at birth | CA35: ="Life expectancy at " & age_LE -> Life expectancy at 65
C36: years | D36: =cause_plot & " Death rate" -> Drug Death rate | F36: years | G36: All causes Death rate | K36: cause | L36: =TRANSPOSE(Causes) -> Cardiovascular | M36: Cerebrovascular | N36: NeoSmok | O36: Neoplasm | P36: Dementia | Q36: Diabetes | R36: Influenza | S36: Respiratory | T36: Drug | U36: External | V36: Other | X36: years | Y36: Life expectancy at birth | AB36: years | AC36: ="Life expectancy at " & age_LE -> Life expectancy at 65 | AF36: years | AG36: Partial Life expectancy at birth until 85 | AJ36: years | AK36: Partial Life expectancy at 65 until 85 | AQ36: years | AR36: Cluster Population | AS36: National Population | AU36: years | AV36: Cluster Population | AW36: National Population | AZ36: cause | BA36: =TRANSPOSE(Causes) -> Cardiovascular | BB36: Cerebrovascular | BC36: NeoSmok | BD36: Neoplasm | BE36: Dementia | BF36: Diabetes | BG36: Influenza | BH36: Respiratory | BI36: Drug | BJ36: External | BK36: Other | BM36: years | BN36: Partial Life expectancy at birth until 85 | BR36: Cluster Population | BS36: National Population | BT36: Comparison | BV36: years | BW36: Cluster Population | BX36: National Population | BZ36: years | CA36: Cluster Population | CB36: National Population | CD36: years | CE36: Cluster Population | CH36: Cluster Population | CI36: National Population
C37: =Year_0 -> 2016 | D37: =IF(ISNA($C37),"",base_tx*OFFSET(INDIRECT("'Forecasts " & cause_plot & "'!" & IF(sex_plot="M","C17",IF(sex_plot="F","C58",NA()))),$C37-$C$37,MATCH(age_plot,Ages_group,0))) -> 499.8455751 | F37: =Year_0 -> 2016 | G37: =IF(ISNA($C37),"",base_tx*OFFSET(INDIRECT("'Forecasts Aggregate'!" & IF(sex_plot="M","C17",IF(sex_plot="F","C58",NA()))),$C37-$C$37,MATCH(age_plot,Ages_group,0))) -> 1845.784369 | K37: =Year_0 -> 2016 | L37: =IF(ISNA($C37),"",base_tx*OFFSET(INDIRECT("'Forecasts " & L$36 & "'!" & IF(sex_plot="M","C17",IF(sex_plot="F","C58",NA()))),$C37-$C$37,MATCH(age_plot,Ages_group,0))) -> 150.1178059 | M37: 20.28012785 | N37: 7.59597886 | O37: 109.8553801 | P37: 1.07485411 | Q37: 62.64678234 | R37: 15.91117703 | S37: 20.0056798 | T37: 499.8455751 | U37: 792.1387613 | V37: 166.3122469 | X37: =Year_0 -> 2016 | Y37: =IF($C$7="M",'Life expectancy'!$DN$17:$DN$47,IF($C$7="F",'Life expectancy'!$DN$92:$DN$122,NA())) -> 76.21077114 | AB37: =Year_0 -> 2016 | AC37: =IF($C$7="M",'Life expectancy'!$DO$17:$DO$47,IF($C$7="F",'Life expectancy'!$DO$92:$DO$122,NA())) -> 18.11145382 | AF37: =Year_0 -> 2016 | AG37: =IF($C$7="M",'Life expectancy'!$DR$17:$DR$47,IF($C$7="F",'Life expectancy'!$DR$92:$DR$122,NA())) -> 73.98162342 | AJ37: =Year_0 -> 2016 | AK37: =IF($C$7="M",'Life expectancy'!$DS$17:$DS$47,IF($C$7="F",'Life expectancy'!$DS$92:$DS$122,NA())) -> 15.32333217 | AQ37: =Year_1 -> 2017 | AR37: =IF(ISNA($AQ37),"",base_tx*OFFSET(INDIRECT("'Forecasts " & cause_plot & "'!" & IF(sex_plot="M","AA17",IF(sex_plot="F","AA58",NA()))),$AQ37-$AQ$37,MATCH(age_plot,Ages_group,0))) -> 513.5193055 | AS37: =IF($AR37<>"",OFFSET($D37,$AQ37-$C37,0),"") -> 449.8610176 | AU37: =Year_1 -> 2017 | AV37: =IF(ISNA($AQ37),"",base_tx*OFFSET(INDIRECT("'Forecasts Aggregate'!" & IF(sex_plot="M","AA17",IF(sex_plot="F","AA58",NA()))),$AQ37-$AQ$37,MATCH(age_plot,Ages_group,0))) -> 1259.537509 | AW37: =IF($AV37<>"",OFFSET($G37,$AU37-$F37,0),"") -> 1792.695172 | AZ37: =Year_1 -> 2017 | BA37: =IF(ISNA($AQ37),"",base_tx*OFFSET(INDIRECT("'Forecasts " & BA$36 & "'!" & IF(sex_plot="M","AA17",IF(sex_plot="F","AA58",NA()))),$AQ37-$AQ$37,MATCH(age_plot,Ages_group,0))) -> 71.771399 | BB37: 9.097782971 | BC37: 9.097782971 | BD37: 59.6410217 | BE37: 0 | BF37: 34.36940234 | BG37: 9.097782971 | BH37: 12.1303773 | BI37: 513.5193055 | BJ37: 403.3350451 | BK37: 137.4776093 | BM37: =Year_1 -> 2017 | BN37: =IF($C$7="M",'Life expectancy'!$IK$17:$IK$47,IF($C$7="F",'Life expectancy'!$IK$92:$IK$122,NA())) -> 76.59315189 | BQ37: =Year_1 -> 2017 | BR37: =BN37 -> 76.59315189 | BS37: =IF($BR37<>"",OFFSET($AG37,$BQ37-$AF37,0),"") -> 74.10421408 | BT37: =BN37/AG37 -> 1.035299691 | BV37: =Year_1 -> 2017 | BW37: =IF($C$7="M",'Life expectancy'!IG17,IF($C$7="F",'Life expectancy'!IG92,NA())) -> 80.31553833 | BX37: =IF($BW37<>"",OFFSET($Y37,$BV37-$X37,0),"") -> 76.36302866 | BZ37: =Year_1 -> 2017 | CA37: =IF($C$7="M",'Life expectancy'!IH17,IF($C$7="F",'Life expectancy'!IH92,NA())) -> 20.68045089 | CB37: =IF($CA37<>"",OFFSET($AC37,$BZ37-$AB37,0),"") -> 18.17243071 | CD37: =Year_1 -> 2017 | CE37: =IF($C$7="M",'Life expectancy'!$IL$17:$IL$47,IF($C$7="F",'Life expectancy'!$IL$92:$IL$122,NA())) -> 16.32060627 | CG37: =Year_1 -> 2017 | CH37: =CE37 -> 16.32060627 | CI37: =IF($CH37<>"",OFFSET($AK37,$CG37-$AJ37,0),"") -> 15.35657308
C38: =IF(C37<Year_max,C37+1,NA()) -> 2017 | D38: =IF(ISNA($C38),"",base_tx*OFFSET(INDIRECT("'Forecasts " & cause_plot & "'!" & IF(sex_plot="M","C17",IF(sex_plot="F","C58",NA()))),$C38-$C$37,MATCH(age_plot,Ages_group,0))) -> 449.8610176 | F38: =IF(F37<Year_max,F37+1,NA()) -> 2017 | G38: 1792.695172 | K38: =IF(K37<Year_max,K37+1,NA()) -> 2017 | L38: 150.1056019 | M38: 20.251176 | N38: 7.489308816 | O38: 109.4710753 | P38: 1.086688398 | Q38: 62.82847513 | R38: 15.94830686 | S38: 20.0380738 | T38: 449.8610176 | U38: 793.3842514 | V38: 162.2311965 | X38: =IF(X37<Year_max,X37+1,NA()) -> 2017 | Y38: 76.36302866 | AB38: =IF(AB37<Year_max,AB37+1,NA()) -> 2017 | AC38: 18.17243071 | AF38: =IF(AF37<Year_max,AF37+1,NA()) -> 2017 | AG38: 74.10421408 | AJ38: =IF(AJ37<Year_max,AJ37+1,NA()) -> 2017 | AK38: 15.35657308 | AQ38: =IF(AQ37<Year_max,AQ37+1,NA()) -> 2018 | AR38: 460.578554 | AS38: 399.8764601 | AU38: =IF(AU37<Year_max,AU37+1,NA()) -> 2018 | AV38: 1203.782965 | AW38: 1739.711756 | AZ38: =IF(AZ37<Year_max,AZ37+1,NA()) -> 2018 | BA38: 71.76576945 | BB38: 9.085746752 | BC38: 8.974703749 | BD38: 59.435682 | BE38: 0 | BF38: 34.46734058 | BG38: 9.117633434 | BH38: 12.14817903 | BI38: 460.578554 | BJ38: 404.0430664 | BK38: 134.1662896 | BM38: =IF(BM37<Year_max,BM37+1,NA()) -> 2018 | BN38: 76.71715819 | BQ38: =IF(BQ37<Year_max,BQ37+1,NA()) -> 2018 | BR38: =BN38 -> 76.71715819 | BS38: 74.22628908 | BT38: 1.035260398 | BV38: =IF(BV37<Year_max,BV37+1,NA()) -> 2018 | BW38: =IF($C$7="M",'Life expectancy'!IG18,IF($C$7="F",'Life expectancy'!IG93,NA())) -> 80.47859312 | BX38: =IF($BW38<>"",OFFSET($Y38,$BV38-$X38,0),"") -> 76.51467405 | BZ38: =IF(BZ37<Year_max,BZ37+1,NA()) -> 2018 | CA38: =IF($C$7="M",'Life expectancy'!IH18,IF($C$7="F",'Life expectancy'!IH93,NA())) -> 20.73721853 | CB38: =IF($CA38<>"",OFFSET($AC38,$BZ38-$AB38,0),"") -> 18.2327476 | CD38: =IF(CD37<Year_max,CD37+1,NA()) -> 2018 | CE38: 16.34583297 | CG38: =IF(CG37<Year_max,CG37+1,NA()) -> 2018 | CH38: 16.34583297 | CI38: 15.38942097
C39: 2018 | D39: 399.8764601 | F39: 2018 | G39: 1739.711756 | K39: 2018 | L39: 150.0933989 | M39: 20.22226548 | N39: 7.384136735 | O39: 109.0881148 | P39: 1.098652982 | Q39: 63.01069488 | R39: 15.98552334 | S39: 20.07052025 | T39: 399.8764601 | U39: 794.6316999 | V39: 158.2502889 | X39: 2018 | Y39: 76.51467405 | AB39: 2018 | AC39: 18.2327476 | AF39: 2018 | AG39: 74.22628908 | AJ39: =IF(AJ38<Year_max,AJ38+1,NA()) -> 2018 | AK39: 15.38942097 | AQ39: 2019 | AR39: 407.129533 | AS39: 349.8919026 | AU39: 2019 | AV39: 1147.603888 | AW39: 1686.831646 | AZ39: 2019 | BA39: 71.76014035 | BB39: 9.073726456 | BC39: 8.853289602 | BD39: 59.23104927 | BE39: 0 | BF39: 34.5655579 | BG39: 9.137527208 | BH39: 12.1660069 | BI39: 407.129533 | BJ39: 404.7523306 | BK39: 130.9347271 | BM39: 2019 | BN39: 76.84179387 | BQ39: 2019 | BR39: 76.84179387 | BS39: 74.34785505 | BT39: 1.035236906 | BV39: 2019 | BW39: =IF($C$7="M",'Life expectancy'!IG19,IF($C$7="F",'Life expectancy'!IG94,NA())) -> 80.64220707 | BX39: 76.66570241 | BZ39: 2019 | CA39: =IF($C$7="M",'Life expectancy'!IH19,IF($C$7="F",'Life expectancy'!IH94,NA())) -> 20.79335875 | CB39: 18.29239555 | CD39: 2019 | CE39: 16.37081716 | CG39: 2019 | CH39: 16.37081716 | CI39: 15.42187831
C40: 2019 | D40: 349.8919026 | F40: 2019 | G40: 1686.831646 | K40: 2019 | L40: 150.0811969 | M40: 20.19339623 | N40: 7.280441581 | O40: 108.7064941 | P40: 1.110749298 | Q40: 63.19344312 | R40: 16.02282666 | S40: 20.10301923 | T40: 349.8919026 | U40: 795.8811097 | V40: 154.3670667 | X40: 2019 | Y40: 76.66570241 | AB40: 2019 | AC40: 18.29239555 | AF40: 2019 | AG40: 74.34785505 | AJ40: 2019 | AK40: 15.42187831 | AQ40: 2020 | AR40: 353.0931604 | AS40: 299.9073451 | AU40: 2020 | AV40: 1090.919254 | AW40: 1634.052425 | AZ40: 2020 | BA40: 71.75451169 | BB40: 9.061722063 | BC40: 8.733518005 | BD40: 59.02712107 | BE40: 0 | BF40: 34.6640551 | BG40: 9.157464388 | BH40: 12.18386093 | BI40: 353.0931604 | BJ40: 405.4628399 | BK40: 127.7810009 | BM40: 2020 | BN40: 76.96720884 | BQ40: 2020 | BR40: 76.96720884 | BS40: 74.46891841 | BT40: 1.035231061 | BV40: 2020 | BW40: =IF($C$7="M",'Life expectancy'!IG20,IF($C$7="F",'Life expectancy'!IG95,NA())) -> 80.80653796 | BX40: 76.81610855 | BZ40: 2020 | CA40: =IF($C$7="M",'Life expectancy'!IH20,IF($C$7="F",'Life expectancy'!IH95,NA())) -> 20.84886967 | CB40: 18.35136564 | CD40: 2020 | CE40: 16.39556613 | CG40: 2020 | CH40: 16.39556613 | CI40: 15.45394753
C41: 2020 | D41: 299.9073451 | F41: 2020 | G41: 1634.052425 | K41: 2020 | L41: 150.0689959 | M41: 20.16456819 | N41: 7.178202615 | O41: 108.3262083 | P41: 1.122978796 | Q41: 63.37672138 | R41: 16.06021703 | S41: 20.13557084 | T41: 299.9073451 | U41: 797.1324839 | V41: 150.5791329 | X41: 2020 | Y41: 76.81610855 | AB41: 2020 | AC41: 18.35136564 | AF41: 2020 | AG41: 74.46891841 | AJ41: 2020 | AK41: 15.45394753 | AQ41: 2021 | AR41: 298.3624769 | AS41: 249.9227876 | AU41: 2021 | AV41: 1033.620207 | AW41: 1581.371736 | AZ41: 2021 | BA41: 71.74888347 | BB41: 9.049733552 | BC41: 8.615366736 | BD41: 58.82389499 | BE41: 0 | BF41: 34.76283297 | BG41: 9.177445069 | BH41: 12.20174115 | BI41: 298.3624769 | BJ41: 406.1745964 | BK41: 124.7032361 | BM41: 2021 | BN41: 77.09360312 | BQ41: 2021 | BR41: 77.09360312 | BS41: 74.58948535 | BT41: 1.035245372 | BV41: 2021 | BW41: =IF($C$7="M",'Life expectancy'!IG21,IF($C$7="F",'Life expectancy'!IG96,NA())) -> 80.97180033 | BX41: 76.965887 | BZ41: 2021 | CA41: =IF($C$7="M",'Life expectancy'!IH21,IF($C$7="F",'Life expectancy'!IH96,NA())) -> 20.903752 | CB41: 18.40964895 | CD41: 2021 | CE41: 16.42008903 | CG41: 2021 | CH41: 16.42008903 | CI41: 15.48563103
C42: 2021 | D42: 249.9227876 | F42: 2021 | G42: 1581.371736 | K42: 2021 | L42: 150.0567959 | M42: 20.13578131 | N42: 7.077399386 | O42: 107.947253 | P42: 1.135342943 | Q42: 63.5605312 | R42: 16.09769465 | S42: 20.16817516 | T42: 249.9227876 | U42: 798.3858258 | V42: 146.8841493 | X42: 2021 | Y42: 76.965887 | AB42: 2021 | AC42: 18.40964895 | AF42: 2021 | AG42: 74.58948535 | AJ42: 2021 | AK42: 15.48563103 | AQ42: 2022 | AR42: 298.3624769 | AS42: 249.9227876 | AU42: 2022 | AV42: 1031.129891 | AW42: 1578.771838 | AZ42: 2022 | BA42: 71.74325569 | BB42: 9.037760901 | BC42: 8.498813875 | BD42: 58.62136859 | BE42: 0 | BF42: 34.86189232 | BG42: 9.197469346 | BH42: 12.21964762 | BI42: 298.3624769 | BJ42: 406.8876024 | BK42: 121.699603 | BM42: 2022 | BN42: 77.12448384 | BQ42: 2022 | BR42: 77.12448384 | BS42: 74.63270471 | BT42: 1.033986003 | BV42: 2022 | BW42: =IF($C$7="M",'Life expectancy'!IG22,IF($C$7="F",'Life expectancy'!IG97,NA())) -> 81.02931622 | BX42: 77.03187517 | BZ42: 2022 | CA42: =IF($C$7="M",'Life expectancy'!IH22,IF($C$7="F",'Life expectancy'!IH97,NA())) -> 20.95307428 | CB42: 18.46407137 | CD42: 2022 | CE42: 16.44066554 | CG42: 2022 | CH42: 16.44066554 | CI42: 15.51434833
C43: 2022 | D43: 249.9227876 | F43: 2022 | G43: 1578.771838 | K43: 2022 | L43: 150.0445969 | M43: 20.10703552 | N43: 6.978011734 | O43: 107.5696233 | P43: 1.14784322 | Q43: 63.74487411 | R43: 16.13525973 | S43: 20.20083228 | T43: 249.9227876 | U43: 799.6411383 | V43: 143.2798349 | X43: 2022 | Y43: 77.03187517 | AB43: 2022 | AC43: 18.46407137 | AF43: 2022 | AG43: 74.63270471 | AJ43: 2022 | AK43: 15.51434833 | AQ43: 2023 | AR43: 298.3624769 | AS43: 249.9227876 | AU43: 2023 | AV43: 1028.715814 | AW43: 1576.265929 | AZ43: 2023 | BA43: 71.73762836 | BB43: 9.02580409 | BC43: 8.383837797 | BD43: 58.41953949 | BE43: 0 | BF43: 34.96123395 | BG43: 9.217537314 | BH43: 12.23758037 | BI43: 298.3624769 | BJ43: 407.6018599 | BK43: 118.7683163 | BM43: 2023 | BN43: 77.15476255 | BQ43: 2023 | BR43: 77.15476255 | BS43: 74.67508788 | BT43: 1.033792931 | BV43: 2023 | BW43: =IF($C$7="M",'Life expectancy'!IG23,IF($C$7="F",'Life expectancy'!IG98,NA())) -> 81.08580983 | BX43: 77.09673766 | BZ43: 2023 | CA43: =IF($C$7="M",'Life expectancy'!IH23,IF($C$7="F",'Life expectancy'!IH98,NA())) -> 21.0016619 | CB43: 18.51776774 | CD43: 2023 | CE43: 16.46096167 | CG43: 2023 | CH43: 16.46096167 | CI43: 15.54267319
C44: 2023 | D44: 249.9227876 | F44: 2023 | G44: 1576.265929 | K44: 2023 | L44: 150.0323989 | M44: 20.07833077 | N44: 6.880019779 | O44: 107.1933146 | P44: 1.160481128 | Q44: 63.92975167 | R44: 16.17291247 | S44: 20.23354227 | T44: 249.9227876 | U44: 800.8984245 | V44: 139.763965 | X44: 2023 | Y44: 77.09673766 | AB44: 2023 | AC44: 18.51776774 | AF44: 2023 | AG44: 74.67508788 | AJ44: 2023 | AK44: 15.54267319 | AQ44: 2024 | AR44: 298.3624769 | AS44: 249.9227876 | AU44: 2024 | AV44: 1026.376216 | AW44: 1573.851821 | AZ44: 2024 | BA44: 71.73200146 | BB44: 9.013863097 | BC44: 8.270417171 | BD44: 58.21840526 | BE44: 0 | BF44: 35.06085866 | BG44: 9.237649069 | BH44: 12.25553943 | BI44: 298.3624769 | BJ44: 408.3173713 | BK44: 115.9076332 | BM44: 2024 | BN44: 77.18444636 | BQ44: 2024 | BR44: 77.18444636 | BS44: 74.71664482 | BT44: 1.03360369 | BV44: 2024 | BW44: =IF($C$7="M",'Life expectancy'!IG24,IF($C$7="F",'Life expectancy'!IG99,NA())) -> 81.14127857 | BX44: 77.1604745 | BZ44: 2024 | CA44: =IF($C$7="M",'Life expectancy'!IH24,IF($C$7="F",'Life expectancy'!IH99,NA())) -> 21.04950634 | CB44: 18.57072969 | CD44: 2024 | CE44: 16.48097933 | CG44: 2024 | CH44: 16.48097933 | CI44: 15.57060813
C45: 2024 | D45: 249.9227876 | F45: 2024 | G45: 1573.851821 | K45: 2024 | L45: 150.0202019 | M45: 20.04966701 | N45: 6.783403921 | O45: 106.8183224 | P45: 1.17325818 | Q45: 64.11516543 | R45: 16.21065308 | S45: 20.26630523 | T45: 249.9227876 | U45: 802.1576875 | V45: 136.3343692 | X45: 2024 | Y45: 77.1604745 | AB45: 2024 | AC45: 18.57072969 | AF45: 2024 | AG45: 74.71664482 | AJ45: 2024 | AK45: 15.57060813 | AQ45: 2025 | AR45: 298.3624769 | AS45: 249.9227876 | AU45: 2025 | AV45: 1024.109373 | AW45: 1571.527381 | AZ45: 2025 | BA45: 71.72637501 | BB45: 9.001937902 | BC45: 8.158530955 | BD45: 58.01796352 | BE45: 0 | BF45: 35.16076725 | BG45: 9.257804705 | BH45: 12.27352485 | BI45: 298.3624769 | BJ45: 409.0341387 | BK45: 113.1158533 | BM45: 2025 | BN45: 77.21354221 | BQ45: 2025 | BR45: 77.21354221 | BS45: 74.75738521 | BT45: 1.033418222 | BV45: 2025 | BW45: =IF($C$7="M",'Life expectancy'!IG25,IF($C$7="F",'Life expectancy'!IG100,NA())) -> 81.19571976 | BX45: 77.22308554 | BZ45: 2025 | CA45: =IF($C$7="M",'Life expectancy'!IH25,IF($C$7="F",'Life expectancy'!IH100,NA())) -> 21.09659913 | CB45: 18.62294894 | CD45: 2025 | CE45: 16.50072041 | CG45: 2025 | CH45: 16.50072041 | CI45: 15.59815567
C46: 2025 | D46: 249.9227876 | F46: 2025 | G46: 1571.527381 | K46: 2025 | L46: 150.0080058 | M46: 20.02104416 | N46: 6.688144835 | O46: 106.444642 | P46: 1.186175909 | Q46: 64.30111693 | R46: 16.24848176 | S46: 20.29912124 | T46: 249.9227876 | U46: 803.4189306 | V46: 132.9889305 | X46: 2025 | Y46: 77.22308554 | AB46: 2025 | AC46: 18.62294894 | AF46: 2025 | AG46: 74.75738521 | AJ46: 2025 | AK46: 15.59815567 | AQ46: =IF(AQ45<Year_max,AQ45+1,NA()) -> 2026 | AR46: 298.3624769 | AS46: 249.9227876 | AU46: 2026 | AV46: 1021.913607 | AW46: 1569.290526 | AZ46: 2026 | BA46: 71.720749 | BB46: 8.990028484 | BC46: 8.04815839 | BD46: 57.81821189 | BE46: 0 | BF46: 35.26096055 | BG46: 9.278004319 | BH46: 12.29153667 | BI46: 298.3624769 | BJ46: 409.7521644 | BK46: 110.3913168 | BM46: 2026 | BN46: 77.2420568 | BQ46: 2026 | BR46: 77.2420568 | BS46: 74.79731851 | BT46: 1.03323647 | BV46: 2026 | BW46: =IF($C$7="M",'Life expectancy'!IG26,IF($C$7="F",'Life expectancy'!IG101,NA())) -> 81.24913062 | BX46: 77.28457049 | BZ46: 2026 | CA46: =IF($C$7="M",'Life expectancy'!IH26,IF($C$7="F",'Life expectancy'!IH101,NA())) -> 21.1429319 | CB46: 18.67441729 | CD46: 2026 | CE46: 16.52018674 | CG46: 2026 | CH46: 16.52018674 | CI46: 15.62531829
C47: 2026 | D47: 249.9227876 | F47: 2026 | G47: 1569.290526 | K47: 2026 | L47: =IF(ISNA($C47),"",base_tx*OFFSET(INDIRECT("'Forecasts " & L$36 & "'!" & IF(sex_plot="M","C17",IF(sex_plot="F","C58",NA()))),$C47-$C$37,MATCH(age_plot,Ages_group,0))) -> 149.9958108 | M47: 19.99246217 | N47: 6.59422347 | O47: 106.0722689 | P47: 1.199235864 | Q47: 64.48760775 | R47: 16.28639871 | S47: 20.33199039 | T47: 249.9227876 | U47: 804.6821566 | V47: 129.7255837 | X47: 2026 | Y47: 77.28457049 | AB47: 2026 | AC47: 18.67441729 | AF47: 2026 | AG47: 74.79731851 | AJ47: 2026 | AK47: 15.62531829 | BA47: =IF(ISNA($AQ47),"",base_tx*OFFSET(INDIRECT("'Forecasts " & BA$36 & "'!" & IF(sex_plot="M","AA17",IF(sex_plot="F","AA58",NA()))),$AQ47-$AQ$37,MATCH(age_plot,Ages_group,0))) ->  | BW47: =IF($C$7="M",'Life expectancy'!IG27,IF($C$7="F",'Life expectancy'!IG102,NA())) ->  | CA47: =IF($C$7="M",'Life expectancy'!IH27,IF($C$7="F",'Life expectancy'!IH102,NA())) -> 
BW48: =IF($C$7="M",'Life expectancy'!IG28,IF($C$7="F",'Life expectancy'!IG103,NA())) ->  | CA48: =IF($C$7="M",'Life expectancy'!IH28,IF($C$7="F",'Life expectancy'!IH103,NA())) -> 
BW49: =IF($C$7="M",'Life expectancy'!IG29,IF($C$7="F",'Life expectancy'!IG104,NA())) ->  | CA49: =IF($C$7="M",'Life expectancy'!IH29,IF($C$7="F",'Life expectancy'!IH104,NA())) -> 
BW50: =IF($C$7="M",'Life expectancy'!IG30,IF($C$7="F",'Life expectancy'!IG105,NA())) ->  | CA50: =IF($C$7="M",'Life expectancy'!IH30,IF($C$7="F",'Life expectancy'!IH105,NA())) -> 
BW51: =IF($C$7="M",'Life expectancy'!IG31,IF($C$7="F",'Life expectancy'!IG106,NA())) ->  | CA51: =IF($C$7="M",'Life expectancy'!IH31,IF($C$7="F",'Life expectancy'!IH106,NA())) -> 
BW52: =IF($C$7="M",'Life expectancy'!IG32,IF($C$7="F",'Life expectancy'!IG107,NA())) ->  | CA52: =IF($C$7="M",'Life expectancy'!IH32,IF($C$7="F",'Life expectancy'!IH107,NA())) -> 
BW53: =IF($C$7="M",'Life expectancy'!IG33,IF($C$7="F",'Life expectancy'!IG108,NA())) ->  | CA53: =IF($C$7="M",'Life expectancy'!IH33,IF($C$7="F",'Life expectancy'!IH108,NA())) -> 
BW54: =IF($C$7="M",'Life expectancy'!IG34,IF($C$7="F",'Life expectancy'!IG109,NA())) ->  | CA54: =IF($C$7="M",'Life expectancy'!IH34,IF($C$7="F",'Life expectancy'!IH109,NA())) -> 
BW55: =IF($C$7="M",'Life expectancy'!IG35,IF($C$7="F",'Life expectancy'!IG110,NA())) ->  | CA55: =IF($C$7="M",'Life expectancy'!IH35,IF($C$7="F",'Life expectancy'!IH110,NA())) -> 
BW56: =IF($C$7="M",'Life expectancy'!IG36,IF($C$7="F",'Life expectancy'!IG111,NA())) ->  | CA56: =IF($C$7="M",'Life expectancy'!IH36,IF($C$7="F",'Life expectancy'!IH111,NA())) -> 
L57: =IF(ISNA($C57),"",base_tx*OFFSET(INDIRECT("'Forecasts " & L$36 & "'!" & IF(sex_plot="M","C17",IF(sex_plot="F","C58",NA()))),$C57-$C$37,MATCH(age_plot,Ages_group,0))) ->  | BA57: =IF(ISNA($AQ57),"",base_tx*OFFSET(INDIRECT("'Forecasts " & BA$36 & "'!" & IF(sex_plot="M","AA17",IF(sex_plot="F","AA58",NA()))),$AQ57-$AQ$37,MATCH(age_plot,Ages_group,0))) ->  | BW57: =IF($C$7="M",'Life expectancy'!IG37,IF($C$7="F",'Life expectancy'!IG112,NA())) ->  | CA57: =IF($C$7="M",'Life expectancy'!IH37,IF($C$7="F",'Life expectancy'!IH112,NA())) -> 
BW58: =IF($C$7="M",'Life expectancy'!IG38,IF($C$7="F",'Life expectancy'!IG113,NA())) ->  | CA58: =IF($C$7="M",'Life expectancy'!IH38,IF($C$7="F",'Life expectancy'!IH113,NA())) -> 
BW59: =IF($C$7="M",'Life expectancy'!IG39,IF($C$7="F",'Life expectancy'!IG114,NA())) ->  | CA59: =IF($C$7="M",'Life expectancy'!IH39,IF($C$7="F",'Life expectancy'!IH114,NA())) -> 
BW60: =IF($C$7="M",'Life expectancy'!IG40,IF($C$7="F",'Life expectancy'!IG115,NA())) ->  | CA60: =IF($C$7="M",'Life expectancy'!IH40,IF($C$7="F",'Life expectancy'!IH115,NA())) -> 
BW61: =IF($C$7="M",'Life expectancy'!IG41,IF($C$7="F",'Life expectancy'!IG116,NA())) ->  | CA61: =IF($C$7="M",'Life expectancy'!IH41,IF($C$7="F",'Life expectancy'!IH116,NA())) -> 
BW62: =IF($C$7="M",'Life expectancy'!IG42,IF($C$7="F",'Life expectancy'!IG117,NA())) ->  | CA62: =IF($C$7="M",'Life expectancy'!IH42,IF($C$7="F",'Life expectancy'!IH117,NA())) -> 
BW63: =IF($C$7="M",'Life expectancy'!IG43,IF($C$7="F",'Life expectancy'!IG118,NA())) ->  | CA63: =IF($C$7="M",'Life expectancy'!IH43,IF($C$7="F",'Life expectancy'!IH118,NA())) -> 
BW64: =IF($C$7="M",'Life expectancy'!IG44,IF($C$7="F",'Life expectancy'!IG119,NA())) ->  | CA64: =IF($C$7="M",'Life expectancy'!IH44,IF($C$7="F",'Life expectancy'!IH119,NA())) -> 
BW65: =IF($C$7="M",'Life expectancy'!IG45,IF($C$7="F",'Life expectancy'!IG120,NA())) ->  | CA65: =IF($C$7="M",'Life expectancy'!IH45,IF($C$7="F",'Life expectancy'!IH120,NA())) -> 
BW66: =IF($C$7="M",'Life expectancy'!IG46,IF($C$7="F",'Life expectancy'!IG121,NA())) ->  | CA66: =IF($C$7="M",'Life expectancy'!IH46,IF($C$7="F",'Life expectancy'!IH121,NA())) -> 
BW67: =IF($C$7="M",'Life expectancy'!IG47,IF($C$7="F",'Life expectancy'!IG122,NA())) ->  | CA67: =IF($C$7="M",'Life expectancy'!IH47,IF($C$7="F",'Life expectancy'!IH122,NA())) -> 

Sheet Graphscomparison
C1: Society of actuaries - Cause of deaths forecasting tool | K1: GraphsComparison
B7: Gender | C7: M
B8: age group | C8: 30 - 34
B9: cause | C9: Cerebrovascular
T10: Select age | U10: 65
C12: ="Forecast Death rate " & $C$9 & IF(sex_plot="M"," Male"," Female") & " age " & $C$8 -> Forecast Death rate Cerebrovascular Male age 30 - 34 | H12: ="Forecast aggregate Death rate" & IF(sex_plot="M"," Male"," Female") & " age " & $C$8 -> Forecast aggregate Death rate Male age 30 - 34 | N12: ="Forecast Life expectancy at birth" & IF(sex_plot="M"," Male"," Female") -> Forecast Life expectancy at birth Male | T12: ="Forecast Life expectancy at " & age_LE & IF(sex_plot="M"," Male"," Female") -> Forecast Life expectancy at 65 Male
D14: =cause_plot & " Death rate" -> Drug Death rate | I14: All causes Death rate | O14: Life expectancy at birth | U14: ="Life expectancy at " & age_LE -> Life expectancy at 65
C15: years | D15: Historical 1 | E15: Historical 2 | F15: Actual | H15: years | I15: Historical 1 | J15: Historical 2 | K15: Actual | N15: years | O15: Historical 1 | P15: Historical 2 | Q15: Actual | T15: years | U15: Historical 1 | V15: Historical 2 | W15: Actual
C16: =Year_0 -> 2016 | D16: 20.28012785 | E16: 20.28012785 | F16: 20.28012785 | H16: =Year_0 -> 2016 | I16: 1845.784369 | J16: 1845.784369 | K16: 1845.784369 | N16: =Year_0 -> 2016 | O16: 76.21077114 | P16: 76.21077114 | Q16: 76.21077114 | T16: =Year_0 -> 2016 | U16: 18.11145382 | V16: 18.11145382 | W16: 18.11145382
C17: =IF(C16<Year_max,C16+1,NA()) -> 2017 | D17: 20.20573174 | E17: 20.251176 | F17: 20.251176 | H17: =IF(H16<Year_max,H16+1,NA()) -> 2017 | I17: 1877.884356 | J17: 1881.734583 | K17: 1881.734583 | N17: =IF(N16<Year_max,N16+1,NA()) -> 2017 | O17: 76.31574373 | P17: 76.2430398 | Q17: 76.2430398 | T17: =IF(T16<Year_max,T16+1,NA()) -> 2017 | U17: 18.22249867 | V17: 18.16868047 | W17: 18.16868047
C18: 2018 | D18: 20.13160854 | E18: 20.22226548 | F18: 20.22226548 | H18: 2018 | I18: 1913.160405 | J18: 1920.842084 | K18: 1920.842084 | N18: 2018 | O18: 76.41456366 | P18: 76.27180017 | Q18: 76.27180017 | T18: 2018 | U18: 18.3300893 | V18: 18.22520867 | W18: 18.22520867
C19: 2019 | D19: 20.05775725 | E19: 20.19339623 | F19: 20.19339623 | H19: 2019 | I19: 1951.848494 | J19: 1963.342822 | K19: 1963.342822 | N19: 2019 | O19: 76.50696294 | P19: 76.29689834 | Q19: 76.29689834 | T19: 2019 | U19: 18.43409843 | V19: 18.28102967 | W19: 18.28102967
C20: 2020 | D20: 19.98417688 | E20: 20.16456819 | F20: 20.16456819 | H20: 2020 | I20: 1994.203289 | J20: 2009.491435 | K20: 2009.491435 | N20: 2020 | O20: 76.59266564 | P20: 76.31816954 | Q20: 76.31816954 | T20: 2020 | U20: 18.53440178 | V20: 18.33613472 | W20: 18.33613472
C21: 2021 | D21: 19.91086644 | E21: 20.13578131 | F21: 20.13578131 | H21: 2021 | I21: 2040.499606 | J21: 2059.562707 | K21: 2059.562707 | N21: 2021 | O21: 76.6713878 | P21: 76.33543745 | Q21: 76.33543745 | T21: 2021 | U21: 18.63087877 | V21: 18.39051514 | W21: 18.39051514
C22: 2022 | D22: 19.83782493 | E22: 20.10703552 | F22: 20.10703552 | H22: 2022 | I22: 2091.03397 | J22: 2113.853131 | K22: 2113.853131 | N22: 2022 | O22: 76.74283746 | P22: 76.34851342 | Q22: 76.34851342 | T22: 2022 | U22: 18.72341332 | V22: 18.44416224 | W22: 18.44416224
C23: 2023 | D23: 19.76505137 | E23: 20.07833077 | F23: 20.07833077 | H23: 2023 | I23: 2146.126312 | J23: 2172.682604 | K23: 2172.682604 | N23: 2023 | O23: 76.80671456 | P23: 76.35719569 | Q23: 76.35719569 | T23: 2023 | U23: 18.81189454 | V23: 18.49706742 | W23: 18.49706742
C24: 2024 | D24: 19.69254477 | E24: 20.04966701 | F24: 20.04966701 | H24: 2024 | I24: 2206.121791 | J24: 2236.396248 | K24: 2236.396248 | N24: 2024 | O24: 76.8627108 | P24: 76.36126856 | Q24: 76.36126856 | T24: 2024 | U24: 18.89621752 | V24: 18.54922212 | W24: 18.54922212
C25: 2025 | D25: 19.62030415 | E25: 20.02104416 | F25: 20.02104416 | H25: 2025 | I25: 2271.392755 | J25: 2305.366374 | K25: 2305.366374 | N25: 2025 | O25: 76.91050955 | P25: 76.36050143 | Q25: 76.36050143 | T25: 2025 | U25: 18.97628409 | V25: 18.60061785 | W25: 18.60061785
C26: 2026 | D26: 19.54832855 | E26: 19.99246217 | F26: 19.99246217 | H26: 2026 | I26: 2342.340866 | J26: 2379.994603 | K26: 2379.994603 | N26: 2026 | O26: 76.94978552 | P26: 76.35464793 | Q26: 76.35464793 | T26: 2026 | U26: 19.05200351 | V26: 18.65124618 | W26: 18.65124618
F56: H1 | I56: H2 | L56: Actual
F57: historical1 | G57: historical1 | I57: historical2 | J57: historical2 | L57: historical2 | M57: historical2
F58: historical1 | G58: historical1 | I58: historical2 | J58: historical2 | L58: historical2 | M58: historical2
F59: historical1 | G59: historical1 | I59: historical2 | J59: historical2 | L59: historical2 | M59: historical2
F60: historical1 | G60: historical1 | I60: historical2 | J60: historical2 | L60: historical2 | M60: historical2
F61: historical1 | G61: historical1 | I61: historical2 | J61: historical2 | L61: historical2 | M61: historical2
F62: historical1 | G62: historical1 | I62: historical2 | J62: historical2 | L62: historical2 | M62: historical2
F63: historical1 | G63: historical1 | I63: historical2 | J63: historical2 | L63: historical2 | M63: historical2
F64: historical1 | G64: historical1 | I64: historical2 | J64: historical2 | L64: historical2 | M64: historical2
F65: historical1 | G65: historical1 | I65: historical2 | J65: historical2 | L65: historical2 | M65: historical2
F66: historical1 | G66: historical1 | I66: historical2 | J66: historical2 | L66: historical2 | M66: historical2
F67: historical1 | G67: historical1 | I67: historical2 | J67: historical2 | L67: historical2 | M67: historical2

Sheet Life expectancy
C1: Society of actuaries - Cause of deaths forecasting tool | K1: Life Expectancy
B6: central scenario - diffusion LC | DU6: central scenario - diffusion LC
B7: Life Expectancy | D7: National Population | DU7: Life Expectancy | DW7: Cluster Population
B9: Male | DU9: Male
B15: Survival probability | D15: age | DN15: Life expectancies | DQ15: Partial Life expectancies until 85 | DU15: Survival probability | DW15: age | IF15: Life expectancies (need to complete mortality t0) | IJ15: Partial Life expectancies until 85
B16: sex | C16: M | D16: 0 | E16: 1 | F16: 2 | G16: 3 | H16: 4 | I16: 5 | J16: 6 | K16: 7 | L16: 8 | M16: 9 | N16: 10 | O16: 11 | P16: 12 | Q16: 13 | R16: 14 | S16: 15 | T16: 16 | U16: 17 | V16: 18 | W16: 19 | X16: 20 | Y16: 21 | Z16: 22 | AA16: 23 | AB16: 24 | AC16: 25 | AD16: 26 | AE16: 27 | AF16: 28 | AG16: 29 | AH16: 30 | AI16: 31 | AJ16: 32 | AK16: 33 | AL16: 34 | AM16: 35 | AN16: 36 | AO16: 37 | AP16: 38 | AQ16: 39 | AR16: 40 | AS16: 41 | AT16: 42 | AU16: 43 | AV16: 44 | AW16: 45 | AX16: 46 | AY16: 47 | AZ16: 48 | BA16: 49 | BB16: 50 | BC16: 51 | BD16: 52 | BE16: 53 | BF16: 54 | BG16: 55 | BH16: 56 | BI16: 57 | BJ16: 58 | BK16: 59 | BL16: 60 | BM16: 61 | BN16: 62 | BO16: 63 | BP16: 64 | BQ16: 65 | BR16: 66 | BS16: 67 | BT16: 68 | BU16: 69 | BV16: 70 | BW16: 71 | BX16: 72 | BY16: 73 | BZ16: 74 | CA16: 75 | CB16: 76 | CC16: 77 | CD16: 78 | CE16: 79 | CF16: 80 | CG16: 81 | CH16: 82 | CI16: 83 | CJ16: 84 | CK16: 85 | CL16: 86 | CM16: 87 | CN16: 88 | CO16: 89 | CP16: 90 | CQ16: 91 | CR16: 92 | CS16: 93 | CT16: 94 | CU16: 95 | CV16: 96 | CW16: 97 | CX16: 98 | CY16: 99 | CZ16: 100 | DA16: 101 | DB16: 102 | DC16: 103 | DD16: 104 | DE16: 105 | DF16: 106 | DG16: 107 | DH16: 108 | DI16: 109 | DJ16: 110 | DK16: 111 | DN16: at birth | DO16: at age plot | DR16: at birth | DS16: at 65 | DU16: sex | DV16: M | DW16: 0 | DX16: 1 | DY16: 2 | DZ16: 3 | EA16: 4 | EB16: 5 | EC16: 6 | ED16: 7 | EE16: 8 | EF16: 9 | EG16: 10 | EH16: 11 | EI16: 12 | EJ16: 13 | EK16: 14 | EL16: 15 | EM16: 16 | EN16: 17 | EO16: 18 | EP16: 19 | EQ16: 20 | ER16: 21 | ES16: 22 | ET16: 23 | EU16: 24 | EV16: 25 | EW16: 26 | EX16: 27 | EY16: 28 | EZ16: 29 | FA16: 30 | FB16: 31 | FC16: 32 | FD16: 33 | FE16: 34 | FF16: 35 | FG16: 36 | FH16: 37 | FI16: 38 | FJ16: 39 | FK16: 40 | FL16: 41 | FM16: 42 | FN16: 43 | FO16: 44 | FP16: 45 | FQ16: 46 | FR16: 47 | FS16: 48 | FT16: 49 | FU16: 50 | FV16: 51 | FW16: 52 | FX16: 53 | FY16: 54 | FZ16: 55 | GA16: 56 | GB16: 57 | GC16: 58 | GD16: 59 | GE16: 60 | GF16: 61 | GG16: 62 | GH16: 63 | GI16: 64 | GJ16: 65 | GK16: 66 | GL16: 67 | GM16: 68 | GN16: 69 | GO16: 70 | GP16: 71 | GQ16: 72 | GR16: 73 | GS16: 74 | GT16: 75 | GU16: 76 | GV16: 77 | GW16: 78 | GX16: 79 | GY16: 80 | GZ16: 81 | HA16: 82 | HB16: 83 | HC16: 84 | HD16: 85 | HE16: 86 | HF16: 87 | HG16: 88 | HH16: 89 | HI16: 90 | HJ16: 91 | HK16: 92 | HL16: 93 | HM16: 94 | HN16: 95 | HO16: 96 | HP16: 97 | HQ16: 98 | HR16: 99 | HS16: 100 | HT16: 101 | HU16: 102 | HV16: 103 | HW16: 104 | HX16: 105 | HY16: 106 | HZ16: 107 | IA16: 108 | IB16: 109 | IC16: 110 | ID16: 111 | IG16: at birth | IH16: at age plot | IK16: at birth | IL16: at 65
B17: time | C17: =Year_0 -> 2016 | D17: =IF(C17<>"",100%,"") -> 1 | E17: =IF($C17<>"",D17*EXP(-OFFSET('Forecasts Aggregate'!$C$17,$C17-$C$17,MATCH(D$16,Ages,1))),"") -> 0.9937592813 | F17: =IF($C17<>"",E17*EXP(-OFFSET('Forecasts Aggregate'!$C$17,$C17-$C$17,MATCH(E$16,Ages,1))),"") -> 0.9934722617 | G17: =IF($C17<>"",F17*EXP(-OFFSET('Forecasts Aggregate'!$C$17,$C17-$C$17,MATCH(F$16,Ages,1))),"") -> 0.993185325 | H17: =IF($C17<>"",G17*EXP(-OFFSET('Forecasts Aggregate'!$C$17,$C17-$C$17,MATCH(G$16,Ages,1))),"") -> 0.9928984712 | I17: =IF($C17<>"",H17*EXP(-OFFSET('Forecasts Aggregate'!$C$17,$C17-$C$17,MATCH(H$16,Ages,1))),"") -> 0.9926117002 | J17: =IF($C17<>"",I17*EXP(-OFFSET('Forecasts Aggregate'!$C$17,$C17-$C$17,MATCH(I$16,Ages,1))),"") -> 0.9924789943 | K17: =IF($C17<>"",J17*EXP(-OFFSET('Forecasts Aggregate'!$C$17,$C17-$C$17,MATCH(J$16,Ages,1))),"") -> 0.9923463061 | L17: =IF($C17<>"",K17*EXP(-OFFSET('Forecasts Aggregate'!$C$17,$C17-$C$17,MATCH(K$16,Ages,1))),"") -> 0.9922136357 | M17: =IF($C17<>"",L17*EXP(-OFFSET('Forecasts Aggregate'!$C$17,$C17-$C$17,MATCH(L$16,Ages,1))),"") -> 0.992080983 | N17: =IF($C17<>"",M17*EXP(-OFFSET('Forecasts Aggregate'!$C$17,$C17-$C$17,MATCH(M$16,Ages,1))),"") -> 0.991948348 | O17: =IF($C17<>"",N17*EXP(-OFFSET('Forecasts Aggregate'!$C$17,$C17-$C$17,MATCH(N$16,Ages,1))),"") -> 0.9917844722 | P17: =IF($C17<>"",O17*EXP(-OFFSET('Forecasts Aggregate'!$C$17,$C17-$C$17,MATCH(O$16,Ages,1))),"") -> 0.9916206235 | Q17: =IF($C17<>"",P17*EXP(-OFFSET('Forecasts Aggregate'!$C$17,$C17-$C$17,MATCH(P$16,Ages,1))),"") -> 0.9914568019 | R17: =IF($C17<>"",Q17*EXP(-OFFSET('Forecasts Aggregate'!$C$17,$C17-$C$17,MATCH(Q$16,Ages,1))),"") -> 0.9912930073 | S17: =IF($C17<>"",R17*EXP(-OFFSET('Forecasts Aggregate'!$C$17,$C17-$C$17,MATCH(R$16,Ages,1))),"") -> 0.9911292398 | T17: =IF($C17<>"",S17*EXP(-OFFSET('Forecasts Aggregate'!$C$17,$C17-$C$17,MATCH(S$16,Ages,1))),"") -> 0.9904461959 | U17: =IF($C17<>"",T17*EXP(-OFFSET('Forecasts Aggregate'!$C$17,$C17-$C$17,MATCH(T$16,Ages,1))),"") -> 0.9897636228 | V17: =IF($C17<>"",U17*EXP(-OFFSET('Forecasts Aggregate'!$C$17,$C17-$C$17,MATCH(U$16,Ages,1))),"") -> 0.9890815201 | W17: =IF($C17<>"",V17*EXP(-OFFSET('Forecasts Aggregate'!$C$17,$C17-$C$17,MATCH(V$16,Ages,1))),"") -> 0.9883998874 | X17: =IF($C17<>"",W17*EXP(-OFFSET('Forecasts Aggregate'!$C$17,$C17-$C$17,MATCH(W$16,Ages,1))),"") -> 0.9877187245 | Y17: =IF($C17<>"",X17*EXP(-OFFSET('Forecasts Aggregate'!$C$17,$C17-$C$17,MATCH(X$16,Ages,1))),"") -> 0.9863504843 | Z17: =IF($C17<>"",Y17*EXP(-OFFSET('Forecasts Aggregate'!$C$17,$C17-$C$17,MATCH(Y$16,Ages,1))),"") -> 0.9849841395 | AA17: =IF($C17<>"",Z17*EXP(-OFFSET('Forecasts Aggregate'!$C$17,$C17-$C$17,MATCH(Z$16,Ages,1))),"") -> 0.9836196874 | AB17: =IF($C17<>"",AA17*EXP(-OFFSET('Forecasts Aggregate'!$C$17,$C17-$C$17,MATCH(AA$16,Ages,1))),"") -> 0.9822571255 | AC17: =IF($C17<>"",AB17*EXP(-OFFSET('Forecasts Aggregate'!$C$17,$C17-$C$17,MATCH(AB$16,Ages,1))),"") -> 0.980896451 | AD17: =IF($C17<>"",AC17*EXP(-OFFSET('Forecasts Aggregate'!$C$17,$C17-$C$17,MATCH(AC$16,Ages,1))),"") -> 0.9792907764 | AE17: =IF($C17<>"",AD17*EXP(-OFFSET('Forecasts Aggregate'!$C$17,$C17-$C$17,MATCH(AD$16,Ages,1))),"") -> 0.9776877302 | AF17: =IF($C17<>"",AE17*EXP(-OFFSET('Forecasts Aggregate'!$C$17,$C17-$C$17,MATCH(AE$16,Ages,1))),"") -> 0.9760873081 | AG17: =IF($C17<>"",AF17*EXP(-OFFSET('Forecasts Aggregate'!$C$17,$C17-$C$17,MATCH(AF$16,Ages,1))),"") -> 0.9744895059 | AH17: =IF($C17<>"",AG17*EXP(-OFFSET('Forecasts Aggregate'!$C$17,$C17-$C$17,MATCH(AG$16,Ages,1))),"") -> 0.9728943191 | AI17: =IF($C17<>"",AH17*EXP(-OFFSET('Forecasts Aggregate'!$C$17,$C17-$C$17,MATCH(AH$16,Ages,1))),"") -> 0.9711002222 | AJ17: =IF($C17<>"",AI17*EXP(-OFFSET('Forecasts Aggregate'!$C$17,$C17-$C$17,MATCH(AI$16,Ages,1))),"") -> 0.9693094338 | AK17: =IF($C17<>"",AJ17*EXP(-OFFSET('Forecasts Aggregate'!$C$17,$C17-$C$17,MATCH(AJ$16,Ages,1))),"") -> 0.9675219478 | AL17: =IF($C17<>"",AK17*EXP(-OFFSET('Forecasts Aggregate'!$C$17,$C17-$C$17,MATCH(AK$16,Ages,1))),"") -> 0.965737758 | AM17: =IF($C17<>"",AL17*EXP(-OFFSET('Forecasts Aggregate'!$C$17,$C17-$C$17,MATCH(AL$16,Ages,1))),"") -> 0.9639568585 | AN17: =IF($C17<>"",AM17*EXP(-OFFSET('Forecasts Aggregate'!$C$17,$C17-$C$17,MATCH(AM$16,Ages,1))),"") -> 0.961920428 | AO17: =IF($C17<>"",AN17*EXP(-OFFSET('Forecasts Aggregate'!$C$17,$C17-$C$17,MATCH(AN$16,Ages,1))),"") -> 0.9598882997 | AP17: =IF($C17<>"",AO17*EXP(-OFFSET('Forecasts Aggregate'!$C$17,$C17-$C$17,MATCH(AO$16,Ages,1))),"") -> 0.9578604644 | AQ17: =IF($C17<>"",AP17*EXP(-OFFSET('Forecasts Aggregate'!$C$17,$C17-$C$17,MATCH(AP$16,Ages,1))),"") -> 0.955836913 | AR17: =IF($C17<>"",AQ17*EXP(-OFFSET('Forecasts Aggregate'!$C$17,$C17-$C$17,MATCH(AQ$16,Ages,1))),"") -> 0.9538176366 | AS17: =IF($C17<>"",AR17*EXP(-OFFSET('Forecasts Aggregate'!$C$17,$C17-$C$17,MATCH(AR$16,Ages,1))),"") -> 0.9512665497 | AT17: =IF($C17<>"",AS17*EXP(-OFFSET('Forecasts Aggregate'!$C$17,$C17-$C$17,MATCH(AS$16,Ages,1))),"") -> 0.9487222859 | AU17: =IF($C17<>"",AT17*EXP(-OFFSET('Forecasts Aggregate'!$C$17,$C17-$C$17,MATCH(AT$16,Ages,1))),"") -> 0.9461848271 | AV17: =IF($C17<>"",AU17*EXP(-OFFSET('Forecasts Aggregate'!$C$17,$C17-$C$17,MATCH(AU$16,Ages,1))),"") -> 0.943654155 | AW17: =IF($C17<>"",AV17*EXP(-OFFSET('Forecasts Aggregate'!$C$17,$C17-$C$17,MATCH(AV$16,Ages,1))),"") -> 0.9411302514 | AX17: =IF($C17<>"",AW17*EXP(-OFFSET('Forecasts Aggregate'!$C$17,$C17-$C$17,MATCH(AW$16,Ages,1))),"") -> 0.9374937408 | AY17: =IF($C17<>"",AX17*EXP(-OFFSET('Forecasts Aggregate'!$C$17,$C17-$C$17,MATCH(AX$16,Ages,1))),"") -> 0.9338712817 | AZ17: =IF($C17<>"",AY17*EXP(-OFFSET('Forecasts Aggregate'!$C$17,$C17-$C$17,MATCH(AY$16,Ages,1))),"") -> 0.9302628196 | BA17: =IF($C17<>"",AZ17*EXP(-OFFSET('Forecasts Aggregate'!$C$17,$C17-$C$17,MATCH(AZ$16,Ages,1))),"") -> 0.9266683006 | BB17: =IF($C17<>"",BA17*EXP(-OFFSET('Forecasts Aggregate'!$C$17,$C17-$C$17,MATCH(BA$16,Ages,1))),"") -> 0.9230876708 | BC17: =IF($C17<>"",BB17*EXP(-OFFSET('Forecasts Aggregate'!$C$17,$C17-$C$17,MATCH(BB$16,Ages,1))),"") -> 0.9174669342 | BD17: =IF($C17<>"",BC17*EXP(-OFFSET('Forecasts Aggregate'!$C$17,$C17-$C$17,MATCH(BC$16,Ages,1))),"") -> 0.9118804226 | BE17: =IF($C17<>"",BD17*EXP(-OFFSET('Forecasts Aggregate'!$C$17,$C17-$C$17,MATCH(BD$16,Ages,1))),"") -> 0.9063279276 | BF17: =IF($C17<>"",BE17*EXP(-OFFSET('Forecasts Aggregate'!$C$17,$C17-$C$17,MATCH(BE$16,Ages,1))),"") -> 0.9008092421 | BG17: =IF($C17<>"",BF17*EXP(-OFFSET('Forecasts Aggregate'!$C$17,$C17-$C$17,MATCH(BF$16,Ages,1))),"") -> 0.8953241602 | BH17: =IF($C17<>"",BG17*EXP(-OFFSET('Forecasts Aggregate'!$C$17,$C17-$C$17,MATCH(BG$16,Ages,1))),"") -> 0.8870609203 | BI17: =IF($C17<>"",BH17*EXP(-OFFSET('Forecasts Aggregate'!$C$17,$C17-$C$17,MATCH(BH$16,Ages,1))),"") -> 0.8788739447 | BJ17: =IF($C17<>"",BI17*EXP(-OFFSET('Forecasts Aggregate'!$C$17,$C17-$C$17,MATCH(BI$16,Ages,1))),"") -> 0.8707625292 | BK17: =IF($C17<>"",BJ17*EXP(-OFFSET('Forecasts Aggregate'!$C$17,$C17-$C$17,MATCH(BJ$16,Ages,1))),"") -> 0.8627259768 | BL17: =IF($C17<>"",BK17*EXP(-OFFSET('Forecasts Aggregate'!$C$17,$C17-$C$17,MATCH(BK$16,Ages,1))),"") -> 0.8547635962 | BM17: =IF($C17<>"",BL17*EXP(-OFFSET('Forecasts Aggregate'!$C$17,$C17-$C$17,MATCH(BL$16,Ages,1))),"") -> 0.8434167859 | BN17: =IF($C17<>"",BM17*EXP(-OFFSET('Forecasts Aggregate'!$C$17,$C17-$C$17,MATCH(BM$16,Ages,1))),"") -> 0.8322206022 | BO17: =IF($C17<>"",BN17*EXP(-OFFSET('Forecasts Aggregate'!$C$17,$C17-$C$17,MATCH(BN$16,Ages,1))),"") -> 0.8211730455 | BP17: =IF($C17<>"",BO17*EXP(-OFFSET('Forecasts Aggregate'!$C$17,$C17-$C$17,MATCH(BO$16,Ages,1))),"") -> 0.8102721429 | BQ17: =IF($C17<>"",BP17*EXP(-OFFSET('Forecasts Aggregate'!$C$17,$C17-$C$17,MATCH(BP$16,Ages,1))),"") -> 0.7995159475 | BR17: =IF($C17<>"",BQ17*EXP(-OFFSET('Forecasts Aggregate'!$C$17,$C17-$C$17,MATCH(BQ$16,Ages,1))),"") -> 0.7850321939 | BS17: =IF($C17<>"",BR17*EXP(-OFFSET('Forecasts Aggregate'!$C$17,$C17-$C$17,MATCH(BR$16,Ages,1))),"") -> 0.770810823 | BT17: =IF($C17<>"",BS17*EXP(-OFFSET('Forecasts Aggregate'!$C$17,$C17-$C$17,MATCH(BS$16,Ages,1))),"") -> 0.7568470815 | BU17: =IF($C17<>"",BT17*EXP(-OFFSET('Forecasts Aggregate'!$C$17,$C17-$C$17,MATCH(BT$16,Ages,1))),"") -> 0.7431363022 | BV17: =IF($C17<>"",BU17*EXP(-OFFSET('Forecasts Aggregate'!$C$17,$C17-$C$17,MATCH(BU$16,Ages,1))),"") -> 0.7296739028 | BW17: =IF($C17<>"",BV17*EXP(-OFFSET('Forecasts Aggregate'!$C$17,$C17-$C$17,MATCH(BV$16,Ages,1))),"") -> 0.7098108507 | BX17: =IF($C17<>"",BW17*EXP(-OFFSET('Forecasts Aggregate'!$C$17,$C17-$C$17,MATCH(BW$16,Ages,1))),"") -> 0.6904885071 | BY17: =IF($C17<>"",BX17*EXP(-OFFSET('Forecasts Aggregate'!$C$17,$C17-$C$17,MATCH(BX$16,Ages,1))),"") -> 0.6716921529 | BZ17: =IF($C17<>"",BY17*EXP(-OFFSET('Forecasts Aggregate'!$C$17,$C17-$C$17,MATCH(BY$16,Ages,1))),"") -> 0.6534074697 | CA17: =IF($C17<>"",BZ17*EXP(-OFFSET('Forecasts Aggregate'!$C$17,$C17-$C$17,MATCH(BZ$16,Ages,1))),"") -> 0.6356205288 | CB17: =IF($C17<>"",CA17*EXP(-OFFSET('Forecasts Aggregate'!$C$17,$C17-$C$17,MATCH(CA$16,Ages,1))),"") -> 0.6088951782 | CC17: =IF($C17<>"",CB17*EXP(-OFFSET('Forecasts Aggregate'!$C$17,$C17-$C$17,MATCH(CB$16,Ages,1))),"") -> 0.5832935239 | CD17: =IF($C17<>"",CC17*EXP(-OFFSET('Forecasts Aggregate'!$C$17,$C17-$C$17,MATCH(CC$16,Ages,1))),"") -> 0.5587683187 | CE17: =IF($C17<>"",CD17*EXP(-OFFSET('Forecasts Aggregate'!$C$17,$C17-$C$17,MATCH(CD$16,Ages,1))),"") -> 0.5352743022 | CF17: =IF($C17<>"",CE17*EXP(-OFFSET('Forecasts Aggregate'!$C$17,$C17-$C$17,MATCH(CE$16,Ages,1))),"") -> 0.5127681169 | CG17: =IF($C17<>"",CF17*EXP(-OFFSET('Forecasts Aggregate'!$C$17,$C17-$C$17,MATCH(CF$16,Ages,1))),"") -> 0.4779354007 | CH17: =IF($C17<>"",CG17*EXP(-OFFSET('Forecasts Aggregate'!$C$17,$C17-$C$17,MATCH(CG$16,Ages,1))),"") -> 0.4454688966 | CI17: =IF($C17<>"",CH17*EXP(-OFFSET('Forecasts Aggregate'!$C$17,$C17-$C$17,MATCH(CH$16,Ages,1))),"") -> 0.4152078661 | CJ17: =IF($C17<>"",CI17*EXP(-OFFSET('Forecasts Aggregate'!$C$17,$C17-$C$17,MATCH(CI$16,Ages,1))),"") -> 0.3870024896 | CK17: =IF($C17<>"",CJ17*EXP(-OFFSET('Forecasts Aggregate'!$C$17,$C17-$C$17,MATCH(CJ$16,Ages,1))),"") -> 0.3607131252 | CL17: =IF($C17<>"",CK17*EXP(-OFFSET('Forecasts Aggregate'!$C$17,$C17-$C$17,MATCH(CK$16,Ages,1))),"") -> 0.3213159176 | CM17: =IF($C17<>"",CL17*EXP(-OFFSET('Forecasts Aggregate'!$C$17,$C17-$C$17,MATCH(CL$16,Ages,1))),"") -> 0.2862216861 | CN17: =IF($C17<>"",CM17*EXP(-OFFSET('Forecasts Aggregate'!$C$17,$C17-$C$17,MATCH(CM$16,Ages,1))),"") -> 0.2549604582 | CO17: =IF($C17<>"",CN17*EXP(-OFFSET('Forecasts Aggregate'!$C$17,$C17-$C$17,MATCH(CN$16,Ages,1))),"") -> 0.2271135921 | CP17: =IF($C17<>"",CO17*EXP(-OFFSET('Forecasts Aggregate'!$C$17,$C17-$C$17,MATCH(CO$16,Ages,1))),"") -> 0.20230817 | CQ17: =IF($C17<>"",CP17*EXP(-OFFSET('Forecasts Aggregate'!$C$17,$C17-$C$17,MATCH(CP$16,Ages,1))),"") -> 0.1655209173 | CR17: =IF($C17<>"",CQ17*EXP(-OFFSET('Forecasts Aggregate'!$C$17,$C17-$C$17,MATCH(CQ$16,Ages,1))),"") -> 0.1354229742 | CS17: =IF($C17<>"",CR17*EXP(-OFFSET('Forecasts Aggregate'!$C$17,$C17-$C$17,MATCH(CR$16,Ages,1))),"") -> 0.1107979718 | CT17: =IF($C17<>"",CS17*EXP(-OFFSET('Forecasts Aggregate'!$C$17,$C17-$C$17,MATCH(CS$16,Ages,1))),"") -> 0.09065072327 | CU17: =IF($C17<>"",CT17*EXP(-OFFSET('Forecasts Aggregate'!$C$17,$C17-$C$17,MATCH(CT$16,Ages,1))),"") -> 0.07416700411 | CV17: =IF($C17<>"",CU17*EXP(-OFFSET('Forecasts Aggregate'!$C$17,$C17-$C$17,MATCH(CU$16,Ages,1))),"") -> 0.05261436181 | CW17: =IF($C17<>"",CV17*EXP(-OFFSET('Forecasts Aggregate'!$C$17,$C17-$C$17,MATCH(CV$16,Ages,1))),"") -> 0.03732483335 | CX17: =IF($C17<>"",CW17*EXP(-OFFSET('Forecasts Aggregate'!$C$17,$C17-$C$17,MATCH(CW$16,Ages,1))),"") -> 0.02647838226 | CY17: =IF($C17<>"",CX17*EXP(-OFFSET('Forecasts Aggregate'!$C$17,$C17-$C$17,MATCH(CX$16,Ages,1))),"") -> 0.01878386758 | CZ17: =IF($C17<>"",CY17*EXP(-OFFSET('Forecasts Aggregate'!$C$17,$C17-$C$17,MATCH(CY$16,Ages,1))),"") -> 0.01332534888 | DA17: =IF($C17<>"",CZ17*EXP(-OFFSET('Forecasts Aggregate'!$C$17,$C17-$C$17,MATCH(CZ$16,Ages,1))),"") -> 0.009453054435 | DB17: =IF($C17<>"",DA17*EXP(-OFFSET('Forecasts Aggregate'!$C$17,$C17-$C$17,MATCH(DA$16,Ages,1))),"") -> 0.006706033663 | DC17: =IF($C17<>"",DB17*EXP(-OFFSET('Forecasts Aggregate'!$C$17,$C17-$C$17,MATCH(DB$16,Ages,1))),"") -> 0.004757286419 | DD17: =IF($C17<>"",DC17*EXP(-OFFSET('Forecasts Aggregate'!$C$17,$C17-$C$17,MATCH(DC$16,Ages,1))),"") -> 0.003374837529 | DE17: =IF($C17<>"",DD17*EXP(-OFFSET('Forecasts Aggregate'!$C$17,$C17-$C$17,MATCH(DD$16,Ages,1))),"") -> 0.002394122898 | DF17: =IF($C17<>"",DE17*EXP(-OFFSET('Forecasts Aggregate'!$C$17,$C17-$C$17,MATCH(DE$16,Ages,1))),"") -> 0.001698400115 | DG17: =IF($C17<>"",DF17*EXP(-OFFSET('Forecasts Aggregate'!$C$17,$C17-$C$17,MATCH(DF$16,Ages,1))),"") -> 0.001204851662 | DH17: =IF($C17<>"",DG17*EXP(-OFFSET('Forecasts Aggregate'!$C$17,$C17-$C$17,MATCH(DG$16,Ages,1))),"") -> 0.0008547264652 | DI17: =IF($C17<>"",DH17*EXP(-OFFSET('Forecasts Aggregate'!$C$17,$C17-$C$17,MATCH(DH$16,Ages,1))),"") -> 0.000606346286 | DJ17: =IF($C17<>"",DI17*EXP(-OFFSET('Forecasts Aggregate'!$C$17,$C17-$C$17,MATCH(DI$16,Ages,1))),"") -> 0.0004301444187 | DK17: =IF($C17<>"",DJ17*EXP(-OFFSET('Forecasts Aggregate'!$C$17,$C17-$C$17,MATCH(DJ$16,Ages,1))),"") -> 0.0003051461273 | DM17: =Year_0 -> 2016 | DN17: =IF($C17<>"",0.5+SUM(E17:DK17),"") -> 76.21077114 | DO17: =IF($C17<>"",0.5+SUMIF($E$16:$DK$16,CONCATENATE(">",age_LE),E17:DK17)/INDEX(D17:DK17,age_LE+1),"") -> 18.11145382 | DQ17: =Year_0 -> 2016 | DR17: =IF($C17<>"",SUM(E17:CJ17)+1-0.5*SUMPRODUCT(D17:CJ17,D51:CJ51),"") -> 73.98162342 | DS17: =IF($C17<>"",SUM(BR17:CJ17)/BQ17+1-0.5*SUMPRODUCT(BQ17:CJ17,BQ51:CJ51)/BQ17,"") -> 15.32333217 | DU17: time | DV17: =Year_1 -> 2017 | DW17: =IF(DV17<>"",100%,"") -> 1 | DX17: =IF($DV17<>"",DW17*EXP(-OFFSET('Forecasts Aggregate'!$AA$17,$DV17-$DV$17,MATCH(DW$16,Ages,1))),"") -> 0.9958507276 | DY17: =IF($DV17<>"",DX17*EXP(-OFFSET('Forecasts Aggregate'!$AA$17,$DV17-$DV$17,MATCH(DX$16,Ages,1))),"") -> 0.9956558279 | DZ17: =IF($DV17<>"",DY17*EXP(-OFFSET('Forecasts Aggregate'!$AA$17,$DV17-$DV$17,MATCH(DY$16,Ages,1))),"") -> 0.9954609663 | EA17: =IF($DV17<>"",DZ17*EXP(-OFFSET('Forecasts Aggregate'!$AA$17,$DV17-$DV$17,MATCH(DZ$16,Ages,1))),"") -> 0.9952661428 | EB17: =IF($DV17<>"",EA17*EXP(-OFFSET('Forecasts Aggregate'!$AA$17,$DV17-$DV$17,MATCH(EA$16,Ages,1))),"") -> 0.9950713575 | EC17: =IF($DV17<>"",EB17*EXP(-OFFSET('Forecasts Aggregate'!$AA$17,$DV17-$DV$17,MATCH(EB$16,Ages,1))),"") -> 0.9949922527 | ED17: =IF($DV17<>"",EC17*EXP(-OFFSET('Forecasts Aggregate'!$AA$17,$DV17-$DV$17,MATCH(EC$16,Ages,1))),"") -> 0.9949131541 | EE17: =IF($DV17<>"",ED17*EXP(-OFFSET('Forecasts Aggregate'!$AA$17,$DV17-$DV$17,MATCH(ED$16,Ages,1))),"") -> 0.9948340619 | EF17: =IF($DV17<>"",EE17*EXP(-OFFSET('Forecasts Aggregate'!$AA$17,$DV17-$DV$17,MATCH(EE$16,Ages,1))),"") -> 0.9947549759 | EG17: =IF($DV17<>"",EF17*EXP(-OFFSET('Forecasts Aggregate'!$AA$17,$DV17-$DV$17,MATCH(EF$16,Ages,1))),"") -> 0.9946758962 | EH17: =IF($DV17<>"",EG17*EXP(-OFFSET('Forecasts Aggregate'!$AA$17,$DV17-$DV$17,MATCH(EG$16,Ages,1))),"") -> 0.9945601581 | EI17: =IF($DV17<>"",EH17*EXP(-OFFSET('Forecasts Aggregate'!$AA$17,$DV17-$DV$17,MATCH(EH$16,Ages,1))),"") -> 0.9944444335 | EJ17: =IF($DV17<>"",EI17*EXP(-OFFSET('Forecasts Aggregate'!$AA$17,$DV17-$DV$17,MATCH(EI$16,Ages,1))),"") -> 0.9943287223 | EK17: =IF($DV17<>"",EJ17*EXP(-OFFSET('Forecasts Aggregate'!$AA$17,$DV17-$DV$17,MATCH(EJ$16,Ages,1))),"") -> 0.9942130245 | EL17: =IF($DV17<>"",EK17*EXP(-OFFSET('Forecasts Aggregate'!$AA$17,$DV17-$DV$17,MATCH(EK$16,Ages,1))),"") -> 0.9940973403 | EM17: =IF($DV17<>"",EL17*EXP(-OFFSET('Forecasts Aggregate'!$AA$17,$DV17-$DV$17,MATCH(EL$16,Ages,1))),"") -> 0.993590045 | EN17: =IF($DV17<>"",EM17*EXP(-OFFSET('Forecasts Aggregate'!$AA$17,$DV17-$DV$17,MATCH(EM$16,Ages,1))),"") -> 0.9930830086 | EO17: =IF($DV17<>"",EN17*EXP(-OFFSET('Forecasts Aggregate'!$AA$17,$DV17-$DV$17,MATCH(EN$16,Ages,1))),"") -> 0.9925762309 | EP17: =IF($DV17<>"",EO17*EXP(-OFFSET('Forecasts Aggregate'!$AA$17,$DV17-$DV$17,MATCH(EO$16,Ages,1))),"") -> 0.9920697119 | EQ17: =IF($DV17<>"",EP17*EXP(-OFFSET('Forecasts Aggregate'!$AA$17,$DV17-$DV$17,MATCH(EP$16,Ages,1))),"") -> 0.9915634513 | ER17: =IF($DV17<>"",EQ17*EXP(-OFFSET('Forecasts Aggregate'!$AA$17,$DV17-$DV$17,MATCH(EQ$16,Ages,1))),"") -> 0.9904801176 | ES17: =IF($DV17<>"",ER17*EXP(-OFFSET('Forecasts Aggregate'!$AA$17,$DV17-$DV$17,MATCH(ER$16,Ages,1))),"") -> 0.9893979675 | ET17: =IF($DV17<>"",ES17*EXP(-OFFSET('Forecasts Aggregate'!$AA$17,$DV17-$DV$17,MATCH(ES$16,Ages,1))),"") -> 0.9883169996 | EU17: =IF($DV17<>"",ET17*EXP(-OFFSET('Forecasts Aggregate'!$AA$17,$DV17-$DV$17,MATCH(ET$16,Ages,1))),"") -> 0.9872372128 | EV17: =IF($DV17<>"",EU17*EXP(-OFFSET('Forecasts Aggregate'!$AA$17,$DV17-$DV$17,MATCH(EU$16,Ages,1))),"") -> 0.9861586058 | EW17: =IF($DV17<>"",EV17*EXP(-OFFSET('Forecasts Aggregate'!$AA$17,$DV17-$DV$17,MATCH(EV$16,Ages,1))),"") -> 0.9849872382 | EX17: =IF($DV17<>"",EW17*EXP(-OFFSET('Forecasts Aggregate'!$AA$17,$DV17-$DV$17,MATCH(EW$16,Ages,1))),"") -> 0.9838172621 | EY17: =IF($DV17<>"",EX17*EXP(-OFFSET('Forecasts Aggregate'!$AA$17,$DV17-$DV$17,MATCH(EX$16,Ages,1))),"") -> 0.9826486756 | EZ17: =IF($DV17<>"",EY17*EXP(-OFFSET('Forecasts Aggregate'!$AA$17,$DV17-$DV$17,MATCH(EY$16,Ages,1))),"") -> 0.9814814772 | FA17: =IF($DV17<>"",EZ17*EXP(-OFFSET('Forecasts Aggregate'!$AA$17,$DV17-$DV$17,MATCH(EZ$16,Ages,1))),"") -> 0.9803156652 | FB17: =IF($DV17<>"",FA17*EXP(-OFFSET('Forecasts Aggregate'!$AA$17,$DV17-$DV$17,MATCH(FA$16,Ages,1))),"") -> 0.9790816981 | FC17: =IF($DV17<>"",FB17*EXP(-OFFSET('Forecasts Aggregate'!$AA$17,$DV17-$DV$17,MATCH(FB$16,Ages,1))),"") -> 0.9778492843 | FD17: =IF($DV17<>"",FC17*EXP(-OFFSET('Forecasts Aggregate'!$AA$17,$DV17-$DV$17,MATCH(FC$16,Ages,1))),"") -> 0.9766184217 | FE17: =IF($DV17<>"",FD17*EXP(-OFFSET('Forecasts Aggregate'!$AA$17,$DV17-$DV$17,MATCH(FD$16,Ages,1))),"") -> 0.9753891086 | FF17: =IF($DV17<>"",FE17*EXP(-OFFSET('Forecasts Aggregate'!$AA$17,$DV17-$DV$17,MATCH(FE$16,Ages,1))),"") -> 0.9741613428 | FG17: =IF($DV17<>"",FF17*EXP(-OFFSET('Forecasts Aggregate'!$AA$17,$DV17-$DV$17,MATCH(FF$16,Ages,1))),"") -> 0.9726483461 | FH17: =IF($DV17<>"",FG17*EXP(-OFFSET('Forecasts Aggregate'!$AA$17,$DV17-$DV$17,MATCH(FG$16,Ages,1))),"") -> 0.9711376993 | FI17: =IF($DV17<>"",FH17*EXP(-OFFSET('Forecasts Aggregate'!$AA$17,$DV17-$DV$17,MATCH(FH$16,Ages,1))),"") -> 0.9696293987 | FJ17: =IF($DV17<>"",FI17*EXP(-OFFSET('Forecasts Aggregate'!$AA$17,$DV17-$DV$17,MATCH(FI$16,Ages,1))),"") -> 0.9681234407 | FK17: =IF($DV17<>"",FJ17*EXP(-OFFSET('Forecasts Aggregate'!$AA$17,$DV17-$DV$17,MATCH(FJ$16,Ages,1))),"") -> 0.9666198217 | FL17: =IF($DV17<>"",FK17*EXP(-OFFSET('Forecasts Aggregate'!$AA$17,$DV17-$DV$17,MATCH(FK$16,Ages,1))),"") -> 0.9648667677 | FM17: =IF($DV17<>"",FL17*EXP(-OFFSET('Forecasts Aggregate'!$AA$17,$DV17-$DV$17,MATCH(FL$16,Ages,1))),"") -> 0.9631168931 | FN17: =IF($DV17<>"",FM17*EXP(-OFFSET('Forecasts Aggregate'!$AA$17,$DV17-$DV$17,MATCH(FM$16,Ages,1))),"") -> 0.961370192 | FO17: =IF($DV17<>"",FN17*EXP(-OFFSET('Forecasts Aggregate'!$AA$17,$DV17-$DV$17,MATCH(FN$16,Ages,1))),"") -> 0.9596266587 | FP17: =IF($DV17<>"",FO17*EXP(-OFFSET('Forecasts Aggregate'!$AA$17,$DV17-$DV$17,MATCH(FO$16,Ages,1))),"") -> 0.9578862874 | FQ17: =IF($DV17<>"",FP17*EXP(-OFFSET('Forecasts Aggregate'!$AA$17,$DV17-$DV$17,MATCH(FP$16,Ages,1))),"") -> 0.9552735869 | FR17: =IF($DV17<>"",FQ17*EXP(-OFFSET('Forecasts Aggregate'!$AA$17,$DV17-$DV$17,MATCH(FQ$16,Ages,1))),"") -> 0.9526680126 | FS17: =IF($DV17<>"",FR17*EXP(-OFFSET('Forecasts Aggregate'!$AA$17,$DV17-$DV$17,MATCH(FR$16,Ages,1))),"") -> 0.9500695453 | FT17: =IF($DV17<>"",FS17*EXP(-OFFSET('Forecasts Aggregate'!$AA$17,$DV17-$DV$17,MATCH(FS$16,Ages,1))),"") -> 0.9474781654 | FU17: =IF($DV17<>"",FT17*EXP(-OFFSET('Forecasts Aggregate'!$AA$17,$DV17-$DV$17,MATCH(FT$16,Ages,1))),"") -> 0.9448938537 | FV17: =IF($DV17<>"",FU17*EXP(-OFFSET('Forecasts Aggregate'!$AA$17,$DV17-$DV$17,MATCH(FU$16,Ages,1))),"") -> 0.9409310452 | FW17: =IF($DV17<>"",FV17*EXP(-OFFSET('Forecasts Aggregate'!$AA$17,$DV17-$DV$17,MATCH(FV$16,Ages,1))),"") -> 0.9369848565 | FX17: =IF($DV17<>"",FW17*EXP(-OFFSET('Forecasts Aggregate'!$AA$17,$DV17-$DV$17,MATCH(FW$16,Ages,1))),"") -> 0.9330552178 | FY17: =IF($DV17<>"",FX17*EXP(-OFFSET('Forecasts Aggregate'!$AA$17,$DV17-$DV$17,MATCH(FX$16,Ages,1))),"") -> 0.9291420596 | FZ17: =IF($DV17<>"",FY17*EXP(-OFFSET('Forecasts Aggregate'!$AA$17,$DV17-$DV$17,MATCH(FY$16,Ages,1))),"") -> 0.9252453129 | GA17: =IF($DV17<>"",FZ17*EXP(-OFFSET('Forecasts Aggregate'!$AA$17,$DV17-$DV$17,MATCH(FZ$16,Ages,1))),"") -> 0.9193340083 | GB17: =IF($DV17<>"",GA17*EXP(-OFFSET('Forecasts Aggregate'!$AA$17,$DV17-$DV$17,MATCH(GA$16,Ages,1))),"") -> 0.9134604705 | GC17: =IF($DV17<>"",GB17*EXP(-OFFSET('Forecasts Aggregate'!$AA$17,$DV17-$DV$17,MATCH(GB$16,Ages,1))),"") -> 0.9076244582 | GD17: =IF($DV17<>"",GC17*EXP(-OFFSET('Forecasts Aggregate'!$AA$17,$DV17-$DV$17,MATCH(GC$16,Ages,1))),"") -> 0.9018257316 | GE17: =IF($DV17<>"",GD17*EXP(-OFFSET('Forecasts Aggregate'!$AA$17,$DV17-$DV$17,MATCH(GD$16,Ages,1))),"") -> 0.8960640525 | GF17: =IF($DV17<>"",GE17*EXP(-OFFSET('Forecasts Aggregate'!$AA$17,$DV17-$DV$17,MATCH(GE$16,Ages,1))),"") -> 0.8874447675 | GG17: =IF($DV17<>"",GF17*EXP(-OFFSET('Forecasts Aggregate'!$AA$17,$DV17-$DV$17,MATCH(GF$16,Ages,1))),"") -> 0.8789083919 | GH17: =IF($DV17<>"",GG17*EXP(-OFFSET('Forecasts Aggregate'!$AA$17,$DV17-$DV$17,MATCH(GG$16,Ages,1))),"") -> 0.8704541281 | GI17: =IF($DV17<>"",GH17*EXP(-OFFSET('Forecasts Aggregate'!$AA$17,$DV17-$DV$17,MATCH(GH$16,Ages,1))),"") -> 0.8620811862 | GJ17: =IF($DV17<>"",GI17*EXP(-OFFSET('Forecasts Aggregate'!$AA$17,$DV17-$DV$17,MATCH(GI$16,Ages,1))),"") -> 0.8537887841 | GK17: =IF($DV17<>"",GJ17*EXP(-OFFSET('Forecasts Aggregate'!$AA$17,$DV17-$DV$17,MATCH(GJ$16,Ages,1))),"") -> 0.8421664767 | GL17: =IF($DV17<>"",GK17*EXP(-OFFSET('Forecasts Aggregate'!$AA$17,$DV17-$DV$17,MATCH(GK$16,Ages,1))),"") -> 0.8307023794 | GM17: =IF($DV17<>"",GL17*EXP(-OFFSET('Forecasts Aggregate'!$AA$17,$DV17-$DV$17,MATCH(GL$16,Ages,1))),"") -> 0.8193943386 | GN17: =IF($DV17<>"",GM17*EXP(-OFFSET('Forecasts Aggregate'!$AA$17,$DV17-$DV$17,MATCH(GM$16,Ages,1))),"") -> 0.8082402299 | GO17: =IF($DV17<>"",GN17*EXP(-OFFSET('Forecasts Aggregate'!$AA$17,$DV17-$DV$17,MATCH(GN$16,Ages,1))),"") -> 0.797237958 | GP17: =IF($DV17<>"",GO17*EXP(-OFFSET('Forecasts Aggregate'!$AA$17,$DV17-$DV$17,MATCH(GO$16,Ages,1))),"") -> 0.7814569102 | GQ17: =IF($DV17<>"",GP17*EXP(-OFFSET('Forecasts Aggregate'!$AA$17,$DV17-$DV$17,MATCH(GP$16,Ages,1))),"") -> 0.7659882429 | GR17: =IF($DV17<>"",GQ17*EXP(-OFFSET('Forecasts Aggregate'!$AA$17,$DV17-$DV$17,MATCH(GQ$16,Ages,1))),"") -> 0.7508257724 | GS17: =IF($DV17<>"",GR17*EXP(-OFFSET('Forecasts Aggregate'!$AA$17,$DV17-$DV$17,MATCH(GR$16,Ages,1))),"") -> 0.7359634377 | GT17: =IF($DV17<>"",GS17*EXP(-OFFSET('Forecasts Aggregate'!$AA$17,$DV17-$DV$17,MATCH(GS$16,Ages,1))),"") -> 0.7213952978 | GU17: =IF($DV17<>"",GT17*EXP(-OFFSET('Forecasts Aggregate'!$AA$17,$DV17-$DV$17,MATCH(GT$16,Ages,1))),"") -> 0.6984771485 | GV17: =IF($DV17<>"",GU17*EXP(-OFFSET('Forecasts Aggregate'!$AA$17,$DV17-$DV$17,MATCH(GU$16,Ages,1))),"") -> 0.6762870903 | GW17: =IF($DV17<>"",GV17*EXP(-OFFSET('Forecasts Aggregate'!$AA$17,$DV17-$DV$17,MATCH(GV$16,Ages,1))),"") -> 0.6548019925 | GX17: =IF($DV17<>"",GW17*EXP(-OFFSET('Forecasts Aggregate'!$AA$17,$DV17-$DV$17,MATCH(GW$16,Ages,1))),"") -> 0.6339994591 | GY17: =IF($DV17<>"",GX17*EXP(-OFFSET('Forecasts Aggregate'!$AA$17,$DV17-$DV$17,MATCH(GX$16,Ages,1))),"") -> 0.6138578054 | GZ17: =IF($DV17<>"",GY17*EXP(-OFFSET('Forecasts Aggregate'!$AA$17,$DV17-$DV$17,MATCH(GY$16,Ages,1))),"") -> 0.580960503 | HA17: =IF($DV17<>"",GZ17*EXP(-OFFSET('Forecasts Aggregate'!$AA$17,$DV17-$DV$17,MATCH(GZ$16,Ages,1))),"") -> 0.5498262026 | HB17: =IF($DV17<>"",HA17*EXP(-OFFSET('Forecasts Aggregate'!$AA$17,$DV17-$DV$17,MATCH(HA$16,Ages,1))),"") -> 0.5203604229 | HC17: =IF($DV17<>"",HB17*EXP(-OFFSET('Forecasts Aggregate'!$AA$17,$DV17-$DV$17,MATCH(HB$16,Ages,1))),"") -> 0.4924737462 | HD17: =IF($DV17<>"",HC17*EXP(-OFFSET('Forecasts Aggregate'!$AA$17,$DV17-$DV$17,MATCH(HC$16,Ages,1))),"") -> 0.4660815466 | HE17: =IF($DV17<>"",HD17*EXP(-OFFSET('Forecasts Aggregate'!$AA$17,$DV17-$DV$17,MATCH(HD$16,Ages,1))),"") -> 0.4298480116 | HF17: =IF($DV17<>"",HE17*EXP(-OFFSET('Forecasts Aggregate'!$AA$17,$DV17-$DV$17,MATCH(HE$16,Ages,1))),"") -> 0.3964312993 | HG17: =IF($DV17<>"",HF17*EXP(-OFFSET('Forecasts Aggregate'!$AA$17,$DV17-$DV$17,MATCH(HF$16,Ages,1))),"") -> 0.3656124277 | HH17: =IF($DV17<>"",HG17*EXP(-OFFSET('Forecasts Aggregate'!$AA$17,$DV17-$DV$17,MATCH(HG$16,Ages,1))),"") -> 0.3371894387 | HI17: =IF($DV17<>"",HH17*EXP(-OFFSET('Forecasts Aggregate'!$AA$17,$DV17-$DV$17,MATCH(HH$16,Ages,1))),"") -> 0.3109760746 | HJ17: =IF($DV17<>"",HI17*EXP(-OFFSET('Forecasts Aggregate'!$AA$17,$DV17-$DV$17,MATCH(HI$16,Ages,1))),"") -> 0.2712288037 | HK17: =IF($DV17<>"",HJ17*EXP(-OFFSET('Forecasts Aggregate'!$AA$17,$DV17-$DV$17,MATCH(HJ$16,Ages,1))),"") -> 0.2365618128 | HL17: =IF($DV17<>"",HK17*EXP(-OFFSET('Forecasts Aggregate'!$AA$17,$DV17-$DV$17,MATCH(HK$16,Ages,1))),"") -> 0.2063257682 | HM17: =IF($DV17<>"",HL17*EXP(-OFFSET('Forecasts Aggregate'!$AA$17,$DV17-$DV$17,MATCH(HL$16,Ages,1))),"") -> 0.1799543304 | HN17: =IF($DV17<>"",HM17*EXP(-OFFSET('Forecasts Aggregate'!$AA$17,$DV17-$DV$17,MATCH(HM$16,Ages,1))),"") -> 0.1569535464 | HO17: =IF($DV17<>"",HN17*EXP(-OFFSET('Forecasts Aggregate'!$AA$17,$DV17-$DV$17,MATCH(HN$16,Ages,1))),"") -> 0.1250166321 | HP17: =IF($DV17<>"",HO17*EXP(-OFFSET('Forecasts Aggregate'!$AA$17,$DV17-$DV$17,MATCH(HO$16,Ages,1))),"") -> 0.09957824246 | HQ17: =IF($DV17<>"",HP17*EXP(-OFFSET('Forecasts Aggregate'!$AA$17,$DV17-$DV$17,MATCH(HP$16,Ages,1))),"") -> 0.07931605743 | HR17: =IF($DV17<>"",HQ17*EXP(-OFFSET('Forecasts Aggregate'!$AA$17,$DV17-$DV$17,MATCH(HQ$16,Ages,1))),"") -> 0.06317682268 | HS17: =IF($DV17<>"",HR17*EXP(-OFFSET('Forecasts Aggregate'!$AA$17,$DV17-$DV$17,MATCH(HR$16,Ages,1))),"") -> 0.0503216001 | HT17: =IF($DV17<>"",HS17*EXP(-OFFSET('Forecasts Aggregate'!$AA$17,$DV17-$DV$17,MATCH(HS$16,Ages,1))),"") -> 0.04008215876 | HU17: =IF($DV17<>"",HT17*EXP(-OFFSET('Forecasts Aggregate'!$AA$17,$DV17-$DV$17,MATCH(HT$16,Ages,1))),"") -> 0.03192623938 | HV17: =IF($DV17<>"",HU17*EXP(-OFFSET('Forecasts Aggregate'!$AA$17,$DV17-$DV$17,MATCH(HU$16,Ages,1))),"") -> 0.02542988683 | HW17: =IF($DV17<>"",HV17*EXP(-OFFSET('Forecasts Aggregate'!$AA$17,$DV17-$DV$17,MATCH(HV$16,Ages,1))),"") -> 0.02025541237 | HX17: =IF($DV17<>"",HW17*EXP(-OFFSET('Forecasts Aggregate'!$AA$17,$DV17-$DV$17,MATCH(HW$16,Ages,1))),"") -> 0.01613384019 | HY17: =IF($DV17<>"",HX17*EXP(-OFFSET('Forecasts Aggregate'!$AA$17,$DV17-$DV$17,MATCH(HX$16,Ages,1))),"") -> 0.0128509257 | HZ17: =IF($DV17<>"",HY17*EXP(-OFFSET('Forecasts Aggregate'!$AA$17,$DV17-$DV$17,MATCH(HY$16,Ages,1))),"") -> 0.01023601879 | IA17: =IF($DV17<>"",HZ17*EXP(-OFFSET('Forecasts Aggregate'!$AA$17,$DV17-$DV$17,MATCH(HZ$16,Ages,1))),"") -> 0.00815319325 | IB17: =IF($DV17<>"",IA17*EXP(-OFFSET('Forecasts Aggregate'!$AA$17,$DV17-$DV$17,MATCH(IA$16,Ages,1))),"") -> 0.006494181139 | IC17: =IF($DV17<>"",IB17*EXP(-OFFSET('Forecasts Aggregate'!$AA$17,$DV17-$DV$17,MATCH(IB$16,Ages,1))),"") -> 0.005172744884 | ID17: =IF($DV17<>"",IC17*EXP(-OFFSET('Forecasts Aggregate'!$AA$17,$DV17-$DV$17,MATCH(IC$16,Ages,1))),"") -> 0.004120194534 | IF17: =Year_1 -> 2017 | IG17: =IF($DV17<>"",0.5+SUM(DX17:ID17),"") -> 80.31553833 | IH17: =IF($DV17<>"",0.5+SUMIF($DX$16:$ID$16,CONCATENATE(">",age_LE),DX17:ID17)/INDEX(DW17:ID17,age_LE+1),"") -> 20.68045089 | IJ17: =Year_1 -> 2017 | IK17: =IF($DV17<>"",SUM(DX17:HC17)+1-0.5*SUMPRODUCT(DW17:HC17,DW51:HC51),"") -> 76.59315189 | IL17: =IF($DV17<>"",SUM(GK17:HC17)/GJ17+1-0.5*SUMPRODUCT(GJ17:HC17,GJ51:HC51)/GJ17,"") -> 16.32060627
